Workbook

Sheet FarbTest (hidden)
B1: Farbwerte des KTBL zur Orientierung | J1: Farbwerte für die Anwendung (Änderung der RGB-Werte)
C3: R | D3: G | E3: B | F3: ExcelWerte | J3: Bereich | K3: R | L3: G | M3: B | N3: ExcelFarbWerte
B4: KTBL_Blau_Vollton | C4: 0 | D4: 63 | E4: 104 | F4: =holeFarbe(C4,D4,E4) -> 6831872 | J4: Kopfbereich | K4: 59 | L4: 74 | M4: 121 | N4: =holeFarbe(K4,L4,M4) -> 7948859
B5: KTBL_Rot_Vollton | C5: 226 | D5: 0 | E5: 26 | F5: =holeFarbe(C5,D5,E5) -> 1704162 | J5: Navigation | K5: 255 | L5: 255 | M5: 255 | N5: =holeFarbe(K5,L5,M5) -> 16777215
B6: KTBL_Grün_Vollton | C6: 137 | D6: 186 | E6: 23 | F6: =holeFarbe(C6,D6,E6) -> 1555081 | J6: Jahresanfang | K6: 207 | L6: 218 | M6: 227 | N6: =holeFarbe(K6,L6,M6) -> 14932687
B7: KTBL_Gelb_Vollton | C7: 253 | D7: 196 | E7: 0 | F7: =holeFarbe(C7,D7,E7) -> 50429 | Q7: Hinweis:
B8: KTBL_Blau_0 | C8: 59 | D8: 74 | E8: 121 | F8: =holeFarbe(C8,D8,E8) -> 7948859 | J8: Hintergrund Bereich | K8: 240 | L8: 240 | M8: 220 | N8: =holeFarbe(K8,L8,M8) -> 14479600 | Q8: Nach Eingabe von RGB-Werten erscheint die Farbe
B9: KTBL_Blau_1 | C9: 100 | D9: 119 | E9: 180 | F9: =holeFarbe(C9,D9,E9) -> 11827044 | J9: Hintergrund Einheiten | K9: 220 | L9: 220 | M9: 220 | N9: =holeFarbe(K9,L9,M9) -> 14474460 | Q9: zur Voransicht. Die Anwendung der Farben auf die Reiter
B10: KTBL_Blau_2 | C10: 147 | D10: 160 | E10: 203 | F10: =holeFarbe(C10,D10,E10) -> 13344915 | J10: Hintergrund Blatt | K10: 255 | L10: 255 | M10: 255 | N10: =holeFarbe(K10,L10,M10) -> 16777215 | Q10: erfolgt durch Anklicken des Schalters
B11: KTBL_Blau_3 | C11: 181 | D11: 190 | E11: 219 | F11: =holeFarbe(C11,D11,E11) -> 14401205
B12: KTBL_Blau_4 | C12: 208 | D12: 214 | E12: 232 | F12: =holeFarbe(C12,D12,E12) -> 15259344 | J12: Fehler Zelle Rand | K12: 214 | L12: 0 | M12: 10 | N12: =holeFarbe(K12,L12,M12) -> 655574 | Q12: Diese Funktion ist nur zur Entwicklung gedacht.
B13: KTBL_Rot_0 | C13: 214 | D13: 0 | E13: 10 | F13: =holeFarbe(C13,D13,E13) -> 655574 | J13: Fehler Zelle innen | K13: 255 | L13: 225 | M13: 226 | N13: =holeFarbe(K13,L13,M13) -> 14868991 | Q13: Sie dauert einen Moment, der Bildschirm flackert …
B14: KTBL_Rot_1 | C14: 255 | D14: 45 | E14: 55 | F14: =holeFarbe(C14,D14,E14) -> 3616255 | J14: Fehler Indikator | K14: 255 | L14: 225 | M14: 226 | N14: =holeFarbe(K14,L14,M14) -> 14868991
B15: KTBL_Rot_2 | C15: 255 | D15: 105 | E15: 112 | F15: =holeFarbe(C15,D15,E15) -> 7367167
B16: KTBL_Rot_3 | C16: 255 | D16: 165 | E16: 169 | F16: =holeFarbe(C16,D16,E16) -> 11118079 | J16: Eingabefelder | K16: 255 | L16: 246 | M16: 223 | N16: =holeFarbe(K16,L16,M16) -> 14677759
B17: KTBL_Rot_4 | C17: 255 | D17: 205 | E17: 207 | F17: =holeFarbe(C17,D17,E17) -> 13618687
B18: KTBL_Grün_0 | C18: 117 | D18: 160 | E18: 3 | F18: =holeFarbe(C18,D18,E18) -> 237685 | J18: Pflanzen 1 | K18: 255 | L18: 255 | M18: 255 | N18: =holeFarbe(K18,L18,M18) -> 16777215
B19: KTBL_Grün_1 | C19: 155 | D19: 216 | E19: 4 | F19: =holeFarbe(C19,D19,E19) -> 317595 | J19: Pflanzen 2 | K19: 255 | L19: 255 | M19: 255 | N19: =holeFarbe(K19,L19,M19) -> 16777215
B20: KTBL_Grün_2 | C20: 188 | D20: 251 | E20: 29 | F20: =holeFarbe(C20,D20,E20) -> 1964988
B21: KTBL_Grün_3 | C21: 217 | D21: 253 | E21: 127 | F21: =holeFarbe(C21,D21,E21) -> 8388057 | J21: Düngemittel 1 | K21: 255 | L21: 255 | M21: 255 | N21: =holeFarbe(K21,L21,M21) -> 16777215
B22: KTBL_Grün_4 | C22: 232 | D22: 254 | E22: 176 | F22: =holeFarbe(C22,D22,E22) -> 11599592 | J22: Düngemittel 2 | K22: 255 | L22: 255 | M22: 255 | N22: =holeFarbe(K22,L22,M22) -> 16777215
B23: KTBL_Gelb_0 | C23: 251 | D23: 193 | E23: 0 | F23: =holeFarbe(C23,D23,E23) -> 49659
B24: KTBL_Gelb_1 | C24: 255 | D24: 219 | E24: 105 | F24: =holeFarbe(C24,D24,E24) -> 6937599 | J24: Schlag | K24: 207 | L24: 218 | M24: 227 | N24: =holeFarbe(K24,L24,M24) -> 14932687
B25: KTBL_Gelb_2 | C25: 255 | D25: 234 | E25: 165 | F25: =holeFarbe(C25,D25,E25) -> 10873599 | J25: Szenario | K25: 255 | L25: 255 | M25: 255 | N25: =holeFarbe(K25,L25,M25) -> 16777215
B26: KTBL_Gelb_3 | C26: 255 | D26: 243 | E26: 205 | F26: =holeFarbe(C26,D26,E26) -> 13497343
J27: Grafik_Zufuhr | K27: 147 | L27: 160 | M27: 203 | N27: =holeFarbe(K27,L27,M27) -> 13344915
J28: Grafik_Abfuhr | K28: 59 | L28: 74 | M28: 121 | N28: =holeFarbe(K28,L28,M28) -> 7948859
J29: Grafik_Saldo | K29: 255 | L29: 255 | M29: 255 | N29: =holeFarbe(K29,L29,M29) -> 16777215
J31: Schriftfarbe | K31: 0 | L31: 0 | M31: 0 | N31: =holeFarbe(K31,L31,M31) -> 0

Sheet Willkommen
A1: #H# | B1: #H# | C1: #H# | D1: #H# | E1: #H# | F1: #H# | G1: #H# | H1: 0.5 | I1: 14 | J1: 2 | K1: 1 | L1: 16 | M1: 14 | N1: 16 | O1: 24 | P1: 18 | Q1: 26 | R1: 14
A2: #H# | B2: SeiteStart
A3: #H#
A4: #H#
A5: #H#
A6: #H#
A7: #H#
A8: =ZeileNormal -> 17
A9: 17
A10: 17
A11: 17
A12: 17
A13: 17
A14: =ZeileTitel + ZeileAbstand -> 27 | K14: ="NutriNet-Nährstoffbilanzierung" -> NutriNet-Nährstoffbilanzierung
A15: =ZeileAbstand -> 5
A16: 17 | L16: Im Ökolandbau muss die Versorgung von Pflanzen und Böden langfristig geplant werden.
A17: 17 | L17: Die Dokumentation der Bewirtschaftung – also Düngung und Anbau von Kulturen – und die Bilanzierung der zu- und abgeführten Nährstoffe
A18: 17 | L18: spielen dabei eine entscheidende Rolle. Die Excel-Anwendung „NutriNet-Nährstoffbilanzierung“ hilft bei der Planung.
A19: =ZeileAbstand -> 5
A20: 17 | L20: Die Excel-Anwendung wurde im Praxisforschungsprojekt „Kompetenz- und Praxisforschungsnetzwerk zur Weiterentwicklung des Nährstoff-
A21: 17 | L21: managements im ökologischen Landbau“ (NutriNet) entwickelt. Mit ihr können Nährstoffe und Humus schlagbezogen bilanziert werden.
A22: =ZeileAbstand -> 5
A23: 17 | L23: Die Anwendung ist ein Planungswerkzeug; sie ersetzt keine Düngedokumentation oder Nährstoffbilanzierung nach Düngeverordnung und
A24: 17 | L24: Stoffstrombilanzverordnung. Es müssen die geltenden einschlägigen Rechtsvorschriften beachtet werden.
A25: =ZeileAbstand -> 5 | L25: Aus den Bilanzen können Rückschlüsse auf Fragestellungen der Pflanzenernährung gezogen werden. Wirkungen beispielsweise von Calcium auf den pH-Wert des Bodens können aus den Bilanzen nicht abgeleitet werden.
A26: 17 | L26: Bitte beachten Sie bei der Interpretation der Ergebnisse, dass
A27: 17 | L27: (a) Auswaschungs- und Ausgasungsverluste sowie Nährstoffverfügbarkeiten nicht bilanziert werden und
A28: 17 | L28: (b) bei einigen Pflanzen und Düngemitteln Lücken in den Grunddaten vorhanden sind. Diese sind farblich gekennzeichnet (siehe Legende).
A29: 17
A30: =ZeileTitel -> 22 | K30: Funktionen und Nutzung der Anwendung
A31: =ZeileAbstand -> 5
A32: =ZeileNormal -> 17 | L32: Mit der Anwendung können Sie:
A33: 17 | L33: • Brutto-Schlagbilanzen für Hauptnährstoffe (N, P, K, S, Ca, Mg) und Spurennährstoffe (Fe, Mn, Cu, Zn, Mo, B, Na) erstellen
A34: 17 | L34: • die N-Fixierleistung von Leguminosen standort- und bewirtschaftungsabhängig berechnen
A35: 17 | L35: • Humusbilanzen ermitteln
A36: =ZeileAbstand -> 5
A37: 17 | L37: Zum Vergleich unterschiedlicher Maßnahmen können Szenarien erstellt sowie individuelle Auswertungs-Tabellen und Grafiken erzeugt werden.
A38: 17 | L38: In der Anwendung sind fertige Kalkulationsbeispiele hinterlegt, mit denen sich ein schneller Eindruck vom Nutzen der Anwendung gewinnen lässt.
A39: =ZeileAbstand -> 5
A40: 17 | L40: Eine ausführliche Anleitung und Hintergründe zur Methodik der Anwendung finden Sie im Benutzerhandbuch.
A41: =ZeileAbstand -> 5
A42: 17 | G42: row_handbuch | L42: Handbuch
A43: 17
A44: 17 | K44: Förderhinweis
A45: =ZeileAbstand -> 5
A46: 17 | L46: Die Förderung des Vorhabens „Kompetenz- und Praxisforschungsnetzwerk zur Weiterentwicklung des Nährstoffmanagements
A47: 17 | L47: im ökologischen Landbau“ erfolgt aus Mitteln des Bundesministeriums für Ernährung und Landwirtschaft (BMEL)
A48: 17 | L48: aufgrund eines Beschlusses des Deutschen Bundestages.
A49: 17 | L49: Die Projektträgerschaft erfolgt über die Bundesanstalt für Landwirtschaft und Ernährung (BLE) im Rahmen des Bundesprogramms
A50: 17 | L50: Ökologischer Landbau. Laufzeit: 2019 - 2027.
A51: =ZeileAbstand -> 5
A52: 17
A53: 17
A54: 17
A55: =ZeileNormal*2 -> 34 | Q55: Anwendung starten
A56: 17
A57: 17
A58: 17
A59: 17
A60: 17
A61: 17
A62: =ZeileTitel -> 22 | G62: row_ktbllinks | L62: | KTBL Startseite | M62: | Kontakt | N62: | Impressum | O62: | Nutzungsbedingungen | P62: | Datenschutz | Q62: | AGB und Data Policy | R62: ="| Version: " & Intern_Infos_Version -> | Version: 1.1
A63: #ENDE#

Sheet Liste_Schläge
A1: #H# | B1: #H# | C1: #H# | D1: #H# | E1: #H# | F1: #H# | G1: #H# | H1: 0.5 | I1: 1 | J1: 14 | K1: 1 | L1: 0.5 | M1: #H# | N1: 20 | O1: 20 | P1: 20 | Q1: 8 | R1: 2 | S1: 6 | T1: 6 | U1: 6 | V1: 6 | W1: 6 | X1: 6 | Y1: 6 | Z1: =IF(Intern_ListeSchlag_AnzeigeVoll,2,"#H#") -> 2 | AA1: =IF(Intern_ListeSchlag_AnzeigeVoll,6,"#H#") -> 6 | AB1: 6 | AC1: 6 | AD1: 6 | AE1: 6 | AF1: 6 | AG1: 6 | AH1: 2 | AI1: 6 | AJ1: 0.5 | AK1: 1 | AL1: 14 | AM1: 1 | AN1: #H# | AO1: #H# | AP1: #H# | AQ1: #H# | AR1: #H# | AS1: #ENDE#
A2: #H# | B2: Liste_Schlag | D2: Jahre
A3: #H# | B3: $AL$14 | D3: =IF(COUNT(W12)=1,W12,2000) -> 2020 | O3: Intern_ListeSchlag_AnzeigeVoll | P3: =strContains(Intern_ListeSchlag_Anzeige,"Vollst") -> TRUE | S3: Intern_ListeSchlag_Kontrollwert | T3: =SUM(T20:T25) -> 554.013812
A4: #H# | B4: $AL$16 | D4: =IF(Y12>=D3,Y12,YEAR(TODAY())) -> 2100 | O4: Intern_ListeSchlag_Druckbereich | P4: =getAdr(M10:AI25)&"|$1:$18" -> |$M$10:$AI$25|$1:$18
A5: #H# | O5: Summe für ErnteJahr | P5: =strContains(S12,"Ernte") -> TRUE
A6: #H#
A7: #H#
A8: =ZeileFlach -> 14
A9: =ZeileAbstand -> 5
A10: =ZeileNormal -> 17 | J10: Schlag | N10: Übersicht der Schläge | P10: Listenanzeigen einstellen | S10: Saldo: Nährstoffzugang/-abgang | AL10: Grunddaten
A11: =ZeileAbstand -> 5
A12: =ZeileNormal -> 17 | J12: Neu anlegen | N12: Liste filtern | P12: Vollständig | S12: Erntejahr | V12: von | W12: 2020 | X12: bis | Y12: 2100 | AL12: Pflanzen
A13: =ZeileAbstand -> 5
A14: =ZeileNormal -> 17 | G14: =getfilterMerkmal(Intern_ListeSchlag_Filter,TRUE) -> |C1|*|C2|*|C3|*|C4|* | J14: Grunddaten | S14: Hauptnährstoffe | AA14: Spurennährstoffe | AI14: Humus | AL14: Düngemittel | AQ14: Boden | AR14: Depos
A15: =ZeileAbstand -> 5
A16: =ZeileNormal -> 17 | J16: Bewirtschaftung | M16: Art | N16: Schlagname | O16: Schlag-Nr. | P16: Notiz | Q16: Größe | S16: N | T16: N-Fix | U16: P | V16: K | W16: S | X16: Ca | Y16: Mg | AA16: Fe | AB16: Mn | AC16: Cu | AD16: Zn | AE16: Mo | AF16: B | AG16: Na | AI16: Häq | AL16: ? Hilfe
A17: =ZeileFlach -> 14 | Q17: ha | S17: kg/ha | T17: kg/ha | U17: kg/ha | V17: kg/ha | W17: kg/ha | X17: kg/ha | Y17: kg/ha | AA17: kg/ha | AB17: kg/ha | AC17: kg/ha | AD17: kg/ha | AE17: kg/ha | AF17: kg/ha | AG17: kg/ha | AI17: Häq/ha
A18: #H#
A19: =ZeileAbstand -> 5
A20: #H# | B20: rowMuster | G20: =getfilterMerkmal(M20:P20,TRUE) -> |C1|*|C2|*|C3|*|C4|* | Q20: =SUMIFS(Intern_BasisMassnahmen_delta_mg,Intern_BasisMassnahmen_id_schlag,"=" &#REF!,Intern_BasisMassnahmen_jahr_mass,">=" & $D$3,Intern_BasisMassnahmen_jahr_mass,"<=" & $D$4) -> 0 | S20: =IF(Intern_ListeSchlag_BezugErnteJahr,SUMIFS(Intern_BasisMassnahmen_delta_nges,Intern_BasisMassnahmen_id_schlag,"=" & $B20,Intern_BasisMassnahmen_jahrbezug_mass,">=" & $D$3,Intern_BasisMassnahmen_jahrbezug_mass,"<=" & $D$4),SUMIFS(Intern_BasisMassnahmen_delta_nges,Intern_BasisMassnahmen_id_schlag,"=" & $B20,Intern_BasisMassnahmen_jahr_mass,">=" & $D$3,Intern_BasisMassnahmen_jahr_mass,"<=" & $D$4)) -> 0 | T20: =IF(Intern_ListeSchlag_BezugErnteJahr,SUMIFS(Intern_BasisMassnahmen_delta_fixier,Intern_BasisMassnahmen_id_schlag,"=" & $B20,Intern_BasisMassnahmen_jahrbezug_mass,">=" & $D$3,Intern_BasisMassnahmen_jahrbezug_mass,"<=" & $D$4),SUMIFS(Intern_BasisMassnahmen_delta_fixier,Intern_BasisMassnahmen_id_schlag,"=" & $B20,Intern_BasisMassnahmen_jahr_mass,">=" & $D$3,Intern_BasisMassnahmen_jahr_mass,"<=" & $D$4)) -> 0 | U20: =IF(Intern_ListeSchlag_BezugErnteJahr,SUMIFS(Intern_BasisMassnahmen_delta_p,Intern_BasisMassnahmen_id_schlag,"=" & $B20,Intern_BasisMassnahmen_jahrbezug_mass,">=" & $D$3,Intern_BasisMassnahmen_jahrbezug_mass,"<=" & $D$4),SUMIFS(Intern_BasisMassnahmen_delta_p,Intern_BasisMassnahmen_id_schlag,"=" & $B20,Intern_BasisMassnahmen_jahr_mass,">=" & $D$3,Intern_BasisMassnahmen_jahr_mass,"<=" & $D$4)) -> 0 | V20: =IF(Intern_ListeSchlag_BezugErnteJahr,SUMIFS(Intern_BasisMassnahmen_delta_k,Intern_BasisMassnahmen_id_schlag,"=" & $B20,Intern_BasisMassnahmen_jahrbezug_mass,">=" & $D$3,Intern_BasisMassnahmen_jahrbezug_mass,"<=" & $D$4),SUMIFS(Intern_BasisMassnahmen_delta_k,Intern_BasisMassnahmen_id_schlag,"=" & $B20,Intern_BasisMassnahmen_jahr_mass,">=" & $D$3,Intern_BasisMassnahmen_jahr_mass,"<=" & $D$4)) -> 0 | W20: =IF(Intern_ListeSchlag_BezugErnteJahr,SUMIFS(Intern_BasisMassnahmen_delta_s,Intern_BasisMassnahmen_id_schlag,"=" & $B20,Intern_BasisMassnahmen_jahrbezug_mass,">=" & $D$3,Intern_BasisMassnahmen_jahrbezug_mass,"<=" & $D$4),SUMIFS(Intern_BasisMassnahmen_delta_s,Intern_BasisMassnahmen_id_schlag,"=" & $B20,Intern_BasisMassnahmen_jahr_mass,">=" & $D$3,Intern_BasisMassnahmen_jahr_mass,"<=" & $D$4)) -> 0 | X20: =IF(Intern_ListeSchlag_BezugErnteJahr,SUMIFS(Intern_BasisMassnahmen_delta_ca,Intern_BasisMassnahmen_id_schlag,"=" & $B20,Intern_BasisMassnahmen_jahrbezug_mass,">=" & $D$3,Intern_BasisMassnahmen_jahrbezug_mass,"<=" & $D$4),SUMIFS(Intern_BasisMassnahmen_delta_ca,Intern_BasisMassnahmen_id_schlag,"=" & $B20,Intern_BasisMassnahmen_jahr_mass,">=" & $D$3,Intern_BasisMassnahmen_jahr_mass,"<=" & $D$4)) -> 0 | Y20: =IF(Intern_ListeSchlag_BezugErnteJahr,SUMIFS(Intern_BasisMassnahmen_delta_mg,Intern_BasisMassnahmen_id_schlag,"=" & $B20,Intern_BasisMassnahmen_jahrbezug_mass,">=" & $D$3,Intern_BasisMassnahmen_jahrbezug_mass,"<=" & $D$4),SUMIFS(Intern_BasisMassnahmen_delta_mg,Intern_BasisMassnahmen_id_schlag,"=" & $B20,Intern_BasisMassnahmen_jahr_mass,">=" & $D$3,Intern_BasisMassnahmen_jahr_mass,"<=" & $D$4)) -> 0 | AA20: =IF(Intern_ListeSchlag_BezugErnteJahr,SUMIFS(Intern_BasisMassnahmen_delta_fe,Intern_BasisMassnahmen_id_schlag,"=" & $B20,Intern_BasisMassnahmen_jahrbezug_mass,">=" & $D$3,Intern_BasisMassnahmen_jahrbezug_mass,"<=" & $D$4),SUMIFS(Intern_BasisMassnahmen_delta_fe,Intern_BasisMassnahmen_id_schlag,"=" & $B20,Intern_BasisMassnahmen_jahr_mass,">=" & $D$3,Intern_BasisMassnahmen_jahr_mass,"<=" & $D$4)) -> 0 | AB20: =IF(Intern_ListeSchlag_BezugErnteJahr,SUMIFS(Intern_BasisMassnahmen_delta_mn,Intern_BasisMassnahmen_id_schlag,"=" & $B20,Intern_BasisMassnahmen_jahrbezug_mass,">=" & $D$3,Intern_BasisMassnahmen_jahrbezug_mass,"<=" & $D$4),SUMIFS(Intern_BasisMassnahmen_delta_mg,Intern_BasisMassnahmen_id_schlag,"=" & $B20,Intern_BasisMassnahmen_jahr_mass,">=" & $D$3,Intern_BasisMassnahmen_jahr_mass,"<=" & $D$4)) -> 0 | AC20: =IF(Intern_ListeSchlag_BezugErnteJahr,SUMIFS(Intern_BasisMassnahmen_delta_cu,Intern_BasisMassnahmen_id_schlag,"=" & $B20,Intern_BasisMassnahmen_jahrbezug_mass,">=" & $D$3,Intern_BasisMassnahmen_jahrbezug_mass,"<=" & $D$4),SUMIFS(Intern_BasisMassnahmen_delta_cu,Intern_BasisMassnahmen_id_schlag,"=" & $B20,Intern_BasisMassnahmen_jahr_mass,">=" & $D$3,Intern_BasisMassnahmen_jahr_mass,"<=" & $D$4)) -> 0 | AD20: =IF(Intern_ListeSchlag_BezugErnteJahr,SUMIFS(Intern_BasisMassnahmen_delta_zn,Intern_BasisMassnahmen_id_schlag,"=" & $B20,Intern_BasisMassnahmen_jahrbezug_mass,">=" & $D$3,Intern_BasisMassnahmen_jahrbezug_mass,"<=" & $D$4),SUMIFS(Intern_BasisMassnahmen_delta_zn,Intern_BasisMassnahmen_id_schlag,"=" & $B20,Intern_BasisMassnahmen_jahr_mass,">=" & $D$3,Intern_BasisMassnahmen_jahr_mass,"<=" & $D$4)) -> 0 | AE20: =IF(Intern_ListeSchlag_BezugErnteJahr,SUMIFS(Intern_BasisMassnahmen_delta_mo,Intern_BasisMassnahmen_id_schlag,"=" & $B20,Intern_BasisMassnahmen_jahrbezug_mass,">=" & $D$3,Intern_BasisMassnahmen_jahrbezug_mass,"<=" & $D$4),SUMIFS(Intern_BasisMassnahmen_delta_mo,Intern_BasisMassnahmen_id_schlag,"=" & $B20,Intern_BasisMassnahmen_jahr_mass,">=" & $D$3,Intern_BasisMassnahmen_jahr_mass,"<=" & $D$4)) -> 0 | AF20: =IF(Intern_ListeSchlag_BezugErnteJahr,SUMIFS(Intern_BasisMassnahmen_delta_b,Intern_BasisMassnahmen_id_schlag,"=" & $B20,Intern_BasisMassnahmen_jahrbezug_mass,">=" & $D$3,Intern_BasisMassnahmen_jahrbezug_mass,"<=" & $D$4),SUMIFS(Intern_BasisMassnahmen_delta_b,Intern_BasisMassnahmen_id_schlag,"=" & $B20,Intern_BasisMassnahmen_jahr_mass,">=" & $D$3,Intern_BasisMassnahmen_jahr_mass,"<=" & $D$4)) -> 0 | AG20: =IF(Intern_ListeSchlag_BezugErnteJahr,SUMIFS(Intern_BasisMassnahmen_delta_na,Intern_BasisMassnahmen_id_schlag,"=" & $B20,Intern_BasisMassnahmen_jahrbezug_mass,">=" & $D$3,Intern_BasisMassnahmen_jahrbezug_mass,"<=" & $D$4),SUMIFS(Intern_BasisMassnahmen_delta_na,Intern_BasisMassnahmen_id_schlag,"=" & $B20,Intern_BasisMassnahmen_jahr_mass,">=" & $D$3,Intern_BasisMassnahmen_jahr_mass,"<=" & $D$4)) -> 0 | AI20: =SUMIFS(Intern_BasisMassnahmen_delta_humus,Intern_BasisMassnahmen_id_schlag,"=" & B20,Intern_BasisMassnahmen_jahr_mass,">=" & $D$3,Intern_BasisMassnahmen_jahr_mass,"<=" & $D$4) -> 0
A21: #H# | B21: Bereich: Kopfzeile Formulardaten für Eingabe_Schlag
A22: #H# | B22: id_schlag | C22: id_referenz | D22: sort_schlag | G22: start_liste | M22: art_schlag | N22: kenn1_schlag | O22: kenn2_schlag | P22: notiz_schlag | Q22: ha_schlag | AN22: boden_schlag | AO22: plz_schlag | AP22: kreis_schlag | AQ22: nboden_schlag | AR22: ndepos_schlag
A23: =ZeileNormal -> 17 | B23: 3824690E-63AF-D74E-BD3F-81CAFB3CA34D | C23: 3824690E-63AF-D74E-BD3F-81CAFB3CA34D | D23: Am KTBL|1|#B#| | G23: =getfilterMerkmal(M23:P23,TRUE) -> |C1|*b*|C2|*am ktbl*|C3|*1*|C4|* | M23: B | N23: Am KTBL | O23: 1 | Q23: 5 | S23: =IF(Intern_ListeSchlag_BezugErnteJahr,SUMIFS(Intern_BasisMassnahmen_delta_nges,Intern_BasisMassnahmen_id_schlag,"=" & $B23,Intern_BasisMassnahmen_jahrbezug_mass,">=" & $D$3,Intern_BasisMassnahmen_jahrbezug_mass,"<=" & $D$4),SUMIFS(Intern_BasisMassnahmen_delta_nges,Intern_BasisMassnahmen_id_schlag,"=" & $B23,Intern_BasisMassnahmen_jahr_mass,">=" & $D$3,Intern_BasisMassnahmen_jahr_mass,"<=" & $D$4)) -> 46.62820601 | T23: =IF(Intern_ListeSchlag_BezugErnteJahr,SUMIFS(Intern_BasisMassnahmen_delta_fixier,Intern_BasisMassnahmen_id_schlag,"=" & $B23,Intern_BasisMassnahmen_jahrbezug_mass,">=" & $D$3,Intern_BasisMassnahmen_jahrbezug_mass,"<=" & $D$4),SUMIFS(Intern_BasisMassnahmen_delta_fixier,Intern_BasisMassnahmen_id_schlag,"=" & $B23,Intern_BasisMassnahmen_jahr_mass,">=" & $D$3,Intern_BasisMassnahmen_jahr_mass,"<=" & $D$4)) -> 463.8992454 | U23: =IF(Intern_ListeSchlag_BezugErnteJahr,SUMIFS(Intern_BasisMassnahmen_delta_p,Intern_BasisMassnahmen_id_schlag,"=" & $B23,Intern_BasisMassnahmen_jahrbezug_mass,">=" & $D$3,Intern_BasisMassnahmen_jahrbezug_mass,"<=" & $D$4),SUMIFS(Intern_BasisMassnahmen_delta_p,Intern_BasisMassnahmen_id_schlag,"=" & $B23,Intern_BasisMassnahmen_jahr_mass,">=" & $D$3,Intern_BasisMassnahmen_jahr_mass,"<=" & $D$4)) -> -72.941 | V23: =IF(Intern_ListeSchlag_BezugErnteJahr,SUMIFS(Intern_BasisMassnahmen_delta_k,Intern_BasisMassnahmen_id_schlag,"=" & $B23,Intern_BasisMassnahmen_jahrbezug_mass,">=" & $D$3,Intern_BasisMassnahmen_jahrbezug_mass,"<=" & $D$4),SUMIFS(Intern_BasisMassnahmen_delta_k,Intern_BasisMassnahmen_id_schlag,"=" & $B23,Intern_BasisMassnahmen_jahr_mass,">=" & $D$3,Intern_BasisMassnahmen_jahr_mass,"<=" & $D$4)) -> -27.722 | W23: =IF(Intern_ListeSchlag_BezugErnteJahr,SUMIFS(Intern_BasisMassnahmen_delta_s,Intern_BasisMassnahmen_id_schlag,"=" & $B23,Intern_BasisMassnahmen_jahrbezug_mass,">=" & $D$3,Intern_BasisMassnahmen_jahrbezug_mass,"<=" & $D$4),SUMIFS(Intern_BasisMassnahmen_delta_s,Intern_BasisMassnahmen_id_schlag,"=" & $B23,Intern_BasisMassnahmen_jahr_mass,">=" & $D$3,Intern_BasisMassnahmen_jahr_mass,"<=" & $D$4)) -> -37.069 | X23: =IF(Intern_ListeSchlag_BezugErnteJahr,SUMIFS(Intern_BasisMassnahmen_delta_ca,Intern_BasisMassnahmen_id_schlag,"=" & $B23,Intern_BasisMassnahmen_jahrbezug_mass,">=" & $D$3,Intern_BasisMassnahmen_jahrbezug_mass,"<=" & $D$4),SUMIFS(Intern_BasisMassnahmen_delta_ca,Intern_BasisMassnahmen_id_schlag,"=" & $B23,Intern_BasisMassnahmen_jahr_mass,">=" & $D$3,Intern_BasisMassnahmen_jahr_mass,"<=" & $D$4)) -> -82.429 | Y23: =IF(Intern_ListeSchlag_BezugErnteJahr,SUMIFS(Intern_BasisMassnahmen_delta_mg,Intern_BasisMassnahmen_id_schlag,"=" & $B23,Intern_BasisMassnahmen_jahrbezug_mass,">=" & $D$3,Intern_BasisMassnahmen_jahrbezug_mass,"<=" & $D$4),SUMIFS(Intern_BasisMassnahmen_delta_mg,Intern_BasisMassnahmen_id_schlag,"=" & $B23,Intern_BasisMassnahmen_jahr_mass,">=" & $D$3,Intern_BasisMassnahmen_jahr_mass,"<=" & $D$4)) -> 63.97 | AA23: =IF(Intern_ListeSchlag_BezugErnteJahr,SUMIFS(Intern_BasisMassnahmen_delta_fe,Intern_BasisMassnahmen_id_schlag,"=" & $B23,Intern_BasisMassnahmen_jahrbezug_mass,">=" & $D$3,Intern_BasisMassnahmen_jahrbezug_mass,"<=" & $D$4),SUMIFS(Intern_BasisMassnahmen_delta_fe,Intern_BasisMassnahmen_id_schlag,"=" & $B23,Intern_BasisMassnahmen_jahr_mass,">=" & $D$3,Intern_BasisMassnahmen_jahr_mass,"<=" & $D$4)) -> -3.531 | AB23: =IF(Intern_ListeSchlag_BezugErnteJahr,SUMIFS(Intern_BasisMassnahmen_delta_mn,Intern_BasisMassnahmen_id_schlag,"=" & $B23,Intern_BasisMassnahmen_jahrbezug_mass,">=" & $D$3,Intern_BasisMassnahmen_jahrbezug_mass,"<=" & $D$4),SUMIFS(Intern_BasisMassnahmen_delta_mg,Intern_BasisMassnahmen_id_schlag,"=" & $B23,Intern_BasisMassnahmen_jahr_mass,">=" & $D$3,Intern_BasisMassnahmen_jahr_mass,"<=" & $D$4)) -> -0.757 | AC23: =IF(Intern_ListeSchlag_BezugErnteJahr,SUMIFS(Intern_BasisMassnahmen_delta_cu,Intern_BasisMassnahmen_id_schlag,"=" & $B23,Intern_BasisMassnahmen_jahrbezug_mass,">=" & $D$3,Intern_BasisMassnahmen_jahrbezug_mass,"<=" & $D$4),SUMIFS(Intern_BasisMassnahmen_delta_cu,Intern_BasisMassnahmen_id_schlag,"=" & $B23,Intern_BasisMassnahmen_jahr_mass,">=" & $D$3,Intern_BasisMassnahmen_jahr_mass,"<=" & $D$4)) -> -0.155 | AD23: =IF(Intern_ListeSchlag_BezugErnteJahr,SUMIFS(Intern_BasisMassnahmen_delta_zn,Intern_BasisMassnahmen_id_schlag,"=" & $B23,Intern_BasisMassnahmen_jahrbezug_mass,">=" & $D$3,Intern_BasisMassnahmen_jahrbezug_mass,"<=" & $D$4),SUMIFS(Intern_BasisMassnahmen_delta_zn,Intern_BasisMassnahmen_id_schlag,"=" & $B23,Intern_BasisMassnahmen_jahr_mass,">=" & $D$3,Intern_BasisMassnahmen_jahr_mass,"<=" & $D$4)) -> -0.954 | AE23: =IF(Intern_ListeSchlag_BezugErnteJahr,SUMIFS(Intern_BasisMassnahmen_delta_mo,Intern_BasisMassnahmen_id_schlag,"=" & $B23,Intern_BasisMassnahmen_jahrbezug_mass,">=" & $D$3,Intern_BasisMassnahmen_jahrbezug_mass,"<=" & $D$4),SUMIFS(Intern_BasisMassnahmen_delta_mo,Intern_BasisMassnahmen_id_schlag,"=" & $B23,Intern_BasisMassnahmen_jahr_mass,">=" & $D$3,Intern_BasisMassnahmen_jahr_mass,"<=" & $D$4)) -> 0.002 | AF23: =IF(Intern_ListeSchlag_BezugErnteJahr,SUMIFS(Intern_BasisMassnahmen_delta_b,Intern_BasisMassnahmen_id_schlag,"=" & $B23,Intern_BasisMassnahmen_jahrbezug_mass,">=" & $D$3,Intern_BasisMassnahmen_jahrbezug_mass,"<=" & $D$4),SUMIFS(Intern_BasisMassnahmen_delta_b,Intern_BasisMassnahmen_id_schlag,"=" & $B23,Intern_BasisMassnahmen_jahr_mass,">=" & $D$3,Intern_BasisMassnahmen_jahr_mass,"<=" & $D$4)) -> -0.025 | AG23: =IF(Intern_ListeSchlag_BezugErnteJahr,SUMIFS(Intern_BasisMassnahmen_delta_na,Intern_BasisMassnahmen_id_schlag,"=" & $B23,Intern_BasisMassnahmen_jahrbezug_mass,">=" & $D$3,Intern_BasisMassnahmen_jahrbezug_mass,"<=" & $D$4),SUMIFS(Intern_BasisMassnahmen_delta_na,Intern_BasisMassnahmen_id_schlag,"=" & $B23,Intern_BasisMassnahmen_jahr_mass,">=" & $D$3,Intern_BasisMassnahmen_jahr_mass,"<=" & $D$4)) -> 17.962 | AI23: =SUMIFS(Intern_BasisMassnahmen_delta_humus,Intern_BasisMassnahmen_id_schlag,"=" & B23,Intern_BasisMassnahmen_jahr_mass,">=" & $D$3,Intern_BasisMassnahmen_jahr_mass,"<=" & $D$4) -> 662 | AN23: sandiger Lehm (sL) | AO23: 64289 | AP23: Darmstadt - Kreisfreie Stadt | AQ23: 66.84159569 | AR23: 16.47899437
A24: =ZeileNormal -> 17 | B24: 876A76DD-6939-0246-8341-E96044C3DAAE | C24: 3824690E-63AF-D74E-BD3F-81CAFB3CA34D | D24: Am KTBL|1|#S#| | G24: =getfilterMerkmal(M24:P24,TRUE) -> |C1|*s*|C2|*szenario zu am ktbl*|C3|*|C4|* | M24: S | N24: Szenario zu Am KTBL | Q24: =SUMIFS(Intern_BasisMassnahmen_delta_mg,Intern_BasisMassnahmen_id_schlag,"=" &#REF!,Intern_BasisMassnahmen_jahr_mass,">=" & $D$3,Intern_BasisMassnahmen_jahr_mass,"<=" & $D$4) -> 0 | S24: =IF(Intern_ListeSchlag_BezugErnteJahr,SUMIFS(Intern_BasisMassnahmen_delta_nges,Intern_BasisMassnahmen_id_schlag,"=" & $B24,Intern_BasisMassnahmen_jahrbezug_mass,">=" & $D$3,Intern_BasisMassnahmen_jahrbezug_mass,"<=" & $D$4),SUMIFS(Intern_BasisMassnahmen_delta_nges,Intern_BasisMassnahmen_id_schlag,"=" & $B24,Intern_BasisMassnahmen_jahr_mass,">=" & $D$3,Intern_BasisMassnahmen_jahr_mass,"<=" & $D$4)) -> -32.39246161 | T24: =IF(Intern_ListeSchlag_BezugErnteJahr,SUMIFS(Intern_BasisMassnahmen_delta_fixier,Intern_BasisMassnahmen_id_schlag,"=" & $B24,Intern_BasisMassnahmen_jahrbezug_mass,">=" & $D$3,Intern_BasisMassnahmen_jahrbezug_mass,"<=" & $D$4),SUMIFS(Intern_BasisMassnahmen_delta_fixier,Intern_BasisMassnahmen_id_schlag,"=" & $B24,Intern_BasisMassnahmen_jahr_mass,">=" & $D$3,Intern_BasisMassnahmen_jahr_mass,"<=" & $D$4)) -> 90.11456654 | U24: =IF(Intern_ListeSchlag_BezugErnteJahr,SUMIFS(Intern_BasisMassnahmen_delta_p,Intern_BasisMassnahmen_id_schlag,"=" & $B24,Intern_BasisMassnahmen_jahrbezug_mass,">=" & $D$3,Intern_BasisMassnahmen_jahrbezug_mass,"<=" & $D$4),SUMIFS(Intern_BasisMassnahmen_delta_p,Intern_BasisMassnahmen_id_schlag,"=" & $B24,Intern_BasisMassnahmen_jahr_mass,">=" & $D$3,Intern_BasisMassnahmen_jahr_mass,"<=" & $D$4)) -> -25.816 | V24: =IF(Intern_ListeSchlag_BezugErnteJahr,SUMIFS(Intern_BasisMassnahmen_delta_k,Intern_BasisMassnahmen_id_schlag,"=" & $B24,Intern_BasisMassnahmen_jahrbezug_mass,">=" & $D$3,Intern_BasisMassnahmen_jahrbezug_mass,"<=" & $D$4),SUMIFS(Intern_BasisMassnahmen_delta_k,Intern_BasisMassnahmen_id_schlag,"=" & $B24,Intern_BasisMassnahmen_jahr_mass,">=" & $D$3,Intern_BasisMassnahmen_jahr_mass,"<=" & $D$4)) -> 278.245 | W24: =IF(Intern_ListeSchlag_BezugErnteJahr,SUMIFS(Intern_BasisMassnahmen_delta_s,Intern_BasisMassnahmen_id_schlag,"=" & $B24,Intern_BasisMassnahmen_jahrbezug_mass,">=" & $D$3,Intern_BasisMassnahmen_jahrbezug_mass,"<=" & $D$4),SUMIFS(Intern_BasisMassnahmen_delta_s,Intern_BasisMassnahmen_id_schlag,"=" & $B24,Intern_BasisMassnahmen_jahr_mass,">=" & $D$3,Intern_BasisMassnahmen_jahr_mass,"<=" & $D$4)) -> -10.548 | X24: =IF(Intern_ListeSchlag_BezugErnteJahr,SUMIFS(Intern_BasisMassnahmen_delta_ca,Intern_BasisMassnahmen_id_schlag,"=" & $B24,Intern_BasisMassnahmen_jahrbezug_mass,">=" & $D$3,Intern_BasisMassnahmen_jahrbezug_mass,"<=" & $D$4),SUMIFS(Intern_BasisMassnahmen_delta_ca,Intern_BasisMassnahmen_id_schlag,"=" & $B24,Intern_BasisMassnahmen_jahr_mass,">=" & $D$3,Intern_BasisMassnahmen_jahr_mass,"<=" & $D$4)) -> 29.206 | Y24: =IF(Intern_ListeSchlag_BezugErnteJahr,SUMIFS(Intern_BasisMassnahmen_delta_mg,Intern_BasisMassnahmen_id_schlag,"=" & $B24,Intern_BasisMassnahmen_jahrbezug_mass,">=" & $D$3,Intern_BasisMassnahmen_jahrbezug_mass,"<=" & $D$4),SUMIFS(Intern_BasisMassnahmen_delta_mg,Intern_BasisMassnahmen_id_schlag,"=" & $B24,Intern_BasisMassnahmen_jahr_mass,">=" & $D$3,Intern_BasisMassnahmen_jahr_mass,"<=" & $D$4)) -> 101.544 | AA24: =IF(Intern_ListeSchlag_BezugErnteJahr,SUMIFS(Intern_BasisMassnahmen_delta_fe,Intern_BasisMassnahmen_id_schlag,"=" & $B24,Intern_BasisMassnahmen_jahrbezug_mass,">=" & $D$3,Intern_BasisMassnahmen_jahrbezug_mass,"<=" & $D$4),SUMIFS(Intern_BasisMassnahmen_delta_fe,Intern_BasisMassnahmen_id_schlag,"=" & $B24,Intern_BasisMassnahmen_jahr_mass,">=" & $D$3,Intern_BasisMassnahmen_jahr_mass,"<=" & $D$4)) -> -1.213 | AB24: =IF(Intern_ListeSchlag_BezugErnteJahr,SUMIFS(Intern_BasisMassnahmen_delta_mn,Intern_BasisMassnahmen_id_schlag,"=" & $B24,Intern_BasisMassnahmen_jahrbezug_mass,">=" & $D$3,Intern_BasisMassnahmen_jahrbezug_mass,"<=" & $D$4),SUMIFS(Intern_BasisMassnahmen_delta_mg,Intern_BasisMassnahmen_id_schlag,"=" & $B24,Intern_BasisMassnahmen_jahr_mass,">=" & $D$3,Intern_BasisMassnahmen_jahr_mass,"<=" & $D$4)) -> 0.057 | AC24: =IF(Intern_ListeSchlag_BezugErnteJahr,SUMIFS(Intern_BasisMassnahmen_delta_cu,Intern_BasisMassnahmen_id_schlag,"=" & $B24,Intern_BasisMassnahmen_jahrbezug_mass,">=" & $D$3,Intern_BasisMassnahmen_jahrbezug_mass,"<=" & $D$4),SUMIFS(Intern_BasisMassnahmen_delta_cu,Intern_BasisMassnahmen_id_schlag,"=" & $B24,Intern_BasisMassnahmen_jahr_mass,">=" & $D$3,Intern_BasisMassnahmen_jahr_mass,"<=" & $D$4)) -> -0.043 | AD24: =IF(Intern_ListeSchlag_BezugErnteJahr,SUMIFS(Intern_BasisMassnahmen_delta_zn,Intern_BasisMassnahmen_id_schlag,"=" & $B24,Intern_BasisMassnahmen_jahrbezug_mass,">=" & $D$3,Intern_BasisMassnahmen_jahrbezug_mass,"<=" & $D$4),SUMIFS(Intern_BasisMassnahmen_delta_zn,Intern_BasisMassnahmen_id_schlag,"=" & $B24,Intern_BasisMassnahmen_jahr_mass,">=" & $D$3,Intern_BasisMassnahmen_jahr_mass,"<=" & $D$4)) -> -0.306 | AE24: =IF(Intern_ListeSchlag_BezugErnteJahr,SUMIFS(Intern_BasisMassnahmen_delta_mo,Intern_BasisMassnahmen_id_schlag,"=" & $B24,Intern_BasisMassnahmen_jahrbezug_mass,">=" & $D$3,Intern_BasisMassnahmen_jahrbezug_mass,"<=" & $D$4),SUMIFS(Intern_BasisMassnahmen_delta_mo,Intern_BasisMassnahmen_id_schlag,"=" & $B24,Intern_BasisMassnahmen_jahr_mass,">=" & $D$3,Intern_BasisMassnahmen_jahr_mass,"<=" & $D$4)) -> 0.002 | AF24: =IF(Intern_ListeSchlag_BezugErnteJahr,SUMIFS(Intern_BasisMassnahmen_delta_b,Intern_BasisMassnahmen_id_schlag,"=" & $B24,Intern_BasisMassnahmen_jahrbezug_mass,">=" & $D$3,Intern_BasisMassnahmen_jahrbezug_mass,"<=" & $D$4),SUMIFS(Intern_BasisMassnahmen_delta_b,Intern_BasisMassnahmen_id_schlag,"=" & $B24,Intern_BasisMassnahmen_jahr_mass,">=" & $D$3,Intern_BasisMassnahmen_jahr_mass,"<=" & $D$4)) -> -0.007 | AG24: =IF(Intern_ListeSchlag_BezugErnteJahr,SUMIFS(Intern_BasisMassnahmen_delta_na,Intern_BasisMassnahmen_id_schlag,"=" & $B24,Intern_BasisMassnahmen_jahrbezug_mass,">=" & $D$3,Intern_BasisMassnahmen_jahrbezug_mass,"<=" & $D$4),SUMIFS(Intern_BasisMassnahmen_delta_na,Intern_BasisMassnahmen_id_schlag,"=" & $B24,Intern_BasisMassnahmen_jahr_mass,">=" & $D$3,Intern_BasisMassnahmen_jahr_mass,"<=" & $D$4)) -> 22.372 | AI24: =SUMIFS(Intern_BasisMassnahmen_delta_humus,Intern_BasisMassnahmen_id_schlag,"=" & B24,Intern_BasisMassnahmen_jahr_mass,">=" & $D$3,Intern_BasisMassnahmen_jahr_mass,"<=" & $D$4) -> -880 | AQ24: 66.84159569 | AR24: 16.47899437
A25: =ZeileAbstand -> 5 | G25: ende_liste
A26: #ENDE#

Sheet Intern_AuswertVorlage (hidden)
A1: #H# | B1: #H# | C1: #H# | D1: #H# | E1: #H# | F1: #H# | G1: #H# | H1: 2 | I1: 20 | J1: 2 | K1: 2 | L1: 5 | M1: 20 | N1: 6 | O1: 6 | P1: 6 | Q1: 6 | R1: 6 | S1: 6 | T1: 6 | U1: 6 | V1: 6 | W1: 6 | X1: 6 | Y1: 6 | Z1: 6 | AA1: 6 | AB1: 6 | AC1: 6 | AD1: 6 | AE1: 6 | AF1: 6 | AG1: 6 | AH1: 6 | AI1: 6 | AJ1: 6 | AK1: 6 | AL1: #ENDE#
A2: #H# | B2: VorlageAuswertung
A3: #H#
A4: #H#
A5: #H#
A6: #H#
A7: #H#
C8: Vorlagebereich für Tabellenblöcke
N9: spalte1 | O9: spaltex
A10: #H# | B10: TABELLE|idschlag=B+12|nameschlag=L+12|naehrstoff=G+2|zeitbezug=G+6|jahr=M+6|wertspalte=N+8 | G10: GUIDBlockTabelle
A11: =ZeileAbstand -> 5
A12: =ZeileTitel -> 22 | G12: Stickstoff/Phosphor | L12: ="Saldoübersicht: " & G12 -> Saldoübersicht: Stickstoff/Phosphor
A13: =ZeileAbstand -> 5
A14: =ZeileNormal -> 17 | L14: Notiz
A15: =ZeileAbstand -> 5
A16: =ZeileNormal -> 17 | G16: 1 | L16: =IF(G16=0,"Erntejahr","Kalenderjahr") -> Kalenderjahr | M16: 2020
A17: =ZeileAbstand -> 5
A18: =ZeileFlach -> 14 | N18: ="Jahr: " & N19 -> Jahr: 2020
A19: #H# | M19: =M16-1 -> 2019 | N19: =M19+1 -> 2020 | O19: =N19 -> 2020
A20: =ZeileNormal -> 17 | L20: Schlag | N20: N | O20: N-Fix
A21: =ZeileNormal -> 17 | B21: id_schlag | N21: =IF(N20="Humus","Häq/ha","kg/ha") -> kg/ha | O21: =IF(O20="Humus","Häq/ha","kg/ha") -> kg/ha
A22: =ZeileNormal -> 17 | B22: 00000-dummy-00000-dummy | N22: =getMenge(SUMIFS(Intern_BasisMassnahmen_delta_n,Intern_BasisMassnahmen_id_schlag,"=" &$B22,Intern_BasisMassnahmen_jahr_mass,"=" & N19)) -> 0 | O22: =getMenge(SUMIFS(Intern_BasisMassnahmen_delta_n,Intern_BasisMassnahmen_id_schlag,"=" &$B22,Intern_BasisMassnahmen_jahr_mass,"=" & O19)) -> 0
A23: =ZeileAbstand -> 5
A24: =ZeileTrenner -> 2
A25: =ZeileNormal -> 17 | G25: =G10 -> GUIDBlockTabelle
A27: #H# | B27: GRAFIK|idschlag=B+12|nameschlag=L+12|jahr=M+6|stoffname=G+2|stoffkennung=G+4|zeitbezug=G+6|graf_posoben=R+1|graf_datoben=N+11|graf_ytitel=F+2|formelplus=N+12|formelminus=O+12|formelsaldo=P+12|formelfixier=R+12 | G27: GUIDGrafikBlock
A28: =ZeileAbstand -> 5
A29: =ZeileTitel -> 22 | B29: Achsenwerte | C29: =MIN(N39:O48) -> 0 | D29: =MAX(N39:O48) -> 0 | E29: =G29="Humusbilanz" -> FALSE | F29: =IF(E29,"Häq/ha","kg/ha") -> kg/ha | G29: Stickstoff | L29: =IF(E29,"","Nährstoffbilanz: ") & G29 -> Nährstoffbilanz: Stickstoff
A30: =ZeileAbstand -> 5
A31: =ZeileNormal -> 17 | G31: N | L31: Notiz
A32: =ZeileAbstand -> 5
A33: =ZeileNormal -> 17 | G33: 1 | L33: =IF(G33=0,"Erntejahr","Kalenderjahr") -> Kalenderjahr | M33: 2020
A34: =ZeileAbstand -> 5
A35: =ZeileNormal -> 17 | L35: Schlag | N35: Zufuhr | O35: Abfuhr | P35: Saldo | R35: N-Fixierung
A36: #H# | M36: =M33-1 -> 2019 | N36: =M36+1 -> 2020 | O36: =N36 -> 2020 | P36: =N36 -> 2020 | R36: =P36 -> 2020
A37: =ZeileNormal -> 17 | N37: =F29 -> kg/ha | O37: =N37 -> kg/ha | P37: =N37 -> kg/ha | R37: =P37 -> kg/ha
A38: #H# | B38: id_schlag | N38: Zufuhr | O38: Abfuhr | P38: Saldo | R38: N-Fix
A39: =ZeileNormal -> 17 | B39: 00000-dummy-00000-dummy | N39: =getMenge(R39+SUMIFS(Intern_BasisMassnahmen_plus_n,Intern_BasisMassnahmen_id_schlag,"=" &B39,Intern_BasisMassnahmen_jahr_mass,"=" & N36)) -> 0 | O39: =getMenge((N39-P39))*-1 -> 0 | P39: =getMenge(SUMIFS(Intern_BasisMassnahmen_delta_n,Intern_BasisMassnahmen_id_schlag,"=" &B39,Intern_BasisMassnahmen_jahr_mass,"=" & P36)) -> 0 | R39: =IF(G31="nges",getMenge(SUMIFS(Intern_BasisMassnahmen_delta_fixier,Intern_BasisMassnahmen_id_schlag,"=" &B39,Intern_BasisMassnahmen_jahr_mass,"=" & R36)),0) -> 0
A40: 17 | B40: 00000-dummy-00000-dummy | N40: =getMenge(R40+SUMIFS(Intern_BasisMassnahmen_plus_n,Intern_BasisMassnahmen_id_schlag,"=" &B40,Intern_BasisMassnahmen_jahr_mass,"=" & N36)) -> 0 | O40: =getMenge((N40-P40))*-1 -> 0 | P40: =getMenge(SUMIFS(Intern_BasisMassnahmen_delta_n,Intern_BasisMassnahmen_id_schlag,"=" &B40,Intern_BasisMassnahmen_jahr_mass,"=" & P36)) -> 0 | R40: =IF(G31="nges",getMenge(SUMIFS(Intern_BasisMassnahmen_delta_fixier,Intern_BasisMassnahmen_id_schlag,"=" &B40,Intern_BasisMassnahmen_jahr_mass,"=" & R36)),0) -> 0
A41: 17 | B41: 00000-dummy-00000-dummy | N41: =getMenge(R41+SUMIFS(Intern_BasisMassnahmen_plus_n,Intern_BasisMassnahmen_id_schlag,"=" &B41,Intern_BasisMassnahmen_jahr_mass,"=" & N36)) -> 0 | O41: =getMenge((N41-P41))*-1 -> 0 | P41: =getMenge(SUMIFS(Intern_BasisMassnahmen_delta_n,Intern_BasisMassnahmen_id_schlag,"=" &B41,Intern_BasisMassnahmen_jahr_mass,"=" & P36)) -> 0 | R41: =IF(G31="nges",getMenge(SUMIFS(Intern_BasisMassnahmen_delta_fixier,Intern_BasisMassnahmen_id_schlag,"=" &B41,Intern_BasisMassnahmen_jahr_mass,"=" & R36)),0) -> 0
A42: 17 | B42: 00000-dummy-00000-dummy | N42: =getMenge(R42+SUMIFS(Intern_BasisMassnahmen_plus_n,Intern_BasisMassnahmen_id_schlag,"=" &B42,Intern_BasisMassnahmen_jahr_mass,"=" & N36)) -> 0 | O42: =getMenge((N42-P42))*-1 -> 0 | P42: =getMenge(SUMIFS(Intern_BasisMassnahmen_delta_n,Intern_BasisMassnahmen_id_schlag,"=" &B42,Intern_BasisMassnahmen_jahr_mass,"=" & P36)) -> 0 | R42: =IF(G31="nges",getMenge(SUMIFS(Intern_BasisMassnahmen_delta_fixier,Intern_BasisMassnahmen_id_schlag,"=" &B42,Intern_BasisMassnahmen_jahr_mass,"=" & R36)),0) -> 0
A43: 17 | B43: 00000-dummy-00000-dummy | N43: =getMenge(R43+SUMIFS(Intern_BasisMassnahmen_plus_n,Intern_BasisMassnahmen_id_schlag,"=" &B43,Intern_BasisMassnahmen_jahr_mass,"=" & N36)) -> 0 | O43: =getMenge((N43-P43))*-1 -> 0 | P43: =getMenge(SUMIFS(Intern_BasisMassnahmen_delta_n,Intern_BasisMassnahmen_id_schlag,"=" &B43,Intern_BasisMassnahmen_jahr_mass,"=" & P36)) -> 0 | R43: =IF(G31="nges",getMenge(SUMIFS(Intern_BasisMassnahmen_delta_fixier,Intern_BasisMassnahmen_id_schlag,"=" &B43,Intern_BasisMassnahmen_jahr_mass,"=" & R36)),0) -> 0
A44: 17 | B44: 00000-dummy-00000-dummy | N44: =getMenge(R44+SUMIFS(Intern_BasisMassnahmen_plus_n,Intern_BasisMassnahmen_id_schlag,"=" &B44,Intern_BasisMassnahmen_jahr_mass,"=" & N36)) -> 0 | O44: =getMenge((N44-P44))*-1 -> 0 | P44: =getMenge(SUMIFS(Intern_BasisMassnahmen_delta_n,Intern_BasisMassnahmen_id_schlag,"=" &B44,Intern_BasisMassnahmen_jahr_mass,"=" & P36)) -> 0 | R44: =IF(G31="nges",getMenge(SUMIFS(Intern_BasisMassnahmen_delta_fixier,Intern_BasisMassnahmen_id_schlag,"=" &B44,Intern_BasisMassnahmen_jahr_mass,"=" & R36)),0) -> 0
A45: 17 | B45: 00000-dummy-00000-dummy | N45: =getMenge(R45+SUMIFS(Intern_BasisMassnahmen_plus_n,Intern_BasisMassnahmen_id_schlag,"=" &B45,Intern_BasisMassnahmen_jahr_mass,"=" & N36)) -> 0 | O45: =getMenge((N45-P45))*-1 -> 0 | P45: =getMenge(SUMIFS(Intern_BasisMassnahmen_delta_n,Intern_BasisMassnahmen_id_schlag,"=" &B45,Intern_BasisMassnahmen_jahr_mass,"=" & P36)) -> 0 | R45: =IF(G31="nges",getMenge(SUMIFS(Intern_BasisMassnahmen_delta_fixier,Intern_BasisMassnahmen_id_schlag,"=" &B45,Intern_BasisMassnahmen_jahr_mass,"=" & R36)),0) -> 0
A46: 17 | B46: 00000-dummy-00000-dummy | N46: =getMenge(R46+SUMIFS(Intern_BasisMassnahmen_plus_n,Intern_BasisMassnahmen_id_schlag,"=" &B46,Intern_BasisMassnahmen_jahr_mass,"=" & N36)) -> 0 | O46: =getMenge((N46-P46))*-1 -> 0 | P46: =getMenge(SUMIFS(Intern_BasisMassnahmen_delta_n,Intern_BasisMassnahmen_id_schlag,"=" &B46,Intern_BasisMassnahmen_jahr_mass,"=" & P36)) -> 0 | R46: =IF(G31="nges",getMenge(SUMIFS(Intern_BasisMassnahmen_delta_fixier,Intern_BasisMassnahmen_id_schlag,"=" &B46,Intern_BasisMassnahmen_jahr_mass,"=" & R36)),0) -> 0
A47: 17 | B47: 00000-dummy-00000-dummy | N47: =getMenge(R47+SUMIFS(Intern_BasisMassnahmen_plus_n,Intern_BasisMassnahmen_id_schlag,"=" &B47,Intern_BasisMassnahmen_jahr_mass,"=" & N36)) -> 0 | O47: =getMenge((N47-P47))*-1 -> 0 | P47: =getMenge(SUMIFS(Intern_BasisMassnahmen_delta_n,Intern_BasisMassnahmen_id_schlag,"=" &B47,Intern_BasisMassnahmen_jahr_mass,"=" & P36)) -> 0 | R47: =IF(G31="nges",getMenge(SUMIFS(Intern_BasisMassnahmen_delta_fixier,Intern_BasisMassnahmen_id_schlag,"=" &B47,Intern_BasisMassnahmen_jahr_mass,"=" & R36)),0) -> 0
A48: 17 | B48: 00000-dummy-00000-dummy | N48: =getMenge(R48+SUMIFS(Intern_BasisMassnahmen_plus_n,Intern_BasisMassnahmen_id_schlag,"=" &B48,Intern_BasisMassnahmen_jahr_mass,"=" & N36)) -> 0 | O48: =getMenge((N48-P48))*-1 -> 0 | P48: =getMenge(SUMIFS(Intern_BasisMassnahmen_delta_n,Intern_BasisMassnahmen_id_schlag,"=" &B48,Intern_BasisMassnahmen_jahr_mass,"=" & P36)) -> 0 | R48: =IF(G31="nges",getMenge(SUMIFS(Intern_BasisMassnahmen_delta_fixier,Intern_BasisMassnahmen_id_schlag,"=" &B48,Intern_BasisMassnahmen_jahr_mass,"=" & R36)),0) -> 0
A49: =ZeileAbstand -> 5
A50: =ZeileTrenner -> 2
A51: 17 | G51: =G27 -> GUIDGrafikBlock

Sheet Intern_Infos (hidden)
A1: Infos für Programmierung | L1: Liste_Ausbringung | M1: Liste_Fruchtfolge | O1: Nutzung der ZellFormate
M2: Untersaat | P2: Dünger 1
A3: ZeileNormal | B3: 17 | E3: Intern_Infos_Version | F3: 1.1 | M3: Futterbau (Frühjahrblanksaat) | P3: Dünger 2
A4: ZeileFlach | B4: 14 | E4: Intern_Infos_JNEntwicklung | F4: FALSE | M4: Futterbau (Sommerblanksaat) | P4: Schlag 1
A5: ZeileTitel | B5: 22 | E5: Intern_Infos_Benutzerhandbuch | F5: https://www.ktbl.de/fileadmin/user_upload/Allgemeines/Download/NutriNet/NutriNet_Handbuch.pdf | P5: Schlag 2
A6: ZeileAbstand | B6: 5 | P6: Pflanze 1
A7: ZeileTrenner | B7: 2 | P7: Pflanze 2
O9: ZellButton
A10: Feldliste der Strings mit den Parameterwerten
A11: Intern_ParaListe_hp | B11: fm;ts;fix;c;n;p;k;ca;mg;s;b;zn;cu;mn;na;fe;mo | O11: ZB_Rot
A12: Intern_ParaListe_np | B12: fa;ts;fix;c;n;p;k;ca;mg;s;b;zn;cu;mn;na;fe;mo
A13: Intern_ParaListe_st | B13: fa;ts;fix;c;n;p;k;ca;mg;s;b;zn;cu;mn;na;fe;mo | O13: ZellButton
A14: Intern_ParaListe_rt | B14: fa;ts;fix;c;n;p;k;ca;mg;s;b;zn;cu;mn;na;fe;mo
A15: Intern_ParaListe_sg | B15: ts;c;n;p;k;ca;mg;s;b;zn;cu;mn;na;fe;mo
A16: Intern_ParaListe_vd | B16: vd_fruh_koeff;vd_grun_koeff;vd_unter_koeff;vd_sommer_koeff;vd_winter_koeff;vd_haupt_koeff;vd_ernterest_koeff;vd_nebenproduktfaktor;vd_verbleib_haupt;vd_verbleib_haupt_koeff;vd_spat_koeff
A17: Intern_ParaListe_dm | B17: fm;ts;fix;c;n;p;k;ca;mg;s;b;zn;cu;mn;na;fe;mo;nh4;vd_dm
A18: Intern_ParaListe_bo | B18: corg;nt;ci;nmin;p0;p1;p2
A20: Fruchtfolgeinfos (Umsetzung Auswahltext zu Koeffizentnamen)
A21: Marktfrucht | B21: vd_haupt_koeff
A22: Sommerzwischenfrucht | B22: vd_sommer_koeff
A23: Winterzwischenfrucht | B23: vd_winter_koeff
A24: Untersaat | B24: vd_unter_koeff
A25: Feinleguminose (vom Vorjahr) | B25: vd_haupt_koeff
A26: Feinleguminose (bis 30.06.) | B26: vd_fruh_koeff
A27: Feinleguminose (ab 01.07.) | B27: vd_sommer_koeff
A28: Marktfrucht (Sommerblanksaat) | B28: vd_spat_koeff
A29: Marktfrucht (Frühjahrblanksaat) | B29: vd_fruh_koeff
A30: Untersaat (Sommerblanksaat) | B30: vd_spat_koeff
A31: Untersaat (Frühjahrblanksaat) | B31: vd_fruh_koeff
A32: Zwischenfrucht (Sommerblanksaat) | B32: vd_spat_koeff
A33: Zwischenfrucht (Frühjahrblanksaat) | B33: vd_fruh_koeff
A34: Andere Kultur (Sommerblanksaat) | B34: vd_spat_koeff
A35: Andere Kultur (Frühjahrblanksaat) | B35: vd_fruh_koeff
A36: Futterbau (Sommerblanksaat) | B36: vd_spat_koeff
A37: Futterbau (Frühjahrblanksaat) | B37: vd_fruh_koeff
A40: Intern_Infos_Naehrstoffe
A41: Stickstoff | B41: nges | C41: H | I41: vd_fruh_koeff
A42: Phosphor | B42: p | C42: H | I42: vd_grun_koeff
A43: Kalium | B43: k | C43: H | I43: vd_unter_koeff | J43: ok
A44: Schwefel | B44: s | C44: H | I44: vd_sommer_koeff | J44: ok
A45: Calcium | B45: ca | C45: H | I45: vd_winter_koeff | J45: ok
A46: Magnesium | B46: mg | C46: H | I46: vd_haupt_koeff | J46: ok
A47: Kohlenstoff | B47: ca | C47: H | I47: vd_ernterest_koeff | J47: dyna
A48: Eisen | B48: fe | C48: S | I48: vd_nebenproduktfaktor | J48: dyna
A49: Mangan | B49: mn | C49: S | I49: vd_spat_koeff
A50: Kupfer | B50: cu | C50: S
A51: Zink | B51: zn | C51: S
A52: Molybdän | B52: mo | C52: S
A53: Bor | B53: b | C53: S
A54: Natrium | B54: na | C54: S
A55: Humusbilanz | B55: humus | C55: S
A58: Intern_Infos_haFaktor_dt | B58: Intern_Infos_haFaktor_kg
A59: dt/ha | B59: kg/ha
A60: dt/Schlag | B60: kg/Schlag
A62: Intern_Infos_ListenAnzeige
A63: Vollständig
A64: Reduziert (Hauptnähr.)
A66: Intern_Infos_ListeZeitbezug
A67: Erntejahr
A68: Kalenderjahr

Sheet Auswertungen_1
A1: #H# | B1: #H# | C1: #H# | D1: #H# | E1: #H# | F1: #H# | G1: #H# | H1: 0.5 | I1: 20 | J1: 0.5 | K1: 0.5 | L1: 18 | M1: 10 | N1: 6 | O1: 6 | P1: 6 | Q1: 6 | R1: 6 | S1: 6 | T1: 6 | U1: 6 | V1: 6 | W1: 6 | X1: 6 | Y1: 6 | Z1: 6 | AA1: 6 | AB1: 6 | AC1: 6 | AD1: 6 | AE1: 6 | AF1: 6 | AG1: 6 | AH1: 6 | AI1: 6 | AJ1: 6 | AK1: 6 | AL1: 1 | AM1: 1 | AN1: 20 | AO1: 1 | AP1: #ENDE#
A2: #H# | B2: SeiteAuswertung
A3: #H# | B3: $X$17
A4: #H# | B4: $AI$33
A5: #H#
A6: #H#
A7: #H#
A8: =ZeileAbstand -> 5
A9: =ZeileNormal -> 17 | I9: Tab.: Saldoübersicht | AN9: Tabelle/Grafik löschen
A10: =ZeileAbstand -> 5
A11: =ZeileNormal -> 17 | I11: Grafik: Nährstoffbilanz | L11: Bezeichnung | AN11: Schlag löschen
A12: =ZeileAbstand -> 5
A13: =ZeileNormal -> 17 | I13: Schlag hinzufügen | L13: Beschreibung | N13: Beschreibung | AN13: Seite löschen
A14: =ZeileAbstand -> 5
A15: =ZeileNormal -> 17 | I15: Seite hinzufügen | AN15: ? Hilfe
A17: =ZeileNormal -> 17 | G17: start_liste
A18: =ZeileNormal -> 17 | G18: ende_liste

Sheet Liste_Massnahmen_1 (hidden)
A1: #H# | B1: #H# | C1: #H# | D1: #H# | E1: #H# | F1: #H# | G1: #H# | H1: 0.5 | I1: 1 | J1: 17 | K1: 1 | L1: 0.5 | M1: #H# | N1: 8 | O1: 8 | P1: 8 | Q1: 12 | R1: 18 | S1: 7 | T1: 15 | U1: 0.5 | V1: 6 | W1: #H# | X1: 6 | Y1: 6 | Z1: 6 | AA1: 6 | AB1: 6 | AC1: 6 | AD1: =IF(Intern_ListeSchlag_AnzeigeVoll,0.5,"#H#") -> 0.5 | AE1: =IF(Intern_ListeSchlag_AnzeigeVoll,0.5,"#H#") -> 0.5 | AF1: =IF(Intern_ListeSchlag_AnzeigeVoll,6,"#H#") -> 6 | AG1: 6 | AH1: 6 | AI1: 6 | AJ1: 6 | AK1: 6 | AL1: 6 | AM1: 0.5 | AN1: 9 | AO1: 17 | AP1: #H# | AQ1: #H# | AR1: #H# | AS1: #H# | AT1: #H# | AU1: #H# | AV1: #H# | AW1: #H# | AX1: #H# | AY1: #H# | AZ1: #H# | BA1: #H# | BB1: #H# | BC1: #H# | BD1: #H# | BE1: #H# | BF1: #H# | BG1: #H# | BH1: #H# | BI1: #H# | BJ1: #H# | BK1: #H# | BL1: #H# | BM1: #H# | BN1: #H# | BO1: #H# | BP1: #H# | BQ1: #H# | BR1: #H# | BS1: #H# | BT1: #H# | BU1: #H# | BV1: #H# | BW1: #H# | BX1: #ENDE#
A2: #H# | B2: Liste_Massnahmen | D2: Informationen zum Schlag/Szenario (nicht via ReadSave)
A3: #H# | B3: $L$23 | D3: art_schlag | E3: S | F3: kenn1_schlag | G3: Am KTBL
A4: #H# | B4: $J$17 | D4: id_schlag | E4: 876A76DD-6939-0246-8341-E96044C3DAAE | F4: kenn2_schlag | G4: 1 | O4: POS_ListeMass_Druckbereich | P4: =getAdr(M10:AN26)&"|$1:$20" -> |$M$10:$AN$26|$1:$20
A5: #H# | D5: id_referenz | E5: 3824690E-63AF-D74E-BD3F-81CAFB3CA34D | F5: kenn1_szenario | G5: Szenario zu Am KTBL
A6: #H# | F6: ha_schlag | G6: 5
A7: #H# | B7: NEIN | C7: Fixiert?
A9: =ZeileFlach -> 14
A10: 20 | J10: Maßnahme | N10: Übersicht der Bewirtschaftungsmaßnahmen | V10: Saldo: Nährstoffzugang/-abgang
A11: =ZeileNormal -> 17 | J11: Bearbeiten | N11: Schlag: | P11: =G3 & IF(ISTEXT(G4)," / " & G4,"") & IF(G6>0," (" & G6 & "ha)","") -> Am KTBL (5ha) | V11: Saldo der angezeigten Bewirtschaftungsmaßnahmen | AO11: ? Hilfe
A12: =ZeileAbstand -> 5
A13: =ZeileNormal -> 17 | J13: Hinzufügen | N13: =IF(E3="S","Szenario:","") -> Szenario: | P13: =IF(E3="S", G5,"") -> Szenario zu Am KTBL
A14: =ZeileAbstand -> 5
A15: =ZeileNormal -> 17 | J15: Seite | V15: Hauptnährstoffe | AF15: Spurennährstoffe | AN15: Humus
A16: =ZeileAbstand -> 5
A17: =ZeileNormal -> 17 | G17: =getfilterMerkmal(M17:T17,TRUE) -> |C1|*|C2|*|C3|*|C4|*|C5|*|C6|*|C7|*|C8|* | J17: Schließen | V17: =SUMIF($A$25:$A$27,">0",V25:V27) -> 0 | W17: 0 | X17: 0 | Y17: 0 | Z17: 0 | AA17: 0 | AB17: 0 | AC17: 0 | AF17: =SUMIF($A$25:$A$27,">0",AF25:AF27) -> 0 | AG17: 0 | AH17: 0 | AI17: 0 | AJ17: 0 | AK17: 0 | AL17: 0 | AN17: =SUMIF($A$25:$A$27,">0",AN25:AN27) -> 0
A18: =ZeileAbstand -> 5
A19: =ZeileNormal -> 17 | J19: Anpinnen | M19: Art | N19: von | O19: bis | P19: Erntejahr | Q19: Fruchtfolge | R19: Bezeichnung | S19: Menge | T19: Notiz | V19: N | W19: N-Bil | X19: N-Fix | Y19: P | Z19: K | AA19: S | AB19: Ca | AC19: Mg | AF19: Fe | AG19: Mn | AH19: Cu | AI19: Zn | AJ19: Mo | AK19: B | AL19: Na | AN19: Häq
A20: =ZeileFlach -> 14 | J20: =IF(B7="JA","Blatt bleibt geöffnet","") ->  | S20: dt/ha | V20: kg/ha | W20: kg/ha | X20: kg/ha | Y20: kg/ha | Z20: kg/ha | AA20: kg/ha | AB20: kg/ha | AC20: kg/ha | AF20: kg/ha | AG20: kg/ha | AH20: kg/ha | AI20: kg/ha | AJ20: kg/ha | AK20: kg/ha | AL20: kg/ha | AN20: Häq/ha
A21: =ZeileAbstand -> 5
A22: #H# | B22: rowmuster | G22: =getfilterMerkmal(M22:T22,TRUE) -> |C1|*p*|C2|*|C3|*|C4|*|C5|*|C6|*neue maßnahme*|C7|*|C8|* | M22: P | R22: Neue Maßnahme
A23: #H#
A24: #H# | B24: Bereich: Kopfzeile Formulardaten für Eingabe_Massnahme | AU24: Anzahl Fehlstellen
A25: #H# | B25: id_mass | C25: id_schlag | D25: id_pflanze | E25: id_duenger | F25: jahr_mass | G25: start_liste | H25: D3 | I25: D4 | J25: D5 | K25: D6 | L25: D7 | M25: art_mass | N25: dat1_mass | O25: dat2_mass | P25: jahrbezug_mass | Q25: fruchtfolge_mass | R25: bezeich_mass | S25: fm_mass | T25: notiz_mass | U25: D8 | V25: delta_nges | W25: delta_n | X25: delta_fixier | Y25: delta_p | Z25: delta_k | AA25: delta_s | AB25: delta_ca | AC25: delta_mg | AD25: D9 | AE25: D10 | AF25: delta_fe | AG25: delta_mn | AH25: delta_cu | AI25: delta_zn | AJ25: delta_mo | AK25: delta_b | AL25: delta_na | AM25: D11 | AN25: delta_humus | AO25: D12 | AP25: ausbring_mass | AQ25: fehler_haupt | AR25: fehler_spuren | AS25: leguminose | AT25: nboden_mass | AU25: npflanze_mass | AV25: para_hp | AW25: para_np | AX25: para_st | AY25: para_rt | AZ25: para_sg | BA25: para_dm | BB25: para_nh3verlust | BC25: para_vd | BD25: plus_n | BE25: plus_p | BF25: plus_k | BG25: plus_s | BH25: plus_ca | BI25: plus_mg | BJ25: plus_fe | BK25: plus_mn | BL25: plus_cu | BM25: plus_zn | BN25: plus_mo | BO25: plus_b | BP25: plus_na | BQ25: plus_humus | BR25: bezeich_hp | BS25: bezeich_np | BT25: delta_c | BU25: plus_c | BV25: erntesystem | BW25: eingaben
A26: =ZeileNormal -> 17 | G26: ende_liste
A27: 17

Sheet Liste_Massnahmen_2 (hidden)
A1: #H# | B1: #H# | C1: #H# | D1: #H# | E1: #H# | F1: #H# | G1: #H# | H1: 0.5 | I1: 1 | J1: 17 | K1: 1 | L1: 0.5 | M1: #H# | N1: 8 | O1: 8 | P1: 8 | Q1: 12 | R1: 18 | S1: 7 | T1: 15 | U1: 0.5 | V1: 6 | W1: #H# | X1: 6 | Y1: 6 | Z1: 6 | AA1: 6 | AB1: 6 | AC1: 6 | AD1: =IF(Intern_ListeSchlag_AnzeigeVoll,0.5,"#H#") -> 0.5 | AE1: =IF(Intern_ListeSchlag_AnzeigeVoll,0.5,"#H#") -> 0.5 | AF1: =IF(Intern_ListeSchlag_AnzeigeVoll,6,"#H#") -> 6 | AG1: 6 | AH1: 6 | AI1: 6 | AJ1: 6 | AK1: 6 | AL1: 6 | AM1: 0.5 | AN1: 9 | AO1: 17 | AP1: #H# | AQ1: #H# | AR1: #H# | AS1: #H# | AT1: #H# | AU1: #H# | AV1: #H# | AW1: #H# | AX1: #H# | AY1: #H# | AZ1: #H# | BA1: #H# | BB1: #H# | BC1: #H# | BD1: #H# | BE1: #H# | BF1: #H# | BG1: #H# | BH1: #H# | BI1: #H# | BJ1: #H# | BK1: #H# | BL1: #H# | BM1: #H# | BN1: #H# | BO1: #H# | BP1: #H# | BQ1: #H# | BR1: #H# | BS1: #H# | BT1: #H# | BU1: #H# | BV1: #H# | BW1: #H# | BX1: #ENDE#
A2: #H# | B2: Liste_Massnahmen | D2: Informationen zum Schlag/Szenario (nicht via ReadSave)
A3: #H# | B3: $R$27 | D3: art_schlag | E3: B | F3: kenn1_schlag | G3: Am KTBL
A4: #H# | B4: $J$17 | D4: id_schlag | E4: 3824690E-63AF-D74E-BD3F-81CAFB3CA34D | F4: kenn2_schlag | G4: 1 | O4: POS_ListeMass_Druckbereich | P4: =getAdr(M10:AN26)&"|$1:$20" -> |$M$10:$AN$26|$1:$20
A5: #H# | D5: id_referenz | E5: 3824690E-63AF-D74E-BD3F-81CAFB3CA34D | F5: kenn1_szenario | G5: Am KTBL
A6: #H# | F6: ha_schlag | G6: 5
A7: #H# | B7: NEIN | C7: Fixiert?
A9: =ZeileFlach -> 14
A10: 20 | J10: Maßnahme | N10: Übersicht der Bewirtschaftungsmaßnahmen | V10: Saldo: Nährstoffzugang/-abgang
A11: =ZeileNormal -> 17 | J11: Bearbeiten | N11: Schlag: | P11: =G3 & IF(ISTEXT(G4)," / " & G4,"") & IF(G6>0," (" & G6 & "ha)","") -> Am KTBL (5ha) | V11: Saldo der angezeigten Bewirtschaftungsmaßnahmen | AO11: ? Hilfe
A12: =ZeileAbstand -> 5
A13: =ZeileNormal -> 17 | J13: Hinzufügen | N13: =IF(E3="S","Szenario:","") ->  | P13: =IF(E3="S", G5,"") -> 
A14: =ZeileAbstand -> 5
A15: =ZeileNormal -> 17 | J15: Seite | V15: Hauptnährstoffe | AF15: Spurennährstoffe | AN15: Humus
A16: =ZeileAbstand -> 5
A17: =ZeileNormal -> 17 | G17: =getfilterMerkmal(M17:T17,TRUE) -> |C1|*|C2|*|C3|*|C4|*|C5|*|C6|*|C7|*|C8|* | J17: Schließen | V17: =SUMIF($A$25:$A$27,">0",V25:V27) -> 0 | W17: 0 | X17: 0 | Y17: 0 | Z17: 0 | AA17: 0 | AB17: 0 | AC17: 0 | AF17: =SUMIF($A$25:$A$27,">0",AF25:AF27) -> 0 | AG17: 0 | AH17: 0 | AI17: 0 | AJ17: 0 | AK17: 0 | AL17: 0 | AN17: =SUMIF($A$25:$A$27,">0",AN25:AN27) -> 0
A18: =ZeileAbstand -> 5
A19: =ZeileNormal -> 17 | J19: Anpinnen | M19: Art | N19: von | O19: bis | P19: Erntejahr | Q19: Fruchtfolge | R19: Bezeichnung | S19: Menge | T19: Notiz | V19: N | W19: N-Bil | X19: N-Fix | Y19: P | Z19: K | AA19: S | AB19: Ca | AC19: Mg | AF19: Fe | AG19: Mn | AH19: Cu | AI19: Zn | AJ19: Mo | AK19: B | AL19: Na | AN19: Häq
A20: =ZeileFlach -> 14 | J20: =IF(B7="JA","Blatt bleibt geöffnet","") ->  | S20: dt/ha | V20: kg/ha | W20: kg/ha | X20: kg/ha | Y20: kg/ha | Z20: kg/ha | AA20: kg/ha | AB20: kg/ha | AC20: kg/ha | AF20: kg/ha | AG20: kg/ha | AH20: kg/ha | AI20: kg/ha | AJ20: kg/ha | AK20: kg/ha | AL20: kg/ha | AN20: Häq/ha
A21: =ZeileAbstand -> 5
A22: #H# | B22: rowmuster | G22: =getfilterMerkmal(M22:T22,TRUE) -> |C1|*p*|C2|*|C3|*|C4|*|C5|*|C6|*neue maßnahme*|C7|*|C8|* | M22: P | R22: Neue Maßnahme
A23: #H#
A24: #H# | B24: Bereich: Kopfzeile Formulardaten für Eingabe_Massnahme | AU24: Anzahl Fehlstellen
A25: #H# | B25: id_mass | C25: id_schlag | D25: id_pflanze | E25: id_duenger | F25: jahr_mass | G25: start_liste | H25: D3 | I25: D4 | J25: D5 | K25: D6 | L25: D7 | M25: art_mass | N25: dat1_mass | O25: dat2_mass | P25: jahrbezug_mass | Q25: fruchtfolge_mass | R25: bezeich_mass | S25: fm_mass | T25: notiz_mass | U25: D8 | V25: delta_nges | W25: delta_n | X25: delta_fixier | Y25: delta_p | Z25: delta_k | AA25: delta_s | AB25: delta_ca | AC25: delta_mg | AD25: D9 | AE25: D10 | AF25: delta_fe | AG25: delta_mn | AH25: delta_cu | AI25: delta_zn | AJ25: delta_mo | AK25: delta_b | AL25: delta_na | AM25: D11 | AN25: delta_humus | AO25: D12 | AP25: ausbring_mass | AQ25: fehler_haupt | AR25: fehler_spuren | AS25: leguminose | AT25: nboden_mass | AU25: npflanze_mass | AV25: para_hp | AW25: para_np | AX25: para_st | AY25: para_rt | AZ25: para_sg | BA25: para_dm | BB25: para_nh3verlust | BC25: para_vd | BD25: plus_n | BE25: plus_p | BF25: plus_k | BG25: plus_s | BH25: plus_ca | BI25: plus_mg | BJ25: plus_fe | BK25: plus_mn | BL25: plus_cu | BM25: plus_zn | BN25: plus_mo | BO25: plus_b | BP25: plus_na | BQ25: plus_humus | BR25: bezeich_hp | BS25: bezeich_np | BT25: delta_c | BU25: plus_c | BV25: erntesystem | BW25: eingaben
A26: =ZeileNormal -> 17 | G26: ende_liste
A27: 17

Sheet Liste_Massnahmen_3 (hidden)
A1: #H# | B1: #H# | C1: #H# | D1: #H# | E1: #H# | F1: #H# | G1: #H# | H1: 0.5 | I1: 1 | J1: 17 | K1: 1 | L1: 0.5 | M1: #H# | N1: 8 | O1: 8 | P1: 8 | Q1: 12 | R1: 18 | S1: 7 | T1: 15 | U1: 0.5 | V1: 6 | W1: #H# | X1: 6 | Y1: 6 | Z1: 6 | AA1: 6 | AB1: 6 | AC1: 6 | AD1: =IF(Intern_ListeSchlag_AnzeigeVoll,0.5,"#H#") -> 0.5 | AE1: =IF(Intern_ListeSchlag_AnzeigeVoll,0.5,"#H#") -> 0.5 | AF1: =IF(Intern_ListeSchlag_AnzeigeVoll,6,"#H#") -> 6 | AG1: 6 | AH1: 6 | AI1: 6 | AJ1: 6 | AK1: 6 | AL1: 6 | AM1: 0.5 | AN1: 9 | AO1: 17 | AP1: #H# | AQ1: #H# | AR1: #H# | AS1: #H# | AT1: #H# | AU1: #H# | AV1: #H# | AW1: #H# | AX1: #H# | AY1: #H# | AZ1: #H# | BA1: #H# | BB1: #H# | BC1: #H# | BD1: #H# | BE1: #H# | BF1: #H# | BG1: #H# | BH1: #H# | BI1: #H# | BJ1: #H# | BK1: #H# | BL1: #H# | BM1: #H# | BN1: #H# | BO1: #H# | BP1: #H# | BQ1: #H# | BR1: #H# | BS1: #H# | BT1: #H# | BU1: #H# | BV1: #H# | BW1: #H# | BX1: #ENDE#
A2: #H# | B2: Liste_Massnahmen | D2: Informationen zum Schlag/Szenario (nicht via ReadSave)
A3: #H# | B3: $R$27 | D3: art_schlag | E3: B | F3: kenn1_schlag | G3: Am KTBL
A4: #H# | B4: $J$17 | D4: id_schlag | E4: 3824690E-63AF-D74E-BD3F-81CAFB3CA34D | F4: kenn2_schlag | G4: 1 | O4: POS_ListeMass_Druckbereich | P4: =getAdr(M10:AN26)&"|$1:$20" -> |$M$10:$AN$26|$1:$20
A5: #H# | D5: id_referenz | E5: 3824690E-63AF-D74E-BD3F-81CAFB3CA34D | F5: kenn1_szenario | G5: Am KTBL
A6: #H# | F6: ha_schlag | G6: 5
A7: #H# | B7: NEIN | C7: Fixiert?
A9: =ZeileFlach -> 14
A10: 20 | J10: Maßnahme | N10: Übersicht der Bewirtschaftungsmaßnahmen | V10: Saldo: Nährstoffzugang/-abgang
A11: =ZeileNormal -> 17 | J11: Bearbeiten | N11: Schlag: | P11: =G3 & IF(ISTEXT(G4)," / " & G4,"") & IF(G6>0," (" & G6 & "ha)","") -> Am KTBL (5ha) | V11: Saldo der angezeigten Bewirtschaftungsmaßnahmen | AO11: ? Hilfe
A12: =ZeileAbstand -> 5
A13: =ZeileNormal -> 17 | J13: Hinzufügen | N13: =IF(E3="S","Szenario:","") ->  | P13: =IF(E3="S", G5,"") -> 
A14: =ZeileAbstand -> 5
A15: =ZeileNormal -> 17 | J15: Seite | V15: Hauptnährstoffe | AF15: Spurennährstoffe | AN15: Humus
A16: =ZeileAbstand -> 5
A17: =ZeileNormal -> 17 | G17: =getfilterMerkmal(M17:T17,TRUE) -> |C1|*|C2|*|C3|*|C4|*|C5|*|C6|*|C7|*|C8|* | J17: Schließen | V17: =SUMIF($A$25:$A$27,">0",V25:V27) -> 0 | W17: 0 | X17: 0 | Y17: 0 | Z17: 0 | AA17: 0 | AB17: 0 | AC17: 0 | AF17: =SUMIF($A$25:$A$27,">0",AF25:AF27) -> 0 | AG17: 0 | AH17: 0 | AI17: 0 | AJ17: 0 | AK17: 0 | AL17: 0 | AN17: =SUMIF($A$25:$A$27,">0",AN25:AN27) -> 0
A18: =ZeileAbstand -> 5
A19: =ZeileNormal -> 17 | J19: Anpinnen | M19: Art | N19: von | O19: bis | P19: Erntejahr | Q19: Fruchtfolge | R19: Bezeichnung | S19: Menge | T19: Notiz | V19: N | W19: N-Bil | X19: N-Fix | Y19: P | Z19: K | AA19: S | AB19: Ca | AC19: Mg | AF19: Fe | AG19: Mn | AH19: Cu | AI19: Zn | AJ19: Mo | AK19: B | AL19: Na | AN19: Häq
A20: =ZeileFlach -> 14 | J20: =IF(B7="JA","Blatt bleibt geöffnet","") ->  | S20: dt/ha | V20: kg/ha | W20: kg/ha | X20: kg/ha | Y20: kg/ha | Z20: kg/ha | AA20: kg/ha | AB20: kg/ha | AC20: kg/ha | AF20: kg/ha | AG20: kg/ha | AH20: kg/ha | AI20: kg/ha | AJ20: kg/ha | AK20: kg/ha | AL20: kg/ha | AN20: Häq/ha
A21: =ZeileAbstand -> 5
A22: #H# | B22: rowmuster | G22: =getfilterMerkmal(M22:T22,TRUE) -> |C1|*p*|C2|*|C3|*|C4|*|C5|*|C6|*neue maßnahme*|C7|*|C8|* | M22: P | R22: Neue Maßnahme
A23: #H#
A24: #H# | B24: Bereich: Kopfzeile Formulardaten für Eingabe_Massnahme | AU24: Anzahl Fehlstellen
A25: #H# | B25: id_mass | C25: id_schlag | D25: id_pflanze | E25: id_duenger | F25: jahr_mass | G25: start_liste | H25: D3 | I25: D4 | J25: D5 | K25: D6 | L25: D7 | M25: art_mass | N25: dat1_mass | O25: dat2_mass | P25: jahrbezug_mass | Q25: fruchtfolge_mass | R25: bezeich_mass | S25: fm_mass | T25: notiz_mass | U25: D8 | V25: delta_nges | W25: delta_n | X25: delta_fixier | Y25: delta_p | Z25: delta_k | AA25: delta_s | AB25: delta_ca | AC25: delta_mg | AD25: D9 | AE25: D10 | AF25: delta_fe | AG25: delta_mn | AH25: delta_cu | AI25: delta_zn | AJ25: delta_mo | AK25: delta_b | AL25: delta_na | AM25: D11 | AN25: delta_humus | AO25: D12 | AP25: ausbring_mass | AQ25: fehler_haupt | AR25: fehler_spuren | AS25: leguminose | AT25: nboden_mass | AU25: npflanze_mass | AV25: para_hp | AW25: para_np | AX25: para_st | AY25: para_rt | AZ25: para_sg | BA25: para_dm | BB25: para_nh3verlust | BC25: para_vd | BD25: plus_n | BE25: plus_p | BF25: plus_k | BG25: plus_s | BH25: plus_ca | BI25: plus_mg | BJ25: plus_fe | BK25: plus_mn | BL25: plus_cu | BM25: plus_zn | BN25: plus_mo | BO25: plus_b | BP25: plus_na | BQ25: plus_humus | BR25: bezeich_hp | BS25: bezeich_np | BT25: delta_c | BU25: plus_c | BV25: erntesystem | BW25: eingaben
A26: =ZeileNormal -> 17 | G26: ende_liste
A27: 17

Sheet Liste_Massnahmen_4 (hidden)
A1: #H# | B1: #H# | C1: #H# | D1: #H# | E1: #H# | F1: #H# | G1: #H# | H1: 0.5 | I1: 1 | J1: 17 | K1: 1 | L1: 0.5 | M1: #H# | N1: 8 | O1: 8 | P1: 8 | Q1: 12 | R1: 18 | S1: 7 | T1: 15 | U1: 0.5 | V1: 6 | W1: #H# | X1: 6 | Y1: 6 | Z1: 6 | AA1: 6 | AB1: 6 | AC1: 6 | AD1: =IF(Intern_ListeSchlag_AnzeigeVoll,0.5,"#H#") -> 0.5 | AE1: =IF(Intern_ListeSchlag_AnzeigeVoll,0.5,"#H#") -> 0.5 | AF1: =IF(Intern_ListeSchlag_AnzeigeVoll,6,"#H#") -> 6 | AG1: 6 | AH1: 6 | AI1: 6 | AJ1: 6 | AK1: 6 | AL1: 6 | AM1: 0.5 | AN1: 9 | AO1: 17 | AP1: #H# | AQ1: #H# | AR1: #H# | AS1: #H# | AT1: #H# | AU1: #H# | AV1: #H# | AW1: #H# | AX1: #H# | AY1: #H# | AZ1: #H# | BA1: #H# | BB1: #H# | BC1: #H# | BD1: #H# | BE1: #H# | BF1: #H# | BG1: #H# | BH1: #H# | BI1: #H# | BJ1: #H# | BK1: #H# | BL1: #H# | BM1: #H# | BN1: #H# | BO1: #H# | BP1: #H# | BQ1: #H# | BR1: #H# | BS1: #H# | BT1: #H# | BU1: #H# | BV1: #H# | BW1: #H# | BX1: #ENDE#
A2: #H# | B2: Liste_Massnahmen | D2: Informationen zum Schlag/Szenario (nicht via ReadSave)
A3: #H# | B3: $R$27 | D3: art_schlag | E3: B | F3: kenn1_schlag | G3: Am KTBL
A4: #H# | B4: $J$17 | D4: id_schlag | E4: 3824690E-63AF-D74E-BD3F-81CAFB3CA34D | F4: kenn2_schlag | G4: 1 | O4: POS_ListeMass_Druckbereich | P4: =getAdr(M10:AN26)&"|$1:$20" -> |$M$10:$AN$26|$1:$20
A5: #H# | D5: id_referenz | E5: 3824690E-63AF-D74E-BD3F-81CAFB3CA34D | F5: kenn1_szenario | G5: Am KTBL
A6: #H# | F6: ha_schlag | G6: 5
A7: #H# | B7: NEIN | C7: Fixiert?
A9: =ZeileFlach -> 14
A10: 20 | J10: Maßnahme | N10: Übersicht der Bewirtschaftungsmaßnahmen | V10: Saldo: Nährstoffzugang/-abgang
A11: =ZeileNormal -> 17 | J11: Bearbeiten | N11: Schlag: | P11: =G3 & IF(ISTEXT(G4)," / " & G4,"") & IF(G6>0," (" & G6 & "ha)","") -> Am KTBL (5ha) | V11: Saldo der angezeigten Bewirtschaftungsmaßnahmen | AO11: ? Hilfe
A12: =ZeileAbstand -> 5
A13: =ZeileNormal -> 17 | J13: Hinzufügen | N13: =IF(E3="S","Szenario:","") ->  | P13: =IF(E3="S", G5,"") -> 
A14: =ZeileAbstand -> 5
A15: =ZeileNormal -> 17 | J15: Seite | V15: Hauptnährstoffe | AF15: Spurennährstoffe | AN15: Humus
A16: =ZeileAbstand -> 5
A17: =ZeileNormal -> 17 | G17: =getfilterMerkmal(M17:T17,TRUE) -> |C1|*|C2|*|C3|*|C4|*|C5|*|C6|*|C7|*|C8|* | J17: Schließen | V17: =SUMIF($A$25:$A$27,">0",V25:V27) -> 0 | W17: 0 | X17: 0 | Y17: 0 | Z17: 0 | AA17: 0 | AB17: 0 | AC17: 0 | AF17: =SUMIF($A$25:$A$27,">0",AF25:AF27) -> 0 | AG17: 0 | AH17: 0 | AI17: 0 | AJ17: 0 | AK17: 0 | AL17: 0 | AN17: =SUMIF($A$25:$A$27,">0",AN25:AN27) -> 0
A18: =ZeileAbstand -> 5
A19: =ZeileNormal -> 17 | J19: Anpinnen | M19: Art | N19: von | O19: bis | P19: Erntejahr | Q19: Fruchtfolge | R19: Bezeichnung | S19: Menge | T19: Notiz | V19: N | W19: N-Bil | X19: N-Fix | Y19: P | Z19: K | AA19: S | AB19: Ca | AC19: Mg | AF19: Fe | AG19: Mn | AH19: Cu | AI19: Zn | AJ19: Mo | AK19: B | AL19: Na | AN19: Häq
A20: =ZeileFlach -> 14 | J20: =IF(B7="JA","Blatt bleibt geöffnet","") ->  | S20: dt/ha | V20: kg/ha | W20: kg/ha | X20: kg/ha | Y20: kg/ha | Z20: kg/ha | AA20: kg/ha | AB20: kg/ha | AC20: kg/ha | AF20: kg/ha | AG20: kg/ha | AH20: kg/ha | AI20: kg/ha | AJ20: kg/ha | AK20: kg/ha | AL20: kg/ha | AN20: Häq/ha
A21: =ZeileAbstand -> 5
A22: #H# | B22: rowmuster | G22: =getfilterMerkmal(M22:T22,TRUE) -> |C1|*p*|C2|*|C3|*|C4|*|C5|*|C6|*neue maßnahme*|C7|*|C8|* | M22: P | R22: Neue Maßnahme
A23: #H#
A24: #H# | B24: Bereich: Kopfzeile Formulardaten für Eingabe_Massnahme | AU24: Anzahl Fehlstellen
A25: #H# | B25: id_mass | C25: id_schlag | D25: id_pflanze | E25: id_duenger | F25: jahr_mass | G25: start_liste | H25: D3 | I25: D4 | J25: D5 | K25: D6 | L25: D7 | M25: art_mass | N25: dat1_mass | O25: dat2_mass | P25: jahrbezug_mass | Q25: fruchtfolge_mass | R25: bezeich_mass | S25: fm_mass | T25: notiz_mass | U25: D8 | V25: delta_nges | W25: delta_n | X25: delta_fixier | Y25: delta_p | Z25: delta_k | AA25: delta_s | AB25: delta_ca | AC25: delta_mg | AD25: D9 | AE25: D10 | AF25: delta_fe | AG25: delta_mn | AH25: delta_cu | AI25: delta_zn | AJ25: delta_mo | AK25: delta_b | AL25: delta_na | AM25: D11 | AN25: delta_humus | AO25: D12 | AP25: ausbring_mass | AQ25: fehler_haupt | AR25: fehler_spuren | AS25: leguminose | AT25: nboden_mass | AU25: npflanze_mass | AV25: para_hp | AW25: para_np | AX25: para_st | AY25: para_rt | AZ25: para_sg | BA25: para_dm | BB25: para_nh3verlust | BC25: para_vd | BD25: plus_n | BE25: plus_p | BF25: plus_k | BG25: plus_s | BH25: plus_ca | BI25: plus_mg | BJ25: plus_fe | BK25: plus_mn | BL25: plus_cu | BM25: plus_zn | BN25: plus_mo | BO25: plus_b | BP25: plus_na | BQ25: plus_humus | BR25: bezeich_hp | BS25: bezeich_np | BT25: delta_c | BU25: plus_c | BV25: erntesystem | BW25: eingaben
A26: =ZeileNormal -> 17 | G26: ende_liste
A27: 17

Sheet Liste_Massnahmen_5 (hidden)
A1: #H# | B1: #H# | C1: #H# | D1: #H# | E1: #H# | F1: #H# | G1: #H# | H1: 0.5 | I1: 1 | J1: 17 | K1: 1 | L1: 0.5 | M1: #H# | N1: 8 | O1: 8 | P1: 8 | Q1: 12 | R1: 18 | S1: 7 | T1: 15 | U1: 0.5 | V1: 6 | W1: #H# | X1: 6 | Y1: 6 | Z1: 6 | AA1: 6 | AB1: 6 | AC1: 6 | AD1: =IF(Intern_ListeSchlag_AnzeigeVoll,0.5,"#H#") -> 0.5 | AE1: =IF(Intern_ListeSchlag_AnzeigeVoll,0.5,"#H#") -> 0.5 | AF1: =IF(Intern_ListeSchlag_AnzeigeVoll,6,"#H#") -> 6 | AG1: 6 | AH1: 6 | AI1: 6 | AJ1: 6 | AK1: 6 | AL1: 6 | AM1: 0.5 | AN1: 9 | AO1: 17 | AP1: #H# | AQ1: #H# | AR1: #H# | AS1: #H# | AT1: #H# | AU1: #H# | AV1: #H# | AW1: #H# | AX1: #H# | AY1: #H# | AZ1: #H# | BA1: #H# | BB1: #H# | BC1: #H# | BD1: #H# | BE1: #H# | BF1: #H# | BG1: #H# | BH1: #H# | BI1: #H# | BJ1: #H# | BK1: #H# | BL1: #H# | BM1: #H# | BN1: #H# | BO1: #H# | BP1: #H# | BQ1: #H# | BR1: #H# | BS1: #H# | BT1: #H# | BU1: #H# | BV1: #H# | BW1: #H# | BX1: #ENDE#
A2: #H# | B2: Liste_Massnahmen | D2: Informationen zum Schlag/Szenario (nicht via ReadSave)
A3: #H# | B3: $R$27 | D3: art_schlag | E3: B | F3: kenn1_schlag | G3: Am KTBL
A4: #H# | B4: $J$17 | D4: id_schlag | E4: 3824690E-63AF-D74E-BD3F-81CAFB3CA34D | F4: kenn2_schlag | G4: 1 | O4: POS_ListeMass_Druckbereich | P4: =getAdr(M10:AN26)&"|$1:$20" -> |$M$10:$AN$26|$1:$20
A5: #H# | D5: id_referenz | E5: 3824690E-63AF-D74E-BD3F-81CAFB3CA34D | F5: kenn1_szenario | G5: Am KTBL
A6: #H# | F6: ha_schlag | G6: 5
A7: #H# | B7: NEIN | C7: Fixiert?
A9: =ZeileFlach -> 14
A10: 20 | J10: Maßnahme | N10: Übersicht der Bewirtschaftungsmaßnahmen | V10: Saldo: Nährstoffzugang/-abgang
A11: =ZeileNormal -> 17 | J11: Bearbeiten | N11: Schlag: | P11: =G3 & IF(ISTEXT(G4)," / " & G4,"") & IF(G6>0," (" & G6 & "ha)","") -> Am KTBL (5ha) | V11: Saldo der angezeigten Bewirtschaftungsmaßnahmen | AO11: ? Hilfe
A12: =ZeileAbstand -> 5
A13: =ZeileNormal -> 17 | J13: Hinzufügen | N13: =IF(E3="S","Szenario:","") ->  | P13: =IF(E3="S", G5,"") -> 
A14: =ZeileAbstand -> 5
A15: =ZeileNormal -> 17 | J15: Seite | V15: Hauptnährstoffe | AF15: Spurennährstoffe | AN15: Humus
A16: =ZeileAbstand -> 5
A17: =ZeileNormal -> 17 | G17: =getfilterMerkmal(M17:T17,TRUE) -> |C1|*|C2|*|C3|*|C4|*|C5|*|C6|*|C7|*|C8|* | J17: Schließen | V17: =SUMIF($A$25:$A$27,">0",V25:V27) -> 0 | W17: 0 | X17: 0 | Y17: 0 | Z17: 0 | AA17: 0 | AB17: 0 | AC17: 0 | AF17: =SUMIF($A$25:$A$27,">0",AF25:AF27) -> 0 | AG17: 0 | AH17: 0 | AI17: 0 | AJ17: 0 | AK17: 0 | AL17: 0 | AN17: =SUMIF($A$25:$A$27,">0",AN25:AN27) -> 0
A18: =ZeileAbstand -> 5
A19: =ZeileNormal -> 17 | J19: Anpinnen | M19: Art | N19: von | O19: bis | P19: Erntejahr | Q19: Fruchtfolge | R19: Bezeichnung | S19: Menge | T19: Notiz | V19: N | W19: N-Bil | X19: N-Fix | Y19: P | Z19: K | AA19: S | AB19: Ca | AC19: Mg | AF19: Fe | AG19: Mn | AH19: Cu | AI19: Zn | AJ19: Mo | AK19: B | AL19: Na | AN19: Häq
A20: =ZeileFlach -> 14 | J20: =IF(B7="JA","Blatt bleibt geöffnet","") ->  | S20: dt/ha | V20: kg/ha | W20: kg/ha | X20: kg/ha | Y20: kg/ha | Z20: kg/ha | AA20: kg/ha | AB20: kg/ha | AC20: kg/ha | AF20: kg/ha | AG20: kg/ha | AH20: kg/ha | AI20: kg/ha | AJ20: kg/ha | AK20: kg/ha | AL20: kg/ha | AN20: Häq/ha
A21: =ZeileAbstand -> 5
A22: #H# | B22: rowmuster | G22: =getfilterMerkmal(M22:T22,TRUE) -> |C1|*p*|C2|*|C3|*|C4|*|C5|*|C6|*neue maßnahme*|C7|*|C8|* | M22: P | R22: Neue Maßnahme
A23: #H#
A24: #H# | B24: Bereich: Kopfzeile Formulardaten für Eingabe_Massnahme | AU24: Anzahl Fehlstellen
A25: #H# | B25: id_mass | C25: id_schlag | D25: id_pflanze | E25: id_duenger | F25: jahr_mass | G25: start_liste | H25: D3 | I25: D4 | J25: D5 | K25: D6 | L25: D7 | M25: art_mass | N25: dat1_mass | O25: dat2_mass | P25: jahrbezug_mass | Q25: fruchtfolge_mass | R25: bezeich_mass | S25: fm_mass | T25: notiz_mass | U25: D8 | V25: delta_nges | W25: delta_n | X25: delta_fixier | Y25: delta_p | Z25: delta_k | AA25: delta_s | AB25: delta_ca | AC25: delta_mg | AD25: D9 | AE25: D10 | AF25: delta_fe | AG25: delta_mn | AH25: delta_cu | AI25: delta_zn | AJ25: delta_mo | AK25: delta_b | AL25: delta_na | AM25: D11 | AN25: delta_humus | AO25: D12 | AP25: ausbring_mass | AQ25: fehler_haupt | AR25: fehler_spuren | AS25: leguminose | AT25: nboden_mass | AU25: npflanze_mass | AV25: para_hp | AW25: para_np | AX25: para_st | AY25: para_rt | AZ25: para_sg | BA25: para_dm | BB25: para_nh3verlust | BC25: para_vd | BD25: plus_n | BE25: plus_p | BF25: plus_k | BG25: plus_s | BH25: plus_ca | BI25: plus_mg | BJ25: plus_fe | BK25: plus_mn | BL25: plus_cu | BM25: plus_zn | BN25: plus_mo | BO25: plus_b | BP25: plus_na | BQ25: plus_humus | BR25: bezeich_hp | BS25: bezeich_np | BT25: delta_c | BU25: plus_c | BV25: erntesystem | BW25: eingaben
A26: =ZeileNormal -> 17 | G26: ende_liste
A27: 17

Sheet Basis_Massnahmen (hidden)
A1: d1 | B1: id_mass | C1: id_schlag | D1: id_pflanze | E1: id_duenger | F1: jahr_mass | G1: D2 | H1: D3 | I1: D4 | J1: D5 | K1: D6 | L1: D7 | M1: art_mass | N1: dat1_mass | O1: dat2_mass | P1: jahrbezug_mass | Q1: fruchtfolge_mass | R1: bezeich_mass | S1: fm_mass | T1: notiz_mass | U1: D8 | V1: delta_nges | W1: delta_n | X1: delta_fixier | Y1: delta_p | Z1: delta_k | AA1: delta_s | AB1: delta_ca | AC1: delta_mg | AD1: D9 | AE1: D10 | AF1: delta_fe | AG1: delta_mn | AH1: delta_cu | AI1: delta_zn | AJ1: delta_mo | AK1: delta_b | AL1: delta_na | AM1: D11 | AN1: delta_humus | AO1: D12 | AP1: ausbring_mass | AQ1: fehler_haupt | AR1: fehler_spuren | AS1: leguminose | AT1: nboden_mass | AU1: npflanze_mass | AV1: para_hp | AW1: para_np | AX1: para_st | AY1: para_rt | AZ1: para_sg | BA1: para_dm | BB1: para_nh3verlust | BC1: para_vd | BD1: plus_n | BE1: plus_p | BF1: plus_k | BG1: plus_s | BH1: plus_ca | BI1: plus_mg | BJ1: plus_fe | BK1: plus_mn | BL1: plus_cu | BM1: plus_zn | BN1: plus_mo | BO1: plus_b | BP1: plus_na | BQ1: plus_humus | BR1: bezeich_hp | BS1: bezeich_np | BT1: delta_c | BU1: plus_c | BV1: erntesystem | BW1: eingaben
B2: 74F35D71-C973-B64B-95BC-BBF754B80C9E | C2: 3824690E-63AF-D74E-BD3F-81CAFB3CA34D | F2: 2021 | M2: J | N2: 2021-01-01 | P2: 2021 | Q2: N-Deposition | V2: =W2+X2 -> 16.47899437 | W2: 16.47899437 | AT2: 66.84159569 | BD2: 16.47899437
B3: E287080E-1F25-0A4B-B917-CDE8BDCB2B7B | C3: 3824690E-63AF-D74E-BD3F-81CAFB3CA34D | D3: 39 | F3: 2022 | M3: M | N3: 2021-03-05 | O3: 2022-09-15 | P3: 2021 | Q3: Futterbau (Frühjahrblanksaat) | R3: Kleegras (50:50) | S3: 550 | V3: 116.7626789 | W3: -257.022 | X3: =getNFixierung(C3,AT6:AU1048576) -> 373.7846789 | Y3: -32.879 | Z3: -285.815 | AA3: -22 | AB3: -110 | AC3: -32.966 | AF3: -2.2 | AG3: -0.691 | AH3: -0.095 | AI3: -0.544 | AL3: -4.16 | AN3: 1600 | AQ3: 2 | AR3: 9 | AS3: 1 | AT3: 38.56394037 | AU3: 503.8 | AV3: |fm~300|ts~20|fix~8,40647642601122E-02|c~43|n~2,35|p~0,3|k~2,6|ca~1|mg~0,3|s~0,2|b~|zn~4,94444444444444E-03|cu~8,66666666666667E-04|mn~6,27777777777778E-03|na~3,77777777777778E-02|fe~0,02|mo~ | AW3: |fa~0|ts~|fix~|c~|n~|p~|k~|ca~|mg~|s~|b~|zn~|cu~|mn~|na~|fe~|mo~ | AX3: |fa~0,2|ts~20|fix~8,40647642601122E-02|c~43|n~2,35|p~0,3|k~2,6|ca~1|mg~0,3|s~0,18|b~|zn~|cu~|mn~|na~|fe~|mo~ | AY3: |fa~0,2|ts~100|fix~0,266516511788593|c~40|n~1,76|p~|k~|ca~|mg~|s~|b~|zn~|cu~|mn~|na~|fe~|mo~ | AZ3: |ts~91|c~44|n~4,30104778941988|p~0,532036800408893|k~0,811334014822387|ca~|mg~0,148313314592384|s~|b~|zn~|cu~|mn~|na~|fe~|mo~ | BC3: |vd_fruh_koeff~400|vd_grun_koeff~|vd_unter_koeff~200|vd_sommer_koeff~|vd_winter_koeff~|vd_haupt_koeff~600|vd_ernterest_koeff~|vd_nebenproduktfaktor~|vd_verbleib_haupt~1|vd_verbleib_haupt_koeff~16|vd_spat_koeff~100 | BD3: 0.978 | BE3: 0.121 | BF3: 0.185 | BI3: 0.034 | BQ3: 1600 | BR3: Ganzpflanze | BS3: kein | BV3: 2 | BW3: |anzfruchtjahre~2|sg_menge~25|sg_bezug~kg/ha|anzschnitt~5|dat1~01.07.2021|fm1~100|bezug1~dt/ha|ver1~0|dat2~15.09.2021|fm2~100|ver2~0|dat3~01.04.2022|fm3~100|ver3~0|dat4~20.06.2022|fm4~100|ver4~0|dat5~15.09.2022|fm5~150|ver5~0|ver6~0|ver7~0|ver8~0|ver9~0|ver10~0|ver11~0|ver12~0
B4: 3D6907FC-9AFB-BE4B-B95D-61D8EAC0CF3F | C4: 3824690E-63AF-D74E-BD3F-81CAFB3CA34D | F4: 2022 | M4: J | N4: 2022-01-01 | P4: 2022 | Q4: N-Deposition | V4: 16.47899437 | W4: 16.47899437 | AT4: 66.84159569 | BD4: 16.47899437
B5: CD1C55FD-C3CF-8243-988C-7EB423CD8E0C | C5: 3824690E-63AF-D74E-BD3F-81CAFB3CA34D | D5: 17 | F5: 2023 | M5: P | N5: 2022-10-05 | O5: 2023-07-15 | P5: 2023 | Q5: Marktfrucht | R5: Winterweizen | S5: 42 | V5: -70.7 | W5: -70.7 | Y5: -14.246 | Z5: -20.152 | AA5: -4.521 | AB5: -1.635 | AC5: -4.608 | AF5: -0.118 | AG5: -0.123 | AH5: -0.017 | AI5: -0.104 | AK5: -0.018 | AL5: -0.25 | AN5: -58 | AR5: 4 | AT5: 3.012755205 | AU5: 117.216624 | AV5: |fm~40|ts~86|fix~0,275604114389822|c~44|n~2,036|p~0,41|k~0,58|ca~0,047|mg~0,1325|s~0,13|b~0,00053|zn~0,003|cu~0,0005|mn~0,00355|na~0,0072|fe~0,0034|mo~ | AW5: |fa~1,1|ts~86|fix~2,97775492438456E-02|c~45|n~0,584|p~0,15|k~1,435|ca~0,367|mg~0,128|s~0,1|b~|zn~0,003|cu~0,0004|mn~0,008|na~0,15|fe~0,02|mo~ | AX5: |fa~0,2|ts~86|fix~2,92791286122067E-02|c~46|n~0,584|p~|k~|ca~|mg~|s~|b~|zn~|cu~|mn~|na~|fe~|mo~ | AY5: |fa~0,43|ts~100|fix~7,70258997310516E-02|c~43|n~0,9|p~|k~|ca~|mg~|s~|b~|zn~|cu~|mn~|na~|fe~|mo~ | AZ5: |ts~86|c~44|n~2,036|p~0,41|k~0,58|ca~0,047|mg~0,1325|s~0,13|b~0,00053|zn~0,003|cu~0,0005|mn~0,00355|na~0,0072|fe~0,0034|mo~ | BC5: |vd_fruh_koeff~|vd_grun_koeff~|vd_unter_koeff~|vd_sommer_koeff~|vd_winter_koeff~|vd_haupt_koeff~-520|vd_ernterest_koeff~100|vd_nebenproduktfaktor~1,1|vd_verbleib_haupt~2|vd_verbleib_haupt_koeff~|vd_spat_koeff~ | BD5: 2.8 | BE5: 0.564 | BF5: 0.798 | BG5: 0.179 | BH5: 0.065 | BI5: 0.182 | BJ5: 0.005 | BK5: 0.005 | BL5: 0.001 | BM5: 0.004 | BO5: 0.001 | BP5: 0.01 | BR5: Korn | BS5: Stroh | BV5: 1 | BW5: |sg_menge~160|hp_menge~42|hp_bezug~dt/ha|hp_verbleib~0|np_verbleib~100
B6: ED14C48C-5698-304A-B4EB-D39F5B0EFD49 | C6: 3824690E-63AF-D74E-BD3F-81CAFB3CA34D | F6: 2023 | M6: J | N6: 2023-01-01 | P6: 2023 | Q6: N-Deposition | V6: 16.47899437 | W6: 16.47899437 | AT6: 66.84159569 | BD6: 16.47899437
B7: B6D15C9F-866E-A148-BACD-3CC1DF25DAE1 | C7: 3824690E-63AF-D74E-BD3F-81CAFB3CA34D | D7: 1002 | F7: 2024 | M7: P | N7: 2023-08-01 | O7: 2024-03-02 | P7: 2024 | Q7: Winterzwischenfrucht | R7: Ölrettich | S7: 150 | V7: 0.268 | W7: 0.268 | Y7: 0.075 | Z7: 0.076 | AA7: 0.038 | AB7: 0.025 | AC7: 0.023 | AF7: 0.005 | AG7: 0.001 | AL7: 0.023 | AN7: 320 | AR7: 9 | AT7: 13.57948926 | AU7: 78.70992063 | AV7: |fm~200|ts~15|fix~6,64893456660858E-02|c~45|n~2,47|p~0,35|k~2,53|ca~1,55|mg~0,22|s~0,4|b~|zn~|cu~|mn~|na~|fe~|mo~ | AW7: |fa~0|ts~|fix~|c~|n~|p~|k~|ca~|mg~|s~|b~|zn~|cu~|mn~|na~|fe~|mo~ | AX7: |fa~0,17636684303351|ts~15|fix~6,53764380391763E-02|c~46|n~2,47|p~0,35|k~2,53|ca~1,55|mg~0,22|s~0,4|b~|zn~|cu~|mn~|na~|fe~|mo~ | AY7: |fa~5,55555555555555E-02|ts~100|fix~0,225186241929403|c~40|n~1,6|p~|k~|ca~|mg~|s~|b~|zn~|cu~|mn~|na~|fe~|mo~ | AZ7: |ts~91|c~60|n~2,94|p~0,82|k~0,84|ca~0,28|mg~0,25|s~0,413|b~|zn~0,00515|cu~0,0001716|mn~0,0055308|na~0,25|fe~0,05214|mo~ | BC7: |vd_fruh_koeff~|vd_grun_koeff~|vd_unter_koeff~250|vd_sommer_koeff~100|vd_winter_koeff~140|vd_haupt_koeff~|vd_ernterest_koeff~|vd_nebenproduktfaktor~|vd_verbleib_haupt~1|vd_verbleib_haupt_koeff~12|vd_spat_koeff~ | BD7: 0.268 | BE7: 0.075 | BF7: 0.076 | BG7: 0.038 | BH7: 0.025 | BI7: 0.023 | BJ7: 0.005 | BK7: 0.001 | BP7: 0.023 | BQ7: 320 | BR7: Ganzpflanze | BS7: kein | BV7: 1 | BW7: |sg_menge~10|hp_menge~150|hp_bezug~dt/ha|hp_verbleib~100|np_verbleib~0
B8: 0C213713-85FA-4749-B8E7-8FEA9C075D88 | C8: 3824690E-63AF-D74E-BD3F-81CAFB3CA34D | F8: 2024 | M8: J | N8: 2024-01-01 | P8: 2024 | Q8: N-Deposition | V8: 16.47899437 | W8: 16.47899437 | AT8: 66.84159569 | BD8: 16.47899437
B9: 82122B39-EEC4-AB41-A35D-95D5775E835B | C9: 3824690E-63AF-D74E-BD3F-81CAFB3CA34D | E9: 1145 | F9: 2024 | M9: D | N9: 2024-03-01 | O9: 2024-03-01 | P9: 2024 | R9: Kali-Magnesia (30 % K2O, 10 % MgO) | S9: 18 | V9: 0 | Z9: 433 | AC9: 109 | BA9: |fm~10|ts~100|fix~|c~0|n~0|p~0|k~24,08|ca~0|mg~6,03|s~0|b~0|zn~0|cu~0|mn~0|na~0|fe~0|mo~0|nh4~0|vd_dm~0 | BF9: 433 | BI9: 109 | BW9: |fm_dm~18|bezug_dm~dt/ha
B10: A47F83F0-F759-2044-AA1A-222D86FE107B | C10: 3824690E-63AF-D74E-BD3F-81CAFB3CA34D | D10: 56 | F10: 2024 | M10: P | N10: 2024-03-30 | O10: 2024-09-20 | P10: 2024 | Q10: Marktfrucht | R10: mittelfrühe und späte Kartoffeln | S10: 250 | V10: -72.27 | W10: -72.27 | Y10: -13.37 | Z10: -101.7 | AA10: -7.425 | AB10: -1.98 | AC10: -4.059 | AF10: -0.086 | AG10: -0.032 | AH10: -0.021 | AI10: -0.071 | AL10: -1.053 | AN10: -1240 | AQ10: 1 | AR10: 11 | AT10: 3.884612263 | AU10: 106.87 | AV10: |fm~300|ts~22|fix~4,29636043779997E-02|c~39|n~1,46|p~0,27|k~2,055|ca~0,04|mg~0,082|s~0,15|b~|zn~0,00144|cu~0,000411|mn~0,000662|na~0,0212|fe~0,00174|mo~ | AW10: |fa~0,2|ts~25|fix~4,89618579987438E-02|c~33|n~1,36|p~0,28|k~2|ca~|mg~0,52|s~0,2|b~|zn~|cu~|mn~|na~|fe~|mo~ | AX10: |fa~0|ts~|fix~|c~|n~|p~|k~|ca~|mg~|s~|b~|zn~|cu~|mn~|na~|fe~|mo~ | AY10: |fa~0,022|ts~100|fix~0,261185338732846|c~40|n~1,74|p~|k~|ca~|mg~|s~|b~|zn~|cu~|mn~|na~|fe~|mo~ | AZ10: |ts~22|c~39|n~1,46|p~0,27|k~2,055|ca~0,04|mg~0,082|s~0,15|b~|zn~0,00144|cu~0,000411|mn~0,000662|na~0,0212|fe~0,00174|mo~ | BC10: |vd_fruh_koeff~|vd_grun_koeff~|vd_unter_koeff~|vd_sommer_koeff~|vd_winter_koeff~|vd_haupt_koeff~-1240|vd_ernterest_koeff~|vd_nebenproduktfaktor~|vd_verbleib_haupt~2|vd_verbleib_haupt_koeff~|vd_spat_koeff~ | BD10: 8.03 | BE10: 1.48 | BF10: 11.3 | BG10: 0.825 | BH10: 0.22 | BI10: 0.451 | BJ10: 0.01 | BK10: 0.004 | BL10: 0.002 | BM10: 0.008 | BP10: 0.117 | BR10: Knolle | BS10: Kraut | BV10: 1 | BW10: |sg_menge~2500|hp_menge~250|hp_bezug~dt/ha|hp_verbleib~0|np_verbleib~100
B11: 0F27BF8D-BF5C-894F-B3B8-446175348588 | C11: 3824690E-63AF-D74E-BD3F-81CAFB3CA34D | D11: 108 | F11: 2025 | M11: L | N11: 2024-09-30 | O11: 2025-08-29 | P11: 2025 | Q11: Marktfrucht | R11: Winterackerbohne | S11: 30 | V11: -30.30543346 | W11: -120.42 | X11: =getNFixierung(C11,AT6:AU14) -> 90.11456654 | Y11: -13.67 | Z11: -32.56 | AA11: -4.971 | AB11: -3.853 | AC11: -3.94 | AF11: -0.177 | AG11: -0.036 | AH11: -0.015 | AI11: -0.153 | AJ11: -0.006 | AK11: -0.039 | AL11: -0.698 | AN11: 160 | AQ11: 1 | AR11: 7 | AS11: 2 | AT11: 5.387259579 | AU11: 170.01495 | AV11: |fm~30|ts~86|fix~1,29670466693867|c~43|n~4,84|p~0,55|k~1,31|ca~0,155|mg~0,1585|s~0,2|b~0,00155|zn~0,00616|cu~0,00062|mn~0,00145|na~0,0281|fe~0,00715|mo~0,000225 | AW11: |fa~1|ts~86|fix~0,144673451157624|c~43|n~1,4|p~0,17|k~1,71|ca~|mg~0,19|s~0,16|b~|zn~|cu~|mn~|na~|fe~|mo~ | AX11: |fa~0,109289617486339|ts~86|fix~0,144673451157624|c~43|n~1,4|p~0,17|k~1,71|ca~|mg~0,19|s~0,16|b~|zn~|cu~|mn~|na~|fe~|mo~ | AY11: |fa~0,140983584|ts~100|fix~0,135409821886406|c~40|n~1,2|p~|k~|ca~|mg~|s~|b~|zn~|cu~|mn~|na~|fe~|mo~ | AZ11: |ts~86|c~43|n~4,84|p~0,55|k~1,31|ca~0,155|mg~0,1585|s~0,2|b~0,00155|zn~0,00616|cu~0,00062|mn~0,00145|na~0,0281|fe~0,00715|mo~0,000225 | BC11: |vd_fruh_koeff~|vd_grun_koeff~|vd_unter_koeff~|vd_sommer_koeff~|vd_winter_koeff~|vd_haupt_koeff~160|vd_ernterest_koeff~|vd_nebenproduktfaktor~|vd_verbleib_haupt~2|vd_verbleib_haupt_koeff~|vd_spat_koeff~ | BD11: 4.58 | BE11: 0.52 | BF11: 1.24 | BG11: 0.189 | BH11: 0.147 | BI11: 0.15 | BJ11: 0.007 | BK11: 0.001 | BL11: 0.001 | BM11: 0.006 | BO11: 0.001 | BP11: 0.027 | BQ11: 160 | BR11: Korn | BS11: Stroh | BV11: 1 | BW11: |sg_menge~110|hp_menge~30|hp_bezug~dt/ha|hp_verbleib~0|np_verbleib~100
B12: DD38086F-7ADF-6E40-B83A-731E2AF0AE30 | C12: 3824690E-63AF-D74E-BD3F-81CAFB3CA34D | F12: 2025 | M12: J | N12: 2025-01-01 | P12: 2025 | Q12: N-Deposition | V12: 16.47899437 | W12: 16.47899437 | AT12: 66.84159569 | BD12: 16.47899437
B13: 4436B643-7BE0-AF4C-A3F9-5749127BB42E | C13: 3824690E-63AF-D74E-BD3F-81CAFB3CA34D | D13: 10 | F13: 2026 | M13: P | N13: 2025-09-10 | O13: 2026-07-14 | P13: 2027 | Q13: Marktfrucht | R13: Wintergerste | S13: 40 | V13: -51.17 | W13: -51.17 | Y13: -13.536 | Z13: -18.989 | AA13: -3.965 | AB13: -1.258 | AC13: -4.627 | AF13: -0.092 | AG13: -0.069 | AH13: -0.018 | AI13: -0.092 | AL13: -0.594 | AN13: -80 | AR13: 6 | AT13: 2.845960101 | AU13: 94.31988571 | AV13: |fm~40|ts~86|fix~0,170166095986885|c~44|n~1,55|p~0,41|k~0,575|ca~0,038|mg~0,14|s~0,12|b~|zn~0,0028|cu~0,00055|mn~0,0021|na~0,018|fe~0,0028|mo~ | AW13: |fa~1,1|ts~86|fix~2,34344685600629E-02|c~45|n~0,51|p~0,15|k~1,64|ca~0,35|mg~0,14|s~0,1|b~|zn~0,004|cu~0,0006|mn~0,008|na~0,2|fe~0,02|mo~ | AX13: |fa~0,228571428571429|ts~86|fix~2,34344685600629E-02|c~45|n~0,51|p~|k~|ca~|mg~|s~|b~|zn~|cu~|mn~|na~|fe~|mo~ | AY13: |fa~0,491428571428571|ts~100|fix~8,14251337302235E-02|c~40|n~0,9|p~|k~|ca~|mg~|s~|b~|zn~|cu~|mn~|na~|fe~|mo~ | AZ13: |ts~86|c~44|n~1,55|p~0,41|k~0,575|ca~0,038|mg~0,14|s~0,12|b~|zn~0,0028|cu~0,00055|mn~0,0021|na~0,018|fe~0,0028|mo~ | BC13: |vd_fruh_koeff~|vd_grun_koeff~|vd_unter_koeff~|vd_sommer_koeff~|vd_winter_koeff~|vd_haupt_koeff~-520|vd_ernterest_koeff~100|vd_nebenproduktfaktor~1,1|vd_verbleib_haupt~2|vd_verbleib_haupt_koeff~|vd_spat_koeff~ | BD13: 2.13 | BE13: 0.564 | BF13: 0.791 | BG13: 0.165 | BH13: 0.052 | BI13: 0.193 | BJ13: 0.004 | BK13: 0.003 | BL13: 0.001 | BM13: 0.004 | BP13: 0.025 | BR13: Korn | BS13: Stroh | BV13: 1 | BW13: |sg_menge~160|hp_menge~40|hp_bezug~dt/ha|hp_verbleib~0|np_verbleib~100
B14: E7F882EA-0A69-0245-8EFA-3096C26273E7 | C14: 3824690E-63AF-D74E-BD3F-81CAFB3CA34D | F14: 2026 | M14: J | N14: 2026-01-01 | P14: 2026 | Q14: N-Deposition | V14: 16.47899437 | W14: 16.47899437 | AT14: 66.84159569 | BD14: 16.47899437
B15: E3E62A81-8A20-A547-ADD4-0BCC4D4A1745 | C15: 3824690E-63AF-D74E-BD3F-81CAFB3CA34D | E15: 2010 | F15: 2026 | M15: W | N15: 2026-04-01 | O15: 2026-04-01 | P15: 2026 | R15: Schwein, Gülle | S15: 100 | V15: 44.48 | W15: 44.48 | Y15: 19.52 | Z15: 18.48 | AA15: 4.48 | AC15: 4.48 | AN15: 80 | AP15: Schleppschlauch, Einarbeitung nach 1 - 4 h | AQ15: 1 | AR15: 7 | AT15: 17.29181021 | BA15: |fm~100|ts~8|fix~0,172918102111754|c~40|n~5,75|p~2,44|k~2,31|ca~|mg~0,56|s~0,56|b~|zn~|cu~|mn~|na~|fe~|mo~|nh4~3,16|vd_dm~8 | BB15: |9~0,02|10~0,06|14~0,12|8~0,25|2~0,09|13~0,175|11~0,02|12~0,06|1~0,04 | BD15: 46 | BE15: 19.52 | BF15: 18.48 | BG15: 4.48 | BI15: 4.48 | BQ15: 80 | BW15: |fm_dm~100|bezug_dm~dt/ha
B16: 26C270FD-42DC-504B-B9A8-E9C27857CEC3 | C16: 3824690E-63AF-D74E-BD3F-81CAFB3CA34D | D16: 12 | F16: 2027 | M16: P | N16: 2026-09-15 | O16: 2027-07-20 | P16: 2027 | Q16: Marktfrucht | R16: Winterroggen | S16: 35 | V16: -62.79 | W16: -62.79 | Y16: -17.575 | Z16: -92.062 | AA16: -6.765 | AB16: -15.228 | AC16: -9.473 | AF16: -0.863 | AG16: -0.418 | AH16: -0.03 | AI16: -0.228 | AK16: -0.023 | AL16: -5.986 | AN16: -520 | AR16: 4 | AT16: 2.01214008 | AU16: 88.9928 | AV16: |fm~40|ts~86|fix~0,160581658442096|c~44|n~1,5|p~0,41|k~0,58|ca~0,04|mg~0,14|s~0,1|b~0,000811|zn~0,0039|cu~0,000509|mn~0,0037|na~0,00405|fe~0,0028|mo~ | AW16: |fa~1,3|ts~86|fix~2,34344685600629E-02|c~45|n~0,51|p~0,15|k~1,93|ca~0,36|mg~0,14|s~0,1|b~|zn~0,003|cu~0,0004|mn~0,008|na~0,15|fe~0,02|mo~ | AX16: |fa~0,261904761904762|ts~86|fix~2,34344685600629E-02|c~45|n~0,51|p~|k~|ca~|mg~|s~|b~|zn~|cu~|mn~|na~|fe~|mo~ | AY16: |fa~0,630666666666667|ts~100|fix~8,14251337302235E-02|c~40|n~0,9|p~|k~|ca~|mg~|s~|b~|zn~|cu~|mn~|na~|fe~|mo~ | AZ16: |ts~86|c~44|n~1,5|p~0,41|k~0,58|ca~0,04|mg~0,14|s~0,1|b~0,000811|zn~0,0039|cu~0,000509|mn~0,0037|na~0,00405|fe~0,0028|mo~ | BC16: |vd_fruh_koeff~|vd_grun_koeff~|vd_unter_koeff~|vd_sommer_koeff~|vd_winter_koeff~|vd_haupt_koeff~-520|vd_ernterest_koeff~100|vd_nebenproduktfaktor~1,3|vd_verbleib_haupt~2|vd_verbleib_haupt_koeff~|vd_spat_koeff~ | BD16: 2.32 | BE16: 0.635 | BF16: 0.898 | BG16: 0.155 | BH16: 0.062 | BI16: 0.217 | BJ16: 0.004 | BK16: 0.006 | BL16: 0.001 | BM16: 0.006 | BO16: 0.001 | BP16: 0.006 | BR16: Korn | BS16: Stroh | BV16: 1 | BW16: |sg_menge~180|hp_menge~35|hp_bezug~dt/ha|hp_verbleib~0|np_verbleib~0
B17: C8413BEF-7B65-794C-9BD8-084AF27E809E | C17: 3824690E-63AF-D74E-BD3F-81CAFB3CA34D | F17: 2027 | M17: J | N17: 2027-01-01 | P17: 2027 | Q17: N-Deposition | V17: 16.47899437 | W17: 16.47899437 | AT17: 66.84159569 | BD17: 16.47899437
B18: 0C2D9D53-905B-1B4D-8A57-E6E070388979 | C18: 3824690E-63AF-D74E-BD3F-81CAFB3CA34D | E18: 2003 | F18: 2027 | M18: W | N18: 2027-04-01 | O18: 2027-04-01 | P18: 2027 | R18: Rind, Mist, Rotte | S18: 100 | V18: 57 | W18: 57 | Y18: 12.74 | Z18: 72 | AA18: 8.06 | AB18: 51.5 | AC18: 10.14 | AG18: 0.611 | AH18: 0.041 | AI18: 0.238 | AJ18: 0.008 | AK18: 0.055 | AL18: 30.68 | AN18: 400 | AP18: Breitverteiler, Einarbeitung nach 1 - 4 h | AR18: 1 | AT18: 11.77940916 | BA18: |fm~100|ts~26|fix~0,11779409162351|c~39|n~2,35|p~0,49|k~2,77|ca~1,98|mg~0,39|s~0,31|b~0,0021|zn~0,00915|cu~0,00158|mn~0,0235|na~1,18|fe~|mo~0,00031|nh4~0,35|vd_dm~40 | BB18: |7~0,9|2~0,45|3~0,72|4~0,81|5~0,9|6~0,9|1~0,09 | BD18: 61.1 | BE18: 12.74 | BF18: 72 | BG18: 8.06 | BH18: 51.5 | BI18: 10.14 | BK18: 0.611 | BL18: 0.041 | BM18: 0.238 | BN18: 0.008 | BO18: 0.055 | BP18: 30.68 | BQ18: 400 | BW18: |fm_dm~100|bezug_dm~dt/ha
B19: A2221CAB-DA2D-2E47-B630-4BD10DF24D58 | C19: 876A76DD-6939-0246-8341-E96044C3DAAE | F19: 2023 | M19: J | N19: 2023-01-01 | P19: 2023 | Q19: N-Deposition | V19: 16.47899437 | W19: 16.47899437 | AT19: 66.84159569 | BD19: 16.47899437
B20: E7D0B49E-A5A4-7247-961D-E82256939E74 | C20: 876A76DD-6939-0246-8341-E96044C3DAAE | D20: 1002 | F20: 2024 | M20: P | N20: 2023-08-01 | O20: 2024-03-02 | P20: 2024 | Q20: Winterzwischenfrucht | R20: Ölrettich | S20: 150 | V20: 0.268 | W20: 0.268 | Y20: 0.075 | Z20: 0.076 | AA20: 0.038 | AB20: 0.025 | AC20: 0.023 | AF20: 0.005 | AG20: 0.001 | AL20: 0.023 | AN20: 320 | AR20: 9 | AT20: 13.57948926 | AU20: 78.70992063 | AV20: |fm~200|ts~15|fix~6,64893456660858E-02|c~45|n~2,47|p~0,35|k~2,53|ca~1,55|mg~0,22|s~0,4|b~|zn~|cu~|mn~|na~|fe~|mo~ | AW20: |fa~0|ts~|fix~|c~|n~|p~|k~|ca~|mg~|s~|b~|zn~|cu~|mn~|na~|fe~|mo~ | AX20: |fa~0,17636684303351|ts~15|fix~6,53764380391763E-02|c~46|n~2,47|p~0,35|k~2,53|ca~1,55|mg~0,22|s~0,4|b~|zn~|cu~|mn~|na~|fe~|mo~ | AY20: |fa~5,55555555555555E-02|ts~100|fix~0,225186241929403|c~40|n~1,6|p~|k~|ca~|mg~|s~|b~|zn~|cu~|mn~|na~|fe~|mo~ | AZ20: |ts~91|c~60|n~2,94|p~0,82|k~0,84|ca~0,28|mg~0,25|s~0,413|b~|zn~0,00515|cu~0,0001716|mn~0,0055308|na~0,25|fe~0,05214|mo~ | BC20: |vd_fruh_koeff~|vd_grun_koeff~|vd_unter_koeff~250|vd_sommer_koeff~100|vd_winter_koeff~140|vd_haupt_koeff~|vd_ernterest_koeff~|vd_nebenproduktfaktor~|vd_verbleib_haupt~1|vd_verbleib_haupt_koeff~12|vd_spat_koeff~ | BD20: 0.268 | BE20: 0.075 | BF20: 0.076 | BG20: 0.038 | BH20: 0.025 | BI20: 0.023 | BJ20: 0.005 | BK20: 0.001 | BP20: 0.023 | BQ20: 320 | BR20: Ganzpflanze | BS20: kein | BV20: 1 | BW20: |sg_menge~10|hp_menge~150|hp_bezug~dt/ha|hp_verbleib~100|np_verbleib~0
B21: DAC71EF2-E306-3749-8ABA-C7D8EE039064 | C21: 876A76DD-6939-0246-8341-E96044C3DAAE | F21: 2024 | M21: J | N21: 2024-01-01 | P21: 2024 | Q21: N-Deposition | V21: 16.47899437 | W21: 16.47899437 | AT21: 66.84159569 | BD21: 16.47899437
B22: 47C0313C-CE05-7747-AB2E-2ADF96E52603 | C22: 876A76DD-6939-0246-8341-E96044C3DAAE | E22: 1145 | F22: 2024 | M22: D | N22: 2024-03-01 | O22: 2024-03-01 | P22: 2024 | R22: Kali-Magnesia (30 % K2O, 10 % MgO) | S22: 18 | V22: 0 | Z22: 433 | AC22: 109 | BA22: |fm~10|ts~100|fix~|c~0|n~0|p~0|k~24,08|ca~0|mg~6,03|s~0|b~0|zn~0|cu~0|mn~0|na~0|fe~0|mo~0|nh4~0|vd_dm~0 | BF22: 433 | BI22: 109 | BW22: |fm_dm~18|bezug_dm~dt/ha
B23: 334D4F98-A4CB-A542-9803-C99B7F24BB3B | C23: 876A76DD-6939-0246-8341-E96044C3DAAE | D23: 56 | F23: 2024 | M23: P | N23: 2024-03-30 | O23: 2024-09-20 | P23: 2024 | Q23: Marktfrucht | R23: mittelfrühe und späte Kartoffeln | S23: 250 | V23: -72.27 | W23: -72.27 | Y23: -13.37 | Z23: -101.7 | AA23: -7.425 | AB23: -1.98 | AC23: -4.059 | AF23: -0.086 | AG23: -0.032 | AH23: -0.021 | AI23: -0.071 | AL23: -1.053 | AN23: -1240 | AQ23: 1 | AR23: 11 | AT23: 3.884612263 | AU23: 106.87 | AV23: |fm~300|ts~22|fix~4,29636043779997E-02|c~39|n~1,46|p~0,27|k~2,055|ca~0,04|mg~0,082|s~0,15|b~|zn~0,00144|cu~0,000411|mn~0,000662|na~0,0212|fe~0,00174|mo~ | AW23: |fa~0,2|ts~25|fix~4,89618579987438E-02|c~33|n~1,36|p~0,28|k~2|ca~|mg~0,52|s~0,2|b~|zn~|cu~|mn~|na~|fe~|mo~ | AX23: |fa~0|ts~|fix~|c~|n~|p~|k~|ca~|mg~|s~|b~|zn~|cu~|mn~|na~|fe~|mo~ | AY23: |fa~0,022|ts~100|fix~0,261185338732846|c~40|n~1,74|p~|k~|ca~|mg~|s~|b~|zn~|cu~|mn~|na~|fe~|mo~ | AZ23: |ts~22|c~39|n~1,46|p~0,27|k~2,055|ca~0,04|mg~0,082|s~0,15|b~|zn~0,00144|cu~0,000411|mn~0,000662|na~0,0212|fe~0,00174|mo~ | BC23: |vd_fruh_koeff~|vd_grun_koeff~|vd_unter_koeff~|vd_sommer_koeff~|vd_winter_koeff~|vd_haupt_koeff~-1240|vd_ernterest_koeff~|vd_nebenproduktfaktor~|vd_verbleib_haupt~2|vd_verbleib_haupt_koeff~|vd_spat_koeff~ | BD23: 8.03 | BE23: 1.48 | BF23: 11.3 | BG23: 0.825 | BH23: 0.22 | BI23: 0.451 | BJ23: 0.01 | BK23: 0.004 | BL23: 0.002 | BM23: 0.008 | BP23: 0.117 | BR23: Knolle | BS23: Kraut | BV23: 1 | BW23: |sg_menge~2500|hp_menge~250|hp_bezug~dt/ha|hp_verbleib~0|np_verbleib~100
B24: C5986127-4BF5-EF46-AF22-E0EE7921726E | C24: 876A76DD-6939-0246-8341-E96044C3DAAE | D24: 108 | F24: 2025 | M24: L | N24: 2024-09-30 | O24: 2025-08-29 | P24: 2025 | Q24: Marktfrucht | R24: Winterackerbohne | S24: 30 | V24: -30.30543346 | W24: -120.42 | X24: =getNFixierung(C24,AT19:AU27) -> 90.11456654 | Y24: -13.67 | Z24: -32.56 | AA24: -4.971 | AB24: -3.853 | AC24: -3.94 | AF24: -0.177 | AG24: -0.036 | AH24: -0.015 | AI24: -0.153 | AJ24: -0.006 | AK24: -0.039 | AL24: -0.698 | AN24: 160 | AQ24: 1 | AR24: 7 | AS24: 2 | AT24: 5.387259579 | AU24: 170.01495 | AV24: |fm~30|ts~86|fix~1,29670466693867|c~43|n~4,84|p~0,55|k~1,31|ca~0,155|mg~0,1585|s~0,2|b~0,00155|zn~0,00616|cu~0,00062|mn~0,00145|na~0,0281|fe~0,00715|mo~0,000225 | AW24: |fa~1|ts~86|fix~0,144673451157624|c~43|n~1,4|p~0,17|k~1,71|ca~|mg~0,19|s~0,16|b~|zn~|cu~|mn~|na~|fe~|mo~ | AX24: |fa~0,109289617486339|ts~86|fix~0,144673451157624|c~43|n~1,4|p~0,17|k~1,71|ca~|mg~0,19|s~0,16|b~|zn~|cu~|mn~|na~|fe~|mo~ | AY24: |fa~0,140983584|ts~100|fix~0,135409821886406|c~40|n~1,2|p~|k~|ca~|mg~|s~|b~|zn~|cu~|mn~|na~|fe~|mo~ | AZ24: |ts~86|c~43|n~4,84|p~0,55|k~1,31|ca~0,155|mg~0,1585|s~0,2|b~0,00155|zn~0,00616|cu~0,00062|mn~0,00145|na~0,0281|fe~0,00715|mo~0,000225 | BC24: |vd_fruh_koeff~|vd_grun_koeff~|vd_unter_koeff~|vd_sommer_koeff~|vd_winter_koeff~|vd_haupt_koeff~160|vd_ernterest_koeff~|vd_nebenproduktfaktor~|vd_verbleib_haupt~2|vd_verbleib_haupt_koeff~|vd_spat_koeff~ | BD24: 4.58 | BE24: 0.52 | BF24: 1.24 | BG24: 0.189 | BH24: 0.147 | BI24: 0.15 | BJ24: 0.007 | BK24: 0.001 | BL24: 0.001 | BM24: 0.006 | BO24: 0.001 | BP24: 0.027 | BQ24: 160 | BR24: Korn | BS24: Stroh | BV24: 1 | BW24: |sg_menge~110|hp_menge~30|hp_bezug~dt/ha|hp_verbleib~0|np_verbleib~100
B25: F35BAA88-3CFE-0E4E-B82E-39A08CBBD21E | C25: 876A76DD-6939-0246-8341-E96044C3DAAE | F25: 2025 | M25: J | N25: 2025-01-01 | P25: 2025 | Q25: N-Deposition | V25: 16.47899437 | W25: 16.47899437 | AT25: 66.84159569 | BD25: 16.47899437
B26: C84908BF-C0D2-904E-8334-A7748C012A25 | C26: 876A76DD-6939-0246-8341-E96044C3DAAE | D26: 10 | F26: 2026 | M26: P | N26: 2025-09-10 | O26: 2026-07-14 | P26: 2027 | Q26: Marktfrucht | R26: Wintergerste | S26: 40 | V26: -51.17 | W26: -51.17 | Y26: -13.536 | Z26: -18.989 | AA26: -3.965 | AB26: -1.258 | AC26: -4.627 | AF26: -0.092 | AG26: -0.069 | AH26: -0.018 | AI26: -0.092 | AL26: -0.594 | AN26: -80 | AR26: 6 | AT26: 2.845960101 | AU26: 94.31988571 | AV26: |fm~40|ts~86|fix~0,170166095986885|c~44|n~1,55|p~0,41|k~0,575|ca~0,038|mg~0,14|s~0,12|b~|zn~0,0028|cu~0,00055|mn~0,0021|na~0,018|fe~0,0028|mo~ | AW26: |fa~1,1|ts~86|fix~2,34344685600629E-02|c~45|n~0,51|p~0,15|k~1,64|ca~0,35|mg~0,14|s~0,1|b~|zn~0,004|cu~0,0006|mn~0,008|na~0,2|fe~0,02|mo~ | AX26: |fa~0,228571428571429|ts~86|fix~2,34344685600629E-02|c~45|n~0,51|p~|k~|ca~|mg~|s~|b~|zn~|cu~|mn~|na~|fe~|mo~ | AY26: |fa~0,491428571428571|ts~100|fix~8,14251337302235E-02|c~40|n~0,9|p~|k~|ca~|mg~|s~|b~|zn~|cu~|mn~|na~|fe~|mo~ | AZ26: |ts~86|c~44|n~1,55|p~0,41|k~0,575|ca~0,038|mg~0,14|s~0,12|b~|zn~0,0028|cu~0,00055|mn~0,0021|na~0,018|fe~0,0028|mo~ | BC26: |vd_fruh_koeff~|vd_grun_koeff~|vd_unter_koeff~|vd_sommer_koeff~|vd_winter_koeff~|vd_haupt_koeff~-520|vd_ernterest_koeff~100|vd_nebenproduktfaktor~1,1|vd_verbleib_haupt~2|vd_verbleib_haupt_koeff~|vd_spat_koeff~ | BD26: 2.13 | BE26: 0.564 | BF26: 0.791 | BG26: 0.165 | BH26: 0.052 | BI26: 0.193 | BJ26: 0.004 | BK26: 0.003 | BL26: 0.001 | BM26: 0.004 | BP26: 0.025 | BR26: Korn | BS26: Stroh | BV26: 1 | BW26: |sg_menge~160|hp_menge~40|hp_bezug~dt/ha|hp_verbleib~0|np_verbleib~100
B27: 3B6286B9-7A38-2647-AF7E-19311BCE04FF | C27: 876A76DD-6939-0246-8341-E96044C3DAAE | F27: 2026 | M27: J | N27: 2026-01-01 | P27: 2026 | Q27: N-Deposition | V27: 16.47899437 | W27: 16.47899437 | AT27: 66.84159569 | BD27: 16.47899437
B28: 995185D0-22FC-A74E-BEF1-E49B6CC135D0 | C28: 876A76DD-6939-0246-8341-E96044C3DAAE | E28: 2010 | F28: 2026 | M28: W | N28: 2026-04-01 | O28: 2026-04-01 | P28: 2026 | R28: Schwein, Gülle | S28: 100 | V28: 44.48 | W28: 44.48 | Y28: 19.52 | Z28: 18.48 | AA28: 4.48 | AC28: 4.48 | AN28: 80 | AP28: Schleppschlauch, Einarbeitung nach 1 - 4 h | AQ28: 1 | AR28: 7 | AT28: 17.29181021 | BA28: |fm~100|ts~8|fix~0,172918102111754|c~40|n~5,75|p~2,44|k~2,31|ca~|mg~0,56|s~0,56|b~|zn~|cu~|mn~|na~|fe~|mo~|nh4~3,16|vd_dm~8 | BB28: |9~0,02|10~0,06|14~0,12|8~0,25|2~0,09|13~0,175|11~0,02|12~0,06|1~0,04 | BD28: 46 | BE28: 19.52 | BF28: 18.48 | BG28: 4.48 | BI28: 4.48 | BQ28: 80 | BW28: |fm_dm~100|bezug_dm~dt/ha
B29: 4C9032C4-C51E-CB4C-AC87-431ABBB63FF3 | C29: 876A76DD-6939-0246-8341-E96044C3DAAE | D29: 12 | F29: 2027 | M29: P | N29: 2026-09-15 | O29: 2027-07-20 | P29: 2027 | Q29: Marktfrucht | R29: Winterroggen | S29: 35 | V29: -62.79 | W29: -62.79 | Y29: -17.575 | Z29: -92.062 | AA29: -6.765 | AB29: -15.228 | AC29: -9.473 | AF29: -0.863 | AG29: -0.418 | AH29: -0.03 | AI29: -0.228 | AK29: -0.023 | AL29: -5.986 | AN29: -520 | AR29: 4 | AT29: 2.01214008 | AU29: 88.9928 | AV29: |fm~40|ts~86|fix~0,160581658442096|c~44|n~1,5|p~0,41|k~0,58|ca~0,04|mg~0,14|s~0,1|b~0,000811|zn~0,0039|cu~0,000509|mn~0,0037|na~0,00405|fe~0,0028|mo~ | AW29: |fa~1,3|ts~86|fix~2,34344685600629E-02|c~45|n~0,51|p~0,15|k~1,93|ca~0,36|mg~0,14|s~0,1|b~|zn~0,003|cu~0,0004|mn~0,008|na~0,15|fe~0,02|mo~ | AX29: |fa~0,261904761904762|ts~86|fix~2,34344685600629E-02|c~45|n~0,51|p~|k~|ca~|mg~|s~|b~|zn~|cu~|mn~|na~|fe~|mo~ | AY29: |fa~0,630666666666667|ts~100|fix~8,14251337302235E-02|c~40|n~0,9|p~|k~|ca~|mg~|s~|b~|zn~|cu~|mn~|na~|fe~|mo~ | AZ29: |ts~86|c~44|n~1,5|p~0,41|k~0,58|ca~0,04|mg~0,14|s~0,1|b~0,000811|zn~0,0039|cu~0,000509|mn~0,0037|na~0,00405|fe~0,0028|mo~ | BC29: |vd_fruh_koeff~|vd_grun_koeff~|vd_unter_koeff~|vd_sommer_koeff~|vd_winter_koeff~|vd_haupt_koeff~-520|vd_ernterest_koeff~100|vd_nebenproduktfaktor~1,3|vd_verbleib_haupt~2|vd_verbleib_haupt_koeff~|vd_spat_koeff~ | BD29: 2.32 | BE29: 0.635 | BF29: 0.898 | BG29: 0.155 | BH29: 0.062 | BI29: 0.217 | BJ29: 0.004 | BK29: 0.006 | BL29: 0.001 | BM29: 0.006 | BO29: 0.001 | BP29: 0.006 | BR29: Korn | BS29: Stroh | BV29: 1 | BW29: |sg_menge~180|hp_menge~35|hp_bezug~dt/ha|hp_verbleib~0|np_verbleib~0
B30: F993D311-8B7D-6C49-B64C-1A63D3C2C05B | C30: 876A76DD-6939-0246-8341-E96044C3DAAE | F30: 2027 | M30: J | N30: 2027-01-01 | P30: 2027 | Q30: N-Deposition | V30: 16.47899437 | W30: 16.47899437 | AT30: 66.84159569 | BD30: 16.47899437
B31: 2A405E02-48D3-D242-845D-8BB6554ECA86 | C31: 876A76DD-6939-0246-8341-E96044C3DAAE | E31: 2003 | F31: 2027 | M31: W | N31: 2027-04-01 | O31: 2027-04-01 | P31: 2027 | R31: Rind, Mist, Rotte | S31: 100 | V31: 57 | W31: 57 | Y31: 12.74 | Z31: 72 | AA31: 8.06 | AB31: 51.5 | AC31: 10.14 | AG31: 0.611 | AH31: 0.041 | AI31: 0.238 | AJ31: 0.008 | AK31: 0.055 | AL31: 30.68 | AN31: 400 | AP31: Breitverteiler, Einarbeitung nach 1 - 4 h | AR31: 1 | AT31: 11.77940916 | BA31: |fm~100|ts~26|fix~0,11779409162351|c~39|n~2,35|p~0,49|k~2,77|ca~1,98|mg~0,39|s~0,31|b~0,0021|zn~0,00915|cu~0,00158|mn~0,0235|na~1,18|fe~|mo~0,00031|nh4~0,35|vd_dm~40 | BB31: |7~0,9|2~0,45|3~0,72|4~0,81|5~0,9|6~0,9|1~0,09 | BD31: 61.1 | BE31: 12.74 | BF31: 72 | BG31: 8.06 | BH31: 51.5 | BI31: 10.14 | BK31: 0.611 | BL31: 0.041 | BM31: 0.238 | BN31: 0.008 | BO31: 0.055 | BP31: 30.68 | BQ31: 400 | BW31: |fm_dm~100|bezug_dm~dt/ha

Sheet Eingabe_Massnahme (hidden)
A1: #H# | B1: #H# | C1: #H# | D1: #H# | E1: #H# | F1: #H# | G1: #H# | H1: 0.5 | I1: 1 | J1: 13 | K1: 1 | L1: 0.5 | M1: 15 | N1: 10 | O1: 0.5 | P1: 10 | Q1: 10 | R1: 10 | S1: 10 | T1: 10 | U1: 10 | V1: #H# | W1: 0.5 | X1: 10 | Y1: 10 | Z1: 10 | AA1: 10 | AB1: 10 | AC1: 10 | AD1: 10 | AE1: 0.5 | AF1: 10 | AG1: 0.5 | AH1: 0.5 | AI1: 12 | AJ1: 0.5 | AK1: 10 | AL1: #H# | AM1: #H# | AN1: #H# | AO1: #ENDE#
A2: #H# | B2: Eingabe_Massnahme | D2: Schlagdaten | M2: WAHR=hat Fehler (für bedingte Formatierung) | P2: Pflanzen | Q2: Dünger | R2: Teilprüfungen Pflanze (eine Ernte) | X2: Eingabeprüfungen
A3: #H# | B3: Liste_Massnahmen_1 | M3: Fehlerhaftes Datum | P3: =IF(Intern_Mass_Multi,NOT(AND(R5,S5)),NOT(AND(R3,S3))) -> FALSE | Q3: =NOT(AND(COUNT(Q74,S74)=2,YEAR(Q74)<=S74)) -> TRUE | R3: =COUNT(Q15,S15,U15)=3 -> FALSE | X3: Datum | Y3: =getAdr(Q15,S15,Q22,N30:N41,Q74) -> |$Q$15|$S$15|$Q$22|$N$30:$N$41|$Q$74
A4: #H# | M4: Fehlerhafte Menge | P4: =IF(Intern_Mass_Multi=FALSE,D46<=0,FALSE) -> FALSE | Q4: =NOT(COUNT(P77)=1) -> TRUE | R4: Teilprüfungen Pflanze (mehrfach) | X4: Positiv | Y4: =getAdr(U15,P18,P19)&getAdr(Intern_Mass_AnzSchnitte,U22,P30:P41,R30:R41)&getAdr(P77,S74)&getAdr(AF15,AF22) -> |$U$15|$P$18|$P$19|$Q$28|$U$22|$P$30:$P$41|$R$30:$R$41|$P$77|$S$74|$AF$15|$AF$22
A5: #H# | B5: Zuweisungen | D5: Pflanze | E5: Leguminose | F5: Dünger | G5: Wirtschaftsdünger | J5: MehrmalErnte | M5: Fehler DropDown | P5: =ISERROR(X44) -> FALSE | Q5: =IF(Intern_Mass_W=TRUE,ISERROR(N83),FALSE) -> FALSE | R5: =COUNT(Q22,S22,U22)=3 -> TRUE | S5: =IF(COUNT(Q22,S22,U22)=3,AND(S22>Q22,YEAR(Q22)<=U22),TRUE) -> TRUE | X5: Druckbereich | Y5: =getAdr(M10:AF97)&"|$1:$13" -> |$M$10:$AF$97|$1:$13
A6: #H# | B6: C:art_mass | C6: M | D6: =OR(Intern_Mass_Art="P",Intern_Mass_Art="L",Intern_Mass_Art="M") -> TRUE | E6: =G10>0 -> TRUE | F6: =Intern_Mass_Art="D" -> FALSE | G6: =Intern_Mass_Art="W" -> FALSE | J6: =E8=2 -> TRUE | M6: Fehler Menge2 | P6: =IF(Intern_Mass_Multi,COUNTIF(C30:C41,TRUE) > 0,FALSE) -> FALSE | Q6: =IF(Q77="",TRUE,FALSE) -> TRUE | X6: Prozent | Y6: =getAdr(R19,R20,R30:R41) -> |$R$19|$R$20|$R$30:$R$41 | AL6: Kontrolle Werte N-Fixierung
A7: #H# | B7: C:id_mass|F:id_schlag | C7: E287080E-1F25-0A4B-B917-CDE8BDCB2B7B | F7: 3824690E-63AF-D74E-BD3F-81CAFB3CA34D | G7: 5
A8: =ZeileFlach -> 14 | B8: C:id_pflanze|E:erntesystem | C8: 39 | D8: Erntesystem | E8: 2 | F8: ha-Bezug | G8: =1/Intern_Mass_haSchlag -> 0.2
A9: =ZeileAbstand -> 5 | B9: C:id_duenger
A10: =ZeileTitel -> 22 | B10: =getZuweis("",G10,"leguminose")&getZuweis("|",P10,"bezeich_mass") -> G:leguminose|P:bezeich_mass | D10: Fehler_haupt | E10: Fehler_Spuren | G10: 1 | J10: Auswahl | M10: =IF(Intern_Mass_L,"Leguminose",IF(Intern_Mass_P,"Pflanze",""))&IF(Intern_Mass_D,"Düngemittel","")&IF(Intern_Mass_W,"Wirtschaftsdünger","") -> Leguminose | P10: Kleegras (50:50) | AI10: Löschen
A11: =ZeileAbstand -> 5 | B11: ="clear"&getAdr(Q15,S15,U15,AF15)&getAdr(Y17,P18,P19,R19,R20)&getAdr(D51,D52,D54,D55)&getAdr(D59,D53,Y15) -> clear|$Q$15|$S$15|$U$15|$AF$15|$Y$17|$P$18|$P$19|$R$19|$R$20|$D$51|$D$52|$D$54|$D$55|$D$59|$D$53|$Y$15
A12: =ZeileNormal -> 17 | B12: =getZuweis("save|",C12,"jahr_mass")&getZuweis("|",D12,"fehler_haupt")&getZuweis("|",E12,"fehler_spuren") -> save|C:jahr_mass|D:fehler_haupt|E:fehler_spuren | C12: =IF(Intern_Mass_P,IF(Intern_Mass_Multi,G22,G15),IF(OR(Intern_Mass_D,Intern_Mass_W),G74,0)) -> 2022 | D12: =IF(Intern_Mass_hat_sg,COUNTIF(P56:U56,TRUE),0) + IF(Intern_Mass_hat_hp,COUNTIF(P57:U57,TRUE),0) + IF(Intern_Mass_hat_np,COUNTIF(P58:U58,TRUE),0) + IF(Intern_Mass_hat_dm,COUNTIF(P87:U87,TRUE),0) -> 2 | E12: =IF(Intern_Mass_hat_sg,COUNTIF(X56:AE56,TRUE),0) + IF(Intern_Mass_hat_hp,COUNTIF(X57:AE57,TRUE),0) + IF(Intern_Mass_hat_np,COUNTIF(X58:AE58,TRUE),0) + IF(Intern_Mass_hat_dm,COUNTIF(X87:AE87,TRUE),0) -> 9 | F12: Blanksaat? | G12: =strContains(IF(Intern_Mass_Multi,Intern_Mass_Fruchtfolge2,Intern_Mass_Fruchtfolge1),"saat") -> TRUE | J12: Abbrechen | AI12: ? Hilfe
A13: =ZeileAbstand -> 5
A14: =IF(Intern_Mass_P,ZeileAbstand,"#H#") -> 5
A15: =IF(AND(Intern_Mass_P,Intern_Mass_Multi=FALSE),ZeileNormal,"#H#") -> #H# | B15: =getZuweis("PL>>",Q15,"dat1_mass")&getZuweis("|",S15,"dat2_mass")&getZuweis("|",U15,"jahrbezug_mass")&getZuweis("|",Y15,"fruchtfolge_mass")& getZuweis("|",AF15,"ein[anzfruchtjahre]") -> PL>>Q:dat1_mass|S:dat2_mass|U:jahrbezug_mass|Y:fruchtfolge_mass|AF:ein[anzfruchtjahre] | F15: Jahr | G15: =IF(ISNUMBER(S15),YEAR(S15),IF(ISNUMBER(Q15),YEAR(Q15),0)) -> 0 | J15: Speichern | M15: Kulturzeitraum | P15: Aussaat am | R15: Ernte am | T15: Erntejahr | X15: Fruchtfolge | AD15: Anzahl Hauptnutzungsjahre | AM15: N-Boden | AN15: N-Pflanze
A16: =IF(AND(Intern_Mass_P,Intern_Mass_Multi=FALSE),ZeileAbstand,"#H#") -> #H#
A17: =IF(AND(Intern_Mass_P,Intern_Mass_Multi=FALSE),ZeileNormal,"#H#") -> #H# | B17: =getZuweis("PL>>",Y17,"notiz_mass") -> PL>>Y:notiz_mass | M17: Biomasse | P17: Frischmasse | R17: Verbleib | T17: Trockenmasse | X17: Notiz | AL17: Summe | AM17: =AM24 -> 38.56394037 | AN17: =AN24 -> 503.8
A18: =IF(AND(Intern_Mass_P,Intern_Mass_hat_sg,Intern_Mass_Multi=FALSE),ZeileNormal,"#H#") -> #H# | B18: =getZuweis("PL>>",P18,"ein[sg_menge]")& getZuweis("PL>>",Q18,"ein[sg_bezug]") -> PL>>P:ein[sg_menge]PL>>Q:ein[sg_bezug] | M18: Saatgut | Q18: kg/ha | T18: =IF(M45>0,TEXT(M45,"#.###"),"") ->  | U18: kg/ha | AL18: Hauptpro | AM18: =AM28 -> 0 | AN18: 258.5
A19: =IF(AND(Intern_Mass_P,Intern_Mass_Multi=FALSE),ZeileNormal,"#H#") -> #H# | B19: =getZuweis("PL>>",C21,"bezeich_hp") & getZuweis("|",P19,"ein[hp_menge]") & getZuweis("|",P19,"fm_hp") & getZuweis("|",Q19,"ein[hp_bezug]") & getZuweis("|",R19,"ein[hp_verbleib]") -> PL>>C:bezeich_hp|P:ein[hp_menge]|P:fm_hp|Q:ein[hp_bezug]|R:ein[hp_verbleib] | C19: Korn | M19: =IF(TRIM(C21)="","Hauptprodukt",C21) -> Ganzpflanze | Q19: dt/ha | R19: 0 | S19: % Anteil | T19: =IF(M46>0,TEXT(M46,"#.##0"),"") -> 11.000 | U19: kg/ha | AL19: Nebenpro | AM19: 0 | AN19: 0
A20: =IF(AND(Intern_Mass_P,Intern_Mass_hat_np,Intern_Mass_Multi=FALSE),ZeileNormal,"#H#") -> #H# | B20: =getZuweis("PL>>",R20,"ein[np_verbleib]") -> PL>>R:ein[np_verbleib] | M20: =IF(TRIM(D21)="","Nebenprodukt",D21) -> kein | P20: =IF(COUNT(M53)=1,P19*M53,"") -> 0 | Q20: =Q19 -> dt/ha | R20: 0 | S20: % Anteil | T20: =IF(M47>0,TEXT(M47,"#.##0"),"") ->  | U20: kg/ha | AL20: Wurzel | AM20: 29.3168163 | AN20: 193.6
A21: #H# | B21: =getZuweis("PLM>>",C21,"bezeich_hp") & getZuweis("|",D21,"bezeich_np") -> PLM>>C:bezeich_hp|D:bezeich_np | C21: Ganzpflanze | D21: kein | AL21: Stoppel | AM21: 9.247124069 | AN21: 51.7
A22: =IF(AND(Intern_Mass_P,Intern_Mass_Multi),ZeileNormal,"#H#") -> 17 | B22: =getZuweis("M>>",Q22,"dat1_mass")&getZuweis("|",U22,"jahrbezug_mass")&getZuweis("|",Y22,"fruchtfolge_mass")& getZuweis("|",AF22,"ein[anzfruchtjahre]") -> M>>Q:dat1_mass|U:jahrbezug_mass|Y:fruchtfolge_mass|AF:ein[anzfruchtjahre] | F22: Jahr | G22: =IF(ISNUMBER(S22),YEAR(S22),IF(ISNUMBER(Q22),YEAR(Q22),0)) -> 2022 | J22: Speichern | M22: Kulturzeitraum | P22: Aussaat am | Q22: 2021-03-05 | R22: Ernte am | S22: =MAX(N30:N41) -> 2022-09-15 | T22: Erntejahr | U22: 2021 | X22: Fruchtfolge | Y22: Futterbau (Frühjahrblanksaat) | AD22: Anzahl Hauptnutzungsjahre | AF22: 2 | AM22: N-Boden | AN22: N-Pflanze
A23: =IF(AND(Intern_Mass_P,Intern_Mass_Multi),ZeileAbstand,"#H#") -> 5
A24: =IF(AND(Intern_Mass_P,Intern_Mass_Multi),ZeileNormal,"#H#") -> 17 | B24: =getZuweis("M>>",Y24,"notiz_mass") -> M>>Y:notiz_mass | F24: Format Jahre | G24: =strContains(Intern_Mass_Fruchtfolge2,"blanksaat") -> TRUE | X24: Notiz | AL24: Summe | AM24: =R45 -> 38.56394037 | AN24: =S45 -> 503.8
A25: =IF(AND(Intern_Mass_P,Intern_Mass_hat_sg,Intern_Mass_Multi),ZeileNormal,"#H#") -> 17 | B25: ="clear"&getAdr(Q22,U22,P26,Intern_Mass_AnzSchnitte)&getAdr(N30:N41,P30:P41,S3,Intern_Mass_Fruchtfolge2)&getAdr(D65,D66,D68,D69,Intern_Mass_NutzJahre2)&getAdr(D73,D67,R30:R41)&getAdr(Y17,Y24,U74) -> clear|$Q$22|$U$22|$P$26|$Q$28|$N$30:$N$41|$P$30:$P$41|$S$3|$Y$22|$D$65|$D$66|$D$68|$D$69|$AF$22|$D$73|$D$67|$R$30:$R$41|$Y$17|$Y$24|$U$74 | P25: Frischmasse
A26: =IF(AND(Intern_Mass_P,Intern_Mass_hat_sg,Intern_Mass_Multi),ZeileNormal,"#H#") -> 17 | B26: =getZuweis("M>>",P26,"ein[sg_menge]")& getZuweis("|",Q26,"ein[sg_bezug]") -> M>>P:ein[sg_menge]|Q:ein[sg_bezug] | M26: Saatgut | P26: 25 | Q26: kg/ha
A27: =IF(AND(Intern_Mass_P,Intern_Mass_Multi),ZeileAbstand,"#H#") -> 5 | B27: =getZuweis("M>>save|",C27,"dat2_mass") -> M>>save|C:dat2_mass | C27: =S22 -> 2022-09-15
A28: 17 | B28: =getZuweis("M>>",Q28,"ein[anzschnitt]") -> M>>Q:ein[anzschnitt] | D28: Werte N-Fixierung | F28: Frischmasse | M28: Erntetermine | P28: Anzahl Termine | Q28: 5 | AL28: Hauptpro | AM28: =R46 -> 0 | AN28: 258.5
A29: 17 | C29: Fehlerprüfung | D29: N-Boden | E29: Abzug Pflanze | F29: Verbleib dt/ha | G29: NrSchnitt | N29: Datum | P29: Frischmasse | R29: Verbleib | T29: Trockenmasse | AL29: Nebenpro | AM29: 0 | AN29: 0
A30: =IF(AND(Intern_Mass_P,Intern_Mass_Multi),ZeileNormal,"#H#") -> 17 | B30: =getZuweis("M>>",N30,"ein[dat" & G30 &"]") & getZuweis("|",P30,"ein[fm"& G30 &"]")& getZuweis("|",Q30,"ein[bezug"& G30 &"]")& getZuweis("|",R30,"ein[ver"& G30 &"]") -> M>>N:ein[dat1]|P:ein[fm1]|Q:ein[bezug1]|R:ein[ver1] | C30: =OR(COUNT(N30)=0,N30<Q22,COUNT(P30)=0) -> FALSE | D30: =IF(G30=Intern_Mass_AnzSchnitte,P30*R30/100,0) -> 0 | E30: =IF(G30<Intern_Mass_AnzSchnitte,P30*getMassHaFaktor(Q30)*R30/100,0) -> 0 | F30: =P30*R30/100*getMassHaFaktor(Q30) -> 0 | G30: 1 | M30: =G30&". Schnitt" -> 1. Schnitt | N30: 2021-07-01 | P30: 100 | Q30: dt/ha | R30: 0 | S30: % Anteil | T30: =TEXT(F30*$N$52,"#.##0") -> 0 | U30: kg/ha | AL30: Wurzel | AM30: 29.3168163 | AN30: 193.6
A31: =IF(AND(Intern_Mass_P,Intern_Mass_Multi,G31<=Intern_Mass_AnzSchnitte),ZeileNormal,"#H#") -> 17 | B31: =getZuweis("M>>",N31,"ein[dat" & G31 &"]") & getZuweis("|",P31,"ein[fm"& G31 &"]")& getZuweis("|",R31,"ein[ver"& G31 &"]") -> M>>N:ein[dat2]|P:ein[fm2]|R:ein[ver2] | C31: =IF(AND(Intern_Mass_AnzSchnitte>0,G31<=Intern_Mass_AnzSchnitte),OR(COUNT(N31)=0,N31<=N30,COUNT(P31)=0),FALSE) -> FALSE | D31: 0 | E31: =IF(G31<Intern_Mass_AnzSchnitte,P31*getMassHaFaktor(Q31)*R31/100,0) -> 0 | F31: =P31*R31/100*getMassHaFaktor(Q31) -> 0 | G31: 2 | M31: =G31&". Schnitt" -> 2. Schnitt | N31: 2021-09-15 | P31: 100 | Q31: =Q30 -> dt/ha | R31: 0 | S31: % Anteil | T31: =IF(N31>0,TEXT(F31*$N$52,"#.##0"),"") -> 0 | U31: =IF(N31>0,"kg/ha","") -> kg/ha | AL31: Stoppel | AM31: 9.247124069 | AN31: 51.7
A32: 17 | B32: =getZuweis("M>>",N32,"ein[dat" & G32 &"]") & getZuweis("|",P32,"ein[fm"& G32 &"]")& getZuweis("|",R32,"ein[ver"& G32 &"]") -> M>>N:ein[dat3]|P:ein[fm3]|R:ein[ver3] | C32: FALSE | D32: 0 | E32: =IF(G32<Intern_Mass_AnzSchnitte,P32*getMassHaFaktor(Q32)*R32/100,0) -> 0 | F32: =P32*R32/100*getMassHaFaktor(Q32) -> 0 | G32: 3 | M32: 3. Schnitt | N32: 2022-04-01 | P32: 100 | Q32: dt/ha | R32: 0 | S32: % Anteil | T32: 0 | U32: kg/ha
A33: 17 | B33: =getZuweis("M>>",N33,"ein[dat" & G33 &"]") & getZuweis("|",P33,"ein[fm"& G33 &"]")& getZuweis("|",R33,"ein[ver"& G33 &"]") -> M>>N:ein[dat4]|P:ein[fm4]|R:ein[ver4] | C33: FALSE | D33: 0 | E33: =IF(G33<Intern_Mass_AnzSchnitte,P33*getMassHaFaktor(Q33)*R33/100,0) -> 0 | F33: =P33*R33/100*getMassHaFaktor(Q33) -> 0 | G33: 4 | M33: 4. Schnitt | N33: 2022-06-20 | P33: 100 | Q33: dt/ha | R33: 0 | S33: % Anteil | T33: 0 | U33: kg/ha
A34: 17 | B34: =getZuweis("M>>",N34,"ein[dat" & G34 &"]") & getZuweis("|",P34,"ein[fm"& G34 &"]")& getZuweis("|",R34,"ein[ver"& G34 &"]") -> M>>N:ein[dat5]|P:ein[fm5]|R:ein[ver5] | C34: FALSE | D34: 0 | E34: =IF(G34<Intern_Mass_AnzSchnitte,P34*getMassHaFaktor(Q34)*R34/100,0) -> 0 | F34: =P34*R34/100*getMassHaFaktor(Q34) -> 0 | G34: 5 | M34: 5. Schnitt | N34: 2022-09-15 | P34: 150 | Q34: dt/ha | R34: 0 | S34: % Anteil | T34: 0 | U34: kg/ha
A35: #H# | B35: =getZuweis("M>>",N35,"ein[dat" & G35 &"]") & getZuweis("|",P35,"ein[fm"& G35 &"]")& getZuweis("|",R35,"ein[ver"& G35 &"]") -> M>>N:ein[dat6]|P:ein[fm6]|R:ein[ver6] | C35: FALSE | D35: 0 | E35: =IF(G35<Intern_Mass_AnzSchnitte,P35*getMassHaFaktor(Q35)*R35/100,0) -> 0 | F35: =P35*R35/100*getMassHaFaktor(Q35) -> 0 | G35: 6 | M35: 6. Schnitt | Q35: dt/ha | R35: 0 | S35: % Anteil
A36: #H# | B36: =getZuweis("M>>",N36,"ein[dat" & G36 &"]") & getZuweis("|",P36,"ein[fm"& G36 &"]")& getZuweis("|",R36,"ein[ver"& G36 &"]") -> M>>N:ein[dat7]|P:ein[fm7]|R:ein[ver7] | C36: FALSE | D36: 0 | E36: =IF(G36<Intern_Mass_AnzSchnitte,P36*getMassHaFaktor(Q36)*R36/100,0) -> 0 | F36: =P36*R36/100*getMassHaFaktor(Q36) -> 0 | G36: 7 | M36: 7. Schnitt | Q36: dt/ha | R36: 0 | S36: % Anteil
A37: #H# | B37: =getZuweis("M>>",N37,"ein[dat" & G37 &"]") & getZuweis("|",P37,"ein[fm"& G37 &"]")& getZuweis("|",R37,"ein[ver"& G37 &"]") -> M>>N:ein[dat8]|P:ein[fm8]|R:ein[ver8] | C37: FALSE | D37: 0 | E37: =IF(G37<Intern_Mass_AnzSchnitte,P37*getMassHaFaktor(Q37)*R37/100,0) -> 0 | F37: =P37*R37/100*getMassHaFaktor(Q37) -> 0 | G37: 8 | M37: 8. Schnitt | Q37: dt/ha | R37: 0 | S37: % Anteil
A38: #H# | B38: =getZuweis("M>>",N38,"ein[dat" & G38 &"]") & getZuweis("|",P38,"ein[fm"& G38 &"]")& getZuweis("|",R38,"ein[ver"& G38 &"]") -> M>>N:ein[dat9]|P:ein[fm9]|R:ein[ver9] | C38: FALSE | D38: 0 | E38: =IF(G38<Intern_Mass_AnzSchnitte,P38*getMassHaFaktor(Q38)*R38/100,0) -> 0 | F38: =P38*R38/100*getMassHaFaktor(Q38) -> 0 | G38: 9 | M38: 9. Schnitt | Q38: dt/ha | R38: 0 | S38: % Anteil
A39: #H# | B39: =getZuweis("M>>",N39,"ein[dat" & G39 &"]") & getZuweis("|",P39,"ein[fm"& G39 &"]")& getZuweis("|",R39,"ein[ver"& G39 &"]") -> M>>N:ein[dat10]|P:ein[fm10]|R:ein[ver10] | C39: FALSE | D39: 0 | E39: =IF(G39<Intern_Mass_AnzSchnitte,P39*getMassHaFaktor(Q39)*R39/100,0) -> 0 | F39: =P39*R39/100*getMassHaFaktor(Q39) -> 0 | G39: 10 | M39: 10. Schnitt | Q39: dt/ha | R39: 0 | S39: % Anteil
A40: #H# | B40: =getZuweis("M>>",N40,"ein[dat" & G40 &"]") & getZuweis("|",P40,"ein[fm"& G40 &"]")& getZuweis("|",R40,"ein[ver"& G40 &"]") -> M>>N:ein[dat11]|P:ein[fm11]|R:ein[ver11] | C40: FALSE | D40: 0 | E40: =IF(G40<Intern_Mass_AnzSchnitte,P40*getMassHaFaktor(Q40)*R40/100,0) -> 0 | F40: =P40*R40/100*getMassHaFaktor(Q40) -> 0 | G40: 11 | M40: 11. Schnitt | Q40: dt/ha | R40: 0 | S40: % Anteil
A41: #H# | B41: =getZuweis("M>>",N41,"ein[dat" & G41 &"]") & getZuweis("|",P41,"ein[fm"& G41 &"]")& getZuweis("|",R41,"ein[ver"& G41 &"]") -> M>>N:ein[dat12]|P:ein[fm12]|R:ein[ver12] | C41: FALSE | D41: 0 | E41: =IF(G41<Intern_Mass_AnzSchnitte,P41*getMassHaFaktor(Q41)*R41/100,0) -> 0 | F41: =P41*R41/100*getMassHaFaktor(Q41) -> 0 | G41: 12 | M41: 12. Schnitt | Q41: dt/ha | R41: 0 | S41: % Anteil
A42: 17 | D42: Abzug | E42: =IF(Intern_Mass_Multi,SUM(E30:E41),0) -> 0 | F42: dt/ha
A43: #H# | D43: Frischsubstanz kg/ha | G43: Trockensubstanz kg/ha | P43: Berechnung Werte für N-Fixierung | U43: Berechung der Humusbilanz | Z43: ggf. Hauptnutzung addieren
A44: #H# | D44: Pflanze | E44: Verbleib | F44: Abfuhr | G44: Pflanze | J44: Verbleib | M44: Abfuhr | Q44: fix (gegen FM) | R44: N-Boden | S44: N-Pflanze | T44: Selbst-Düng | U44: Statisch | V44: Koeff | X44: =VLOOKUP(IF(Intern_Mass_Art="M",Y22,Y15),Intern_Infos_Fruchtfolge,2,FALSE) -> vd_fruh_koeff | Y44: =IF(ISNUMBER(getParaWert(Intern_Mass_ParaVD,X44)),getParaWert(Intern_Mass_ParaVD,X44),0) -> 400 | Z44: vd_haupt_koeff | AA44: =IF(ISNUMBER(getParaWert(Intern_Mass_ParaVD,Z44)),getParaWert(Intern_Mass_ParaVD,Z44),0) -> 600 | AB44: =IF(ISERROR(X44),0,Y44+IF(strContains("vd_fruh_koeff;vd_spat_koeff;vd_unter_koeff",X44),((AF15+AF22)*AA44),0))+IF(X48=1,E46/1000*Y48,0) -> 1600
A45: #H# | B45: =getZuweis("PLM>>save|",R45,"nboden_mass")&getZuweis("|",S45,"npflanze_mass") -> PLM>>save|R:nboden_mass|S:npflanze_mass | C45: Saatgut | D45: =IF(Intern_Mass_Multi=FALSE,P18*getMassHaFaktor(Q18),P26*getMassHaFaktor(Q26)) -> 25 | E45: =D45 -> 25 | G45: =IF(Intern_Mass_hat_sg,D45*N51/100,0) -> 22.75 | J45: =IF(Intern_Mass_hat_sg,E45*N51/100,0) -> 22.75 | M45: =G45-J45 -> 0 | N45: FS dt/ha | P45: Summe | R45: =SUM(R46:R49) -> 38.56394037 | S45: =SUM(S46:S49) -> 503.8 | T45: Abzug | U45: Dynamisch | V45: Verbleib % | X45: npFaktor | Y45: Menge Rest
A46: #H# | B46: =getZuweis("PLM>>save|",N46,"fm_mass") -> PLM>>save|N:fm_mass | C46: Hauptpro | D46: =IF(Intern_Mass_Multi,SUM(P30:P41)*getMassHaFaktor(Q30)*100,P19*getMassHaFaktor(Q19)*100) -> 55000 | E46: =IF(Intern_Mass_Multi,SUM(F30:F41)*100,D46*R19/100) -> 0 | F46: =(E46-D46)*-1 -> 55000 | G46: =IF(Intern_Mass_hat_hp,D46*N52/100,0) -> 11000 | J46: =IF(Intern_Mass_hat_hp,E46*N52/100,0) -> 0 | M46: =G46-J46 -> 11000 | N46: =D46/100 -> 550 | P46: Hauptpro | Q46: =getParaWert(D52,"fix") -> 0.08406476426 | R46: =IF(COUNT(Q46,E46)=2,Q46/100*E46,0) -> 0 | S46: =(G46*P52/100)-T46 -> 258.5 | T46: =Intern_Mass_MultiAbzug*Q46 -> 0 | V46: =E47/D47 ->  | X46: =IF(ISNUMBER(getParaWert(Intern_Mass_ParaVD,"vd_nebenproduktfaktor")),getParaWert(Intern_Mass_ParaVD,"vd_nebenproduktfaktor"),0) -> 0 | Y46: =D46/1000*V46*X46 ->  | AB46: =VLOOKUP(Y15,Intern_Infos_Fruchtfolge,2,FALSE) -> 
A47: #H# | C47: Nebenpro | D47: =D46*M53 -> 0 | E47: =D47*R20/100 -> 0 | F47: =(E47-D47)*-1 -> 0 | G47: =IF(Intern_Mass_hat_np, D47*N53/100,0) -> 0 | J47: =IF(Intern_Mass_hat_np,E47*N53/100,0) -> 0 | M47: 0 | P47: Nebenpro | Q47: =getParaWert(D53,"fix") ->  | R47: =IF(COUNT(Q47,E47)=2,Q47/100*E47,0) -> 0 | S47: =IF(COUNT(G47,P53)=2,G47*P53/100,0) -> 0 | V47: Rest_Koeff | X47: =IF(X44="vd_haupt_koeff",getParaWert(Intern_Mass_ParaVD,"vd_ernterest_koeff"),0) -> 0 | Y47: =IF(COUNT(X47,Y46)=2,Y46*X47,0) -> 0
A48: #H# | C48: Wurzel | D48: =D46*M54 -> 11000 | E48: =D48 -> 11000 | F48: =(E48-D48)*-1 -> 0 | G48: =IF(E54=TRUE,D48*N54/100,0) -> 11000 | J48: =IF(E54=TRUE,E48*N54/100,0) -> 11000 | M48: 0 | P48: Wurzel | Q48: =getParaWert(D54,"fix") -> 0.2665165118 | R48: =IF(COUNT(Q48,E48)=2,Q48/100*E48,0) -> 29.3168163 | S48: =IF(COUNT(G48,P54)=2,G48*P54/100,0) -> 193.6 | V48: HP Verbleib | X48: =getParaWert(Intern_Mass_ParaVD,"vd_verbleib_haupt") -> 1 | Y48: =getParaWert(Intern_Mass_ParaVD,"vd_verbleib_haupt_koeff") -> 16
A49: #H# | C49: Stoppel | D49: =IF(E55=TRUE,D46*M55,0) -> 11000 | E49: =D49 -> 11000 | F49: =(E49-D49)*-1 -> 0 | G49: =IF(E55=TRUE,D49*N55/100,0) -> 2200 | J49: =E49*N55/100 -> 2200 | M49: 0 | P49: Stoppel | Q49: =getParaWert(D55,"fix") -> 0.08406476426 | R49: =IF(COUNT(Q49,E49)=2,Q49/100*E49,0) -> 9.247124069 | S49: =IF(COUNT(G49,P55)=2,G49*P55/100,0) -> 51.7
A50: #H# | E50: vorhanden | M50: fa | N50: ts | P50: =SUBSTITUTE(SUBSTITUTE(P62,"[",""),"]","") -> N | Q50: =SUBSTITUTE(SUBSTITUTE(Q62,"[",""),"]","") -> P | R50: K | S50: S | T50: Ca | U50: Mg | X50: =SUBSTITUTE(SUBSTITUTE(X62,"[",""),"]","") -> Fe | Y50: =SUBSTITUTE(SUBSTITUTE(Y62,"[",""),"]","") -> Mn | Z50: Cu | AA50: Zn | AB50: Mo | AC50: B | AD50: Na
A51: #H# | B51: =getZuweis("PLM>>",D51,"para_sg") -> PLM>>D:para_sg | C51: Saatgut | D51: |ts~91|c~44|n~4,30104778941988|p~0,532036800408893|k~0,811334014822387|ca~|mg~0,148313314592384|s~|b~|zn~|cu~|mn~|na~|fe~|mo~ | E51: =AND(COUNT(N51)=1,N51>0) -> TRUE | M51: =getParaWert($D51,M$50) ->  | N51: =getParaWert($D51,N$50) -> 91 | P51: =getParaWert($D51,P$50) -> 4.301047789 | Q51: =getParaWert($D51,Q$50) -> 0.5320368004 | R51: =getParaWert($D51,R$50) -> 0.8113340148 | S51: =getParaWert($D51,S$50) ->  | T51: =getParaWert($D51,T$50) ->  | U51: =getParaWert($D51,U$50) -> 0.1483133146 | V51: =getParaWert($D51,V$50) ->  | X51: =getParaWert($D51,X$50) ->  | Y51: =getParaWert($D51,Y$50) ->  | Z51: =getParaWert($D51,Z$50) ->  | AA51: =getParaWert($D51,AA$50) ->  | AB51: =getParaWert($D51,AB$50) ->  | AC51: =getParaWert($D51,AC$50) ->  | AD51: =getParaWert($D51,AD$50) ->  | PC51: |ts~86|c~44|n~2,036|p~0,41|k~0,58|ca~0,047|mg~0,1325|s~0,13|b~0,00053|zn~0,003|cu~0,0005|mn~0,00355|na~0,0072|fe~0,0034|mo~
A52: #H# | B52: =getZuweis("PLM>>",D52,"para_hp") -> PLM>>D:para_hp | C52: Hauptpro | D52: |fm~300|ts~20|fix~8,40647642601122E-02|c~43|n~2,35|p~0,3|k~2,6|ca~1|mg~0,3|s~0,2|b~|zn~4,94444444444444E-03|cu~8,66666666666667E-04|mn~6,27777777777778E-03|na~3,77777777777778E-02|fe~0,02|mo~ | E52: =AND(COUNT(N52)=1,N52>0) -> TRUE | M52: =getParaWert($D52,M$50) ->  | N52: =getParaWert($D52,N$50) -> 20 | P52: =getParaWert($D52,P$50) -> 2.35 | Q52: =getParaWert($D52,Q$50) -> 0.3 | R52: =getParaWert($D52,R$50) -> 2.6 | S52: =getParaWert($D52,S$50) -> 0.2 | T52: =getParaWert($D52,T$50) -> 1 | U52: =getParaWert($D52,U$50) -> 0.3 | V52: =getParaWert($D52,V$50) ->  | X52: =getParaWert($D52,X$50) -> 0.02 | Y52: =getParaWert($D52,Y$50) -> 0.006277777778 | Z52: =getParaWert($D52,Z$50) -> 0.0008666666667 | AA52: =getParaWert($D52,AA$50) -> 0.004944444444 | AB52: =getParaWert($D52,AB$50) ->  | AC52: =getParaWert($D52,AC$50) ->  | AD52: =getParaWert($D52,AD$50) -> 0.03777777778 | PC52: |fm~40|ts~86|fix~0,275604114389822|c~44|n~2,036|p~0,41|k~0,58|ca~0,047|mg~0,1325|s~0,13|b~0,00053|zn~0,003|cu~0,0005|mn~0,00355|na~0,0072|fe~0,0034|mo~
A53: #H# | B53: =getZuweis("PLM>>",D53,"para_np") -> PLM>>D:para_np | C53: Nebenpro | D53: |fa~0|ts~|fix~|c~|n~|p~|k~|ca~|mg~|s~|b~|zn~|cu~|mn~|na~|fe~|mo~ | E53: =AND(COUNT(M53:N53)=2,M53>0,N53>0,Intern_Mass_Multi=FALSE) -> FALSE | M53: =getParaWert($D53,M$50) -> 0 | N53: =getParaWert($D53,N$50) ->  | P53: =getParaWert($D53,P$50) ->  | Q53: =getParaWert($D53,Q$50) ->  | R53: =getParaWert($D53,R$50) ->  | S53: =getParaWert($D53,S$50) ->  | T53: =getParaWert($D53,T$50) ->  | U53: =getParaWert($D53,U$50) ->  | V53: =getParaWert($D53,V$50) ->  | X53: =getParaWert($D53,X$50) ->  | Y53: =getParaWert($D53,Y$50) ->  | Z53: =getParaWert($D53,Z$50) ->  | AA53: =getParaWert($D53,AA$50) ->  | AB53: =getParaWert($D53,AB$50) ->  | AC53: =getParaWert($D53,AC$50) ->  | AD53: =getParaWert($D53,AD$50) ->  | PC53: |fa~1,1|ts~86|fix~2,97775492438456E-02|c~45|n~0,584|p~0,15|k~1,435|ca~0,367|mg~0,128|s~0,1|b~|zn~|cu~|mn~|na~|fe~|mo~
A54: #H# | B54: =getZuweis("PLM>>",D54,"para_rt") -> PLM>>D:para_rt | C54: Wurzel | D54: |fa~0,2|ts~100|fix~0,266516511788593|c~40|n~1,76|p~|k~|ca~|mg~|s~|b~|zn~|cu~|mn~|na~|fe~|mo~ | E54: =AND(COUNT(M54:N54)=2,M54>0,N54>0) -> TRUE | M54: =getParaWert($D54,M$50) -> 0.2 | N54: =getParaWert($D54,N$50) -> 100 | P54: =getParaWert($D54,P$50) -> 1.76 | Q54: keine Formeln weil für Bilanz nicht gebraucht | V54: =getParaWert($D54,V$50) ->  | X54: keine Formeln weil für Bilanz nicht gebraucht | PC54: |fa~0,5|ts~100|fix~8,14251337302235E-02|c~40|n~0,9|p~|k~|ca~|mg~|s~|b~|zn~|cu~|mn~|na~|fe~|mo~
A55: #H# | B55: =getZuweis("PLM>>",D55,"para_st") -> PLM>>D:para_st | C55: Stoppel | D55: |fa~0,2|ts~20|fix~8,40647642601122E-02|c~43|n~2,35|p~0,3|k~2,6|ca~1|mg~0,3|s~0,18|b~|zn~|cu~|mn~|na~|fe~|mo~ | E55: =AND(COUNT(M55:N55)=2,M55>0,N55>0) -> TRUE | M55: =getParaWert($D55,M$50) -> 0.2 | N55: =getParaWert($D55,N$50) -> 20 | P55: =getParaWert($D55,P$50) -> 2.35 | V55: =getParaWert($D55,V$50) ->  | PC55: |fa~0,2|ts~86|fix~2,18575874880193E-02|c~46|n~0,495|p~|k~|ca~|mg~|s~|b~|zn~|cu~|mn~|na~|fe~|mo~
A56: #H# | J56: Fehlstellenprüfung Saatgut | P56: =P51="" -> FALSE | Q56: =Q51="" -> FALSE | R56: FALSE | S56: TRUE | T56: TRUE | U56: FALSE | X56: =X51="" -> TRUE | Y56: TRUE | Z56: TRUE | AA56: TRUE | AB56: TRUE | AC56: TRUE | AD56: TRUE
A57: #H# | J57: Fehlstellenprüfung hp | P57: =P52="" -> FALSE | Q57: FALSE | R57: FALSE | S57: FALSE | T57: FALSE | U57: FALSE | X57: FALSE | Y57: FALSE | Z57: FALSE | AA57: FALSE | AB57: TRUE | AC57: TRUE | AD57: FALSE
A58: #H# | J58: Fehlstellenprüfung np | P58: =P53="" -> TRUE | Q58: TRUE | R58: TRUE | S58: TRUE | T58: TRUE | U58: TRUE | X58: TRUE | Y58: TRUE | Z58: TRUE | AA58: TRUE | AB58: TRUE | AC58: TRUE | AD58: TRUE
A59: #H# | B59: =getZuweis("PLM>>",D59,"para_vd") -> PLM>>D:para_vd | D59: |vd_fruh_koeff~400|vd_grun_koeff~|vd_unter_koeff~200|vd_sommer_koeff~|vd_winter_koeff~|vd_haupt_koeff~600|vd_ernterest_koeff~|vd_nebenproduktfaktor~|vd_verbleib_haupt~1|vd_verbleib_haupt_koeff~16|vd_spat_koeff~100 | PC59: |vd_fruh_koeff~|vd_grun_koeff~|vd_unter_koeff~|vd_sommer_koeff~|vd_winter_koeff~|vd_haupt_koeff~-520|vd_ernterest_koeff~100|vd_nebenproduktfaktor~0,9|vd_spat_koeff~
A60: =IF(Intern_Mass_P,ZeileNormal,"#H#") -> 17 | P60: Hauptnährstoffe | X60: Spurennährstoffe | AF60: Humus
A61: =IF(Intern_Mass_P,ZeileFlach,"#H#") -> 14 | P61: Stickstoff | Q61: Phosphor | R61: Kalium | S61: Schwefel | T61: Calcium | U61: Magnesium | X61: Eisen | Y61: Mangan | Z61: Kupfer | AA61: Zink | AB61: Molybdän | AC61: Bor | AD61: Natrium | AF61: Humus-
A62: =IF(Intern_Mass_P,ZeileFlach,"#H#") -> 14 | P62: N | Q62: P | R62: K | S62: S | T62: Ca | U62: Mg | X62: Fe | Y62: Mn | Z62: Cu | AA62: Zn | AB62: Mo | AC62: B | AD62: Na | AF62: äquivalente
A63: =IF(Intern_Mass_P,ZeileFlach,"#H#") -> 14 | P63: kg/ha | Q63: kg/ha | R63: kg/ha | S63: kg/ha | T63: kg/ha | U63: kg/ha | X63: kg/ha | Y63: kg/ha | Z63: kg/ha | AA63: kg/ha | AB63: kg/ha | AC63: kg/ha | AD63: kg/ha | AF63: Häq/ha
A64: =IF(AND(Intern_Mass_P,Intern_Mass_hat_sg),ZeileNormal,"#H#") -> 17 | M64: Nährstoffzufuhr
A65: =IF(AND(Intern_Mass_P,Intern_Mass_hat_sg),ZeileNormal,"#H#") -> 17 | M65: Saatgut | P65: =getMenge(P51/100*$J45) -> 0.978 | Q65: =getMenge(Q51/100*$J45) -> 0.121 | R65: =getMenge(R51/100*$J45) -> 0.185 | S65: =getMenge(S51/100*$J45) -> 0 | T65: =getMenge(T51/100*$J45) -> 0 | U65: =getMenge(U51/100*$J45) -> 0.034 | X65: =getMenge(X51/100*$J45) -> 0 | Y65: =getMenge(Y51/100*$J45) -> 0 | Z65: =getMenge(Z51/100*$J45) -> 0 | AA65: =getMenge(AA51/100*$J45) -> 0 | AB65: =getMenge(AB51/100*$J45) -> 0 | AC65: =getMenge(AC51/100*$J45) -> 0 | AD65: =getMenge(AD51/100*$J45) -> 0 | AF65: 0
A66: #H# | B66: =getZuweis("PLM>>save|",P66,"plus_n")&getZuweis("|",Q66,"plus_p")&getZuweis("|",R66,"plus_k")&getZuweis("|",S66,"plus_s")&getZuweis("|",T66,"plus_ca")&getZuweis("|",U66,"plus_mg")&getZuweis("|",V66,"plus_c")&getZuweis("|",X66,"plus_fe")&getZuweis("|",Y66,"plus_mn")&getZuweis("|",Z66,"plus_cu")&getZuweis("|",AA66,"plus_zn")&getZuweis("|",AB66,"plus_mo")&getZuweis("|",AC66,"plus_b")&getZuweis("|",AD66,"plus_na")&getZuweis("|",AF66,"plus_humus") -> PLM>>save|P:plus_n|Q:plus_p|R:plus_k|S:plus_s|T:plus_ca|U:plus_mg|V:plus_c|X:plus_fe|Y:plus_mn|Z:plus_cu|AA:plus_zn|AB:plus_mo|AC:plus_b|AD:plus_na|AF:plus_humus | P66: =P65 -> 0.978 | Q66: =Q65 -> 0.121 | R66: 0.185 | S66: 0 | T66: 0 | U66: 0.034 | V66: =V65 -> 0 | X66: =X65 -> 0 | Y66: 0 | Z66: 0 | AA66: 0 | AB66: 0 | AC66: 0 | AD66: 0 | AF66: =IF(AF68>0,AF68,0) -> 1600
A67: =IF(Intern_Mass_P,ZeileNormal,"#H#") -> 17 | M67: Nährstoffabfuhr
A68: =IF(Intern_Mass_P,ZeileNormal,"#H#") -> 17 | M68: =IF(TRIM(C21)="","Hauptprodukt",C21) -> Ganzpflanze | P68: =getMenge(P52/100*$M46 * -1) -> -258 | Q68: =getMenge(Q52/100*$M46 * -1) -> -33 | R68: =getMenge(R52/100*$M46 * -1) -> -286 | S68: =getMenge(S52/100*$M46 * -1) -> -22 | T68: =getMenge(T52/100*$M46 * -1) -> -110 | U68: =getMenge(U52/100*$M46 * -1) -> -33 | X68: =getMenge(X52/100*$M46 * -1) -> -2.2 | Y68: =getMenge(Y52/100*$M46 * -1) -> -0.691 | Z68: =getMenge(Z52/100*$M46 * -1) -> -0.095 | AA68: =getMenge(AA52/100*$M46 * -1) -> -0.544 | AB68: =getMenge(AB52/100*$M46 * -1) -> 0 | AC68: =getMenge(AC52/100*$M46 * -1) -> 0 | AD68: =getMenge(AD52/100*$M46 * -1) -> -4.16 | AF68: =AB44 -> 1600
A69: =IF(AND(Intern_Mass_P,Intern_Mass_hat_np),ZeileNormal,"#H#") -> #H# | M69: =IF(TRIM(D21)="","Nebenprodukt",D21) -> kein | P69: =getMenge(P53/100*$M47 * -1) -> 0 | Q69: =getMenge(Q53/100*$M47 * -1) -> 0 | R69: =getMenge(R53/100*$M47 * -1) -> 0 | S69: =getMenge(S53/100*$M47 * -1) -> 0 | T69: =getMenge(T53/100*$M47 * -1) -> 0 | U69: =getMenge(U53/100*$M47 * -1) -> 0 | X69: =getMenge(X53/100*$M47 * -1) -> 0 | Y69: =getMenge(Y53/100*$M47 * -1) -> 0 | Z69: =getMenge(Z53/100*$M47 * -1) -> 0 | AA69: =getMenge(AA53/100*$M47 * -1) -> 0 | AB69: =getMenge(AB53/100*$M47 * -1) -> 0 | AC69: =getMenge(AC53/100*$M47 * -1) -> 0 | AD69: =getMenge(AD53/100*$M47 * -1) -> 0 | AF69: =Y47 -> 0
A70: =IF(Intern_Mass_P,ZeileNormal,"#H#") -> 17 | B70: =getZuweis("PLM>>save|",P70,"delta_n")&getZuweis("|",Q70,"delta_p")&getZuweis("|",R70,"delta_k")&getZuweis("|",S70,"delta_s")&getZuweis("|",T70,"delta_ca")&getZuweis("|",U70,"delta_mg")&getZuweis("|",V70,"delta_c")&getZuweis("|",X70,"delta_fe")&getZuweis("|",Y70,"delta_mn")&getZuweis("|",Z70,"delta_cu")&getZuweis("|",AA70,"delta_zn")&getZuweis("|",AB70,"delta_mo")&getZuweis("|",AC70,"delta_b")&getZuweis("|",AD70,"delta_na")&getZuweis("|",AF70,"delta_humus") -> PLM>>save|P:delta_n|Q:delta_p|R:delta_k|S:delta_s|T:delta_ca|U:delta_mg|V:delta_c|X:delta_fe|Y:delta_mn|Z:delta_cu|AA:delta_zn|AB:delta_mo|AC:delta_b|AD:delta_na|AF:delta_humus | M70: Summe | P70: =P65+P68+P69 -> -257.022 | Q70: =Q65+Q68+Q69 -> -32.879 | R70: -285.815 | S70: -22 | T70: -110 | U70: -32.966 | X70: =X65+X68+X69 -> -2.2 | Y70: -0.691 | Z70: -0.095 | AA70: -0.544 | AB70: 0 | AC70: 0 | AD70: -4.16 | AF70: =AF65+AF68+AF69 -> 1600
A71: =IF(Intern_Mass_P,ZeileAbstand,"#H#") -> 5
A72: #H# | B72: ="clear"&getAdr(S74,Q74,V74,P79)&getAdr(P77,Q77,D86,Intern_Mass_ParaNH3) -> clear|$S$74|$Q$74|$V$74|$P$79|$P$77|$Q$77|$D$86|$D$87 | J72: Speichern
A73: =IF(OR(Intern_Mass_D,Intern_Mass_W),ZeileAbstand,"#H#") -> #H#
A74: =IF(OR(Intern_Mass_D,Intern_Mass_W),ZeileNormal,"#H#") -> #H# | B74: =getZuweis("DW>>",Q74,"dat1_mass") & getZuweis("|",S74,"jahrbezug_mass") & getZuweis("|",U74,"notiz_mass") -> DW>>Q:dat1_mass|S:jahrbezug_mass|U:notiz_mass | F74: Jahr | G74: =IF(ISNUMBER(Q74),YEAR(Q74),0) -> 0 | J74: Speichern | M74: Düngemaßnahme | P74: Datum | R74: Erntejahr | T74: Notiz
A75: =IF(OR(Intern_Mass_D,Intern_Mass_W),ZeileAbstand,"#H#") -> #H#
A76: =IF(OR(Intern_Mass_D,Intern_Mass_W),ZeileNormal,"#H#") -> #H# | B76: =getZuweis("DW>>save|",C76,"dat2_mass") & getZuweis("|",D95,"delta_humus") & getZuweis("|",E95,"nboden_mass") -> DW>>save|C:dat2_mass|D:delta_humus|E:nboden_mass | C76: =IF(COUNT(Q74)=1,Q74,"") ->  | P76: Frischmasse | R76: Trockenmasse
A77: =IF(OR(Intern_Mass_D,Intern_Mass_W),ZeileNormal,"#H#") -> #H# | B77: =getZuweis("DW>>|",P77,"ein[fm_dm]")&getZuweis("DW>>|",P77,"fm_dm")&getZuweis("|",Q77,"ein[bezug_dm]") -> DW>>|P:ein[fm_dm]DW>>|P:fm_dm|Q:ein[bezug_dm] | M77: Menge | R77: =IF(E83>0,TEXT(E83,"#.###"),"") ->  | S77: kg/ha
A78: =IF(OR(Intern_Mass_D,Intern_Mass_W),ZeileAbstand,"#H#") -> #H#
A79: =IF(Intern_Mass_W,ZeileNormal,"#H#") -> #H# | B79: =getZuweis("DW>>",P79,"ausbring_mass") -> DW>>P:ausbring_mass | M79: Ausbringungstechnik
A80: =IF(Intern_Mass_W,ZeileAbstand,"#H#") -> #H#
A81: #H# | D81: Frischsubstanz | E81: Trockensubstanz | G81: Ermittlung Humus-Wert | N81: Ermittlung NH3-Verlust | T81: Ermittlung N-Boden
A82: #H# | D82: in dt/ha | E82: in kg/ha | G82: delta_humus | N82: ID-Technik | P82: Verlust-Faktor | Q82: Verlust | T82: Nfix-Faktor | U82: nboden_mass
A83: #H# | B83: =getZuweis("DW>>save|",D83,"fm_mass")&getZuweis("|",U83,"nboden_mass") -> DW>>save|D:fm_mass|U:nboden_mass | D83: =P77*IF(strContains(Q77,"Schlag"),Intern_Mass_haFaktor,1) -> 0 | E83: =IF(Intern_Mass_hat_dm,D83*N86/100*100,0) -> 0 | G83: =getParaWert(Intern_Mass_ParaDM,"vd_dm") ->  | J83: =IF(G83<>"",D83/10*G83,0) -> 0 | N83: =INDIRECT("Basis_Ausbringung!A" & MATCH(P79,Basis_Ausbringung!B2:B15,0)+1) ->  | P83: =IFERROR(getParaWert(Intern_Mass_ParaNH3,"" & N83),0) -> 0 | Q83: =IF(ISERROR(N83),0,getMenge((E83*J86/100)*P83*-1)) -> 0 | T83: =getParaWert(Intern_Mass_ParaDM,"fix") ->  | U83: =IF(COUNT(T83,D83)=2,D83*T83,0) -> 0
A84: #H#
A85: #H# | D85: Paralisten | E85: vorhanden | J85: nh4 | N85: ts | P85: =SUBSTITUTE(SUBSTITUTE(P90,"[",""),"]","") -> N | Q85: =SUBSTITUTE(SUBSTITUTE(Q90,"[",""),"]","") -> P | R85: K | S85: S | T85: Ca | U85: Mg | X85: =SUBSTITUTE(SUBSTITUTE(X90,"[",""),"]","") -> Fe | Y85: =SUBSTITUTE(SUBSTITUTE(Y90,"[",""),"]","") -> Mn | Z85: Cu | AA85: Zn | AB85: Mo | AC85: B | AD85: Na
A86: #H# | B86: =getZuweis("DW>>",Intern_Mass_ParaDM,"para_dm") -> DW>>D:para_dm | C86: Dünger | E86: =AND(COUNT(N86)=1,N86>0) -> FALSE | J86: =getParaWert($D86,J$85) ->  | N86: =getParaWert($D86,N$85) ->  | O86: =getParaWert($D86,O$85) ->  | P86: =getParaWert($D86,P$85) ->  | Q86: =getParaWert($D86,Q$85) ->  | R86: =getParaWert($D86,R$85) ->  | S86: =getParaWert($D86,S$85) ->  | T86: =getParaWert($D86,T$85) ->  | U86: =getParaWert($D86,U$85) ->  | V86: =getParaWert($D86,V$85) ->  | X86: =getParaWert($D86,X$85) ->  | Y86: =getParaWert($D86,Y$85) ->  | Z86: =getParaWert($D86,Z$85) ->  | AA86: =getParaWert($D86,AA$85) ->  | AB86: =getParaWert($D86,AB$85) ->  | AC86: =getParaWert($D86,AC$85) ->  | AD86: =getParaWert($D86,AD$85) ->  | AE86: =getParaWert($D86,AE$50) -> 
A87: #H# | B87: =getZuweis("DW>>",Intern_Mass_ParaNH3,"para_nh3verlust") -> DW>>D:para_nh3verlust | J87: Fehlstellenprüfung dm | P87: =P86="" -> TRUE | Q87: =Q86="" -> TRUE | R87: TRUE | S87: TRUE | T87: TRUE | U87: TRUE | X87: =X86="" -> TRUE | Y87: TRUE | Z87: TRUE | AA87: TRUE | AB87: TRUE | AC87: TRUE | AD87: TRUE
A88: =IF(OR(Intern_Mass_D,Intern_Mass_W),ZeileNormal,"#H#") -> #H# | P88: Hauptnährstoffe | X88: Spurennährstoffe | AF88: Humus | AM88: N-Boden
A89: #H# | P89: Stickstoff | Q89: Phosphor | R89: Kalium | S89: Schwefel | T89: Calcium | U89: Magnesium | X89: Eisen | Y89: Mangan | Z89: Kupfer | AA89: Zink | AB89: Molybdän | AC89: Bor | AD89: Natrium | AF89: Humus- | AL89: Summe | AM89: =U83 -> 0
A90: =IF(OR(Intern_Mass_D,Intern_Mass_W),ZeileFlach,"#H#") -> #H# | P90: N | Q90: P | R90: K | S90: S | T90: Ca | U90: Mg | X90: Fe | Y90: Mn | Z90: Cu | AA90: Zn | AB90: Mo | AC90: B | AD90: Na | AF90: äquivalente
A91: =IF(OR(Intern_Mass_D,Intern_Mass_W),ZeileFlach,"#H#") -> #H# | P91: kg/ha | Q91: kg/ha | R91: kg/ha | S91: kg/ha | T91: kg/ha | U91: kg/ha | X91: kg/ha | Y91: kg/ha | Z91: kg/ha | AA91: kg/ha | AB91: kg/ha | AC91: kg/ha | AD91: kg/ha | AF91: Häq/ha
A92: =IF(OR(Intern_Mass_D,Intern_Mass_W),ZeileFlach,"#H#") -> #H# | M92: Nährstoffzufuhr
A93: #H# | B93: =getZuweis("DW>>save|",P93,"plus_n")&getZuweis("|",Q93,"plus_p")&getZuweis("|",R93,"plus_k")&getZuweis("|",S93,"plus_s")&getZuweis("|",T93,"plus_ca")&getZuweis("|",U93,"plus_mg")&getZuweis("|",V93,"plus_c")&getZuweis("|",X93,"plus_fe")&getZuweis("|",Y93,"plus_mn")&getZuweis("|",Z93,"plus_cu")&getZuweis("|",AA93,"plus_zn")&getZuweis("|",AB93,"plus_mo")&getZuweis("|",AC93,"plus_b")&getZuweis("|",AD93,"plus_na")&getZuweis("|",AF93,"plus_humus") -> DW>>save|P:plus_n|Q:plus_p|R:plus_k|S:plus_s|T:plus_ca|U:plus_mg|V:plus_c|X:plus_fe|Y:plus_mn|Z:plus_cu|AA:plus_zn|AB:plus_mo|AC:plus_b|AD:plus_na|AF:plus_humus | M93: Düngemittel | P93: =getMenge(P86/100*$E83) -> 0 | Q93: =getMenge(Q86/100*$E83) -> 0 | R93: =getMenge(R86/100*$E83) -> 0 | S93: =getMenge(S86/100*$E83) -> 0 | T93: =getMenge(T86/100*$E83) -> 0 | U93: =getMenge(U86/100*$E83) -> 0 | X93: =getMenge(X86/100*$E83) -> 0 | Y93: =getMenge(Y86/100*$E83) -> 0 | Z93: =getMenge(Z86/100*$E83) -> 0 | AA93: =getMenge(AA86/100*$E83) -> 0 | AB93: =getMenge(AB86/100*$E83) -> 0 | AC93: =getMenge(AC86/100*$E83) -> 0 | AD93: =getMenge(AD86/100*$E83) -> 0 | AF93: =J83 -> 0
A94: =IF(Intern_Mass_W,ZeileNormal,"#H#") -> #H# | M94: Nährstoffverluste
A95: =IF(Intern_Mass_W,ZeileNormal,"#H#") -> #H# | M95: NH3-Verluste | P95: =Q83 -> 0
A96: =IF(Intern_Mass_W,ZeileNormal,"#H#") -> #H# | B96: =getZuweis("DW>>save|",P96,"delta_n")&getZuweis("|",Q96,"delta_p")&getZuweis("|",R96,"delta_k")&getZuweis("|",S96,"delta_s")&getZuweis("|",T96,"delta_ca")&getZuweis("|",U96,"delta_mg")&getZuweis("|",V96,"delta_c")&getZuweis("|",X96,"delta_fe")&getZuweis("|",Y96,"delta_mn")&getZuweis("|",Z96,"delta_cu")&getZuweis("|",AA96,"delta_zn")&getZuweis("|",AB96,"delta_mo")&getZuweis("|",AC96,"delta_b")&getZuweis("|",AD96,"delta_na")&getZuweis("|",AF96,"delta_humus") -> DW>>save|P:delta_n|Q:delta_p|R:delta_k|S:delta_s|T:delta_ca|U:delta_mg|V:delta_c|X:delta_fe|Y:delta_mn|Z:delta_cu|AA:delta_zn|AB:delta_mo|AC:delta_b|AD:delta_na|AF:delta_humus | M96: Summe | P96: =SUM(P92:P95) -> 0 | Q96: =SUM(Q92:Q95) -> 0 | R96: 0 | S96: 0 | T96: 0 | U96: 0 | X96: =SUM(X92:X95) -> 0 | Y96: 0 | Z96: 0 | AA96: 0 | AB96: 0 | AC96: 0 | AD96: 0 | AF96: =SUM(AF92:AF95) -> 0
A97: =IF(OR(Intern_Mass_D,Intern_Mass_W),ZeileAbstand,"#H#") -> #H#
A98: #ENDE#

Sheet Eingabe_Schlag (hidden)
A1: #H# | B1: #H# | C1: #H# | D1: #H# | E1: #H# | F1: #H# | G1: #H# | H1: 0.5 | I1: 1 | J1: 14 | K1: 1 | L1: 0.5 | M1: 20 | N1: 14 | O1: 10 | P1: 14 | Q1: 10 | R1: 0.5 | S1: 1 | T1: 11 | U1: 1 | V1: #ENDE#
A2: #H# | B2: Eingabe_Schlag | D2: Berechnung N-Fixierwert | J2: Bodenparameter | M2: =VLOOKUP(N28,Intern_Boden_Para,2,FALSE) -> |corg~1,9|nt~0,159|ci~0,594253507|nmin~45|p0~23,151|p1~2,0547|p2~-0,0308
A3: #H# | D3: Boden | E3: corg | F3: =getParaWert(M2,"corg") -> 1.9 | J3: Temperatur | M3: =IFERROR(VLOOKUP(N31,Intern_LandkreisDaten,2,FALSE),0) -> 10.633333
A4: #H# | D4: Boden | E4: ci | F4: =getParaWert(M2,"ci") -> 0.594253507 | J4: Niederschlag | M4: =IFERROR(VLOOKUP(N31,Intern_LandkreisDaten,3,FALSE),0) -> 695.166667 | O4: =getAdr(N25) -> |$N$25 | P4: Intern_Schlag_EingabeZahl
A5: #H# | B5: Zuweisungen | D5: Boden | E5: p0 | F5: =getParaWert(M2,"p0") -> 23.151
A6: #H# | D6: Boden | E6: p1 | F6: =getParaWert(M2,"p1") -> 2.0547 | J6: Intern_Schlag_Druckbereich | M6: =getAdr(M10:Q37)&"|$1:$15" -> |$M$10:$Q$37|$1:$15
A7: #H# | B7: C:id_schlag | C7: 3824690E-63AF-D74E-BD3F-81CAFB3CA34D | D7: Boden | E7: p2 | F7: =getParaWert(M2,"p2") -> -0.0308
A8: =ZeileFlach -> 14 | B8: C:art_schlag | C8: B | D8: Boden | E8: nt | F8: =getParaWert(M2,"nt") -> 0.159
A9: =ZeileAbstand -> 5
A10: =IF(Intern_Schlag_RealDaten,ZeileTitel,"#H#") -> 22 | B10: =$E$25 & "N:kenn1_schlag" -> N:kenn1_schlag | D10: Schritt 1 | F10: =3000000*(F3-F3*F4)/100 -> 23127.5501 | J10: Speichern | M10: Schlagname | N10: Am KTBL | T10: Löschen
A11: =IF(Intern_Schlag_RealDaten,ZeileAbstand,"#H#") -> 5
A12: =IF(Intern_Schlag_RealDaten,ZeileNormal,"#H#") -> 17 | B12: =$E$25 & "N:kenn2_schlag" -> N:kenn2_schlag | D12: Schritt 2 | F12: =(F5+F6*M3+F7*M4)/683 -> 0.0345361288 | J12: Abbrechen | M12: Schlag-Nr. | N12: 1 | T12: ? Hilfe
A13: =IF(Intern_Schlag_RealDaten,"#H#",ZeileTitel) -> #H# | D13: Schritt 3 | F13: =(1/(F3/F8)) -> 0.08368421053 | J13: Speichern | M13: Szenario für | N13: =N10& IF(ISTEXT(N12)," / " & N12,"") -> Am KTBL | T13: Löschen
A14: =IF(Intern_Schlag_RealDaten,"#H#",ZeileAbstand) -> #H#
A15: =IF(Intern_Schlag_RealDaten,"#H#",ZeileNormal) -> #H# | J15: Abbrechen | T15: ? Hilfe
A16: =ZeileAbstand -> 5
A17: =ZeileAbstand -> 5
A18: =IF(Intern_Schlag_RealDaten,"#H#",ZeileNormal) -> #H# | B18: =IF(Intern_Schlag_RealDaten=FALSE,"N:kenn1_schlag","") ->  | M18: Bezeichnung | N18: Szenario zu Am KTBL
A19: =IF(Intern_Schlag_RealDaten,"#H#",ZeileAbstand) -> #H#
A20: =ZeileNormal -> 17 | B20: N:notiz_schlag | M20: Notiz
A21: 40
A22: =ZeileNormal -> 17
A23: #H# | B23: save|M:nboden_schlag|O:ndepos_schlag | G23: =COUNTIF(G24:G35,"Wahr") -> 0 | J23: Boden-N | M23: =IFERROR(F10*F12*F13,0) -> 66.84159569 | N23: N-Eintrag: | O23: =IFERROR(VLOOKUP(N35,Intern_StandortDaten,2,FALSE),0) -> 16.47899437
A24: =ZeileNormal -> 17 | D24: istReal | E24: =C8="B" -> TRUE | M24: Berechnungsgrundlagen
A25: =IF(Intern_Schlag_RealDaten,ZeileNormal,"#H#") -> 17 | B25: =$E$25 & "N:ha_schlag" -> N:ha_schlag | D25: Prefix bei S | E25: =IF(C8="S","basis|","") ->  | G25: =ISBLANK(N25) -> FALSE | M25: Größe | N25: 5 | O25: ha
A26: =IF(Intern_Schlag_RealDaten,"#H#",ZeileNormal) -> #H# | M26: Größe | N26: =N25 -> 5 | O26: ha
A27: =ZeileAbstand -> 5
A28: =IF(Intern_Schlag_RealDaten,ZeileNormal,"#H#") -> 17 | B28: =$E$25 & "N:boden_schlag" -> N:boden_schlag | G28: =ISBLANK(N28) -> FALSE | M28: Bodenart | N28: sandiger Lehm (sL)
A29: =IF(Intern_Schlag_RealDaten,"#H#",ZeileNormal) -> #H# | M29: Bodenart | N29: =N28 -> sandiger Lehm (sL)
A30: =ZeileAbstand -> 5
A31: =IF(Intern_Schlag_RealDaten,ZeileNormal,"#H#") -> 17 | B31: =$E$25 & "N:kreis_schlag" -> N:kreis_schlag | G31: =ISBLANK(N31) -> FALSE | M31: Landkreis | N31: Darmstadt - Kreisfreie Stadt
A32: =IF(Intern_Schlag_RealDaten,"#H#",ZeileNormal) -> #H# | M32: Landkreis | N32: =N31 -> Darmstadt - Kreisfreie Stadt
A33: =IF(Intern_Schlag_RealDaten,ZeileNormal,"#H#") -> 17 | B33: save|C:sort_schlag | C33: =N10&"|"&N12&"|#"&C8&"#|"&N20 -> Am KTBL|1|#B#| | N33: Ø Temperatur: | O33: =TEXT(M3,"0,0") & " °C" -> 10,6 °C | P33: Ø Niederschlag: | Q33: =TEXT(M4,"0") & " mm/Jahr" -> 695 mm/Jahr
A34: =ZeileAbstand -> 5
A35: =IF(Intern_Schlag_RealDaten,ZeileNormal,"#H#") -> 17 | B35: =$E$25 & "N:plz_schlag" -> N:plz_schlag | G35: =ISBLANK(N35) -> FALSE | M35: Postleitzahl | N35: 64289 | O35: =IFERROR(VLOOKUP(N35,Intern_StandortDaten,3,TRUE),"") -> 64289 Darmstadt
A36: =IF(Intern_Schlag_RealDaten,"#H#",ZeileNormal) -> #H# | M36: Postleitzahl | N36: =O35 -> 64289 Darmstadt
A37: =ZeileNormal -> 17 | B37: C:id_referenz | C37: 3824690E-63AF-D74E-BD3F-81CAFB3CA34D | N37: N-Eintrag: | O37: =IFERROR(TEXT(O23,"0,00") & " kg/ha","") -> 16,48 kg/ha
A38: =ZeileAbstand -> 5
A39: #ENDE#

Sheet Eingabe_Pflanze (hidden)
A1: #H# | B1: #H# | C1: #H# | D1: #H# | E1: #H# | F1: #H# | G1: #H# | H1: 0.5 | J1: 13 | K1: 2 | L1: 0.5 | M1: 25 | N1: 12 | O1: 12 | P1: 12 | Q1: 12 | R1: 12 | S1: 12 | T1: 12 | U1: 0.5 | V1: 12 | W1: 12 | X1: 12 | Y1: 12 | Z1: 12 | AA1: 12 | AB1: 12 | AC1: 0.5 | AD1: 0.5 | AE1: 13 | AF1: 0.5 | AG1: #ENDE#
A2: #H# | B2: Eingabe_Pflanze
A3: #H# | B3: =C9<>"J" -> TRUE | M3: Intern_Pflanze_EingabeZahl | N3: =getAdr(N24) -> |$N$24
A4: #H# | M4: Intern_Pflanze_EingabeProzent | N4: =getAdr(O24,N34:T34,V34:AB34,N47,P47) & getAdr(N57:T57,V57:AB57,N69,P69) & getAdr(N80,P80) -> |$O$24|$N$34:$T$34|$V$34:$AB$34|$N$47|$P$47|$N$57:$T$57|$V$57:$AB$57|$N$69|$P$69|$N$80|$P$80
A5: #H# | B5: Zuweisungen | M5: Intern_Pflanze_Druckbereich | N5: =getAdr(M10:AB92)&"|$1:$13" -> |$M$10:$AB$92|$1:$13
A6: #H# | B6: C:art | C6: Marktfrucht
A7: #H# | B7: C:id_pflanze | C7: 61
A8: =ZeileFlach -> 14 | B8: C:id_referenz
A9: =ZeileFlach -> 14 | B9: C:jn_userdaten
A10: =IF(Intern_Pflanze_KTBL,ZeileTitel,"#H#") -> 22 | C10: KTBL | J10: Auswahl | M10: Bezeichnung | N10: =IF(ISTEXT(N11),N11,"") -> Wurzelpetersilie
A11: =IF(Intern_Pflanze_KTBL,"#H#",ZeileTitel) -> #H# | B11: N:kultur | C11: User | J11: Auswahl | M11: Bezeichnung | N11: Wurzelpetersilie | AE11: Löschen
A12: =ZeileFlach -> 14 | B12: basis|C:Kultur | C12: Winterweizen
A13: =ZeileNormal -> 17 | B13: C:leguminose|D:erntesystem|E:kategorie | C13: 0 | D13: 1 | E13: Gemüse | J13: Abbrechen | AE13: ? Hilfe
A14: =ZeileAbstand -> 5
A15: =ZeileAbstand -> 5
A16: =IF(Intern_Pflanze_KTBL,ZeileNormal,"#H#") -> 17 | B16: N:bezeich_hp | C16: KTBL | J16: Hinzufügen | M16: Hauptprodukt | N16: Rübe
A17: =IF(Intern_Pflanze_KTBL,"#H#",ZeileNormal) -> #H# | B17: N:bezeich_hp | C17: User | J17: Hinzufügen | M17: Hauptprodukt | N17: Rübe
A18: =ZeileAbstand -> 5
A19: =IF(Intern_Pflanze_KTBL,ZeileNormal,"#H#") -> 17 | N19: Frischmasse | O19: TM-Anteil | P19: Trockenmasse
A20: =IF(Intern_Pflanze_KTBL,ZeileFlach,"#H#") -> 14 | N20: dt/ha | O20: % FM | P20: kg/ha
A21: =IF(Intern_Pflanze_KTBL,"#H#",ZeileNormal) -> #H# | J21: Speichern | N21: Frischmasse | O21: TM-Anteil | P21: Trockenmasse
A22: =IF(Intern_Pflanze_KTBL,"#H#",ZeileFlach) -> #H# | N22: dt/ha | O22: % FM | P22: kg/ha
A23: =IF(Intern_Pflanze_KTBL,ZeileNormal,"#H#") -> 17 | C23: KTBL | M23: Standard-Erntemenge | N23: =IF(COUNT(Intern_Pflanze_FM)=1,Intern_Pflanze_FM,"") -> 150 | O23: =IF(COUNT(O24)=1,O24,"") -> 14.5 | P23: =P24 -> 2.175
A24: =IF(Intern_Pflanze_KTBL,"#H#",ZeileNormal) -> #H# | B24: N:fm_hp|O:ts_hp | C24: User | F24: TM_HP | G24: =Intern_Pflanze_FM*O24 -> 2175 | M24: Standard-Erntemenge | N24: 150 | O24: 14.5 | P24: =TEXT(G24,"#.##0") -> 2.175
A25: =IF(Intern_Pflanze_KTBL,"#H#",ZeileFlach) -> #H# | B25: ="basis|" & B24 -> basis|N:fm_hp|O:ts_hp | C25: User | M25: ="Ref.Pflanze: " & $C$12 -> Ref.Pflanze: Winterweizen | N25: 40 | O25: 86
A26: =ZeileAbstand -> 5
A27: =ZeileAbstand -> 5
A28: =ZeileNormal -> 17 | N28: Hauptnährstoffe | V28: Spurennährstoffe
A29: =ZeileFlach -> 14 | E29: HP Wert für N-Fixierung | N29: Stickstoff | O29: Phosphor | P29: Kalium | Q29: Schwefel | R29: Calcium | S29: Magnesium | T29: Kohlenstoff | V29: Eisen | W29: Mangan | X29: Kupfer | Y29: Zink | Z29: Molybdän | AA29: Bor | AB29: Natrium
A30: =ZeileFlach -> 14 | B30: save|E:fixier_hp | E30: =getFixierWert(1,O24,N34,T34) -> 0.1038446596 | N30: N | O30: P | P30: K | Q30: S | R30: Ca | S30: Mg | T30: C | V30: Fe | W30: Mn | X30: Cu | Y30: Zn | Z30: Mo | AA30: B | AB30: Na
A31: =ZeileFlach -> 14 | N31: % TM | O31: % TM | P31: % TM | Q31: % TM | R31: % TM | S31: % TM | T31: % TM | V31: % TM | W31: % TM | X31: % TM | Y31: % TM | Z31: % TM | AA31: % TM | AB31: % TM
A32: #H# | N32: =OR(COUNT(N34)=0,N34<0,N34>100) -> FALSE | O32: =OR(COUNT(O34)=0,O34<0,O34>100) -> FALSE | P32: FALSE | Q32: FALSE | R32: FALSE | S32: FALSE | T32: FALSE | V32: =OR(COUNT(V34)=0,V34<0,V34>100) -> FALSE | W32: =OR(COUNT(W34)=0,W34<0,W34>100) -> FALSE | X32: FALSE | Y32: FALSE | Z32: TRUE | AA32: FALSE | AB32: FALSE
A33: =IF(Intern_Pflanze_KTBL,ZeileNormal,"#H#") -> 17 | C33: KTBL | M33: Anteil an Trockenmasse | N33: =IF(COUNT(N34)=1,N34,"") -> 3.24 | O33: 0.51 | P33: 3.03 | Q33: 0.276 | R33: 0.27 | S33: 0.22 | T33: 45 | V33: =IF(COUNT(V34)=1,V34,"") -> 0.0009 | W33: 0.000989 | X33: 0.00135 | Y33: 0.00376 | AA33: 0.0028 | AB33: 0.079
A34: =IF(Intern_Pflanze_KTBL,"#H#",ZeileNormal) -> #H# | B34: N:n_param_hp|O:p_param_hp|P:k_param_hp|Q:s_param_hp|R:ca_param_hp|S:mg_param_hp|T:c_param_hp|V:fe_param_hp|W:mn_param_hp|X:cu_param_hp|Y:zn_param_hp|Z:mo_param_hp|AA:b_param_hp|AB:na_param_hp| | C34: User | M34: Anteil an Trockenmasse | N34: 3.24 | O34: 0.51 | P34: 3.03 | Q34: 0.276 | R34: 0.27 | S34: 0.22 | T34: 45 | V34: 0.0009 | W34: 0.000989 | X34: 0.00135 | Y34: 0.00376 | AA34: 0.0028 | AB34: 0.079
A35: =IF(Intern_Pflanze_KTBL,"#H#",ZeileFlach) -> #H# | B35: ="basis|" & B34 -> basis|N:n_param_hp|O:p_param_hp|P:k_param_hp|Q:s_param_hp|R:ca_param_hp|S:mg_param_hp|T:c_param_hp|V:fe_param_hp|W:mn_param_hp|X:cu_param_hp|Y:zn_param_hp|Z:mo_param_hp|AA:b_param_hp|AB:na_param_hp| | C35: User | M35: ="Ref.Pflanze: " & $C$12 -> Ref.Pflanze: Winterweizen | N35: 2.036 | O35: 0.41 | P35: 0.58 | Q35: 0.13 | R35: 0.047 | S35: 0.1325 | T35: 44 | V35: 0.0034 | W35: 0.00355 | X35: 0.0005 | Y35: 0.003 | AA35: 0.00053 | AB35: 0.0072
A36: =ZeileFlach -> 14 | N36: kg/ha | O36: kg/ha | P36: kg/ha | Q36: kg/ha | R36: kg/ha | S36: kg/ha | T36: kg/ha | V36: kg/ha | W36: kg/ha | X36: kg/ha | Y36: kg/ha | Z36: kg/ha | AA36: kg/ha | AB36: kg/ha
A37: =ZeileNormal -> 17 | M37: Nährstoffmengen | N37: =getMenge(Intern_Pflanze_TM_HP*N34/100) -> 70.5 | O37: =getMenge(Intern_Pflanze_TM_HP*O34/100) -> 11.09 | P37: =getMenge(Intern_Pflanze_TM_HP*P34/100) -> 65.9 | Q37: =getMenge(Intern_Pflanze_TM_HP*Q34/100) -> 6 | R37: =getMenge(Intern_Pflanze_TM_HP*R34/100) -> 5.87 | S37: =getMenge(Intern_Pflanze_TM_HP*S34/100) -> 4.78 | T37: =getMenge(Intern_Pflanze_TM_HP*T34/100) -> 979 | V37: =getMenge(Intern_Pflanze_TM_HP*V34/100) -> 0.02 | W37: =getMenge(Intern_Pflanze_TM_HP*W34/100) -> 0.022 | X37: =getMenge(Intern_Pflanze_TM_HP*X34/100) -> 0.029 | Y37: =getMenge(Intern_Pflanze_TM_HP*Y34/100) -> 0.082 | Z37: =getMenge(Intern_Pflanze_TM_HP*Z34/100) -> 0 | AA37: =getMenge(Intern_Pflanze_TM_HP*AA34/100) -> 0.061 | AB37: =getMenge(Intern_Pflanze_TM_HP*AB34/100) -> 1.72
A38: =ZeileNormal -> 17
A39: =ZeileTrenner -> 2
A40: =ZeileNormal -> 17
A41: =IF(Intern_Pflanze_KTBL,ZeileNormal,"#H#") -> 17 | B41: N:bezeich_np | C41: KTBL | M41: Nebenprodukt | N41: Blatt & Spross
A42: =IF(Intern_Pflanze_KTBL,"#H#",ZeileNormal) -> #H# | B42: N:bezeich_Np | C42: User | M42: Nebenprodukt | N42: Blatt & Spross
A43: =ZeileAbstand -> 5
A44: =ZeileNormal -> 17 | N44: NP-Faktor | O44: Frischmasse | P44: TM-Anteil | Q44: Trockenmasse
A45: =ZeileFlach -> 14 | N45: Faktor | O45: dt/ha | P45: % FM | Q45: kg/ha
A46: =IF(Intern_Pflanze_KTBL,ZeileNormal,"#H#") -> 17 | C46: KTBL | F46: FM_NP | G46: =Intern_Pflanze_FM * N47 -> 120 | M46: Standard-Erntemenge | N46: =IF(COUNT(N47)=1,N47,"") -> 0.8 | O46: =IF(G46>0,G46,"") -> 120 | P46: =IF(COUNT(P47)=1,P47,"") -> 14.5 | Q46: =Q47 -> 1.740
A47: =IF(Intern_Pflanze_KTBL,"#H#",ZeileNormal) -> #H# | B47: N:fa_np|P:ts_np | C47: User | F47: TM_NP | G47: =G46*P47 -> 1740 | M47: Standard-Erntemenge | N47: 0.8 | O47: =O46 -> 120 | P47: 14.5 | Q47: =TEXT(G47,"#.##0") -> 1.740
A48: =IF(Intern_Pflanze_KTBL,"#H#",ZeileFlach) -> #H# | B48: ="basis|" & B47 -> basis|N:fa_np|P:ts_np | C48: User | M48: ="Ref.Pflanze: " & $C$12 -> Ref.Pflanze: Winterweizen | N48: 1.1 | P48: 86
A49: =ZeileAbstand -> 5
A50: =ZeileAbstand -> 5
A51: =ZeileNormal -> 17 | N51: Hauptnährstoffe | V51: Spurennährstoffe
A52: =ZeileFlach -> 14 | E52: NP Wert für N-Fixierung | N52: Stickstoff | O52: Phosphor | P52: Kalium | Q52: Schwefel | R52: Calcium | S52: Magnesium | T52: Kohlenstoff | V52: Eisen | W52: Mangan | X52: Kupfer | Y52: Zink | Z52: Molybdän | AA52: Bor | AB52: Natrium
A53: =ZeileFlach -> 14 | B53: save|E:fixier_np | E53: =getFixierWert(N47,P47,N57,T57) -> 0.1038446596 | N53: N | O53: P | P53: K | Q53: S | R53: Ca | S53: Mg | T53: C | V53: Fe | W53: Mn | X53: Cu | Y53: Zn | Z53: Mo | AA53: B | AB53: Na
A54: =ZeileFlach -> 14 | N54: % TM | O54: % TM | P54: % TM | Q54: % TM | R54: % TM | S54: % TM | T54: % TM | V54: % TM | W54: % TM | X54: % TM | Y54: % TM | Z54: % TM | AA54: % TM | AB54: % TM
A55: #H# | N55: =OR(COUNT(N57)=0,N57<0,N57>100) -> FALSE | O55: =OR(COUNT(O57)=0,O57<0,O57>100) -> FALSE | P55: FALSE | Q55: FALSE | R55: FALSE | S55: FALSE | T55: FALSE | V55: =OR(COUNT(V57)=0,V57<0,V57>100) -> FALSE | W55: =OR(COUNT(W57)=0,W57<0,W57>100) -> FALSE | X55: FALSE | Y55: FALSE | Z55: TRUE | AA55: TRUE | AB55: FALSE
A56: =IF(Intern_Pflanze_KTBL,ZeileNormal,"#H#") -> 17 | C56: KTBL | M56: Anteil an Trockenmasse | N56: =IF(COUNT(N57)=1,N57,"") -> 3.24 | O56: 0.39 | P56: 3.03 | Q56: 0.276 | R56: 0.27 | S56: 0.22 | T56: 45 | V56: =IF(COUNT(V57)=1,V57,"") -> 0.0009 | W56: 0.000989 | X56: 0.00135 | Y56: 0.00376 | AB56: 0.079
A57: =IF(Intern_Pflanze_KTBL,"#H#",ZeileNormal) -> #H# | B57: N:n_param_np|O:p_param_np|P:k_param_np|Q:s_param_np|R:ca_param_np|S:mg_param_np|T:c_param_np|V:fe_param_np|W:mn_param_np|X:cu_param_np|Y:zn_param_np|Z:mo_param_np|AA:b_param_np|AB:na_param_np| | C57: User | M57: Anteil an Trockenmasse | N57: 3.24 | O57: 0.39 | P57: 3.03 | Q57: 0.276 | R57: 0.27 | S57: 0.22 | T57: 45 | V57: 0.0009 | W57: 0.000989 | X57: 0.00135 | Y57: 0.00376 | AB57: 0.079
A58: =IF(Intern_Pflanze_KTBL,"#H#",ZeileFlach) -> #H# | B58: ="basis|" & B57 -> basis|N:n_param_np|O:p_param_np|P:k_param_np|Q:s_param_np|R:ca_param_np|S:mg_param_np|T:c_param_np|V:fe_param_np|W:mn_param_np|X:cu_param_np|Y:zn_param_np|Z:mo_param_np|AA:b_param_np|AB:na_param_np| | C58: User | M58: ="Ref.Pflanze: " & $C$12 -> Ref.Pflanze: Winterweizen | N58: 0.584 | O58: 0.15 | P58: 1.435 | Q58: 0.1 | R58: 0.367 | S58: 0.128 | T58: 45 | V58: 0.02 | W58: 0.008 | X58: 0.0004 | Y58: 0.003 | AB58: 0.15
A59: =ZeileNormal -> 17 | N59: kg/ha | O59: kg/ha | P59: kg/ha | Q59: kg/ha | R59: kg/ha | S59: kg/ha | T59: kg/ha | V59: kg/ha | W59: kg/ha | X59: kg/ha | Y59: kg/ha | Z59: kg/ha | AA59: kg/ha | AB59: kg/ha
A60: =ZeileNormal -> 17 | M60: Nährstoffmengen | N60: =getMenge(Intern_Pflanze_TM_NP*N57/100) -> 56.4 | O60: =getMenge(Intern_Pflanze_TM_NP*O57/100) -> 6.79 | P60: =getMenge(Intern_Pflanze_TM_NP*P57/100) -> 52.7 | Q60: =getMenge(Intern_Pflanze_TM_NP*Q57/100) -> 4.8 | R60: =getMenge(Intern_Pflanze_TM_NP*R57/100) -> 4.7 | S60: =getMenge(Intern_Pflanze_TM_NP*S57/100) -> 3.83 | T60: =getMenge(Intern_Pflanze_TM_NP*T57/100) -> 783 | V60: =getMenge(Intern_Pflanze_TM_NP*V57/100) -> 0.016 | W60: =getMenge(Intern_Pflanze_TM_NP*W57/100) -> 0.017 | X60: =getMenge(Intern_Pflanze_TM_NP*X57/100) -> 0.023 | Y60: =getMenge(Intern_Pflanze_TM_NP*Y57/100) -> 0.065 | Z60: =getMenge(Intern_Pflanze_TM_NP*Z57/100) -> 0 | AA60: =getMenge(Intern_Pflanze_TM_NP*AA57/100) -> 0 | AB60: =getMenge(Intern_Pflanze_TM_NP*AB57/100) -> 1.37
A61: =ZeileNormal -> 17
A62: =ZeileTrenner -> 2
A63: =ZeileNormal -> 17
A64: =ZeileNormal -> 17 | M64: Stoppel
A65: =ZeileFlach -> 14 | N65: Stoppelfaktor | O65: Frischmasse | P65: TM-Anteil | Q65: Trockenmasse | V65: Hauptnährstoffe | X65: Stickstoff | Y65: Kohlenstoff
A66: =ZeileFlach -> 14 | E66: ST Wert für N-Fixierung | X66: N | Y66: C
A67: =ZeileFlach -> 14 | B67: save|E:fixier_st | E67: =getFixierWert(N69,P69,X69,Y69) -> 0 | N67: Faktor | O67: dt/ha | P67: % FM | Q67: kg/ha | X67: % TM | Y67: % TM
A68: #H# | N68: =OR(COUNT(N69)=0,N69<0,N69>100) -> FALSE | P68: =OR(COUNT(P69)=0,P69<0,P69>100) -> TRUE | X68: =OR(COUNT(X69)=0,X69<0,X69>100) -> TRUE | Y68: =OR(COUNT(Y69)=0,Y69<0,Y69>100) -> TRUE
A69: =IF(Intern_Pflanze_KTBL,"#H#",ZeileNormal) -> #H# | B69: N:fa_st|P:ts_st|X:n_param_st|Y:c_param_st | C69: User | F69: fm_st | G69: =Intern_Pflanze_FM*N69 -> 0 | M69: Standard-Menge | N69: 0 | O69: =G69 -> 0 | Q69: =G70 -> 0 | V69: Anteil an Trockenmasse
A70: =IF(Intern_Pflanze_KTBL,ZeileNormal,"#H#") -> 17 | C70: KTBL | F70: tm_st | G70: =G69*P69 -> 0 | M70: Standard-Menge | N70: =IF(COUNT(N69)=1,N69,"") -> 0 | O70: =O69 -> 0 | P70: =IF(COUNT(P69)=1,P69,"") ->  | Q70: =Q69 -> 0 | V70: Anteil an Trockenmasse | X70: =IF(COUNT(X69)=1,X69,"") ->  | Y70: =IF(COUNT(Y69)=1,Y69,"") -> 
A71: =ZeileNormal -> 17 | V71: Nährstoffmenge | X71: =getMenge(Intern_Pflanze_TM_ST*X69/100) -> 0 | Y71: =getMenge(Intern_Pflanze_TM_ST*Y69/100) -> 0
A72: =ZeileNormal -> 17
A73: =ZeileTrenner -> 2
A74: =ZeileNormal -> 17
A75: =ZeileNormal -> 17 | M75: Wurzel
A76: =ZeileFlach -> 14 | N76: Wurzelfaktor | O76: Frischmasse | P76: TM-Anteil | Q76: Trockenmasse | V76: Hauptnährstoffe | X76: Stickstoff | Y76: Kohlenstoff
A77: =ZeileFlach -> 14 | E77: RT Wert für N-Fixierung | X77: N | Y77: C
A78: =ZeileFlach -> 14 | B78: save|E:fixier_rt | E78: =getFixierWert(N80,P80,X80,Y80) -> 0.09809745126 | N78: Faktor | O78: dt/ha | P78: % FM | Q78: kg/ha | X78: % TM | Y78: % TM
A79: #H# | N79: =OR(COUNT(N80)=0,N80<0,N80>100) -> FALSE | P79: =OR(COUNT(P80)=0,P80<0,P80>100) -> FALSE | X79: =OR(COUNT(X80)=0,X80<0,X80>100) -> FALSE | Y79: =OR(COUNT(Y80)=0,Y80<0,Y80>100) -> FALSE
A80: =IF(Intern_Pflanze_KTBL,"#H#",ZeileNormal) -> #H# | B80: N:fa_rt|P:ts_rt|X:n_param_rt|Y:c_param_rt | C80: User | F80: fm_st | G80: =Intern_Pflanze_FM*N80 -> 2.175 | M80: Standard-Menge | N80: 0.0145 | O80: =G80 -> 2.175 | P80: 100 | Q80: =G81 -> 217.5 | V80: Anteil an Trockenmasse | X80: 1 | Y80: 40
A81: =IF(Intern_Pflanze_KTBL,ZeileNormal,"#H#") -> 17 | C81: KTBL | F81: tm_st | G81: =G80*P80 -> 217.5 | M81: Standard-Menge | N81: =IF(COUNT(N80)=1,N80,"") -> 0.0145 | O81: =O80 -> 2.175 | P81: =IF(COUNT(P80)=1,P80,"") -> 100 | Q81: =Q80 -> 217.5 | V81: Anteil an Trockenmasse | X81: =IF(COUNT(X80)=1,X80,"") -> 1 | Y81: =IF(COUNT(Y80)=1,Y80,"") -> 40
A82: =ZeileNormal -> 17 | V82: Nährstoffmenge | X82: =getMenge(Intern_Pflanze_TM_RT*X80/100) -> 2.17 | Y82: =getMenge(Intern_Pflanze_TM_RT*Y80/100) -> 87
A83: =ZeileNormal -> 17
A84: =ZeileTrenner -> 2
A85: =ZeileNormal -> 17
A86: =ZeileNormal -> 17 | M86: Humuswirkung | N86: Hauptfrucht/Marktfrucht | Q86: Zwischenfrucht | T86: Untersaat
A87: =ZeileNormal -> 17 | M87: (VDLUFA 2014) | N87: Hauptprodukt | O87: Nebenprodukt | Q87: Sommer | R87: Winter
A88: =ZeileFlach -> 14 | N88: Häq/ha | O88: Häq/ha | Q88: Häq/ha | R88: Häq/ha | T88: Häq/ha
A89: =ZeileNormal -> 17 | B89: N:vd_haupt_koeff|O:vd_ernterest_koeff|Q:vd_sommer_koeff|R:vd_winter_koeff|T:vd_unter_koeff | M89: Humuskoeffizient | N89: -520
A90: =ZeileAbstand -> 5
A91: =ZeileNormal -> 17 | B91: O:vd_nebenproduktfaktor | M91: Nebenproduktfaktor
A92: =ZeileAbstand -> 5
A93: =ZeileAbstand -> 5
A94: #ENDE#

Sheet Eingabe_Dünger (hidden)
A1: #H# | B1: #H# | C1: #H# | D1: #H# | E1: #H# | F1: #H# | G1: #H# | H1: 0.5 | J1: 13 | K1: 2 | L1: 0.5 | M1: 25 | N1: 12 | O1: 12 | P1: 12 | Q1: 12 | R1: 12 | S1: 12 | T1: 12 | U1: 0.5 | V1: 12 | W1: 12 | X1: 12 | Y1: 12 | Z1: 12 | AA1: 12 | AB1: 12 | AC1: 0.5 | AD1: 12 | AE1: 0.5 | AF1: 0.5 | AG1: 13 | AH1: 0.5 | AI1: #ENDE#
A2: #H# | B2: Eingabe_Duenger
A3: #H# | B3: =C9<>"J" -> TRUE | M3: Intern_Duenger_Druckbereich | N3: =getAdr(M10:AE38)&"|$1:$13" -> |$M$10:$AE$38|$1:$13
A4: #H# | M4: Intern_Duenger_EingabeZahl | N4: =getAdr(N19) -> |$N$19
A5: #H# | B5: Zuweisungen | M5: Intern_Duenger_EingabeProz | N5: =getAdr(O19,N28:T28,V28:AB28,AD28) -> |$O$19|$N$28:$T$28|$V$28:$AB$28|$AD$28
A6: #H# | B6: C:art | C6: Wirtschaftsdünger
A7: #H# | B7: C:id_duenger | C7: 2005
A8: =ZeileFlach -> 14 | B8: C:id_referenz
A9: =ZeileFlach -> 14 | B9: C:jn_userdaten
A10: =IF(Intern_Duenger_KTBL,ZeileTitel,"#H#") -> 22 | C10: KTBL | J10: Auswahl | M10: Bezeichnung | N10: =IF(ISTEXT(N11),N11,"") -> Rind, Jauche
A11: =IF(Intern_Duenger_KTBL,"#H#",ZeileTitel) -> #H# | B11: N:duenger | C11: User | J11: Auswahl | M11: Bezeichnung | N11: Rind, Jauche | AG11: Löschen
A12: =ZeileFlach -> 14 | B12: basis|C:duenger | C12: Rind, Gülle
A13: =ZeileNormal -> 17 | J13: Abbrechen | AG13: ? Hilfe
A14: =ZeileAbstand -> 5
A15: =ZeileAbstand -> 5
A16: =ZeileNormal -> 17 | F16: Prüfung Eingabe | J16: Hinzufügen | N16: Frischmasse | O16: TM-Anteil | P16: Trockenmasse
A17: =ZeileFlach -> 14 | F17: =OR(COUNT(N19)=0,N19<0) -> FALSE | G17: =OR(COUNT(O19)=0,O19<0,O19>100) -> FALSE | N17: dt/ha | O17: % FM | P17: kg/ha
A18: =IF(Intern_Duenger_KTBL,ZeileNormal,"#H#") -> 17 | C18: KTBL | M18: Standard-Düngermenge | N18: =N19 -> 200 | O18: =O19 -> 2.5 | P18: =P19 -> 500
A19: =IF(Intern_Duenger_KTBL,"#H#",ZeileNormal) -> #H# | B19: N:fm_dm|O:ts_dm | C19: User | F19: TM_dm | G19: =N19*O19 -> 500 | J19: Speichern | M19: Standard-Düngermenge | N19: 200 | O19: 2.5 | P19: =Intern_Duenger_TM -> 500
A20: =IF(Intern_Duenger_KTBL,"#H#",ZeileFlach) -> #H# | B20: basis|M:duenger | C20: User | M20: Rind, Gülle | N20: 100 | O20: 20
A21: =ZeileAbstand -> 5
A22: =ZeileNormal -> 17 | N22: Hauptnährstoffe | V22: Spurennährstoffe
A23: =ZeileFlach -> 14 | C23: KTBL | N23: Stickstoff | O23: Phosphor | P23: Kalium | Q23: Schwefel | R23: Calcium | S23: Magnesium | T23: Kohlenstoff | V23: Eisen | W23: Mangan | X23: Kupfer | Y23: Zink | Z23: Molybdän | AA23: Bor | AB23: Natrium | AD23: Ammonium-N
A24: =ZeileFlach -> 14 | N24: N | O24: P | P24: K | Q24: S | R24: Ca | S24: Mg | T24: C | V24: Fe | W24: Mn | X24: Cu | Y24: Zn | Z24: Mo | AA24: B | AB24: Na
A25: =ZeileFlach -> 14 | N25: % TM | O25: % TM | P25: % TM | Q25: % TM | R25: % TM | S25: % TM | T25: % TM | V25: % TM | W25: % TM | X25: % TM | Y25: % TM | Z25: % TM | AA25: % TM | AB25: % TM | AD25: NH4-N
A26: #H# | N26: =OR(COUNT(N28)=0,N28<0,N28>100) -> FALSE | O26: =OR(COUNT(O28)=0,O28<0,O28>100) -> FALSE | P26: FALSE | Q26: TRUE | R26: FALSE | S26: FALSE | T26: FALSE | V26: =OR(COUNT(V28)=0,V28<0,V28>100) -> TRUE | W26: TRUE | X26: FALSE | Y26: FALSE | Z26: TRUE | AA26: TRUE | AB26: TRUE | AD26: =OR(COUNT(AD28)=0,AD28<0,AD28>100) -> FALSE
A27: =IF(Intern_Duenger_KTBL,ZeileNormal,"#H#") -> 17 | C27: KTBL | M27: Anteil an Trockenmasse | N27: =IF(COUNT(N28)=1,N28,"") -> 12.8 | O27: 0 | P27: 6.09 | R27: 25.38 | S27: 0.48 | T27: 40 | V27: =IF(COUNT(V28)=1,V28,"") ->  | X27: 0.0018 | Y27: 0.01145 | AD27: =IF(COUNT(AD28)=1,AD28,"") -> 5.14
A28: =IF(Intern_Duenger_KTBL,"#H#",ZeileNormal) -> #H# | B28: N:n_param_dm|O:p_param_dm|P:k_param_dm|Q:s_param_dm|R:ca_param_dm|S:mg_param_dm|T:c_param_dm|V:fe_param_dm|W:mn_param_dm|X:cu_param_dm|Y:zn_param_dm|Z:mo_param_dm|AA:b_param_dm|AB:na_param_dm|AD:nh4_param_dm | C28: User | M28: Anteil an Trockenmasse | N28: 12.8 | O28: 0 | P28: 6.09 | R28: 25.38 | S28: 0.48 | T28: 40 | X28: 0.0018 | Y28: 0.01145 | AD28: 5.14
A29: =IF(Intern_Duenger_KTBL,"#H#",ZeileFlach) -> #H# | B29: ="basis|" & B28 -> basis|N:n_param_dm|O:p_param_dm|P:k_param_dm|Q:s_param_dm|R:ca_param_dm|S:mg_param_dm|T:c_param_dm|V:fe_param_dm|W:mn_param_dm|X:cu_param_dm|Y:zn_param_dm|Z:mo_param_dm|AA:b_param_dm|AB:na_param_dm|AD:nh4_param_dm | C29: User | M29: =M20 -> Rind, Gülle | N29: 4.69 | O29: 0.795 | P29: 6.09 | Q29: 0.48 | R29: 1.35 | S29: 0.48 | T29: 40 | W29: 0.0262 | X29: 0.00299 | Y29: 0.0159 | Z29: 0.00031 | AA29: 0.0036 | AB29: 0.15 | AD29: 2.69
A30: =ZeileFlach -> 14 | N30: kg/ha | O30: kg/ha | P30: kg/ha | Q30: kg/ha | R30: kg/ha | S30: kg/ha | T30: kg/ha | V30: kg/ha | W30: kg/ha | X30: kg/ha | Y30: kg/ha | Z30: kg/ha | AA30: kg/ha | AB30: kg/ha | AD30: kg/ha
A31: =ZeileNormal -> 17 | M31: Nährstoffmengen | N31: =getMenge(Intern_Duenger_TM*N28/100) -> 64 | O31: =getMenge(Intern_Duenger_TM*O28/100) -> 0 | P31: =getMenge(Intern_Duenger_TM*P28/100) -> 30.45 | Q31: =getMenge(Intern_Duenger_TM*Q28/100) -> 0 | R31: =getMenge(Intern_Duenger_TM*R28/100) -> 127 | S31: =getMenge(Intern_Duenger_TM*S28/100) -> 2.4 | T31: =getMenge(Intern_Duenger_TM*T28/100) -> 200 | V31: =getMenge(Intern_Duenger_TM*V28/100) -> 0 | W31: =getMenge(Intern_Duenger_TM*W28/100) -> 0 | X31: =getMenge(Intern_Duenger_TM*X28/100) -> 0.009 | Y31: =getMenge(Intern_Duenger_TM*Y28/100) -> 0.057 | Z31: =getMenge(Intern_Duenger_TM*Z28/100) -> 0 | AA31: =getMenge(Intern_Duenger_TM*AA28/100) -> 0 | AB31: =getMenge(Intern_Duenger_TM*AB28/100) -> 0 | AD31: =getMenge(Intern_Duenger_TM*AD28/100) -> 25.7
A32: =ZeileNormal -> 17
A33: =ZeileTrenner -> 2
A34: =ZeileNormal -> 17
A35: =ZeileNormal -> 17 | M35: Humuswirkung | N35: Düngemittel
A36: =ZeileFlach -> 14 | M36: (VDLUFA 2014) | N36: Häq/ha
A37: =ZeileNormal -> 17 | B37: N:vd_due_koeff | M37: Humuskoeffizient | N37: 4
A38: =ZeileAbstand -> 5
A39: =ZeileAbstand -> 5
A40: #ENDE#

Sheet Basis_Pflanzen (hidden)
A1: id_pflanze | B1: art | C1: kultur | D1: jn_userdaten | E1: id_referenz | F1: para_vd | G1: para_hp | H1: para_np | I1: para_st | J1: para_rt | K1: para_sg | L1: bezeich_np | M1: bezeich_hp | N1: fm_hp | O1: ts_hp | P1: fixier_hp | Q1: c_param_hp | R1: n_param_hp | S1: p_param_hp | T1: k_param_hp | U1: ca_param_hp | V1: mg_param_hp | W1: s_param_hp | X1: b_param_hp | Y1: zn_param_hp | Z1: cu_param_hp | AA1: mn_param_hp | AB1: na_param_hp | AC1: fe_param_hp | AD1: mo_param_hp | AE1: fa_np | AF1: ts_np | AG1: fixier_np | AH1: c_param_np | AI1: n_param_np | AJ1: p_param_np | AK1: k_param_np | AL1: ca_param_np | AM1: mg_param_np | AN1: s_param_np | AO1: b_param_np | AP1: zn_param_np | AQ1: cu_param_np | AR1: mn_param_np | AS1: na_param_np | AT1: fe_param_np | AU1: mo_param_np | AV1: fa_st | AW1: ts_st | AX1: fixier_st | AY1: c_param_st | AZ1: n_param_st | BA1: p_param_st | BB1: k_param_st | BC1: ca_param_st | BD1: mg_param_st | BE1: s_param_st | BF1: b_param_st | BG1: zn_param_st | BH1: cu_param_st | BI1: mn_param_st | BJ1: na_param_st | BK1: fe_param_st | BL1: mo_param_st | BM1: fa_rt | BN1: ts_rt | BO1: fixier_rt | BP1: c_param_rt | BQ1: n_param_rt | BR1: p_param_rt | BS1: k_param_rt | BT1: ca_param_rt | BU1: mg_param_rt | BV1: s_param_rt | BW1: b_param_rt | BX1: zn_param_rt | BY1: cu_param_rt | BZ1: mn_param_rt | CA1: na_param_rt | CB1: fe_param_rt | CC1: mo_param_rt | CD1: ts_sg | CE1: c_param_sg | CF1: n_param_sg | CG1: p_param_sg | CH1: k_param_sg | CI1: ca_param_sg | CJ1: mg_param_sg | CK1: s_param_sg | CL1: b_param_sg | CM1: zn_param_sg | CN1: cu_param_sg | CO1: mn_param_sg | CP1: na_param_sg | CQ1: fe_param_sg | CR1: mo_param_sg | CS1: vd_fruh_koeff | CT1: vd_grun_koeff | CU1: vd_unter_koeff | CV1: vd_sommer_koeff | CW1: vd_winter_koeff | CX1: vd_haupt_koeff | CY1: vd_ernterest_koeff | CZ1: vd_nebenproduktfaktor | DA1: vd_verbleib_haupt | DB1: vd_verbleib_haupt_koeff | DC1: vd_spat_koeff | DD1: leguminose | DE1: erntesystem | DF1: kategorie
A2: 90 | B2: Andere Kultur | C2: Blühstreifen | F2: =getParaListe(CS2:DC2,Intern_ParaListe_vd) -> |vd_fruh_koeff~400|vd_grun_koeff~|vd_unter_koeff~|vd_sommer_koeff~|vd_winter_koeff~|vd_haupt_koeff~600|vd_ernterest_koeff~|vd_nebenproduktfaktor~|vd_verbleib_haupt~1|vd_verbleib_haupt_koeff~16|vd_spat_koeff~100 | G2: =getParaListe(N2:AD2,Intern_ParaListe_hp) -> |fm~100|ts~20|fix~8,13548419419608E-02|c~44|n~2,33|p~0,4|k~3,47|ca~|mg~|s~|b~|zn~|cu~|mn~|na~|fe~|mo~ | H2: =getParaListe(AE2:AU2,Intern_ParaListe_np) -> |fa~0|ts~|fix~|c~|n~|p~|k~|ca~|mg~|s~|b~|zn~|cu~|mn~|na~|fe~|mo~ | I2: =getParaListe(AV2:BL2,Intern_ParaListe_st) -> |fa~0,2|ts~20|fix~8,13548419419608E-02|c~44|n~2,33|p~|k~|ca~|mg~|s~|b~|zn~|cu~|mn~|na~|fe~|mo~ | J2: =getParaListe(BM2:CC2,Intern_ParaListe_rt) -> |fa~0,2|ts~100|fix~0,166758441077543|c~40|n~1,35|p~|k~|ca~|mg~|s~|b~|zn~|cu~|mn~|na~|fe~|mo~ | K2: =getParaListe(CD2:CR2,Intern_ParaListe_sg) -> |ts~|c~|n~|p~|k~|ca~|mg~|s~|b~|zn~|cu~|mn~|na~|fe~|mo~ | L2: kein | M2: Ganzpflanze | N2: 100 | O2: 20 | P2: 0.08135484194 | Q2: 44 | R2: 2.33 | S2: 0.4 | T2: 3.47 | AE2: 0 | AV2: 0.2 | AW2: 20 | AX2: 0.08135484194 | AY2: 44 | AZ2: 2.33 | BM2: 0.2 | BN2: 100 | BO2: 0.1667584411 | BP2: 40 | BQ2: 1.35 | CS2: 400 | CX2: 600 | DA2: 1 | DB2: 16 | DC2: 100 | DD2: 0 | DE2: 2 | DF2: Agrarumweltmaßnahmen
A3: 97 | B3: Futterbau | C3: Alexandrinerklee | F3: |vd_fruh_koeff~400|vd_grun_koeff~|vd_unter_koeff~200|vd_sommer_koeff~|vd_winter_koeff~|vd_haupt_koeff~600|vd_ernterest_koeff~|vd_nebenproduktfaktor~|vd_verbleib_haupt~1|vd_verbleib_haupt_koeff~12|vd_spat_koeff~100 | G3: |fm~200|ts~15|fix~0,115251402129016|c~36|n~3,06|p~0,38|k~3|ca~|mg~|s~|b~|zn~0,0055|cu~0,0009|mn~0,006|na~0,13|fe~0,015|mo~ | H3: |fa~0|ts~|fix~|c~|n~|p~|k~|ca~|mg~|s~|b~|zn~|cu~|mn~|na~|fe~|mo~ | I3: |fa~0,15|ts~20|fix~0,127299664806848|c~46|n~3,06|p~|k~|ca~|mg~|s~|b~|zn~|cu~|mn~|na~|fe~|mo~ | J3: |fa~0,15|ts~100|fix~0,350806842111458|c~42|n~2,1|p~|k~|ca~|mg~|s~|b~|zn~|cu~|mn~|na~|fe~|mo~ | K3: |ts~91|c~43|n~6,04395604395604|p~0,705934065934066|k~1,14010989010989|ca~|mg~0,178021978021978|s~|b~|zn~|cu~|mn~|na~|fe~|mo~ | L3: kein | M3: Ganzpflanze | N3: 200 | O3: 15 | P3: 0.1152514021 | Q3: 36 | R3: 3.06 | S3: 0.38 | T3: 3 | Y3: 0.0055 | Z3: 0.0009 | AA3: 0.006 | AB3: 0.13 | AC3: 0.015 | AE3: 0 | AV3: 0.15 | AW3: 20 | AX3: 0.1272996648 | AY3: 46 | AZ3: 3.06 | BM3: 0.15 | BN3: 100 | BO3: 0.3508068421 | BP3: 42 | BQ3: 2.1 | CD3: 91 | CE3: 43 | CF3: 6.043956044 | CG3: 0.7059340659 | CH3: 1.14010989 | CJ3: 0.178021978 | CS3: 400 | CU3: 200 | CX3: 600 | DA3: 1 | DB3: 12 | DC3: 100 | DD3: 1 | DE3: 2 | DF3: Futterpflanzen
A4: 49 | B4: Futterbau | C4: Getreide, GPS | F4: |vd_fruh_koeff~400|vd_grun_koeff~|vd_unter_koeff~200|vd_sommer_koeff~|vd_winter_koeff~|vd_haupt_koeff~600|vd_ernterest_koeff~|vd_nebenproduktfaktor~|vd_verbleib_haupt~1|vd_verbleib_haupt_koeff~24|vd_spat_koeff~100 | G4: |fm~300|ts~30|fix~4,34951910922389E-02|c~44|n~1,3|p~0,23|k~1,73|ca~0,213|mg~0,13|s~0,18|b~|zn~0,0045|cu~5,33333333333333E-04|mn~3,66666666666667E-03|na~3,66666666666667E-02|fe~0,01|mo~ | H4: |fa~0|ts~|fix~|c~|n~|p~|k~|ca~|mg~|s~|b~|zn~|cu~|mn~|na~|fe~|mo~ | I4: |fa~0,2|ts~30|fix~0,048959791898185|c~44|n~1,39|p~0,23|k~1,73|ca~0,213|mg~0,13|s~0,18|b~|zn~|cu~|mn~|na~|fe~|mo~ | J4: |fa~0,111940298507463|ts~100|fix~0,177832891860785|c~40|n~1,4|p~|k~|ca~|mg~|s~|b~|zn~|cu~|mn~|na~|fe~|mo~ | K4: |ts~86|c~44|n~1,5|p~0,41|k~0,58|ca~0,04|mg~0,14|s~0,1|b~0,000811|zn~0,0039|cu~0,000509|mn~0,0037|na~0,00405|fe~0,0028|mo~ | L4: kein | M4: Ganzpflanze | N4: 300 | O4: 30 | P4: 0.04349519109 | Q4: 44 | R4: 1.3 | S4: 0.23 | T4: 1.73 | U4: 0.213 | V4: 0.13 | W4: 0.18 | Y4: 0.0045 | Z4: 0.0005333333333 | AA4: 0.003666666667 | AB4: 0.03666666667 | AC4: 0.01 | AE4: 0 | AV4: 0.2 | AW4: 30 | AX4: 0.0489597919 | AY4: 44 | AZ4: 1.39 | BA4: 0.23 | BB4: 1.73 | BC4: 0.213 | BD4: 0.13 | BE4: 0.18 | BM4: 0.1119402985 | BN4: 100 | BO4: 0.1778328919 | BP4: 40 | BQ4: 1.4 | CD4: 86 | CE4: 44 | CF4: 1.5 | CG4: 0.41 | CH4: 0.58 | CI4: 0.04 | CJ4: 0.14 | CK4: 0.1 | CL4: 0.000811 | CM4: 0.0039 | CN4: 0.000509 | CO4: 0.0037 | CP4: 0.00405 | CQ4: 0.0028 | CS4: 400 | CU4: 200 | CX4: 600 | DA4: 1 | DB4: 24 | DC4: 100 | DD4: 0 | DE4: 2 | DF4: Futterpflanzen
A5: 101 | B5: Futterbau | C5: Grünroggen | F5: |vd_fruh_koeff~400|vd_grun_koeff~|vd_unter_koeff~200|vd_sommer_koeff~|vd_winter_koeff~|vd_haupt_koeff~600|vd_ernterest_koeff~|vd_nebenproduktfaktor~|vd_verbleib_haupt~1|vd_verbleib_haupt_koeff~12|vd_spat_koeff~100 | G5: |fm~300|ts~15|fix~6,82103256464826E-02|c~46|n~2,53|p~0,38|k~3|ca~0,34|mg~0,26|s~0,18|b~|zn~0,004|cu~0,0008|mn~0,005|na~0,05|fe~0,02|mo~ | H5: |fa~0|ts~|fix~|c~|n~|p~|k~|ca~|mg~|s~|b~|zn~|cu~|mn~|na~|fe~|mo~ | I5: |fa~0,2|ts~15|fix~6,82103256464826E-02|c~46|n~2,53|p~0,38|k~3|ca~|mg~|s~|b~|zn~|cu~|mn~|na~|fe~|mo~ | J5: |fa~5,59701492537313E-02|ts~100|fix~0,177832891860785|c~40|n~1,4|p~|k~|ca~|mg~|s~|b~|zn~|cu~|mn~|na~|fe~|mo~ | K5: |ts~86|c~44|n~1,5|p~0,41|k~0,58|ca~0,04|mg~0,14|s~0,1|b~0,000811|zn~0,0039|cu~0,000509|mn~0,0037|na~0,00405|fe~0,0028|mo~ | L5: kein | M5: Ganzpflanze | N5: 300 | O5: 15 | P5: 0.06821032565 | Q5: 46 | R5: 2.53 | S5: 0.38 | T5: 3 | U5: 0.34 | V5: 0.26 | W5: 0.18 | Y5: 0.004 | Z5: 0.0008 | AA5: 0.005 | AB5: 0.05 | AC5: 0.02 | AE5: 0 | AV5: 0.2 | AW5: 15 | AX5: 0.06821032565 | AY5: 46 | AZ5: 2.53 | BA5: 0.38 | BB5: 3 | BM5: 0.05597014925 | BN5: 100 | BO5: 0.1778328919 | BP5: 40 | BQ5: 1.4 | CD5: 86 | CE5: 44 | CF5: 1.5 | CG5: 0.41 | CH5: 0.58 | CI5: 0.04 | CJ5: 0.14 | CK5: 0.1 | CL5: 0.000811 | CM5: 0.0039 | CN5: 0.000509 | CO5: 0.0037 | CP5: 0.00405 | CQ5: 0.0028 | CS5: 400 | CU5: 200 | CX5: 600 | DA5: 1 | DB5: 12 | DC5: 100 | DD5: 0 | DE5: 2 | DF5: Futterpflanzen
A6: 46 | B6: Futterbau | C6: Kleearten | F6: |vd_fruh_koeff~400|vd_grun_koeff~|vd_unter_koeff~200|vd_sommer_koeff~|vd_winter_koeff~|vd_haupt_koeff~600|vd_ernterest_koeff~|vd_nebenproduktfaktor~|vd_verbleib_haupt~1|vd_verbleib_haupt_koeff~14,4|vd_spat_koeff~100 | G6: |fm~200|ts~18|fix~0,13830168255482|c~36|n~3,06|p~0,33|k~2,78|ca~1|mg~0,33|s~0,18|b~|zn~4,96111111111111E-03|cu~9,55555555555556E-04|mn~5,38333333333333E-03|na~0,116944444444444|fe~0,015|mo~ | H6: |fa~0|ts~|fix~|c~|n~|p~|k~|ca~|mg~|s~|b~|zn~|cu~|mn~|na~|fe~|mo~ | I6: |fa~0,18|ts~20|fix~0,153668536172022|c~36|n~3,06|p~0,33|k~2,78|ca~1|mg~0,33|s~0,18|b~|zn~|cu~|mn~|na~|fe~|mo~ | J6: |fa~0,18|ts~100|fix~0,350806842111458|c~42|n~2,1|p~|k~|ca~|mg~|s~|b~|zn~|cu~|mn~|na~|fe~|mo~ | K6: |ts~91|c~43|n~6,04395604395604|p~0,705934065934066|k~1,14010989010989|ca~|mg~0,178021978021978|s~|b~|zn~|cu~|mn~|na~|fe~|mo~ | L6: kein | M6: Ganzpflanze | N6: 200 | O6: 18 | P6: 0.1383016826 | Q6: 36 | R6: 3.06 | S6: 0.33 | T6: 2.78 | U6: 1 | V6: 0.33 | W6: 0.18 | Y6: 0.004961111111 | Z6: 0.0009555555556 | AA6: 0.005383333333 | AB6: 0.1169444444 | AC6: 0.015 | AE6: 0 | AV6: 0.18 | AW6: 20 | AX6: 0.1536685362 | AY6: 36 | AZ6: 3.06 | BA6: 0.33 | BB6: 2.78 | BC6: 1 | BD6: 0.33 | BE6: 0.18 | BM6: 0.18 | BN6: 100 | BO6: 0.3508068421 | BP6: 42 | BQ6: 2.1 | CD6: 91 | CE6: 43 | CF6: 6.043956044 | CG6: 0.7059340659 | CH6: 1.14010989 | CJ6: 0.178021978 | CS6: 400 | CU6: 200 | CX6: 600 | DA6: 1 | DB6: 14.4 | DC6: 100 | DD6: 1 | DE6: 2 | DF6: Futterpflanzen
A7: 38 | B7: Futterbau | C7: Kleegras (30:70) | F7: |vd_fruh_koeff~400|vd_grun_koeff~|vd_unter_koeff~200|vd_sommer_koeff~|vd_winter_koeff~|vd_haupt_koeff~600|vd_ernterest_koeff~|vd_nebenproduktfaktor~|vd_verbleib_haupt~1|vd_verbleib_haupt_koeff~16|vd_spat_koeff~100 | G7: |fm~300|ts~20|fix~0,071831877194251|c~43|n~2,15|p~0,3|k~2,6|ca~1|mg~0,3|s~0,2|b~|zn~4,94444444444444E-03|cu~8,66666666666667E-04|mn~6,27777777777778E-03|na~3,77777777777778E-02|fe~0,02|mo~ | H7: |fa~0|ts~|fix~|c~|n~|p~|k~|ca~|mg~|s~|b~|zn~|cu~|mn~|na~|fe~|mo~ | I7: |fa~0,2|ts~20|fix~0,071831877194251|c~43|n~2,15|p~0,3|k~2,6|ca~|mg~0,3|s~0,18|b~|zn~|cu~|mn~|na~|fe~|mo~ | J7: |fa~0,2|ts~100|fix~0,266516511788593|c~40|n~1,76|p~|k~|ca~|mg~|s~|b~|zn~|cu~|mn~|na~|fe~|mo~ | K7: |ts~91|c~44,4|n~3,60388448760542|p~0,462477894198824|k~0,679823664707385|ca~|mg~0,136429849220547|s~|b~|zn~|cu~|mn~|na~|fe~|mo~ | L7: kein | M7: Ganzpflanze | N7: 300 | O7: 20 | P7: 0.07183187719 | Q7: 43 | R7: 2.15 | S7: 0.3 | T7: 2.6 | U7: 1 | V7: 0.3 | W7: 0.2 | Y7: 0.004944444444 | Z7: 0.0008666666667 | AA7: 0.006277777778 | AB7: 0.03777777778 | AC7: 0.02 | AE7: 0 | AV7: 0.2 | AW7: 20 | AX7: 0.07183187719 | AY7: 43 | AZ7: 2.15 | BA7: 0.3 | BB7: 2.6 | BD7: 0.3 | BE7: 0.18 | BM7: 0.2 | BN7: 100 | BO7: 0.2665165118 | BP7: 40 | BQ7: 1.76 | CD7: 91 | CE7: 44.4 | CF7: 3.603884488 | CG7: 0.4624778942 | CH7: 0.6798236647 | CJ7: 0.1364298492 | CS7: 400 | CU7: 200 | CX7: 600 | DA7: 1 | DB7: 16 | DC7: 100 | DD7: 1 | DE7: 2 | DF7: Futterpflanzen
A8: 39 | B8: Futterbau | C8: Kleegras (50:50) | F8: |vd_fruh_koeff~400|vd_grun_koeff~|vd_unter_koeff~200|vd_sommer_koeff~|vd_winter_koeff~|vd_haupt_koeff~600|vd_ernterest_koeff~|vd_nebenproduktfaktor~|vd_verbleib_haupt~1|vd_verbleib_haupt_koeff~16|vd_spat_koeff~100 | G8: |fm~300|ts~20|fix~8,40647642601122E-02|c~43|n~2,35|p~0,3|k~2,6|ca~1|mg~0,3|s~0,2|b~|zn~4,94444444444444E-03|cu~8,66666666666667E-04|mn~6,27777777777778E-03|na~3,77777777777778E-02|fe~0,02|mo~ | H8: |fa~0|ts~|fix~|c~|n~|p~|k~|ca~|mg~|s~|b~|zn~|cu~|mn~|na~|fe~|mo~ | I8: |fa~0,2|ts~20|fix~8,40647642601122E-02|c~43|n~2,35|p~0,3|k~2,6|ca~1|mg~0,3|s~0,18|b~|zn~|cu~|mn~|na~|fe~|mo~ | J8: |fa~0,2|ts~100|fix~0,266516511788593|c~40|n~1,76|p~|k~|ca~|mg~|s~|b~|zn~|cu~|mn~|na~|fe~|mo~ | K8: |ts~91|c~44|n~4,30104778941988|p~0,532036800408893|k~0,811334014822387|ca~|mg~0,148313314592384|s~|b~|zn~|cu~|mn~|na~|fe~|mo~ | L8: kein | M8: Ganzpflanze | N8: 300 | O8: 20 | P8: 0.08406476426 | Q8: 43 | R8: 2.35 | S8: 0.3 | T8: 2.6 | U8: 1 | V8: 0.3 | W8: 0.2 | Y8: 0.004944444444 | Z8: 0.0008666666667 | AA8: 0.006277777778 | AB8: 0.03777777778 | AC8: 0.02 | AE8: 0 | AV8: 0.2 | AW8: 20 | AX8: 0.08406476426 | AY8: 43 | AZ8: 2.35 | BA8: 0.3 | BB8: 2.6 | BC8: 1 | BD8: 0.3 | BE8: 0.18 | BM8: 0.2 | BN8: 100 | BO8: 0.2665165118 | BP8: 40 | BQ8: 1.76 | CD8: 91 | CE8: 44 | CF8: 4.301047789 | CG8: 0.5320368004 | CH8: 0.8113340148 | CJ8: 0.1483133146 | CS8: 400 | CU8: 200 | CX8: 600 | DA8: 1 | DB8: 16 | DC8: 100 | DD8: 1 | DE8: 2 | DF8: Futterpflanzen
A9: 40 | B9: Futterbau | C9: Kleegras (70:30) | F9: |vd_fruh_koeff~400|vd_grun_koeff~|vd_unter_koeff~200|vd_sommer_koeff~|vd_winter_koeff~|vd_haupt_koeff~600|vd_ernterest_koeff~|vd_nebenproduktfaktor~|vd_verbleib_haupt~1|vd_verbleib_haupt_koeff~16|vd_spat_koeff~100 | G9: |fm~300|ts~20|fix~9,37829639620331E-02|c~43|n~2,5|p~0,3|k~2,6|ca~1|mg~0,3|s~0,18|b~|zn~4,94444444444444E-03|cu~8,66666666666667E-04|mn~6,27777777777778E-03|na~3,77777777777778E-02|fe~0,02|mo~ | H9: |fa~0|ts~|fix~|c~|n~|p~|k~|ca~|mg~|s~|b~|zn~|cu~|mn~|na~|fe~|mo~ | I9: |fa~0,2|ts~20|fix~9,37829639620331E-02|c~43|n~2,5|p~0,3|k~2,6|ca~1|mg~0,3|s~0,18|b~|zn~|cu~|mn~|na~|fe~|mo~ | J9: |fa~0,2|ts~100|fix~0,266516511788593|c~40|n~1,76|p~|k~|ca~|mg~|s~|b~|zn~|cu~|mn~|na~|fe~|mo~ | K9: |ts~91|c~43,6|n~4,99821109123435|p~0,601595706618962|k~0,942844364937388|ca~|mg~0,160196779964222|s~|b~|zn~|cu~|mn~|na~|fe~|mo~ | L9: kein | M9: Ganzpflanze | N9: 300 | O9: 20 | P9: 0.09378296396 | Q9: 43 | R9: 2.5 | S9: 0.3 | T9: 2.6 | U9: 1 | V9: 0.3 | W9: 0.18 | Y9: 0.004944444444 | Z9: 0.0008666666667 | AA9: 0.006277777778 | AB9: 0.03777777778 | AC9: 0.02 | AE9: 0 | AV9: 0.2 | AW9: 20 | AX9: 0.09378296396 | AY9: 43 | AZ9: 2.5 | BA9: 0.3 | BB9: 2.6 | BC9: 1 | BD9: 0.3 | BE9: 0.18 | BM9: 0.2 | BN9: 100 | BO9: 0.2665165118 | BP9: 40 | BQ9: 1.76 | CD9: 91 | CE9: 43.6 | CF9: 4.998211091 | CG9: 0.6015957066 | CH9: 0.9428443649 | CJ9: 0.16019678 | CS9: 400 | CU9: 200 | CX9: 600 | DA9: 1 | DB9: 16 | DC9: 100 | DD9: 1 | DE9: 2 | DF9: Futterpflanzen
A10: 47 | B10: Futterbau | C10: Klee-Luzernegemenge | F10: |vd_fruh_koeff~400|vd_grun_koeff~|vd_unter_koeff~200|vd_sommer_koeff~|vd_winter_koeff~|vd_haupt_koeff~600|vd_ernterest_koeff~|vd_nebenproduktfaktor~|vd_verbleib_haupt~1|vd_verbleib_haupt_koeff~14,4|vd_spat_koeff~100 | G10: |fm~300|ts~18|fix~0,138435495551044|c~39|n~3,17|p~0,33|k~2,78|ca~1,65|mg~0,33|s~0,18|b~|zn~3,53333333333333E-03|cu~0,001075|mn~3,96666666666667E-03|na~7,74166666666667E-02|fe~0,015|mo~ | H10: |fa~0|ts~|fix~|c~|n~|p~|k~|ca~|mg~|s~|b~|zn~|cu~|mn~|na~|fe~|mo~ | I10: |fa~0,18|ts~20|fix~0,153817217278937|c~39|n~3,17|p~0,33|k~2,78|ca~1,65|mg~0,33|s~0,18|b~|zn~|cu~|mn~|na~|fe~|mo~ | J10: |fa~0,18|ts~100|fix~0,364201254090275|c~40|n~2,1|p~|k~|ca~|mg~|s~|b~|zn~|cu~|mn~|na~|fe~|mo~ | K10: |ts~91|c~43|n~6,04395604395604|p~0,705934065934066|k~1,14010989010989|ca~|mg~0,178021978021978|s~|b~|zn~|cu~|mn~|na~|fe~|mo~ | L10: kein | M10: Ganzpflanze | N10: 300 | O10: 18 | P10: 0.1384354956 | Q10: 39 | R10: 3.17 | S10: 0.33 | T10: 2.78 | U10: 1.65 | V10: 0.33 | W10: 0.18 | Y10: 0.003533333333 | Z10: 0.001075 | AA10: 0.003966666667 | AB10: 0.07741666667 | AC10: 0.015 | AE10: 0 | AV10: 0.18 | AW10: 20 | AX10: 0.1538172173 | AY10: 39 | AZ10: 3.17 | BA10: 0.33 | BB10: 2.78 | BC10: 1.65 | BD10: 0.33 | BE10: 0.18 | BM10: 0.18 | BN10: 100 | BO10: 0.3642012541 | BP10: 40 | BQ10: 2.1 | CD10: 91 | CE10: 43 | CF10: 6.043956044 | CG10: 0.7059340659 | CH10: 1.14010989 | CJ10: 0.178021978 | CS10: 400 | CU10: 200 | CX10: 600 | DA10: 1 | DB10: 14.4 | DC10: 100 | DD10: 1 | DE10: 2 | DF10: Futterpflanzen
A11: 106 | B11: Futterbau | C11: Körnerleguminosengemenge, GPS | F11: |vd_fruh_koeff~400|vd_grun_koeff~|vd_unter_koeff~200|vd_sommer_koeff~|vd_winter_koeff~|vd_haupt_koeff~600|vd_ernterest_koeff~|vd_nebenproduktfaktor~|vd_verbleib_haupt~1|vd_verbleib_haupt_koeff~12|vd_spat_koeff~100 | G11: |fm~200|ts~15|fix~0,123384871209997|c~44|n~3,47|p~0,38|k~3|ca~|mg~0,26|s~0,18|b~|zn~0,005|cu~0,0009|mn~0,006|na~8,66666666666667E-02|fe~0,02|mo~ | H11: |fa~0|ts~|fix~|c~|n~|p~|k~|ca~|mg~|s~|b~|zn~|cu~|mn~|na~|fe~|mo~ | I11: |fa~0,2|ts~15|fix~0,123384871209997|c~44|n~3,47|p~0,38|k~3|ca~|mg~0,26|s~|b~|zn~|cu~|mn~|na~|fe~|mo~ | J11: |fa~0,15|ts~100|fix~0,103360341868496|c~40|n~1,03|p~|k~|ca~|mg~|s~|b~|zn~|cu~|mn~|na~|fe~|mo~ | K11: |ts~86|c~43,8333333333333|n~5,64616666666667|p~0,53|k~1,18658333333333|ca~0,191166666666667|mg~0,188083333333333|s~0,246666666666667|b~0,001485|zn~4,25166666666667E-03|cu~8,03333333333333E-04|mn~0,001725|na~0,0253|fe~1,59391666666667E-02|mo~0,0001738 | L11: kein | M11: Ganzpflanze | N11: 200 | O11: 15 | P11: 0.1233848712 | Q11: 44 | R11: 3.47 | S11: 0.38 | T11: 3 | V11: 0.26 | W11: 0.18 | Y11: 0.005 | Z11: 0.0009 | AA11: 0.006 | AB11: 0.08666666667 | AC11: 0.02 | AE11: 0 | AV11: 0.2 | AW11: 15 | AX11: 0.1233848712 | AY11: 44 | AZ11: 3.47 | BA11: 0.38 | BB11: 3 | BD11: 0.26 | BM11: 0.15 | BN11: 100 | BO11: 0.1033603419 | BP11: 40 | BQ11: 1.03 | CD11: 86 | CE11: 43.83333333 | CF11: 5.646166667 | CG11: 0.53 | CH11: 1.186583333 | CI11: 0.1911666667 | CJ11: 0.1880833333 | CK11: 0.2466666667 | CL11: 0.001485 | CM11: 0.004251666667 | CN11: 0.0008033333333 | CO11: 0.001725 | CP11: 0.0253 | CQ11: 0.01593916667 | CR11: 0.0001738 | CS11: 400 | CU11: 200 | CX11: 600 | DA11: 1 | DB11: 12 | DC11: 100 | DD11: 2 | DE11: 2 | DF11: Futterpflanzen
A12: 44 | B12: Futterbau | C12: Luzerne | F12: |vd_fruh_koeff~400|vd_grun_koeff~|vd_unter_koeff~200|vd_sommer_koeff~|vd_winter_koeff~|vd_haupt_koeff~600|vd_ernterest_koeff~|vd_nebenproduktfaktor~|vd_verbleib_haupt~1|vd_verbleib_haupt_koeff~14,4|vd_spat_koeff~100 | G12: |fm~200|ts~18|fix~0,144048669660449|c~45|n~3,45|p~0,33|k~2,78|ca~1,8|mg~0,28|s~0,18|b~|zn~2,68333333333333E-03|cu~1,08333333333333E-03|mn~3,78333333333333E-03|na~0,069|fe~0,015|mo~ | H12: |fa~0|ts~|fix~|c~|n~|p~|k~|ca~|mg~|s~|b~|zn~|cu~|mn~|na~|fe~|mo~ | I12: |fa~0,18|ts~20|fix~0,160054077400499|c~45|n~3,45|p~0,33|k~2,78|ca~1,8|mg~0,28|s~0,18|b~|zn~|cu~|mn~|na~|fe~|mo~ | J12: |fa~0,18|ts~100|fix~0,350806842111458|c~42|n~2,1|p~|k~|ca~|mg~|s~|b~|zn~|cu~|mn~|na~|fe~|mo~ | K12: |ts~91|c~43|n~6,04395604395604|p~0,705934065934066|k~1,14010989010989|ca~|mg~0,178021978021978|s~|b~|zn~|cu~|mn~|na~|fe~|mo~ | L12: kein | M12: Ganzpflanze | N12: 200 | O12: 18 | P12: 0.1440486697 | Q12: 45 | R12: 3.45 | S12: 0.33 | T12: 2.78 | U12: 1.8 | V12: 0.28 | W12: 0.18 | Y12: 0.002683333333 | Z12: 0.001083333333 | AA12: 0.003783333333 | AB12: 0.069 | AC12: 0.015 | AE12: 0 | AV12: 0.18 | AW12: 20 | AX12: 0.1600540774 | AY12: 45 | AZ12: 3.45 | BA12: 0.33 | BB12: 2.78 | BC12: 1.8 | BD12: 0.28 | BE12: 0.18 | BM12: 0.18 | BN12: 100 | BO12: 0.3508068421 | BP12: 42 | BQ12: 2.1 | CD12: 91 | CE12: 43 | CF12: 6.043956044 | CG12: 0.7059340659 | CH12: 1.14010989 | CJ12: 0.178021978 | CS12: 400 | CU12: 200 | CX12: 600 | DA12: 1 | DB12: 14.4 | DC12: 100 | DD12: 1 | DE12: 2 | DF12: Futterpflanzen
A13: 41 | B13: Futterbau | C13: Luzernegras (30:70) | F13: |vd_fruh_koeff~400|vd_grun_koeff~|vd_unter_koeff~200|vd_sommer_koeff~|vd_winter_koeff~|vd_haupt_koeff~600|vd_ernterest_koeff~|vd_nebenproduktfaktor~|vd_verbleib_haupt~1|vd_verbleib_haupt_koeff~16|vd_spat_koeff~100 | G13: |fm~300|ts~20|fix~7,64815761329453E-02|c~44|n~2,25|p~0,35|k~2,7|ca~1|mg~0,2|s~0,18|b~|zn~0,004|cu~0,0008|mn~0,0055|na~2,83333333333333E-02|fe~0,02|mo~ | H13: |fa~0|ts~|fix~|c~|n~|p~|k~|ca~|mg~|s~|b~|zn~|cu~|mn~|na~|fe~|mo~ | I13: |fa~0,2|ts~20|fix~7,64815761329453E-02|c~44|n~2,25|p~0,35|k~2,7|ca~1|mg~0,2|s~0,18|b~|zn~|cu~|mn~|na~|fe~|mo~ | J13: |fa~0,2|ts~100|fix~0,349010545998551|c~40|n~2,05|p~|k~|ca~|mg~|s~|b~|zn~|cu~|mn~|na~|fe~|mo~ | K13: |ts~91|c~44,4|n~3,60388448760542|p~0,462477894198824|k~0,679823664707385|ca~|mg~0,136429849220547|s~|b~|zn~|cu~|mn~|na~|fe~|mo~ | L13: kein | M13: Ganzpflanze | N13: 300 | O13: 20 | P13: 0.07648157613 | Q13: 44 | R13: 2.25 | S13: 0.35 | T13: 2.7 | U13: 1 | V13: 0.2 | W13: 0.18 | Y13: 0.004 | Z13: 0.0008 | AA13: 0.0055 | AB13: 0.02833333333 | AC13: 0.02 | AE13: 0 | AV13: 0.2 | AW13: 20 | AX13: 0.07648157613 | AY13: 44 | AZ13: 2.25 | BA13: 0.35 | BB13: 2.7 | BC13: 1 | BD13: 0.2 | BE13: 0.18 | BM13: 0.2 | BN13: 100 | BO13: 0.349010546 | BP13: 40 | BQ13: 2.05 | CD13: 91 | CE13: 44.4 | CF13: 3.603884488 | CG13: 0.4624778942 | CH13: 0.6798236647 | CJ13: 0.1364298492 | CS13: 400 | CU13: 200 | CX13: 600 | DA13: 1 | DB13: 16 | DC13: 100 | DD13: 1 | DE13: 2 | DF13: Futterpflanzen
A14: 42 | B14: Futterbau | C14: Luzernegras (50:50) | F14: |vd_fruh_koeff~400|vd_grun_koeff~|vd_unter_koeff~200|vd_sommer_koeff~|vd_winter_koeff~|vd_haupt_koeff~600|vd_ernterest_koeff~|vd_nebenproduktfaktor~|vd_verbleib_haupt~1|vd_verbleib_haupt_koeff~16|vd_spat_koeff~100 | G14: |fm~300|ts~20|fix~9,21416685911687E-02|c~44|n~2,5|p~0,35|k~2,7|ca~1|mg~0,2|s~0,18|b~|zn~0,004|cu~0,0008|mn~0,0055|na~2,83333333333333E-02|fe~0,02|mo~ | H14: |fa~0|ts~|fix~|c~|n~|p~|k~|ca~|mg~|s~|b~|zn~|cu~|mn~|na~|fe~|mo~ | I14: |fa~0,2|ts~20|fix~9,21416685911687E-02|c~44|n~2,5|p~0,35|k~2,7|ca~1|mg~0,2|s~0,18|b~|zn~|cu~|mn~|na~|fe~|mo~ | J14: |fa~0,2|ts~100|fix~0,349010545998551|c~40|n~2,05|p~|k~|ca~|mg~|s~|b~|zn~|cu~|mn~|na~|fe~|mo~ | K14: |ts~91|c~44|n~4,30104778941988|p~0,532036800408893|k~0,811334014822387|ca~|mg~0,148313314592384|s~|b~|zn~|cu~|mn~|na~|fe~|mo~ | L14: kein | M14: Ganzpflanze | N14: 300 | O14: 20 | P14: 0.09214166859 | Q14: 44 | R14: 2.5 | S14: 0.35 | T14: 2.7 | U14: 1 | V14: 0.2 | W14: 0.18 | Y14: 0.004 | Z14: 0.0008 | AA14: 0.0055 | AB14: 0.02833333333 | AC14: 0.02 | AE14: 0 | AV14: 0.2 | AW14: 20 | AX14: 0.09214166859 | AY14: 44 | AZ14: 2.5 | BA14: 0.35 | BB14: 2.7 | BC14: 1 | BD14: 0.2 | BE14: 0.18 | BM14: 0.2 | BN14: 100 | BO14: 0.349010546 | BP14: 40 | BQ14: 2.05 | CD14: 91 | CE14: 44 | CF14: 4.301047789 | CG14: 0.5320368004 | CH14: 0.8113340148 | CJ14: 0.1483133146 | CS14: 400 | CU14: 200 | CX14: 600 | DA14: 1 | DB14: 16 | DC14: 100 | DD14: 1 | DE14: 2 | DF14: Futterpflanzen
A15: 43 | B15: Futterbau | C15: Luzernegras (70:30) | F15: |vd_fruh_koeff~400|vd_grun_koeff~|vd_unter_koeff~200|vd_sommer_koeff~|vd_winter_koeff~|vd_haupt_koeff~600|vd_ernterest_koeff~|vd_nebenproduktfaktor~|vd_verbleib_haupt~1|vd_verbleib_haupt_koeff~16|vd_spat_koeff~100 | G15: |fm~300|ts~20|fix~0,10905318145945|c~44|n~2,75|p~0,35|k~2,7|ca~1|mg~0,2|s~0,18|b~|zn~0,004|cu~0,0008|mn~0,0055|na~2,83333333333333E-02|fe~0,02|mo~ | H15: |fa~0|ts~|fix~|c~|n~|p~|k~|ca~|mg~|s~|b~|zn~|cu~|mn~|na~|fe~|mo~ | I15: |fa~0,2|ts~20|fix~0,10905318145945|c~44|n~2,75|p~0,35|k~2,7|ca~1|mg~0,2|s~0,18|b~|zn~|cu~|mn~|na~|fe~|mo~ | J15: |fa~0,2|ts~100|fix~0,349010545998551|c~40|n~2,05|p~|k~|ca~|mg~|s~|b~|zn~|cu~|mn~|na~|fe~|mo~ | K15: |ts~91|c~43,6|n~4,99821109123435|p~0,601595706618962|k~0,942844364937388|ca~|mg~0,160196779964222|s~|b~|zn~|cu~|mn~|na~|fe~|mo~ | L15: kein | M15: Ganzpflanze | N15: 300 | O15: 20 | P15: 0.1090531815 | Q15: 44 | R15: 2.75 | S15: 0.35 | T15: 2.7 | U15: 1 | V15: 0.2 | W15: 0.18 | Y15: 0.004 | Z15: 0.0008 | AA15: 0.0055 | AB15: 0.02833333333 | AC15: 0.02 | AE15: 0 | AV15: 0.2 | AW15: 20 | AX15: 0.1090531815 | AY15: 44 | AZ15: 2.75 | BA15: 0.35 | BB15: 2.7 | BC15: 1 | BD15: 0.2 | BE15: 0.18 | BM15: 0.2 | BN15: 100 | BO15: 0.349010546 | BP15: 40 | BQ15: 2.05 | CD15: 91 | CE15: 43.6 | CF15: 4.998211091 | CG15: 0.6015957066 | CH15: 0.9428443649 | CJ15: 0.16019678 | CS15: 400 | CU15: 200 | CX15: 600 | DA15: 1 | DB15: 16 | DC15: 100 | DD15: 1 | DE15: 2 | DF15: Futterpflanzen
A16: 48 | B16: Futterbau | C16: Luzerne-Kleegras | F16: |vd_fruh_koeff~400|vd_grun_koeff~|vd_unter_koeff~200|vd_sommer_koeff~|vd_winter_koeff~|vd_haupt_koeff~600|vd_ernterest_koeff~|vd_nebenproduktfaktor~|vd_verbleib_haupt~1|vd_verbleib_haupt_koeff~16|vd_spat_koeff~100 | G16: |fm~300|ts~20|fix~0,153817217278937|c~39|n~3,17|p~0,33|k~2,78|ca~1,65|mg~0,33|s~0,18|b~|zn~0,0041|cu~9,54166666666667E-04|mn~5,23333333333333E-03|na~0,119541666666667|fe~0,015|mo~ | H16: |fa~0|ts~|fix~|c~|n~|p~|k~|ca~|mg~|s~|b~|zn~|cu~|mn~|na~|fe~|mo~ | I16: |fa~0,2|ts~20|fix~0,153817217278937|c~39|n~3,17|p~0,33|k~2,78|ca~1,65|mg~0,33|s~0,18|b~|zn~|cu~|mn~|na~|fe~|mo~ | J16: |fa~0,2|ts~100|fix~0,349010545998551|c~40|n~2,05|p~|k~|ca~|mg~|s~|b~|zn~|cu~|mn~|na~|fe~|mo~ | K16: |ts~91|c~44|n~4,30104778941988|p~0,532036800408893|k~0,811334014822387|ca~|mg~0,148313314592384|s~|b~|zn~|cu~|mn~|na~|fe~|mo~ | L16: kein | M16: Ganzpflanze | N16: 300 | O16: 20 | P16: 0.1538172173 | Q16: 39 | R16: 3.17 | S16: 0.33 | T16: 2.78 | U16: 1.65 | V16: 0.33 | W16: 0.18 | Y16: 0.0041 | Z16: 0.0009541666667 | AA16: 0.005233333333 | AB16: 0.1195416667 | AC16: 0.015 | AE16: 0 | AV16: 0.2 | AW16: 20 | AX16: 0.1538172173 | AY16: 39 | AZ16: 3.17 | BA16: 0.33 | BB16: 2.78 | BC16: 1.65 | BD16: 0.33 | BE16: 0.18 | BM16: 0.2 | BN16: 100 | BO16: 0.349010546 | BP16: 40 | BQ16: 2.05 | CD16: 91 | CE16: 44 | CF16: 4.301047789 | CG16: 0.5320368004 | CH16: 0.8113340148 | CJ16: 0.1483133146 | CS16: 400 | CU16: 200 | CX16: 600 | DA16: 1 | DB16: 16 | DC16: 100 | DD16: 1 | DE16: 2 | DF16: Futterpflanzen
A17: 98 | B17: Futterbau | C17: Perserklee | F17: |vd_fruh_koeff~400|vd_grun_koeff~|vd_unter_koeff~200|vd_sommer_koeff~|vd_winter_koeff~|vd_haupt_koeff~600|vd_ernterest_koeff~|vd_nebenproduktfaktor~|vd_verbleib_haupt~1|vd_verbleib_haupt_koeff~16|vd_spat_koeff~100 | G17: |fm~200|ts~20|fix~0,147418325102531|c~38|n~3,06|p~0,33|k~2,78|ca~1,6|mg~0,33|s~0,18|b~|zn~0,005|cu~0,0009|mn~0,006|na~0,135|fe~0,015|mo~ | H17: |fa~0|ts~|fix~|c~|n~|p~|k~|ca~|mg~|s~|b~|zn~|cu~|mn~|na~|fe~|mo~ | I17: |fa~0,2|ts~20|fix~0,147418325102531|c~38|n~3,06|p~|k~|ca~|mg~|s~|b~|zn~|cu~|mn~|na~|fe~|mo~ | J17: |fa~0,2|ts~100|fix~0,350806842111458|c~42|n~2,1|p~|k~|ca~|mg~|s~|b~|zn~|cu~|mn~|na~|fe~|mo~ | K17: |ts~91|c~43|n~6,04395604395604|p~0,705934065934066|k~1,14010989010989|ca~|mg~0,178021978021978|s~|b~|zn~|cu~|mn~|na~|fe~|mo~ | L17: kein | M17: Ganzpflanze | N17: 200 | O17: 20 | P17: 0.1474183251 | Q17: 38 | R17: 3.06 | S17: 0.33 | T17: 2.78 | U17: 1.6 | V17: 0.33 | W17: 0.18 | Y17: 0.005 | Z17: 0.0009 | AA17: 0.006 | AB17: 0.135 | AC17: 0.015 | AE17: 0 | AV17: 0.2 | AW17: 20 | AX17: 0.1474183251 | AY17: 38 | AZ17: 3.06 | BM17: 0.2 | BN17: 100 | BO17: 0.3508068421 | BP17: 42 | BQ17: 2.1 | CD17: 91 | CE17: 43 | CF17: 6.043956044 | CG17: 0.7059340659 | CH17: 1.14010989 | CJ17: 0.178021978 | CS17: 400 | CU17: 200 | CX17: 600 | DA17: 1 | DB17: 16 | DC17: 100 | DD17: 1 | DE17: 2 | DF17: Futterpflanzen
A18: 45 | B18: Futterbau | C18: Rotklee | F18: |vd_fruh_koeff~400|vd_grun_koeff~|vd_unter_koeff~200|vd_sommer_koeff~|vd_winter_koeff~|vd_haupt_koeff~600|vd_ernterest_koeff~|vd_nebenproduktfaktor~|vd_verbleib_haupt~1|vd_verbleib_haupt_koeff~14,4|vd_spat_koeff~100 | G18: |fm~200|ts~18|fix~0,132676492592278|c~38|n~3,06|p~0,33|k~2,78|ca~1,5|mg~0,33|s~0,18|b~|zn~4,38333333333333E-03|cu~1,06666666666667E-03|mn~0,00415|na~8,58333333333333E-02|fe~0,015|mo~ | H18: |fa~0|ts~|fix~|c~|n~|p~|k~|ca~|mg~|s~|b~|zn~|cu~|mn~|na~|fe~|mo~ | I18: |fa~0,18|ts~20|fix~0,147418325102531|c~38|n~3,06|p~0,33|k~2,78|ca~1,5|mg~0,33|s~0,18|b~|zn~|cu~|mn~|na~|fe~|mo~ | J18: |fa~0,18|ts~100|fix~0,350806842111458|c~42|n~2,1|p~|k~|ca~|mg~|s~|b~|zn~|cu~|mn~|na~|fe~|mo~ | K18: |ts~91|c~43|n~6,04395604395604|p~0,705934065934066|k~1,14010989010989|ca~|mg~0,178021978021978|s~|b~|zn~|cu~|mn~|na~|fe~|mo~ | L18: kein | M18: Ganzpflanze | N18: 200 | O18: 18 | P18: 0.1326764926 | Q18: 38 | R18: 3.06 | S18: 0.33 | T18: 2.78 | U18: 1.5 | V18: 0.33 | W18: 0.18 | Y18: 0.004383333333 | Z18: 0.001066666667 | AA18: 0.00415 | AB18: 0.08583333333 | AC18: 0.015 | AE18: 0 | AV18: 0.18 | AW18: 20 | AX18: 0.1474183251 | AY18: 38 | AZ18: 3.06 | BA18: 0.33 | BB18: 2.78 | BC18: 1.5 | BD18: 0.33 | BE18: 0.18 | BM18: 0.18 | BN18: 100 | BO18: 0.3508068421 | BP18: 42 | BQ18: 2.1 | CD18: 91 | CE18: 43 | CF18: 6.043956044 | CG18: 0.7059340659 | CH18: 1.14010989 | CJ18: 0.178021978 | CS18: 400 | CU18: 200 | CX18: 600 | DA18: 1 | DB18: 14.4 | DC18: 100 | DD18: 1 | DE18: 2 | DF18: Futterpflanzen
A19: 104 | B19: Futterbau | C19: Sandhafer | F19: |vd_fruh_koeff~400|vd_grun_koeff~|vd_unter_koeff~200|vd_sommer_koeff~|vd_winter_koeff~|vd_haupt_koeff~600|vd_ernterest_koeff~|vd_nebenproduktfaktor~|vd_verbleib_haupt~1|vd_verbleib_haupt_koeff~12|vd_spat_koeff~100 | G19: |fm~300|ts~15|fix~6,82103256464826E-02|c~46|n~2,53|p~0,38|k~3|ca~0,34|mg~0,26|s~|b~|zn~4,66666666666667E-03|cu~8,33333333333333E-04|mn~0,0065|na~0,161666666666667|fe~0,015|mo~ | H19: |fa~0|ts~|fix~|c~|n~|p~|k~|ca~|mg~|s~|b~|zn~|cu~|mn~|na~|fe~|mo~ | I19: |fa~0,2|ts~15|fix~6,82103256464826E-02|c~46|n~2,53|p~0,38|k~3|ca~|mg~|s~|b~|zn~|cu~|mn~|na~|fe~|mo~ | J19: |fa~0,15|ts~100|fix~0,166758441077543|c~40|n~1,35|p~|k~|ca~|mg~|s~|b~|zn~|cu~|mn~|na~|fe~|mo~ | K19: |ts~91|c~45|n~2,55813953488372|p~0,358139534883721|k~0,482558139534884|ca~|mg~0,118604651162791|s~|b~|zn~|cu~|mn~|na~|fe~|mo~ | L19: kein | M19: Ganzpflanze | N19: 300 | O19: 15 | P19: 0.06821032565 | Q19: 46 | R19: 2.53 | S19: 0.38 | T19: 3 | U19: 0.34 | V19: 0.26 | Y19: 0.004666666667 | Z19: 0.0008333333333 | AA19: 0.0065 | AB19: 0.1616666667 | AC19: 0.015 | AE19: 0 | AV19: 0.2 | AW19: 15 | AX19: 0.06821032565 | AY19: 46 | AZ19: 2.53 | BA19: 0.38 | BB19: 3 | BM19: 0.15 | BN19: 100 | BO19: 0.1667584411 | BP19: 40 | BQ19: 1.35 | CD19: 91 | CE19: 45 | CF19: 2.558139535 | CG19: 0.3581395349 | CH19: 0.4825581395 | CJ19: 0.1186046512 | CS19: 400 | CU19: 200 | CX19: 600 | DA19: 1 | DB19: 12 | DC19: 100 | DD19: 0 | DE19: 2 | DF19: Futterpflanzen
A20: 51 | B20: Futterbau | C20: Silomais | F20: |vd_fruh_koeff~|vd_grun_koeff~|vd_unter_koeff~|vd_sommer_koeff~|vd_winter_koeff~|vd_haupt_koeff~-1040|vd_ernterest_koeff~|vd_nebenproduktfaktor~|vd_verbleib_haupt~2|vd_verbleib_haupt_koeff~|vd_spat_koeff~ | G20: |fm~250|ts~35|fix~3,89299027673208E-02|c~45|n~1,13|p~0,25|k~1,33|ca~0,426|mg~0,3|s~0,2|b~|zn~0,0034|cu~0,0005|mn~0,0035|na~0,026|fe~0,01|mo~ | H20: |fa~0|ts~|fix~|c~|n~|p~|k~|ca~|mg~|s~|b~|zn~|cu~|mn~|na~|fe~|mo~ | I20: |fa~3,52191413237925E-02|ts~86|fix~9,56563325139883E-02|c~45|n~1,13|p~0,25|k~1,33|ca~|mg~0,3|s~0,2|b~|zn~|cu~|mn~|na~|fe~|mo~ | J20: |fa~0,039375|ts~100|fix~9,80974512622524E-02|c~40|n~1|p~|k~|ca~|mg~|s~|b~|zn~|cu~|mn~|na~|fe~|mo~ | K20: |ts~86|c~44|n~1,49|p~0,38|k~0,47|ca~0,009|mg~0,23|s~0,19|b~|zn~0,003|cu~0,0004|mn~0,0009|na~0,02|fe~0,0032|mo~ | L20: kein | M20: Ganzpflanze | N20: 250 | O20: 35 | P20: 0.03892990277 | Q20: 45 | R20: 1.13 | S20: 0.25 | T20: 1.33 | U20: 0.426 | V20: 0.3 | W20: 0.2 | Y20: 0.0034 | Z20: 0.0005 | AA20: 0.0035 | AB20: 0.026 | AC20: 0.01 | AE20: 0 | AV20: 0.03521914132 | AW20: 86 | AX20: 0.09565633251 | AY20: 45 | AZ20: 1.13 | BA20: 0.25 | BB20: 1.33 | BD20: 0.3 | BE20: 0.2 | BM20: 0.039375 | BN20: 100 | BO20: 0.09809745126 | BP20: 40 | BQ20: 1 | CD20: 86 | CE20: 44 | CF20: 1.49 | CG20: 0.38 | CH20: 0.47 | CI20: 0.009 | CJ20: 0.23 | CK20: 0.19 | CM20: 0.003 | CN20: 0.0004 | CO20: 0.0009 | CP20: 0.02 | CQ20: 0.0032 | CX20: -1040 | DA20: 2 | DD20: 0 | DE20: 1 | DF20: Futterpflanzen
A21: 50 | B21: Futterbau | C21: Weidelgras | F21: |vd_fruh_koeff~400|vd_grun_koeff~|vd_unter_koeff~200|vd_sommer_koeff~|vd_winter_koeff~|vd_haupt_koeff~600|vd_ernterest_koeff~|vd_nebenproduktfaktor~|vd_verbleib_haupt~1|vd_verbleib_haupt_koeff~16|vd_spat_koeff~100 | G21: |fm~300|ts~20|fix~5,57492396761688E-02|c~45|n~1,9|p~0,35|k~2,7|ca~0,6|mg~0,2|s~0,18|b~|zn~4,66666666666667E-03|cu~8,33333333333333E-04|mn~0,0065|na~0,161666666666667|fe~0,015|mo~ | H21: |fa~0|ts~|fix~|c~|n~|p~|k~|ca~|mg~|s~|b~|zn~|cu~|mn~|na~|fe~|mo~ | I21: |fa~0,2|ts~20|fix~5,57492396761688E-02|c~45|n~1,9|p~0,35|k~2,7|ca~0,6|mg~0,2|s~0,18|b~|zn~|cu~|mn~|na~|fe~|mo~ | J21: |fa~0,2|ts~100|fix~0,236177269280166|c~45|n~1,73|p~|k~|ca~|mg~|s~|b~|zn~|cu~|mn~|na~|fe~|mo~ | K21: |ts~91|c~45|n~2,55813953488372|p~0,358139534883721|k~0,482558139534884|ca~|mg~0,118604651162791|s~|b~|zn~|cu~|mn~|na~|fe~|mo~ | L21: kein | M21: Ganzpflanze | N21: 300 | O21: 20 | P21: 0.05574923968 | Q21: 45 | R21: 1.9 | S21: 0.35 | T21: 2.7 | U21: 0.6 | V21: 0.2 | W21: 0.18 | Y21: 0.004666666667 | Z21: 0.0008333333333 | AA21: 0.0065 | AB21: 0.1616666667 | AC21: 0.015 | AE21: 0 | AV21: 0.2 | AW21: 20 | AX21: 0.05574923968 | AY21: 45 | AZ21: 1.9 | BA21: 0.35 | BB21: 2.7 | BC21: 0.6 | BD21: 0.2 | BE21: 0.18 | BM21: 0.2 | BN21: 100 | BO21: 0.2361772693 | BP21: 45 | BQ21: 1.73 | CD21: 91 | CE21: 45 | CF21: 2.558139535 | CG21: 0.3581395349 | CH21: 0.4825581395 | CJ21: 0.1186046512 | CS21: 400 | CU21: 200 | CX21: 600 | DA21: 1 | DB21: 16 | DC21: 100 | DD21: 0 | DE21: 2 | DF21: Futterpflanzen
A22: 107 | B22: Futterbau | C22: Weißklee | F22: |vd_fruh_koeff~400|vd_grun_koeff~|vd_unter_koeff~200|vd_sommer_koeff~|vd_winter_koeff~|vd_haupt_koeff~600|vd_ernterest_koeff~|vd_nebenproduktfaktor~|vd_verbleib_haupt~1|vd_verbleib_haupt_koeff~14,4|vd_spat_koeff~100 | G22: |fm~200|ts~18|fix~0,13830168255482|c~36|n~3,06|p~0,33|k~2,78|ca~1|mg~0,33|s~0,18|b~|zn~4,96111111111111E-03|cu~9,55555555555556E-04|mn~5,38333333333333E-03|na~0,116944444444444|fe~0,015|mo~ | H22: |fa~0|ts~|fix~|c~|n~|p~|k~|ca~|mg~|s~|b~|zn~|cu~|mn~|na~|fe~|mo~ | I22: |fa~0,18|ts~20|fix~0,153668536172022|c~36|n~3,06|p~0,33|k~2,78|ca~1|mg~0,33|s~0,18|b~|zn~|cu~|mn~|na~|fe~|mo~ | J22: |fa~0,18|ts~100|fix~0,350806842111458|c~42|n~2,1|p~|k~|ca~|mg~|s~|b~|zn~|cu~|mn~|na~|fe~|mo~ | K22: |ts~91|c~43|n~6,04395604395604|p~0,705934065934066|k~1,14010989010989|ca~|mg~0,178021978021978|s~|b~|zn~|cu~|mn~|na~|fe~|mo~ | L22: kein | M22: Ganzpflanze | N22: 200 | O22: 18 | P22: 0.1383016826 | Q22: 36 | R22: 3.06 | S22: 0.33 | T22: 2.78 | U22: 1 | V22: 0.33 | W22: 0.18 | Y22: 0.004961111111 | Z22: 0.0009555555556 | AA22: 0.005383333333 | AB22: 0.1169444444 | AC22: 0.015 | AE22: 0 | AV22: 0.18 | AW22: 20 | AX22: 0.1536685362 | AY22: 36 | AZ22: 3.06 | BA22: 0.33 | BB22: 2.78 | BC22: 1 | BD22: 0.33 | BE22: 0.18 | BM22: 0.18 | BN22: 100 | BO22: 0.3508068421 | BP22: 42 | BQ22: 2.1 | CD22: 91 | CE22: 43 | CF22: 6.043956044 | CG22: 0.7059340659 | CH22: 1.14010989 | CJ22: 0.178021978 | CS22: 400 | CU22: 200 | CX22: 600 | DA22: 1 | DB22: 14.4 | DC22: 100 | DD22: 1 | DE22: 2 | DF22: Futterpflanzen
A23: 103 | B23: Futterbau | C23: Wickroggengemenge | F23: |vd_fruh_koeff~400|vd_grun_koeff~|vd_unter_koeff~200|vd_sommer_koeff~|vd_winter_koeff~|vd_haupt_koeff~600|vd_ernterest_koeff~|vd_nebenproduktfaktor~|vd_verbleib_haupt~1|vd_verbleib_haupt_koeff~12|vd_spat_koeff~100 | G23: |fm~250|ts~15|fix~7,53876423520422E-02|c~43|n~2,6|p~0,27|k~2,2|ca~1|mg~0,25|s~|b~|zn~0,005|cu~0,0009|mn~0,006|na~0,01|fe~0,02|mo~ | H23: |fa~0|ts~|fix~|c~|n~|p~|k~|ca~|mg~|s~|b~|zn~|cu~|mn~|na~|fe~|mo~ | I23: |fa~0,2|ts~15|fix~6,67868525154653E-02|c~46|n~2,5|p~0,35|k~3|ca~|mg~|s~|b~|zn~|cu~|mn~|na~|fe~|mo~ | J23: |fa~0,15|ts~100|fix~0,103360341868496|c~40|n~1,03|p~|k~|ca~|mg~|s~|b~|zn~|cu~|mn~|na~|fe~|mo~ | K23: |ts~86|c~44,5|n~2,96|p~0,43|k~0,81|ca~0,22|mg~0,17|s~0,12|b~0,0020205|zn~0,004375|cu~0,0005045|mn~0,00421|na~0,052025|fe~0,04565|mo~0,00026 | L23: kein | M23: Ganzpflanze | N23: 250 | O23: 15 | P23: 0.07538764235 | Q23: 43 | R23: 2.6 | S23: 0.27 | T23: 2.2 | U23: 1 | V23: 0.25 | Y23: 0.005 | Z23: 0.0009 | AA23: 0.006 | AB23: 0.01 | AC23: 0.02 | AE23: 0 | AV23: 0.2 | AW23: 15 | AX23: 0.06678685252 | AY23: 46 | AZ23: 2.5 | BA23: 0.35 | BB23: 3 | BM23: 0.15 | BN23: 100 | BO23: 0.1033603419 | BP23: 40 | BQ23: 1.03 | CD23: 86 | CE23: 44.5 | CF23: 2.96 | CG23: 0.43 | CH23: 0.81 | CI23: 0.22 | CJ23: 0.17 | CK23: 0.12 | CL23: 0.0020205 | CM23: 0.004375 | CN23: 0.0005045 | CO23: 0.00421 | CP23: 0.052025 | CQ23: 0.04565 | CR23: 0.00026 | CS23: 400 | CU23: 200 | CX23: 600 | DA23: 1 | DB23: 12 | DC23: 100 | DD23: 2 | DE23: 2 | DF23: Futterpflanzen
A24: 16 | B24: Marktfrucht | C24: Amaranth | F24: |vd_fruh_koeff~|vd_grun_koeff~|vd_unter_koeff~|vd_sommer_koeff~|vd_winter_koeff~|vd_haupt_koeff~-520|vd_ernterest_koeff~100|vd_nebenproduktfaktor~1,1|vd_verbleib_haupt~2|vd_verbleib_haupt_koeff~|vd_spat_koeff~ | G24: |fm~20|ts~86|fix~0,339278020538811|c~44|n~2,29|p~0,44|k~0,46|ca~0,23|mg~0,31|s~0,1344|b~|zn~0,003|cu~0,00078|mn~0,00226|na~0,0245|fe~0,0073|mo~ | H24: |fa~1,1|ts~86|fix~0,15519208921133|c~46|n~1,5|p~|k~|ca~|mg~|s~|b~|zn~|cu~|mn~|na~|fe~|mo~ | I24: |fa~0,11|ts~86|fix~0,15519208921133|c~46|n~1,5|p~|k~|ca~|mg~|s~|b~|zn~|cu~|mn~|na~|fe~|mo~ | J24: |fa~0,601398601398601|ts~100|fix~8,14251337302235E-02|c~40|n~0,9|p~|k~|ca~|mg~|s~|b~|zn~|cu~|mn~|na~|fe~|mo~ | K24: |ts~86|c~44|n~2,29|p~0,44|k~0,46|ca~0,23|mg~0,31|s~0,1344|b~|zn~0,003|cu~0,00078|mn~0,00226|na~0,0245|fe~0,0073|mo~ | L24: Stroh | M24: Korn | N24: 20 | O24: 86 | P24: 0.3392780205 | Q24: 44 | R24: 2.29 | S24: 0.44 | T24: 0.46 | U24: 0.23 | V24: 0.31 | W24: 0.1344 | Y24: 0.003 | Z24: 0.00078 | AA24: 0.00226 | AB24: 0.0245 | AC24: 0.0073 | AE24: 1.1 | AF24: 86 | AG24: 0.1551920892 | AH24: 46 | AI24: 1.5 | AV24: 0.11 | AW24: 86 | AX24: 0.1551920892 | AY24: 46 | AZ24: 1.5 | BM24: 0.6013986014 | BN24: 100 | BO24: 0.08142513373 | BP24: 40 | BQ24: 0.9 | CD24: 86 | CE24: 44 | CF24: 2.29 | CG24: 0.44 | CH24: 0.46 | CI24: 0.23 | CJ24: 0.31 | CK24: 0.1344 | CM24: 0.003 | CN24: 0.00078 | CO24: 0.00226 | CP24: 0.0245 | CQ24: 0.0073 | CX24: -520 | CY24: 100 | CZ24: 1.1 | DA24: 2 | DD24: 0 | DE24: 1 | DF24: Getreide
A25: 4 | B25: Marktfrucht | C25: Blaue Lupine | F25: |vd_fruh_koeff~|vd_grun_koeff~|vd_unter_koeff~|vd_sommer_koeff~|vd_winter_koeff~|vd_haupt_koeff~160|vd_ernterest_koeff~|vd_nebenproduktfaktor~|vd_verbleib_haupt~2|vd_verbleib_haupt_koeff~|vd_spat_koeff~ | G25: |fm~25|ts~86|fix~1,61035008873793|c~45|n~5,58|p~0,49|k~1,0315|ca~0,28|mg~0,19|s~0,28|b~N|zn~0,00353|cu~0,0007|mn~0,00154|na~0,03|fe~0,006|mo~0,000205 | H25: |fa~1|ts~86|fix~0,121314809113994|c~44|n~1,28|p~0,12|k~1,12|ca~|mg~0,18|s~|b~|zn~|cu~|mn~|na~|fe~|mo~ | I25: |fa~0,109289617486339|ts~86|fix~0,134026884779413|c~47,5|n~1,4|p~|k~|ca~|mg~|s~|b~|zn~|cu~|mn~|na~|fe~|mo~ | J25: |fa~0,140983584|ts~100|fix~0,223367118270675|c~44|n~1,66|p~|k~|ca~|mg~|s~|b~|zn~|cu~|mn~|na~|fe~|mo~ | K25: |ts~86|c~45|n~5,58|p~0,49|k~1,0315|ca~0,28|mg~0,19|s~0,28|b~|zn~0,00353|cu~0,0007|mn~0,00154|na~0,03|fe~0,006|mo~0,000205 | L25: Stroh | M25: Korn | N25: 25 | O25: 86 | P25: 1.610350089 | Q25: 45 | R25: 5.58 | S25: 0.49 | T25: 1.0315 | U25: 0.28 | V25: 0.19 | W25: 0.28 | X25: N | Y25: 0.00353 | Z25: 0.0007 | AA25: 0.00154 | AB25: 0.03 | AC25: 0.006 | AD25: 0.000205 | AE25: 1 | AF25: 86 | AG25: 0.1213148091 | AH25: 44 | AI25: 1.28 | AJ25: 0.12 | AK25: 1.12 | AM25: 0.18 | AV25: 0.1092896175 | AW25: 86 | AX25: 0.1340268848 | AY25: 47.5 | AZ25: 1.4 | BM25: 0.140983584 | BN25: 100 | BO25: 0.2233671183 | BP25: 44 | BQ25: 1.66 | CD25: 86 | CE25: 45 | CF25: 5.58 | CG25: 0.49 | CH25: 1.0315 | CI25: 0.28 | CJ25: 0.19 | CK25: 0.28 | CM25: 0.00353 | CN25: 0.0007 | CO25: 0.00154 | CP25: 0.03 | CQ25: 0.006 | CR25: 0.000205 | CX25: 160 | DA25: 2 | DD25: 2 | DE25: 1 | DF25: Leguminosen
A26: 35 | B26: Marktfrucht | C26: Brauner Lein | F26: |vd_fruh_koeff~|vd_grun_koeff~|vd_unter_koeff~|vd_sommer_koeff~|vd_winter_koeff~|vd_haupt_koeff~-520|vd_ernterest_koeff~100|vd_nebenproduktfaktor~1,5|vd_verbleib_haupt~2|vd_verbleib_haupt_koeff~|vd_spat_koeff~ | G26: |fm~30|ts~91|fix~0,528238129115514|c~60|n~3,26|p~0,56|k~0,84|ca~0,25|mg~0,34|s~0,28|b~|zn~0,00467|cu~0,0013|mn~0,002669|na~0,0659|fe~0,009|mo~ | H26: |fa~1,5|ts~86|fix~2,22037264594717E-02|c~43|n~0,485|p~0,1|k~1,13|ca~|mg~0,11|s~0,22|b~|zn~|cu~|mn~|na~|fe~|mo~ | I26: |fa~0,116279069767442|ts~86|fix~2,22037264594717E-02|c~43|n~0,485|p~0,1|k~1,13|ca~|mg~0,11|s~0,22|b~|zn~|cu~|mn~|na~|fe~|mo~ | J26: |fa~0,13|ts~100|fix~6,90685939184983E-02|c~40|n~0,82|p~|k~|ca~|mg~|s~|b~|zn~|cu~|mn~|na~|fe~|mo~ | K26: |ts~91|c~60|n~3,26|p~0,56|k~0,84|ca~0,25|mg~0,34|s~0,28|b~|zn~0,00467|cu~0,0013|mn~0,002669|na~0,0659|fe~0,009|mo~ | L26: Stroh | M26: Korn | N26: 30 | O26: 91 | P26: 0.5282381291 | Q26: 60 | R26: 3.26 | S26: 0.56 | T26: 0.84 | U26: 0.25 | V26: 0.34 | W26: 0.28 | Y26: 0.00467 | Z26: 0.0013 | AA26: 0.002669 | AB26: 0.0659 | AC26: 0.009 | AE26: 1.5 | AF26: 86 | AG26: 0.02220372646 | AH26: 43 | AI26: 0.485 | AJ26: 0.1 | AK26: 1.13 | AM26: 0.11 | AN26: 0.22 | AV26: 0.1162790698 | AW26: 86 | AX26: 0.02220372646 | AY26: 43 | AZ26: 0.485 | BA26: 0.1 | BB26: 1.13 | BD26: 0.11 | BE26: 0.22 | BM26: 0.13 | BN26: 100 | BO26: 0.06906859392 | BP26: 40 | BQ26: 0.82 | CD26: 91 | CE26: 60 | CF26: 3.26 | CG26: 0.56 | CH26: 0.84 | CI26: 0.25 | CJ26: 0.34 | CK26: 0.28 | CM26: 0.00467 | CN26: 0.0013 | CO26: 0.002669 | CP26: 0.0659 | CQ26: 0.009 | CX26: -520 | CY26: 100 | CZ26: 1.5 | DA26: 2 | DD26: 0 | DE26: 1 | DF26: Ölfrucht
A27: 72 | B27: Marktfrucht | C27: Brokkoli | F27: |vd_fruh_koeff~|vd_grun_koeff~|vd_unter_koeff~|vd_sommer_koeff~|vd_winter_koeff~|vd_haupt_koeff~-1240|vd_ernterest_koeff~|vd_nebenproduktfaktor~|vd_verbleib_haupt~2|vd_verbleib_haupt_koeff~|vd_spat_koeff~ | G27: |fm~100|ts~10,6|fix~0,169302169435423|c~45|n~5,1|p~0,75|k~3,73|ca~0,89|mg~0,22|s~1,127|b~0,0018|zn~0,00589|cu~0,00109|mn~0,00255|na~0,1137|fe~0,0008|mo~ | H27: |fa~4,1|ts~10,6|fix~0,169302169435423|c~45|n~5,1|p~0,75|k~3,73|ca~0,89|mg~0,22|s~1,127|b~|zn~0,00589|cu~0,00109|mn~0,00255|na~0,1137|fe~0,0008|mo~ | I27: |fa~0|ts~|fix~|c~|n~|p~|k~|ca~|mg~|s~|b~|zn~|cu~|mn~|na~|fe~|mo~ | J27: |fa~0,0106|ts~100|fix~9,80974512622524E-02|c~40|n~1|p~|k~|ca~|mg~|s~|b~|zn~|cu~|mn~|na~|fe~|mo~ | K27: |ts~|c~|n~|p~|k~|ca~|mg~|s~|b~|zn~|cu~|mn~|na~|fe~|mo~ | L27: Blatt | M27: Blume/ Kopf | N27: 100 | O27: 10.6 | P27: 0.1693021694 | Q27: 45 | R27: 5.1 | S27: 0.75 | T27: 3.73 | U27: 0.89 | V27: 0.22 | W27: 1.127 | X27: 0.0018 | Y27: 0.00589 | Z27: 0.00109 | AA27: 0.00255 | AB27: 0.1137 | AC27: 0.0008 | AE27: 4.1 | AF27: 10.6 | AG27: 0.1693021694 | AH27: 45 | AI27: 5.1 | AJ27: 0.75 | AK27: 3.73 | AL27: 0.89 | AM27: 0.22 | AN27: 1.127 | AP27: 0.00589 | AQ27: 0.00109 | AR27: 0.00255 | AS27: 0.1137 | AT27: 0.0008 | AV27: 0 | BM27: 0.0106 | BN27: 100 | BO27: 0.09809745126 | BP27: 40 | BQ27: 1 | CX27: -1240 | DA27: 2 | DD27: 0 | DE27: 1 | DF27: Gemüse
A28: 14 | B28: Marktfrucht | C28: Buchweizen | F28: |vd_fruh_koeff~|vd_grun_koeff~|vd_unter_koeff~|vd_sommer_koeff~|vd_winter_koeff~|vd_haupt_koeff~-520|vd_ernterest_koeff~100|vd_nebenproduktfaktor~2,3|vd_verbleib_haupt~2|vd_verbleib_haupt_koeff~|vd_spat_koeff~ | G28: |fm~30|ts~86|fix~0,250744788392829|c~44|n~1,93|p~0,36|k~0,5|ca~0,021|mg~0,21|s~0,12|b~|zn~0,0029|cu~0,001|mn~0,0023|na~0,002|fe~0,0035|mo~ | H28: |fa~2,3|ts~86|fix~4,10208233030603E-02|c~45|n~0,7|p~0,37|k~2,33|ca~|mg~0,27|s~0,12|b~|zn~|cu~|mn~|na~|fe~|mo~ | I28: |fa~0,274303269694975|ts~86|fix~4,10208233030603E-02|c~45|n~0,7|p~|k~|ca~|mg~|s~|b~|zn~|cu~|mn~|na~|fe~|mo~ | J28: |fa~0,585034013605442|ts~100|fix~6,67522779227301E-02|c~43|n~0,83|p~|k~|ca~|mg~|s~|b~|zn~|cu~|mn~|na~|fe~|mo~ | K28: |ts~86|c~44|n~1,93|p~0,36|k~0,5|ca~0,021|mg~0,21|s~0,12|b~|zn~0,0029|cu~0,001|mn~0,0023|na~0,002|fe~0,0035|mo~ | L28: Stroh | M28: Korn | N28: 30 | O28: 86 | P28: 0.2507447884 | Q28: 44 | R28: 1.93 | S28: 0.36 | T28: 0.5 | U28: 0.021 | V28: 0.21 | W28: 0.12 | Y28: 0.0029 | Z28: 0.001 | AA28: 0.0023 | AB28: 0.002 | AC28: 0.0035 | AE28: 2.3 | AF28: 86 | AG28: 0.0410208233 | AH28: 45 | AI28: 0.7 | AJ28: 0.37 | AK28: 2.33 | AM28: 0.27 | AN28: 0.12 | AV28: 0.2743032697 | AW28: 86 | AX28: 0.0410208233 | AY28: 45 | AZ28: 0.7 | BM28: 0.5850340136 | BN28: 100 | BO28: 0.06675227792 | BP28: 43 | BQ28: 0.83 | CD28: 86 | CE28: 44 | CF28: 1.93 | CG28: 0.36 | CH28: 0.5 | CI28: 0.021 | CJ28: 0.21 | CK28: 0.12 | CM28: 0.0029 | CN28: 0.001 | CO28: 0.0023 | CP28: 0.002 | CQ28: 0.0035 | CX28: -520 | CY28: 100 | CZ28: 2.3 | DA28: 2 | DD28: 0 | DE28: 1 | DF28: Getreide
A29: 57 | B29: Marktfrucht | C29: Bundmöhren | F29: |vd_fruh_koeff~|vd_grun_koeff~|vd_unter_koeff~|vd_sommer_koeff~|vd_winter_koeff~|vd_haupt_koeff~-1040|vd_ernterest_koeff~|vd_nebenproduktfaktor~|vd_verbleib_haupt~2|vd_verbleib_haupt_koeff~|vd_spat_koeff~ | G29: |fm~300|ts~10,4|fix~1,56360557197311E-02|c~45|n~1,34|p~0,27|k~2,79|ca~0,29|mg~0,125|s~0,067|b~0,00264|zn~0,00304|cu~0,000952|mn~0,00144|na~0,3559|fe~0,0004|mo~ | H29: |fa~0|ts~|fix~|c~|n~|p~|k~|ca~|mg~|s~|b~|zn~|cu~|mn~|na~|fe~|mo~ | I29: |fa~5,10204081632653E-02|ts~10,4|fix~1,56360557197311E-02|c~45|n~1,34|p~0,27|k~2,79|ca~0,29|mg~0,125|s~0,067|b~0,00264|zn~0,00304|cu~0,000952|mn~0,00144|na~0,3359|fe~0,0004|mo~ | J29: |fa~1,06122448979592E-02|ts~100|fix~9,80974512622524E-02|c~40|n~1|p~|k~|ca~|mg~|s~|b~|zn~|cu~|mn~|na~|fe~|mo~ | K29: |ts~|c~|n~|p~|k~|ca~|mg~|s~|b~|zn~|cu~|mn~|na~|fe~|mo~ | L29: kein | M29: Rübe & Kraut | N29: 300 | O29: 10.4 | P29: 0.01563605572 | Q29: 45 | R29: 1.34 | S29: 0.27 | T29: 2.79 | U29: 0.29 | V29: 0.125 | W29: 0.067 | X29: 0.00264 | Y29: 0.00304 | Z29: 0.000952 | AA29: 0.00144 | AB29: 0.3559 | AC29: 0.0004 | AE29: 0 | AV29: 0.05102040816 | AW29: 10.4 | AX29: 0.01563605572 | AY29: 45 | AZ29: 1.34 | BA29: 0.27 | BB29: 2.79 | BC29: 0.29 | BD29: 0.125 | BE29: 0.067 | BF29: 0.00264 | BG29: 0.00304 | BH29: 0.000952 | BI29: 0.00144 | BJ29: 0.3359 | BK29: 0.0004 | BM29: 0.0106122449 | BN29: 100 | BO29: 0.09809745126 | BP29: 40 | BQ29: 1 | CX29: -1040 | DA29: 2 | DD29: 0 | DE29: 1 | DF29: Gemüse
A30: 71 | B30: Marktfrucht | C30: Buschbohnen | F30: |vd_fruh_koeff~|vd_grun_koeff~|vd_unter_koeff~|vd_sommer_koeff~|vd_winter_koeff~|vd_haupt_koeff~-520|vd_ernterest_koeff~|vd_nebenproduktfaktor~|vd_verbleib_haupt~2|vd_verbleib_haupt_koeff~|vd_spat_koeff~ | G30: |fm~50|ts~10,1|fix~4,36094478250309E-02|c~47|n~2,48|p~0,33|k~2,14|ca~0,56|mg~0,21|s~0,327|b~|zn~0,00338|cu~0,000998|mn~0,00265|na~0,0176|fe~0,0008|mo~ | H30: |fa~1,8|ts~10,1|fix~4,36094478250309E-02|c~47|n~2,48|p~0,33|k~2,14|ca~0,56|mg~0,21|s~0,327|b~|zn~0,00338|cu~0,000998|mn~0,00265|na~0,0176|fe~0,0008|mo~ | I30: |fa~0|ts~|fix~|c~|n~|p~|k~|ca~|mg~|s~|b~|zn~|cu~|mn~|na~|fe~|mo~ | J30: |fa~0,0165573744|ts~100|fix~0,248062672113456|c~40|n~1,69|p~|k~|ca~|mg~|s~|b~|zn~|cu~|mn~|na~|fe~|mo~ | K30: |ts~86|c~43|n~4,84|p~0,55|k~1,31|ca~0,155|mg~0,1585|s~0,2|b~0,00155|zn~0,00616|cu~0,00062|mn~0,00145|na~0,0281|fe~0,00715|mo~0,000225 | L30: Blatt & Spross | M30: Hülse und Korn | N30: 50 | O30: 10.1 | P30: 0.04360944783 | Q30: 47 | R30: 2.48 | S30: 0.33 | T30: 2.14 | U30: 0.56 | V30: 0.21 | W30: 0.327 | Y30: 0.00338 | Z30: 0.000998 | AA30: 0.00265 | AB30: 0.0176 | AC30: 0.0008 | AE30: 1.8 | AF30: 10.1 | AG30: 0.04360944783 | AH30: 47 | AI30: 2.48 | AJ30: 0.33 | AK30: 2.14 | AL30: 0.56 | AM30: 0.21 | AN30: 0.327 | AP30: 0.00338 | AQ30: 0.000998 | AR30: 0.00265 | AS30: 0.0176 | AT30: 0.0008 | AV30: 0 | BM30: 0.0165573744 | BN30: 100 | BO30: 0.2480626721 | BP30: 40 | BQ30: 1.69 | CD30: 86 | CE30: 43 | CF30: 4.84 | CG30: 0.55 | CH30: 1.31 | CI30: 0.155 | CJ30: 0.1585 | CK30: 0.2 | CL30: 0.00155 | CM30: 0.00616 | CN30: 0.00062 | CO30: 0.00145 | CP30: 0.0281 | CQ30: 0.00715 | CR30: 0.000225 | CX30: -520 | DA30: 2 | DD30: 2 | DE30: 1 | DF30: Gemüse
A31: 31 | B31: Marktfrucht | C31: Mais, Corn-Cob-Mix, CCM | F31: |vd_fruh_koeff~|vd_grun_koeff~|vd_unter_koeff~|vd_sommer_koeff~|vd_winter_koeff~|vd_haupt_koeff~-1040|vd_ernterest_koeff~100|vd_nebenproduktfaktor~0,6|vd_verbleib_haupt~2|vd_verbleib_haupt_koeff~|vd_spat_koeff~ | G31: |fm~45|ts~60|fix~0,09791958379637|c~44|n~1,39|p~0,33|k~0,53|ca~0,071|mg~0,23|s~0,19|b~|zn~0,003|cu~0,0004|mn~0,0009|na~0,02|fe~0,0043|mo~ | H31: |fa~0,6|ts~60|fix~4,81963203228768E-02|c~45|n~0,94|p~0,1|k~1,94|ca~|mg~0,18|s~0,15|b~|zn~|cu~|mn~|na~|fe~|mo~ | I31: |fa~6,03756708407871E-02|ts~86|fix~0,06908139246279|c~45|n~0,94|p~0,1|k~1,94|ca~|mg~0,18|s~0,15|b~|zn~|cu~|mn~|na~|fe~|mo~ | J31: |fa~0,0675|ts~100|fix~6,44618334749438E-02|c~45|n~0,83|p~|k~|ca~|mg~|s~|b~|zn~|cu~|mn~|na~|fe~|mo~ | K31: |ts~86|c~44|n~1,49|p~0,38|k~0,47|ca~0,009|mg~0,23|s~0,19|b~|zn~0,003|cu~0,0004|mn~0,0009|na~0,02|fe~0,0032|mo~ | L31: Stroh | M31: Corn-Cob-Mix | N31: 45 | O31: 60 | P31: 0.0979195838 | Q31: 44 | R31: 1.39 | S31: 0.33 | T31: 0.53 | U31: 0.071 | V31: 0.23 | W31: 0.19 | Y31: 0.003 | Z31: 0.0004 | AA31: 0.0009 | AB31: 0.02 | AC31: 0.0043 | AE31: 0.6 | AF31: 60 | AG31: 0.04819632032 | AH31: 45 | AI31: 0.94 | AJ31: 0.1 | AK31: 1.94 | AM31: 0.18 | AN31: 0.15 | AV31: 0.06037567084 | AW31: 86 | AX31: 0.06908139246 | AY31: 45 | AZ31: 0.94 | BA31: 0.1 | BB31: 1.94 | BD31: 0.18 | BE31: 0.15 | BM31: 0.0675 | BN31: 100 | BO31: 0.06446183347 | BP31: 45 | BQ31: 0.83 | CD31: 86 | CE31: 44 | CF31: 1.49 | CG31: 0.38 | CH31: 0.47 | CI31: 0.009 | CJ31: 0.23 | CK31: 0.19 | CM31: 0.003 | CN31: 0.0004 | CO31: 0.0009 | CP31: 0.02 | CQ31: 0.0032 | CX31: -1040 | CY31: 100 | CZ31: 0.6 | DA31: 2 | DD31: 0 | DE31: 1 | DF31: Getreide
A32: 63 | B32: Marktfrucht | C32: Dill | F32: |vd_fruh_koeff~|vd_grun_koeff~|vd_unter_koeff~|vd_sommer_koeff~|vd_winter_koeff~|vd_haupt_koeff~-520|vd_ernterest_koeff~|vd_nebenproduktfaktor~|vd_verbleib_haupt~2|vd_verbleib_haupt_koeff~|vd_spat_koeff~ | G32: |fm~100|ts~18,5|fix~3,89015459621777E-02|c~45|n~1,62|p~0,65|k~4,02|ca~0,27|mg~0,124|s~1,03|b~|zn~|cu~0,000952|mn~0,009|na~0,027|fe~0,0055|mo~ | H32: |fa~0|ts~|fix~|c~|n~|p~|k~|ca~|mg~|s~|b~|zn~|cu~|mn~|na~|fe~|mo~ | I32: |fa~0,25|ts~18,5|fix~3,89015459621777E-02|c~45|n~1,62|p~0,65|k~4,02|ca~0,27|mg~0,124|s~1,03|b~|zn~|cu~0,000952|mn~0,009|na~0,027|fe~0,0055|mo~ | J32: |fa~0,1295|ts~100|fix~9,80974512622524E-02|c~40|n~1|p~|k~|ca~|mg~|s~|b~|zn~|cu~|mn~|na~|fe~|mo~ | K32: |ts~|c~|n~|p~|k~|ca~|mg~|s~|b~|zn~|cu~|mn~|na~|fe~|mo~ | L32: kein | M32: Kraut | N32: 100 | O32: 18.5 | P32: 0.03890154596 | Q32: 45 | R32: 1.62 | S32: 0.65 | T32: 4.02 | U32: 0.27 | V32: 0.124 | W32: 1.03 | Z32: 0.000952 | AA32: 0.009 | AB32: 0.027 | AC32: 0.0055 | AE32: 0 | AV32: 0.25 | AW32: 18.5 | AX32: 0.03890154596 | AY32: 45 | AZ32: 1.62 | BA32: 0.65 | BB32: 4.02 | BC32: 0.27 | BD32: 0.124 | BE32: 1.03 | BH32: 0.000952 | BI32: 0.009 | BJ32: 0.027 | BK32: 0.0055 | BM32: 0.1295 | BN32: 100 | BO32: 0.09809745126 | BP32: 40 | BQ32: 1 | CX32: -520 | DA32: 2 | DD32: 0 | DE32: 1 | DF32: Gemüse
A33: 8 | B33: Marktfrucht | C33: Durumweizen | F33: |vd_fruh_koeff~|vd_grun_koeff~|vd_unter_koeff~|vd_sommer_koeff~|vd_winter_koeff~|vd_haupt_koeff~-520|vd_ernterest_koeff~100|vd_nebenproduktfaktor~1|vd_verbleib_haupt~2|vd_verbleib_haupt_koeff~|vd_spat_koeff~ | G33: |fm~40|ts~86|fix~0,390622418483054|c~44|n~2,48|p~0,41|k~0,58|ca~0,034|mg~0,14|s~0,12|b~|zn~0,0047|cu~0,00049|mn~0,00388|na~0,00325|fe~0,0088|mo~0,00005 | H33: |fa~1|ts~86|fix~2,63523927106346E-02|c~45|n~0,545|p~0,15|k~1,36|ca~0,367|mg~0,14|s~0,1|b~|zn~0,003|cu~0,0004|mn~0,008|na~0,15|fe~0,02|mo~ | I33: |fa~0,32|ts~86|fix~2,63523927106346E-02|c~45|n~0,545|p~|k~|ca~|mg~|s~|b~|zn~|cu~|mn~|na~|fe~|mo~ | J33: |fa~0,688|ts~100|fix~8,14251337302235E-02|c~40|n~0,9|p~|k~|ca~|mg~|s~|b~|zn~|cu~|mn~|na~|fe~|mo~ | K33: |ts~86|c~44|n~2,48|p~0,41|k~0,58|ca~0,034|mg~0,14|s~0,12|b~|zn~0,0047|cu~0,00049|mn~0,00388|na~0,00325|fe~0,0088|mo~0,00005 | L33: Stroh | M33: Korn | N33: 40 | O33: 86 | P33: 0.3906224185 | Q33: 44 | R33: 2.48 | S33: 0.41 | T33: 0.58 | U33: 0.034 | V33: 0.14 | W33: 0.12 | Y33: 0.0047 | Z33: 0.00049 | AA33: 0.00388 | AB33: 0.00325 | AC33: 0.0088 | AD33: 5e-05 | AE33: 1 | AF33: 86 | AG33: 0.02635239271 | AH33: 45 | AI33: 0.545 | AJ33: 0.15 | AK33: 1.36 | AL33: 0.367 | AM33: 0.14 | AN33: 0.1 | AP33: 0.003 | AQ33: 0.0004 | AR33: 0.008 | AS33: 0.15 | AT33: 0.02 | AV33: 0.32 | AW33: 86 | AX33: 0.02635239271 | AY33: 45 | AZ33: 0.545 | BM33: 0.688 | BN33: 100 | BO33: 0.08142513373 | BP33: 40 | BQ33: 0.9 | CD33: 86 | CE33: 44 | CF33: 2.48 | CG33: 0.41 | CH33: 0.58 | CI33: 0.034 | CJ33: 0.14 | CK33: 0.12 | CM33: 0.0047 | CN33: 0.00049 | CO33: 0.00388 | CP33: 0.00325 | CQ33: 0.0088 | CR33: 5e-05 | CX33: -520 | CY33: 100 | CZ33: 1 | DA33: 2 | DD33: 0 | DE33: 1 | DF33: Getreide
A34: 64 | B34: Marktfrucht | C34: Feldsalat | F34: =getParaListe(CS34:DC34,Intern_ParaListe_vd) -> |vd_fruh_koeff~|vd_grun_koeff~|vd_unter_koeff~|vd_sommer_koeff~|vd_winter_koeff~|vd_haupt_koeff~-520|vd_ernterest_koeff~|vd_nebenproduktfaktor~|vd_verbleib_haupt~2|vd_verbleib_haupt_koeff~|vd_spat_koeff~ | G34: =getParaListe(N34:AD34,Intern_ParaListe_hp) -> |fm~40|ts~7,85|fix~0,075219469985682|c~45|n~3,82|p~0,59|k~5,73|ca~0,45|mg~0,27|s~0,51|b~|zn~0,00642|cu~0,00151|mn~0,00339|na~0,0568|fe~0,002|mo~ | H34: =getParaListe(AE34:AU34,Intern_ParaListe_np) -> |fa~0|ts~|fix~|c~|n~|p~|k~|ca~|mg~|s~|b~|zn~|cu~|mn~|na~|fe~|mo~ | I34: =getParaListe(AV34:BL34,Intern_ParaListe_st) -> |fa~0,25|ts~7,85|fix~0,075219469985682|c~45|n~3,82|p~0,59|k~5,73|ca~0,45|mg~0,27|s~0,51|b~|zn~0,00642|cu~0,00151|mn~0,00339|na~0,0568|fe~0,002|mo~ | J34: =getParaListe(BM34:CC34,Intern_ParaListe_rt) -> |fa~7,92929292929293E-03|ts~100|fix~9,80974512622524E-02|c~40|n~1|p~|k~|ca~|mg~|s~|b~|zn~|cu~|mn~|na~|fe~|mo~ | K34: =getParaListe(CD34:CR34,Intern_ParaListe_sg) -> |ts~|c~|n~|p~|k~|ca~|mg~|s~|b~|zn~|cu~|mn~|na~|fe~|mo~ | L34: kein | M34: Blatt | N34: 40 | O34: 7.85 | P34: 0.07521946999 | Q34: 45 | R34: 3.82 | S34: 0.59 | T34: 5.73 | U34: 0.45 | V34: 0.27 | W34: 0.51 | Y34: 0.00642 | Z34: 0.00151 | AA34: 0.00339 | AB34: 0.0568 | AC34: 0.002 | AE34: 0 | AV34: 0.25 | AW34: 7.85 | AX34: 0.07521946999 | AY34: 45 | AZ34: 3.82 | BA34: 0.59 | BB34: 5.73 | BC34: 0.45 | BD34: 0.27 | BE34: 0.51 | BG34: 0.00642 | BH34: 0.00151 | BI34: 0.00339 | BJ34: 0.0568 | BK34: 0.002 | BM34: 0.007929292929 | BN34: 100 | BO34: 0.09809745126 | BP34: 40 | BQ34: 1 | CX34: -520 | DA34: 2 | DD34: 0 | DE34: 1 | DF34: Gemüse
A35: 59 | B35: Marktfrucht | C35: Fenchel | F35: |vd_fruh_koeff~|vd_grun_koeff~|vd_unter_koeff~|vd_sommer_koeff~|vd_winter_koeff~|vd_haupt_koeff~-520|vd_ernterest_koeff~|vd_nebenproduktfaktor~|vd_verbleib_haupt~2|vd_verbleib_haupt_koeff~|vd_spat_koeff~ | G35: |fm~100|ts~10,7|fix~4,18110600346375E-02|c~45|n~2,3|p~0,4|k~4,1|ca~0,187|mg~0,28|s~0,467|b~|zn~0,00229|cu~0,000558|mn~0,00301|na~0,5279|fe~0,0027|mo~ | H35: |fa~0,75|ts~10,7|fix~4,18110600346375E-02|c~45|n~2,3|p~0,4|k~4,1|ca~0,187|mg~0,28|s~0,467|b~|zn~0,00229|cu~0,000558|mn~0,00301|na~0,5279|fe~0,0027|mo~ | I35: |fa~0|ts~|fix~|c~|n~|p~|k~|ca~|mg~|s~|b~|zn~|cu~|mn~|na~|fe~|mo~ | J35: |fa~0,0107|ts~100|fix~9,80974512622524E-02|c~40|n~1|p~|k~|ca~|mg~|s~|b~|zn~|cu~|mn~|na~|fe~|mo~ | K35: |ts~|c~|n~|p~|k~|ca~|mg~|s~|b~|zn~|cu~|mn~|na~|fe~|mo~ | L35: Kraut | M35: Knolle | N35: 100 | O35: 10.7 | P35: 0.04181106003 | Q35: 45 | R35: 2.3 | S35: 0.4 | T35: 4.1 | U35: 0.187 | V35: 0.28 | W35: 0.467 | Y35: 0.00229 | Z35: 0.000558 | AA35: 0.00301 | AB35: 0.5279 | AC35: 0.0027 | AE35: 0.75 | AF35: 10.7 | AG35: 0.04181106003 | AH35: 45 | AI35: 2.3 | AJ35: 0.4 | AK35: 4.1 | AL35: 0.187 | AM35: 0.28 | AN35: 0.467 | AP35: 0.00229 | AQ35: 0.000558 | AR35: 0.00301 | AS35: 0.5279 | AT35: 0.0027 | AV35: 0 | BM35: 0.0107 | BN35: 100 | BO35: 0.09809745126 | BP35: 40 | BQ35: 1 | CX35: -520 | DA35: 2 | DD35: 0 | DE35: 1 | DF35: Gemüse
A36: 55 | B36: Marktfrucht | C36: frühe Kartoffeln | F36: |vd_fruh_koeff~|vd_grun_koeff~|vd_unter_koeff~|vd_sommer_koeff~|vd_winter_koeff~|vd_haupt_koeff~-1240|vd_ernterest_koeff~|vd_nebenproduktfaktor~|vd_verbleib_haupt~2|vd_verbleib_haupt_koeff~|vd_spat_koeff~ | G36: |fm~200|ts~22|fix~5,27677751195272E-02|c~39|n~1,64|p~0,32|k~2,28|ca~0,04|mg~0,082|s~0,143|b~|zn~0,00144|cu~0,000411|mn~0,000662|na~0,0212|fe~0,00174|mo~ | H36: |fa~0,2|ts~25|fix~4,89618579987438E-02|c~33|n~1,36|p~0,28|k~2|ca~|mg~0,52|s~0,2|b~|zn~|cu~|mn~|na~|fe~|mo~ | I36: |fa~0|ts~|fix~|c~|n~|p~|k~|ca~|mg~|s~|b~|zn~|cu~|mn~|na~|fe~|mo~ | J36: |fa~0,022|ts~100|fix~0,261185338732846|c~40|n~1,74|p~|k~|ca~|mg~|s~|b~|zn~|cu~|mn~|na~|fe~|mo~ | K36: |ts~22|c~39|n~1,46|p~0,27|k~2,055|ca~0,04|mg~0,082|s~0,15|b~|zn~0,00144|cu~0,000411|mn~0,000662|na~0,0212|fe~0,00174|mo~ | L36: Kraut | M36: Knolle | N36: 200 | O36: 22 | P36: 0.05276777512 | Q36: 39 | R36: 1.64 | S36: 0.32 | T36: 2.28 | U36: 0.04 | V36: 0.082 | W36: 0.143 | Y36: 0.00144 | Z36: 0.000411 | AA36: 0.000662 | AB36: 0.0212 | AC36: 0.00174 | AE36: 0.2 | AF36: 25 | AG36: 0.048961858 | AH36: 33 | AI36: 1.36 | AJ36: 0.28 | AK36: 2 | AM36: 0.52 | AN36: 0.2 | AV36: 0 | BM36: 0.022 | BN36: 100 | BO36: 0.2611853387 | BP36: 40 | BQ36: 1.74 | CD36: 22 | CE36: 39 | CF36: 1.46 | CG36: 0.27 | CH36: 2.055 | CI36: 0.04 | CJ36: 0.082 | CK36: 0.15 | CM36: 0.00144 | CN36: 0.000411 | CO36: 0.000662 | CP36: 0.0212 | CQ36: 0.00174 | CX36: -1240 | DA36: 2 | DD36: 0 | DE36: 1 | DF36: Gemüse
A37: 94 | B37: Marktfrucht | C37: Gelbe Lupine | F37: |vd_fruh_koeff~|vd_grun_koeff~|vd_unter_koeff~|vd_sommer_koeff~|vd_winter_koeff~|vd_haupt_koeff~160|vd_ernterest_koeff~|vd_nebenproduktfaktor~|vd_verbleib_haupt~2|vd_verbleib_haupt_koeff~|vd_spat_koeff~ | G37: |fm~25|ts~86|fix~2,45931173234524|c~45|n~7,09|p~0,49|k~1,05|ca~0,196|mg~0,19|s~0,28|b~|zn~0,00353|cu~0,0007|mn~0,00154|na~0,03|fe~0,006|mo~0,000205 | H37: |fa~1|ts~86|fix~0,121314809113994|c~44|n~1,28|p~0,12|k~1,12|ca~|mg~0,19|s~|b~|zn~|cu~|mn~|na~|fe~|mo~ | I37: |fa~0,109289617486339|ts~86|fix~0,121314809113994|c~44|n~1,28|p~|k~|ca~|mg~|s~|b~|zn~|cu~|mn~|na~|fe~|mo~ | J37: |fa~0,140983584|ts~100|fix~0,223367118270675|c~44|n~1,66|p~|k~|ca~|mg~|s~|b~|zn~|cu~|mn~|na~|fe~|mo~ | K37: |ts~86|c~45|n~7,09|p~0,49|k~1,05|ca~0,196|mg~0,19|s~0,28|b~|zn~0,00353|cu~0,0007|mn~0,00154|na~0,03|fe~0,006|mo~0,000205 | L37: Stroh | M37: Korn | N37: 25 | O37: 86 | P37: 2.459311732 | Q37: 45 | R37: 7.09 | S37: 0.49 | T37: 1.05 | U37: 0.196 | V37: 0.19 | W37: 0.28 | Y37: 0.00353 | Z37: 0.0007 | AA37: 0.00154 | AB37: 0.03 | AC37: 0.006 | AD37: 0.000205 | AE37: 1 | AF37: 86 | AG37: 0.1213148091 | AH37: 44 | AI37: 1.28 | AJ37: 0.12 | AK37: 1.12 | AM37: 0.19 | AV37: 0.1092896175 | AW37: 86 | AX37: 0.1213148091 | AY37: 44 | AZ37: 1.28 | BM37: 0.140983584 | BN37: 100 | BO37: 0.2233671183 | BP37: 44 | BQ37: 1.66 | CD37: 86 | CE37: 45 | CF37: 7.09 | CG37: 0.49 | CH37: 1.05 | CI37: 0.196 | CJ37: 0.19 | CK37: 0.28 | CM37: 0.00353 | CN37: 0.0007 | CO37: 0.00154 | CP37: 0.03 | CQ37: 0.006 | CR37: 0.000205 | CX37: 160 | DA37: 2 | DD37: 2 | DE37: 1 | DF37: Leguminosen
A38: 37 | B38: Marktfrucht | C38: Gelbsenf | F38: |vd_fruh_koeff~|vd_grun_koeff~|vd_unter_koeff~|vd_sommer_koeff~|vd_winter_koeff~|vd_haupt_koeff~-520|vd_ernterest_koeff~|vd_nebenproduktfaktor~|vd_verbleib_haupt~2|vd_verbleib_haupt_koeff~|vd_spat_koeff~ | G38: |fm~30|ts~91|fix~0,776942479242039|c~60|n~4,055|p~0,56|k~0,84|ca~|mg~0,315|s~0,68|b~|zn~0,0064|cu~0,000681|mn~0,002584|na~0,0137|fe~0,0036|mo~ | H38: |fa~1,5|ts~86|fix~2,51147226267572E-02|c~43|n~0,52|p~0,1|k~1,24|ca~|mg~0,11|s~0,28|b~|zn~|cu~|mn~|na~|fe~|mo~ | I38: |fa~0,846511627906977|ts~86|fix~2,51147226267572E-02|c~43|n~0,52|p~|k~|ca~|mg~|s~|b~|zn~|cu~|mn~|na~|fe~|mo~ | J38: |fa~0,13013|ts~100|fix~6,53369585778925E-02|c~43|n~0,82|p~|k~|ca~|mg~|s~|b~|zn~|cu~|mn~|na~|fe~|mo~ | K38: |ts~91|c~60|n~4,055|p~0,56|k~0,84|ca~|mg~0,315|s~0,68|b~|zn~0,0064|cu~0,000681|mn~0,002584|na~0,0137|fe~0,0036|mo~ | L38: Stroh | M38: Korn | N38: 30 | O38: 91 | P38: 0.7769424792 | Q38: 60 | R38: 4.055 | S38: 0.56 | T38: 0.84 | V38: 0.315 | W38: 0.68 | Y38: 0.0064 | Z38: 0.000681 | AA38: 0.002584 | AB38: 0.0137 | AC38: 0.0036 | AE38: 1.5 | AF38: 86 | AG38: 0.02511472263 | AH38: 43 | AI38: 0.52 | AJ38: 0.1 | AK38: 1.24 | AM38: 0.11 | AN38: 0.28 | AV38: 0.8465116279 | AW38: 86 | AX38: 0.02511472263 | AY38: 43 | AZ38: 0.52 | BM38: 0.13013 | BN38: 100 | BO38: 0.06533695858 | BP38: 43 | BQ38: 0.82 | CD38: 91 | CE38: 60 | CF38: 4.055 | CG38: 0.56 | CH38: 0.84 | CJ38: 0.315 | CK38: 0.68 | CM38: 0.0064 | CN38: 0.000681 | CO38: 0.002584 | CP38: 0.0137 | CQ38: 0.0036 | CX38: -520 | DA38: 2 | DD38: 0 | DE38: 1 | DF38: Ölfrucht
A39: 83 | B39: Marktfrucht | C39: Grasvermehrung | F39: |vd_fruh_koeff~500|vd_grun_koeff~|vd_unter_koeff~300|vd_sommer_koeff~|vd_winter_koeff~|vd_haupt_koeff~800|vd_ernterest_koeff~|vd_nebenproduktfaktor~|vd_verbleib_haupt~2|vd_verbleib_haupt_koeff~|vd_spat_koeff~150 | G39: |fm~18|ts~91|fix~0,429164723690506|c~45|n~2,55813953488372|p~0,358139534883721|k~0,482558139534884|ca~|mg~0,118604651162791|s~|b~|zn~|cu~|mn~|na~|fe~|mo~ | H39: |fa~8|ts~86|fix~0,107953212955632|c~45|n~1,21|p~0,2018|k~1,67|ca~|mg~|s~|b~|zn~0,0045|cu~0,0009|mn~0,008|na~0,06|fe~0,015|mo~ | I39: |fa~0,846511627906977|ts~86|fix~0,107953212955632|c~45|n~1,21|p~0,2018|k~1,67|ca~|mg~|s~|b~|zn~|cu~|mn~|na~|fe~|mo~ | J39: |fa~6,8796|ts~100|fix~0,212894364867879|c~40|n~1,55|p~|k~|ca~|mg~|s~|b~|zn~|cu~|mn~|na~|fe~|mo~ | K39: |ts~91|c~45|n~2,55813953488372|p~0,358139534883721|k~0,482558139534884|ca~|mg~0,118604651162791|s~|b~|zn~|cu~|mn~|na~|fe~|mo~ | L39: Stroh | M39: Korn | N39: 18 | O39: 91 | P39: 0.4291647237 | Q39: 45 | R39: 2.558139535 | S39: 0.3581395349 | T39: 0.4825581395 | V39: 0.1186046512 | AE39: 8 | AF39: 86 | AG39: 0.107953213 | AH39: 45 | AI39: 1.21 | AJ39: 0.2018 | AK39: 1.67 | AP39: 0.0045 | AQ39: 0.0009 | AR39: 0.008 | AS39: 0.06 | AT39: 0.015 | AV39: 0.8465116279 | AW39: 86 | AX39: 0.107953213 | AY39: 45 | AZ39: 1.21 | BA39: 0.2018 | BB39: 1.67 | BM39: 6.8796 | BN39: 100 | BO39: 0.2128943649 | BP39: 40 | BQ39: 1.55 | CD39: 91 | CE39: 45 | CF39: 2.558139535 | CG39: 0.3581395349 | CH39: 0.4825581395 | CJ39: 0.1186046512 | CS39: 500 | CU39: 300 | CX39: 800 | DA39: 2 | DC39: 150 | DD39: 0 | DE39: 1 | DF39: Vermehrung
A40: 82 | B40: Marktfrucht | C40: Hanf | F40: |vd_fruh_koeff~|vd_grun_koeff~|vd_unter_koeff~|vd_sommer_koeff~|vd_winter_koeff~|vd_haupt_koeff~-520|vd_ernterest_koeff~100|vd_nebenproduktfaktor~4|vd_verbleib_haupt~2|vd_verbleib_haupt_koeff~|vd_spat_koeff~ | G40: |fm~30|ts~91|fix~0,557222791506859|c~60|n~3,36|p~1,12|k~0,945|ca~0,159|mg~0,53|s~|b~|zn~|cu~|mn~|na~|fe~|mo~ | H40: |fa~4|ts~86|fix~2,22037264594717E-02|c~43|n~0,485|p~0,33|k~1,66|ca~|mg~|s~|b~|zn~|cu~|mn~|na~|fe~|mo~ | I40: |fa~0,116279069767442|ts~86|fix~2,22037264594717E-02|c~43|n~0,485|p~|k~|ca~|mg~|s~|b~|zn~|cu~|mn~|na~|fe~|mo~ | J40: |fa~0,13|ts~100|fix~6,90685939184983E-02|c~40|n~0,82|p~|k~|ca~|mg~|s~|b~|zn~|cu~|mn~|na~|fe~|mo~ | K40: |ts~91|c~60|n~3,36|p~1,12|k~0,945|ca~0,159|mg~0,53|s~|b~|zn~|cu~|mn~|na~|fe~|mo~ | L40: Stroh | M40: Korn | N40: 30 | O40: 91 | P40: 0.5572227915 | Q40: 60 | R40: 3.36 | S40: 1.12 | T40: 0.945 | U40: 0.159 | V40: 0.53 | AE40: 4 | AF40: 86 | AG40: 0.02220372646 | AH40: 43 | AI40: 0.485 | AJ40: 0.33 | AK40: 1.66 | AV40: 0.1162790698 | AW40: 86 | AX40: 0.02220372646 | AY40: 43 | AZ40: 0.485 | BM40: 0.13 | BN40: 100 | BO40: 0.06906859392 | BP40: 40 | BQ40: 0.82 | CD40: 91 | CE40: 60 | CF40: 3.36 | CG40: 1.12 | CH40: 0.945 | CI40: 0.159 | CJ40: 0.53 | CX40: -520 | CY40: 100 | CZ40: 4 | DA40: 2 | DD40: 0 | DE40: 1 | DF40: Ölfrucht
A41: 15 | B41: Marktfrucht | C41: Hirse | F41: |vd_fruh_koeff~|vd_grun_koeff~|vd_unter_koeff~|vd_sommer_koeff~|vd_winter_koeff~|vd_haupt_koeff~-520|vd_ernterest_koeff~100|vd_nebenproduktfaktor~1,1|vd_verbleib_haupt~2|vd_verbleib_haupt_koeff~|vd_spat_koeff~ | G41: |fm~30|ts~86|fix~0,281324149147116|c~45|n~2,08|p~0,28|k~0,173|ca~0,01|mg~0,16|s~0,11|b~|zn~0,002|cu~0,00049|mn~0,00071|na~0,03|fe~0,0069|mo~ | H41: |fa~1,1|ts~86|fix~0,15519208921133|c~46|n~1,5|p~|k~|ca~|mg~|s~|b~|zn~|cu~|mn~|na~|fe~|mo~ | I41: |fa~0,11|ts~86|fix~0,15519208921133|c~46|n~1,5|p~|k~|ca~|mg~|s~|b~|zn~|cu~|mn~|na~|fe~|mo~ | J41: |fa~0,601398601398601|ts~100|fix~9,80974512622524E-02|c~40|n~1|p~|k~|ca~|mg~|s~|b~|zn~|cu~|mn~|na~|fe~|mo~ | K41: |ts~86|c~45|n~2,08|p~0,28|k~0,173|ca~0,01|mg~0,16|s~0,11|b~|zn~0,002|cu~0,00049|mn~0,00071|na~0,03|fe~0,0069|mo~ | L41: Stroh | M41: Korn | N41: 30 | O41: 86 | P41: 0.2813241491 | Q41: 45 | R41: 2.08 | S41: 0.28 | T41: 0.173 | U41: 0.01 | V41: 0.16 | W41: 0.11 | Y41: 0.002 | Z41: 0.00049 | AA41: 0.00071 | AB41: 0.03 | AC41: 0.0069 | AE41: 1.1 | AF41: 86 | AG41: 0.1551920892 | AH41: 46 | AI41: 1.5 | AV41: 0.11 | AW41: 86 | AX41: 0.1551920892 | AY41: 46 | AZ41: 1.5 | BM41: 0.6013986014 | BN41: 100 | BO41: 0.09809745126 | BP41: 40 | BQ41: 1 | CD41: 86 | CE41: 45 | CF41: 2.08 | CG41: 0.28 | CH41: 0.173 | CI41: 0.01 | CJ41: 0.16 | CK41: 0.11 | CM41: 0.002 | CN41: 0.00049 | CO41: 0.00071 | CP41: 0.03 | CQ41: 0.0069 | CX41: -520 | CY41: 100 | CZ41: 1.1 | DA41: 2 | DD41: 0 | DE41: 1 | DF41: Getreide
A42: 67 | B42: Marktfrucht | C42: Knollensellerie | F42: |vd_fruh_koeff~|vd_grun_koeff~|vd_unter_koeff~|vd_sommer_koeff~|vd_winter_koeff~|vd_haupt_koeff~-1240|vd_ernterest_koeff~|vd_nebenproduktfaktor~|vd_verbleib_haupt~2|vd_verbleib_haupt_koeff~|vd_spat_koeff~ | G42: |fm~200|ts~11|fix~4,49856181985739E-02|c~45|n~2,36|p~0,64|k~3,54|ca~0,56|mg~0,12|s~0,32|b~0,00956|zn~0,00209|cu~0,000527|mn~0,00132|na~0,6836|fe~0,0005|mo~ | H42: |fa~0,5|ts~11|fix~4,49856181985739E-02|c~45|n~2,36|p~0,57|k~3,54|ca~0,56|mg~0,12|s~0,32|b~|zn~0,00209|cu~0,000527|mn~0,00132|na~0,6836|fe~0,0005|mo~ | I42: |fa~0|ts~|fix~|c~|n~|p~|k~|ca~|mg~|s~|b~|zn~|cu~|mn~|na~|fe~|mo~ | J42: |fa~0,011|ts~100|fix~9,80974512622524E-02|c~40|n~1|p~|k~|ca~|mg~|s~|b~|zn~|cu~|mn~|na~|fe~|mo~ | K42: |ts~|c~|n~|p~|k~|ca~|mg~|s~|b~|zn~|cu~|mn~|na~|fe~|mo~ | L42: Blatt & Spross | M42: Knolle | N42: 200 | O42: 11 | P42: 0.0449856182 | Q42: 45 | R42: 2.36 | S42: 0.64 | T42: 3.54 | U42: 0.56 | V42: 0.12 | W42: 0.32 | X42: 0.00956 | Y42: 0.00209 | Z42: 0.000527 | AA42: 0.00132 | AB42: 0.6836 | AC42: 0.0005 | AE42: 0.5 | AF42: 11 | AG42: 0.0449856182 | AH42: 45 | AI42: 2.36 | AJ42: 0.57 | AK42: 3.54 | AL42: 0.56 | AM42: 0.12 | AN42: 0.32 | AP42: 0.00209 | AQ42: 0.000527 | AR42: 0.00132 | AS42: 0.6836 | AT42: 0.0005 | AV42: 0 | BM42: 0.011 | BN42: 100 | BO42: 0.09809745126 | BP42: 40 | BQ42: 1 | CX42: -1240 | DA42: 2 | DD42: 0 | DE42: 1 | DF42: Gemüse
A43: 110 | B43: Marktfrucht | C43: Körnerleguminosen-Getreide-Gemenge (10:90) | F43: |vd_fruh_koeff~|vd_grun_koeff~|vd_unter_koeff~|vd_sommer_koeff~|vd_winter_koeff~|vd_haupt_koeff~-452|vd_ernterest_koeff~90|vd_nebenproduktfaktor~1,135|vd_verbleib_haupt~2|vd_verbleib_haupt_koeff~|vd_spat_koeff~ | G43: |fm~40|ts~86|fix~0,270155320898864|c~43,85|n~2,01015|p~0,4125|k~0,638625|ca~0,062875|mg~0,1392375|s~0,13975|b~8,18590909090909E-04|zn~0,0033535|cu~0,000523025|mn~0,00326275|na~0,01726625|fe~0,0042775|mo~0,000127 | I43: |fa~0,2224|ts~86|fix~2,79584188534508E-02|c~45,1043165467626|n~0,564111960431655|p~0,17|k~1,71|ca~|mg~0,19|s~0,16|b~|zn~|cu~|mn~|na~|fe~|mo~ | J43: |fa~0,488179|ts~100|fix~8,29451516592188E-02|c~40,5945565048886|n~0,915312252268123|p~|k~|ca~|mg~|s~|b~|zn~|cu~|mn~|na~|fe~|mo~ | K43: |ts~86|c~43,85|n~2,01015|p~0,4125|k~0,638625|ca~0,062875|mg~0,1392375|s~0,13975|b~8,18590909090909E-04|zn~0,0033535|cu~0,000523025|mn~0,00326275|na~0,01726625|fe~0,0042775|mo~0,000127 | L43: Stroh | M43: Korn | N43: 40 | O43: 86 | P43: 0.2701553209 | Q43: 43.85 | R43: 2.01015 | S43: 0.4125 | T43: 0.638625 | U43: 0.062875 | V43: 0.1392375 | W43: 0.13975 | X43: 0.0008185909091 | Y43: 0.0033535 | Z43: 0.000523025 | AA43: 0.00326275 | AB43: 0.01726625 | AC43: 0.0042775 | AD43: 0.000127 | AE43: 1.135 | AF43: 86 | AG43: 0.03188166809 | AH43: 44.82378855 | AI43: 0.6059603524 | AJ43: 0.1508810573 | AK43: 1.711442731 | AL43: 0.3927608696 | AM43: 0.1287268722 | AN43: 0.1045070423 | AP43: 0.00347826087 | AQ43: 0.0005195652174 | AR43: 0.008 | AS43: 0.1739130435 | AT43: 0.02 | AV43: 0.2224 | AW43: 86 | AX43: 0.02795841885 | AY43: 45.10431655 | AZ43: 0.5641119604 | BA43: 0.17 | BB43: 1.71 | BD43: 0.19 | BE43: 0.16 | BM43: 0.488179 | BN43: 100 | BO43: 0.08294515166 | BP43: 40.5945565 | BQ43: 0.9153122523 | CD43: 86 | CE43: 43.85 | CF43: 2.01015 | CG43: 0.4125 | CH43: 0.638625 | CI43: 0.062875 | CJ43: 0.1392375 | CK43: 0.13975 | CL43: 0.0008185909091 | CM43: 0.0033535 | CN43: 0.000523025 | CO43: 0.00326275 | CP43: 0.01726625 | CQ43: 0.0042775 | CR43: 0.000127 | CX43: -452 | CY43: 90 | CZ43: 1.135 | DA43: 2 | DD43: 2 | DE43: 1 | DF43: Körnerleguminose-Getreide-Gemenge
A44: 111 | B44: Marktfrucht | C44: Körnerleguminosen-Getreide-Gemenge (20:80) | F44: |vd_fruh_koeff~|vd_grun_koeff~|vd_unter_koeff~|vd_sommer_koeff~|vd_winter_koeff~|vd_haupt_koeff~-384|vd_ernterest_koeff~80|vd_nebenproduktfaktor~1,12|vd_verbleib_haupt~2|vd_verbleib_haupt_koeff~|vd_spat_koeff~ | G44: |fm~40|ts~86|fix~0,336680250966726|c~43,7|n~2,2733|p~0,425|k~0,706|ca~0,0695|mg~0,14035|s~0,147|b~0,000942|zn~0,003532|cu~0,0005438|mn~0,003063|na~0,01847|fe~0,00468|mo~0,000127 | I44: |fa~0,2098|ts~86|fix~3,30150563459496E-02|c~44,9828408007626|n~0,619003813155386|p~0,17|k~1,71|ca~|mg~0,19|s~0,16|b~|zn~|cu~|mn~|na~|fe~|mo~ | J44: |fa~0,449608|ts~100|fix~8,58745979305476E-02|c~40,5738332058149|n~0,933251721499617|p~|k~|ca~|mg~|s~|b~|zn~|cu~|mn~|na~|fe~|mo~ | K44: |ts~86|c~43,7|n~2,2733|p~0,425|k~0,706|ca~0,0695|mg~0,14035|s~0,147|b~0,000942|zn~0,003532|cu~0,0005438|mn~0,003063|na~0,01847|fe~0,00468|mo~0,000127 | L44: Stroh | M44: Korn | N44: 40 | O44: 86 | P44: 0.336680251 | Q44: 43.7 | R44: 2.2733 | S44: 0.425 | T44: 0.706 | U44: 0.0695 | V44: 0.14035 | W44: 0.147 | X44: 0.000942 | Y44: 0.003532 | Z44: 0.0005438 | AA44: 0.003063 | AB44: 0.01847 | AC44: 0.00468 | AD44: 0.000127 | AE44: 1.12 | AF44: 86 | AG44: 0.04087139368 | AH44: 44.64285714 | AI44: 0.6961428571 | AJ44: 0.1517857143 | AK44: 1.750982143 | AL44: 0.3927608696 | AM44: 0.1372857143 | AN44: 0.1088888889 | AP44: 0.00347826087 | AQ44: 0.0005195652174 | AR44: 0.008 | AS44: 0.1739130435 | AT44: 0.02 | AV44: 0.2098 | AW44: 86 | AX44: 0.03301505635 | AY44: 44.9828408 | AZ44: 0.6190038132 | BA44: 0.17 | BB44: 1.71 | BD44: 0.19 | BE44: 0.16 | BM44: 0.449608 | BN44: 100 | BO44: 0.08587459793 | BP44: 40.57383321 | BQ44: 0.9332517215 | CD44: 86 | CE44: 43.7 | CF44: 2.2733 | CG44: 0.425 | CH44: 0.706 | CI44: 0.0695 | CJ44: 0.14035 | CK44: 0.147 | CL44: 0.000942 | CM44: 0.003532 | CN44: 0.0005438 | CO44: 0.003063 | CP44: 0.01847 | CQ44: 0.00468 | CR44: 0.000127 | CX44: -384 | CY44: 80 | CZ44: 1.12 | DA44: 2 | DD44: 2 | DE44: 1 | DF44: Körnerleguminose-Getreide-Gemenge
A45: 112 | B45: Marktfrucht | C45: Körnerleguminosen-Getreide-Gemenge (30:70) | F45: |vd_fruh_koeff~|vd_grun_koeff~|vd_unter_koeff~|vd_sommer_koeff~|vd_winter_koeff~|vd_haupt_koeff~-316|vd_ernterest_koeff~70|vd_nebenproduktfaktor~1,105|vd_verbleib_haupt~2|vd_verbleib_haupt_koeff~|vd_spat_koeff~ | G45: |fm~40|ts~86|fix~0,409701402318224|c~43,55|n~2,53645|p~0,4375|k~0,773375|ca~0,076125|mg~0,1414625|s~0,15425|b~1,04642307692308E-03|zn~0,0037105|cu~0,000564575|mn~0,00286325|na~0,01967375|fe~0,0050825|mo~0,000127 | I45: |fa~0,1972|ts~86|fix~3,91668369280316E-02|c~44,8458417849899|n~0,680910243407708|p~0,17|k~1,71|ca~|mg~0,19|s~0,16|b~|zn~|cu~|mn~|na~|fe~|mo~ | J45: |fa~0,411037|ts~100|fix~8,94128091932238E-02|c~40,549220629773|n~0,954558008159849|p~|k~|ca~|mg~|s~|b~|zn~|cu~|mn~|na~|fe~|mo~ | K45: |ts~86|c~43,55|n~2,53645|p~0,4375|k~0,773375|ca~0,076125|mg~0,1414625|s~0,15425|b~1,04642307692308E-03|zn~0,0037105|cu~0,000564575|mn~0,00286325|na~0,01967375|fe~0,0050825|mo~0,000127 | L45: Stroh | M45: Korn | N45: 40 | O45: 86 | P45: 0.4097014023 | Q45: 43.55 | R45: 2.53645 | S45: 0.4375 | T45: 0.773375 | U45: 0.076125 | V45: 0.1414625 | W45: 0.15425 | X45: 0.001046423077 | Y45: 0.0037105 | Z45: 0.000564575 | AA45: 0.00286325 | AB45: 0.01967375 | AC45: 0.0050825 | AD45: 0.000127 | AE45: 1.105 | AF45: 86 | AG45: 0.05113662304 | AH45: 44.45701357 | AI45: 0.7887737557 | AJ45: 0.1527149321 | AK45: 1.791595023 | AL45: 0.3927608696 | AM45: 0.1460769231 | AN45: 0.1131506849 | AP45: 0.00347826087 | AQ45: 0.0005195652174 | AR45: 0.008 | AS45: 0.1739130435 | AT45: 0.02 | AV45: 0.1972 | AW45: 86 | AX45: 0.03916683693 | AY45: 44.84584178 | AZ45: 0.6809102434 | BA45: 0.17 | BB45: 1.71 | BD45: 0.19 | BE45: 0.16 | BM45: 0.411037 | BN45: 100 | BO45: 0.08941280919 | BP45: 40.54922063 | BQ45: 0.9545580082 | CD45: 86 | CE45: 43.55 | CF45: 2.53645 | CG45: 0.4375 | CH45: 0.773375 | CI45: 0.076125 | CJ45: 0.1414625 | CK45: 0.15425 | CL45: 0.001046423077 | CM45: 0.0037105 | CN45: 0.000564575 | CO45: 0.00286325 | CP45: 0.01967375 | CQ45: 0.0050825 | CR45: 0.000127 | CX45: -316 | CY45: 70 | CZ45: 1.105 | DA45: 2 | DD45: 2 | DE45: 1 | DF45: Körnerleguminose-Getreide-Gemenge
A46: 113 | B46: Marktfrucht | C46: Körnerleguminosen-Getreide-Gemenge (40:60) | F46: |vd_fruh_koeff~|vd_grun_koeff~|vd_unter_koeff~|vd_sommer_koeff~|vd_winter_koeff~|vd_haupt_koeff~-248|vd_ernterest_koeff~60|vd_nebenproduktfaktor~1,09|vd_verbleib_haupt~2|vd_verbleib_haupt_koeff~|vd_spat_koeff~ | G46: |fm~40|ts~86|fix~0,489115963522015|c~43,4|n~2,7996|p~0,45|k~0,84075|ca~0,08275|mg~0,142575|s~0,1615|b~1,13592857142857E-03|zn~0,003889|cu~0,00058535|mn~0,0026635|na~0,0208775|fe~0,005485|mo~0,000127 | I46: |fa~0,1846|ts~86|fix~4,67283674556497E-02|c~44,6901408450704|n~0,751267605633803|p~0,17|k~1,71|ca~|mg~0,19|s~0,16|b~|zn~|cu~|mn~|na~|fe~|mo~ | J46: |fa~0,372466|ts~100|fix~9,37688213489716E-02|c~40,5195105056569|n~0,980277072269684|p~|k~|ca~|mg~|s~|b~|zn~|cu~|mn~|na~|fe~|mo~ | K46: |ts~86|c~43,4|n~2,7996|p~0,45|k~0,84075|ca~0,08275|mg~0,142575|s~0,1615|b~1,13592857142857E-03|zn~0,003889|cu~0,00058535|mn~0,0026635|na~0,0208775|fe~0,005485|mo~0,000127 | L46: Stroh | M46: Korn | N46: 40 | O46: 86 | P46: 0.4891159635 | Q46: 43.4 | R46: 2.7996 | S46: 0.45 | T46: 0.84075 | U46: 0.08275 | V46: 0.142575 | W46: 0.1615 | X46: 0.001135928571 | Y46: 0.003889 | Z46: 0.00058535 | AA46: 0.0026635 | AB46: 0.0208775 | AC46: 0.005485 | AD46: 0.000127 | AE46: 1.09 | AF46: 86 | AG46: 0.06275431868 | AH46: 44.26605505 | AI46: 0.8839541284 | AJ46: 0.1536697248 | AK46: 1.833325688 | AL46: 0.3927608696 | AM46: 0.1551100917 | AN46: 0.1172972973 | AP46: 0.00347826087 | AQ46: 0.0005195652174 | AR46: 0.008 | AS46: 0.1739130435 | AT46: 0.02 | AV46: 0.1846 | AW46: 86 | AX46: 0.04672836746 | AY46: 44.69014085 | AZ46: 0.7512676056 | BA46: 0.17 | BB46: 1.71 | BD46: 0.19 | BE46: 0.16 | BM46: 0.372466 | BN46: 100 | BO46: 0.09376882135 | BP46: 40.51951051 | BQ46: 0.9802770723 | CD46: 86 | CE46: 43.4 | CF46: 2.7996 | CG46: 0.45 | CH46: 0.84075 | CI46: 0.08275 | CJ46: 0.142575 | CK46: 0.1615 | CL46: 0.001135928571 | CM46: 0.003889 | CN46: 0.00058535 | CO46: 0.0026635 | CP46: 0.0208775 | CQ46: 0.005485 | CR46: 0.000127 | CX46: -248 | CY46: 60 | CZ46: 1.09 | DA46: 2 | DD46: 2 | DE46: 1 | DF46: Körnerleguminose-Getreide-Gemenge
A47: 114 | B47: Marktfrucht | C47: Körnerleguminosen-Getreide-Gemenge (50:50) | F47: |vd_fruh_koeff~|vd_grun_koeff~|vd_unter_koeff~|vd_sommer_koeff~|vd_winter_koeff~|vd_haupt_koeff~-180|vd_ernterest_koeff~50|vd_nebenproduktfaktor~1,075|vd_verbleib_haupt~2|vd_verbleib_haupt_koeff~|vd_spat_koeff~ | G47: |fm~40|ts~86|fix~0,574838877097933|c~43,25|n~3,06275|p~0,4625|k~0,908125|ca~0,089375|mg~0,1436875|s~0,16875|b~0,0012135|zn~0,0040675|cu~0,000606125|mn~0,00246375|na~0,02208125|fe~0,0058875|mo~0,000127 | I47: |fa~0,172|ts~86|fix~0,056134124290274|c~44,5116279069767|n~0,831933139534884|p~0,17|k~1,71|ca~|mg~0,19|s~0,16|b~|zn~|cu~|mn~|na~|fe~|mo~ | J47: |fa~0,333895|ts~100|fix~9,92583704239555E-02|c~40,4829362524147|n~1,01193818415969|p~|k~|ca~|mg~|s~|b~|zn~|cu~|mn~|na~|fe~|mo~ | K47: |ts~86|c~43,25|n~3,06275|p~0,4625|k~0,908125|ca~0,089375|mg~0,1436875|s~0,16875|b~0,0012135|zn~0,0040675|cu~0,000606125|mn~0,00246375|na~0,02208125|fe~0,0058875|mo~0,000127 | L47: Stroh | M47: Korn | N47: 40 | O47: 86 | P47: 0.5748388771 | Q47: 43.25 | R47: 3.06275 | S47: 0.4625 | T47: 0.908125 | U47: 0.089375 | V47: 0.1436875 | W47: 0.16875 | X47: 0.0012135 | Y47: 0.0040675 | Z47: 0.000606125 | AA47: 0.00246375 | AB47: 0.02208125 | AC47: 0.0058875 | AD47: 0.000127 | AE47: 1.075 | AF47: 86 | AG47: 0.07581018976 | AH47: 44.06976744 | AI47: 0.9817906977 | AJ47: 0.1546511628 | AK47: 1.87622093 | AL47: 0.3927608696 | AM47: 0.1643953488 | AN47: 0.1213333333 | AP47: 0.00347826087 | AQ47: 0.0005195652174 | AR47: 0.008 | AS47: 0.1739130435 | AT47: 0.02 | AV47: 0.172 | AW47: 86 | AX47: 0.05613412429 | AY47: 44.51162791 | AZ47: 0.8319331395 | BA47: 0.17 | BB47: 1.71 | BD47: 0.19 | BE47: 0.16 | BM47: 0.333895 | BN47: 100 | BO47: 0.09925837042 | BP47: 40.48293625 | BQ47: 1.011938184 | CD47: 86 | CE47: 43.25 | CF47: 3.06275 | CG47: 0.4625 | CH47: 0.908125 | CI47: 0.089375 | CJ47: 0.1436875 | CK47: 0.16875 | CL47: 0.0012135 | CM47: 0.0040675 | CN47: 0.000606125 | CO47: 0.00246375 | CP47: 0.02208125 | CQ47: 0.0058875 | CR47: 0.000127 | CX47: -180 | CY47: 50 | CZ47: 1.075 | DA47: 2 | DD47: 2 | DE47: 1 | DF47: Körnerleguminose-Getreide-Gemenge
A48: 115 | B48: Marktfrucht | C48: Körnerleguminosen-Getreide-Gemenge (60:40) | F48: |vd_fruh_koeff~|vd_grun_koeff~|vd_unter_koeff~|vd_sommer_koeff~|vd_winter_koeff~|vd_haupt_koeff~-112|vd_ernterest_koeff~40|vd_nebenproduktfaktor~1,06|vd_verbleib_haupt~2|vd_verbleib_haupt_koeff~|vd_spat_koeff~ | G48: |fm~40|ts~86|fix~0,666799319226415|c~43,1|n~3,3259|p~0,475|k~0,9755|ca~0,096|mg~0,1448|s~0,176|b~0,001281375|zn~0,004246|cu~0,0006269|mn~0,002264|na~0,023285|fe~0,00629|mo~0,000127 | I48: |fa~0,1594|ts~86|fix~6,79975866712213E-02|c~44,3048933500627|n~0,925351317440401|p~0,17|k~1,71|ca~|mg~0,19|s~0,16|b~|zn~|cu~|mn~|na~|fe~|mo~ | J48: |fa~0,295324|ts~100|fix~0,106380925164924|c~40,436808386721|n~1,05186953989517|p~|k~|ca~|mg~|s~|b~|zn~|cu~|mn~|na~|fe~|mo~ | K48: |ts~86|c~43,1|n~3,3259|p~0,475|k~0,9755|ca~0,096|mg~0,1448|s~0,176|b~0,001281375|zn~0,004246|cu~0,0006269|mn~0,002264|na~0,023285|fe~0,00629|mo~0,000127 | L48: Stroh | M48: Korn | N48: 40 | O48: 86 | P48: 0.6667993192 | Q48: 43.1 | R48: 3.3259 | S48: 0.475 | T48: 0.9755 | U48: 0.096 | V48: 0.1448 | W48: 0.176 | X48: 0.001281375 | Y48: 0.004246 | Z48: 0.0006269 | AA48: 0.002264 | AB48: 0.023285 | AC48: 0.00629 | AD48: 0.000127 | AE48: 1.06 | AF48: 86 | AG48: 0.09039912141 | AH48: 43.86792453 | AI48: 1.082396226 | AJ48: 0.1556603774 | AK48: 1.920330189 | AL48: 0.3927608696 | AM48: 0.1739433962 | AN48: 0.1252631579 | AP48: 0.00347826087 | AQ48: 0.0005195652174 | AR48: 0.008 | AS48: 0.1739130435 | AT48: 0.02 | AV48: 0.1594 | AW48: 86 | AX48: 0.06799758667 | AY48: 44.30489335 | AZ48: 0.9253513174 | BA48: 0.17 | BB48: 1.71 | BD48: 0.19 | BE48: 0.16 | BM48: 0.295324 | BN48: 100 | BO48: 0.1063809252 | BP48: 40.43680839 | BQ48: 1.05186954 | CD48: 86 | CE48: 43.1 | CF48: 3.3259 | CG48: 0.475 | CH48: 0.9755 | CI48: 0.096 | CJ48: 0.1448 | CK48: 0.176 | CL48: 0.001281375 | CM48: 0.004246 | CN48: 0.0006269 | CO48: 0.002264 | CP48: 0.023285 | CQ48: 0.00629 | CR48: 0.000127 | CX48: -112 | CY48: 40 | CZ48: 1.06 | DA48: 2 | DD48: 2 | DE48: 1 | DF48: Körnerleguminose-Getreide-Gemenge
A49: 116 | B49: Marktfrucht | C49: Körnerleguminosen-Getreide-Gemenge (70:30) | F49: |vd_fruh_koeff~|vd_grun_koeff~|vd_unter_koeff~|vd_sommer_koeff~|vd_winter_koeff~|vd_haupt_koeff~-44|vd_ernterest_koeff~30|vd_nebenproduktfaktor~1,045|vd_verbleib_haupt~2|vd_verbleib_haupt_koeff~|vd_spat_koeff~ | G49: |fm~40|ts~86|fix~0,764938124233846|c~42,95|n~3,58905|p~0,4875|k~1,042875|ca~0,102625|mg~0,1459125|s~0,18325|b~1,34126470588235E-03|zn~0,0044245|cu~0,000647675|mn~0,00206425|na~0,02448875|fe~0,0066925|mo~0,000127 | I49: |fa~0,1468|ts~86|fix~8,32074785442309E-02|c~44,0626702997275|n~1,03480585831063|p~0,17|k~1,71|ca~|mg~0,19|s~0,16|b~|zn~|cu~|mn~|na~|fe~|mo~ | J49: |fa~0,256753|ts~100|fix~0,115973667654658|c~40,3768213029643|n~1,10379835873388|p~|k~|ca~|mg~|s~|b~|zn~|cu~|mn~|na~|fe~|mo~ | K49: |ts~86|c~42,95|n~3,58905|p~0,4875|k~1,042875|ca~0,102625|mg~0,1459125|s~0,18325|b~1,34126470588235E-03|zn~0,0044245|cu~0,000647675|mn~0,00206425|na~0,02448875|fe~0,0066925|mo~0,000127 | L49: Stroh | M49: Korn | N49: 40 | O49: 86 | P49: 0.7649381242 | Q49: 42.95 | R49: 3.58905 | S49: 0.4875 | T49: 1.042875 | U49: 0.102625 | V49: 0.1459125 | W49: 0.18325 | X49: 0.001341264706 | Y49: 0.0044245 | Z49: 0.000647675 | AA49: 0.00206425 | AB49: 0.02448875 | AC49: 0.0066925 | AD49: 0.000127 | AE49: 1.045 | AF49: 86 | AG49: 0.1066257822 | AH49: 43.66028708 | AI49: 1.185889952 | AJ49: 0.1566985646 | AK49: 1.965705742 | AL49: 0.3927608696 | AM49: 0.1837655502 | AN49: 0.1290909091 | AP49: 0.00347826087 | AQ49: 0.0005195652174 | AR49: 0.008 | AS49: 0.1739130435 | AT49: 0.02 | AV49: 0.1468 | AW49: 86 | AX49: 0.08320747854 | AY49: 44.0626703 | AZ49: 1.034805858 | BA49: 0.17 | BB49: 1.71 | BD49: 0.19 | BE49: 0.16 | BM49: 0.256753 | BN49: 100 | BO49: 0.1159736677 | BP49: 40.3768213 | BQ49: 1.103798359 | CD49: 86 | CE49: 42.95 | CF49: 3.58905 | CG49: 0.4875 | CH49: 1.042875 | CI49: 0.102625 | CJ49: 0.1459125 | CK49: 0.18325 | CL49: 0.001341264706 | CM49: 0.0044245 | CN49: 0.000647675 | CO49: 0.00206425 | CP49: 0.02448875 | CQ49: 0.0066925 | CR49: 0.000127 | CX49: -44 | CY49: 30 | CZ49: 1.045 | DA49: 2 | DD49: 2 | DE49: 1 | DF49: Körnerleguminose-Getreide-Gemenge
A50: 117 | B50: Marktfrucht | C50: Körnerleguminosen-Getreide-Gemenge (80:20) | F50: |vd_fruh_koeff~|vd_grun_koeff~|vd_unter_koeff~|vd_sommer_koeff~|vd_winter_koeff~|vd_haupt_koeff~24|vd_ernterest_koeff~20|vd_nebenproduktfaktor~1,03|vd_verbleib_haupt~2|vd_verbleib_haupt_koeff~|vd_spat_koeff~ | G50: |fm~40|ts~86|fix~0,869205848377341|c~42,8|n~3,8522|p~0,5|k~1,11025|ca~0,10925|mg~0,147025|s~0,1905|b~0,0013945|zn~0,004603|cu~0,00066845|mn~0,0018645|na~0,0256925|fe~0,007095|mo~0,000127 | I50: |fa~0,1342|ts~86|fix~0,103090415852519|c~43,7749627421759|n~1,16481371087928|p~0,17|k~1,71|ca~|mg~0,19|s~0,16|b~|zn~|cu~|mn~|na~|fe~|mo~ | J50: |fa~0,218182|ts~100|fix~0,129548431469811|c~40,295624753646|n~1,17408750492708|p~|k~|ca~|mg~|s~|b~|zn~|cu~|mn~|na~|fe~|mo~ | K50: |ts~86|c~42,8|n~3,8522|p~0,5|k~1,11025|ca~0,10925|mg~0,147025|s~0,1905|b~0,0013945|zn~0,004603|cu~0,00066845|mn~0,0018645|na~0,0256925|fe~0,007095|mo~0,000127 | L50: Stroh | M50: Korn | N50: 40 | O50: 86 | P50: 0.8692058484 | Q50: 42.8 | R50: 3.8522 | S50: 0.5 | T50: 1.11025 | U50: 0.10925 | V50: 0.147025 | W50: 0.1905 | X50: 0.0013945 | Y50: 0.004603 | Z50: 0.00066845 | AA50: 0.0018645 | AB50: 0.0256925 | AC50: 0.007095 | AD50: 0.000127 | AE50: 1.03 | AF50: 86 | AG50: 0.1246053919 | AH50: 43.44660194 | AI50: 1.292398058 | AJ50: 0.1577669903 | AK50: 2.012402913 | AL50: 0.3927608696 | AM50: 0.1938737864 | AN50: 0.1328205128 | AP50: 0.00347826087 | AQ50: 0.0005195652174 | AR50: 0.008 | AS50: 0.1739130435 | AT50: 0.02 | AV50: 0.1342 | AW50: 86 | AX50: 0.1030904159 | AY50: 43.77496274 | AZ50: 1.164813711 | BA50: 0.17 | BB50: 1.71 | BD50: 0.19 | BE50: 0.16 | BM50: 0.218182 | BN50: 100 | BO50: 0.1295484315 | BP50: 40.29562475 | BQ50: 1.174087505 | CD50: 86 | CE50: 42.8 | CF50: 3.8522 | CG50: 0.5 | CH50: 1.11025 | CI50: 0.10925 | CJ50: 0.147025 | CK50: 0.1905 | CL50: 0.0013945 | CM50: 0.004603 | CN50: 0.00066845 | CO50: 0.0018645 | CP50: 0.0256925 | CQ50: 0.007095 | CR50: 0.000127 | CX50: 24 | CY50: 20 | CZ50: 1.03 | DA50: 2 | DD50: 2 | DE50: 1 | DF50: Körnerleguminose-Getreide-Gemenge
A51: 118 | B51: Marktfrucht | C51: Körnerleguminosen-Getreide-Gemenge (90:10) | F51: |vd_fruh_koeff~|vd_grun_koeff~|vd_unter_koeff~|vd_sommer_koeff~|vd_winter_koeff~|vd_haupt_koeff~92|vd_ernterest_koeff~10|vd_nebenproduktfaktor~1,015|vd_verbleib_haupt~2|vd_verbleib_haupt_koeff~|vd_spat_koeff~ | G51: |fm~40|ts~86|fix~0,979561280895641|c~42,65|n~4,11535|p~0,5125|k~1,177625|ca~0,115875|mg~0,1481375|s~0,19775|b~1,44213157894737E-03|zn~0,0047815|cu~0,000689225|mn~0,00166475|na~0,02689625|fe~0,0074975|mo~0,000127 | I51: |fa~0,1216|ts~86|fix~0,129698205341219|c~43,4276315789474|n~1,32176398026316|p~0,17|k~1,71|ca~|mg~0,19|s~0,16|b~|zn~|cu~|mn~|na~|fe~|mo~ | J51: |fa~0,179611|ts~100|fix~0,150121933333436|c~40,1795547043332|n~1,27456547761551|p~|k~|ca~|mg~|s~|b~|zn~|cu~|mn~|na~|fe~|mo~ | K51: |ts~86|c~42,65|n~4,11535|p~0,5125|k~1,177625|ca~0,115875|mg~0,1481375|s~0,19775|b~1,44213157894737E-03|zn~0,0047815|cu~0,000689225|mn~0,00166475|na~0,02689625|fe~0,0074975|mo~0,000127 | L51: Stroh | M51: Korn | N51: 40 | O51: 86 | P51: 0.9795612809 | Q51: 42.65 | R51: 4.11535 | S51: 0.5125 | T51: 1.177625 | U51: 0.115875 | V51: 0.1481375 | W51: 0.19775 | X51: 0.001442131579 | Y51: 0.0047815 | Z51: 0.000689225 | AA51: 0.00166475 | AB51: 0.02689625 | AC51: 0.0074975 | AD51: 0.000127 | AE51: 1.015 | AF51: 86 | AG51: 0.144464646 | AH51: 43.22660099 | AI51: 1.402054187 | AJ51: 0.1588669951 | AK51: 2.060480296 | AL51: 0.3927608696 | AM51: 0.2042807882 | AN51: 0.1364556962 | AP51: 0.00347826087 | AQ51: 0.0005195652174 | AR51: 0.008 | AS51: 0.1739130435 | AT51: 0.02 | AV51: 0.1216 | AW51: 86 | AX51: 0.1296982053 | AY51: 43.42763158 | AZ51: 1.32176398 | BA51: 0.17 | BB51: 1.71 | BD51: 0.19 | BE51: 0.16 | BM51: 0.179611 | BN51: 100 | BO51: 0.1501219333 | BP51: 40.1795547 | BQ51: 1.274565478 | CD51: 86 | CE51: 42.65 | CF51: 4.11535 | CG51: 0.5125 | CH51: 1.177625 | CI51: 0.115875 | CJ51: 0.1481375 | CK51: 0.19775 | CL51: 0.001442131579 | CM51: 0.0047815 | CN51: 0.000689225 | CO51: 0.00166475 | CP51: 0.02689625 | CQ51: 0.0074975 | CR51: 0.000127 | CX51: 92 | CY51: 10 | CZ51: 1.015 | DA51: 2 | DD51: 2 | DE51: 1 | DF51: Körnerleguminose-Getreide-Gemenge
A52: 30 | B52: Marktfrucht | C52: Körnermais | F52: |vd_fruh_koeff~|vd_grun_koeff~|vd_unter_koeff~|vd_sommer_koeff~|vd_winter_koeff~|vd_haupt_koeff~-1040|vd_ernterest_koeff~100|vd_nebenproduktfaktor~0,8|vd_verbleib_haupt~2|vd_verbleib_haupt_koeff~|vd_spat_koeff~ | G52: |fm~45|ts~86|fix~0,158693783834011|c~44|n~1,49|p~0,38|k~0,47|ca~0,009|mg~0,23|s~0,19|b~|zn~0,003|cu~0,0004|mn~0,0009|na~0,02|fe~0,0032|mo~ | H52: |fa~0,8|ts~86|fix~6,52313278996583E-02|c~45|n~0,91|p~0,1|k~1,92|ca~|mg~0,16|s~0,15|b~|zn~|cu~|mn~|na~|fe~|mo~ | I52: |fa~8,65384615384615E-02|ts~86|fix~6,52313278996583E-02|c~45|n~0,91|p~|k~|ca~|mg~|s~|b~|zn~|cu~|mn~|na~|fe~|mo~ | J52: |fa~0,09675|ts~100|fix~0,070564747385407|c~40|n~0,83|p~|k~|ca~|mg~|s~|b~|zn~|cu~|mn~|na~|fe~|mo~ | K52: |ts~86|c~44|n~1,49|p~0,38|k~0,47|ca~0,009|mg~0,23|s~0,19|b~|zn~0,003|cu~0,0004|mn~0,0009|na~0,02|fe~0,0032|mo~ | L52: Stroh | M52: Korn | N52: 45 | O52: 86 | P52: 0.1586937838 | Q52: 44 | R52: 1.49 | S52: 0.38 | T52: 0.47 | U52: 0.009 | V52: 0.23 | W52: 0.19 | Y52: 0.003 | Z52: 0.0004 | AA52: 0.0009 | AB52: 0.02 | AC52: 0.0032 | AE52: 0.8 | AF52: 86 | AG52: 0.0652313279 | AH52: 45 | AI52: 0.91 | AJ52: 0.1 | AK52: 1.92 | AM52: 0.16 | AN52: 0.15 | AV52: 0.08653846154 | AW52: 86 | AX52: 0.0652313279 | AY52: 45 | AZ52: 0.91 | BM52: 0.09675 | BN52: 100 | BO52: 0.07056474739 | BP52: 40 | BQ52: 0.83 | CD52: 86 | CE52: 44 | CF52: 1.49 | CG52: 0.38 | CH52: 0.47 | CI52: 0.009 | CJ52: 0.23 | CK52: 0.19 | CM52: 0.003 | CN52: 0.0004 | CO52: 0.0009 | CP52: 0.02 | CQ52: 0.0032 | CX52: -1040 | CY52: 100 | CZ52: 0.8 | DA52: 2 | DD52: 0 | DE52: 1 | DF52: Getreide
A53: 65 | B53: Marktfrucht | C53: Kürbis | F53: |vd_fruh_koeff~|vd_grun_koeff~|vd_unter_koeff~|vd_sommer_koeff~|vd_winter_koeff~|vd_haupt_koeff~-1240|vd_ernterest_koeff~|vd_nebenproduktfaktor~|vd_verbleib_haupt~2|vd_verbleib_haupt_koeff~|vd_spat_koeff~ | G53: |fm~600|ts~9,68|fix~2,34729287413147E-02|c~45|n~1,756|p~0,44|k~4,88|ca~1,24|mg~0,68|s~0,293|b~|zn~0,00432|cu~0,00103|mn~0,00326|na~1,1027|fe~0,0027|mo~ | H53: |fa~1|ts~9,68|fix~2,34729287413147E-02|c~45|n~1,756|p~0,44|k~4,88|ca~1,24|mg~0,68|s~0,293|b~|zn~0,00432|cu~0,00103|mn~0,00326|na~1,1027|fe~0,0027|mo~ | I53: |fa~0|ts~|fix~|c~|n~|p~|k~|ca~|mg~|s~|b~|zn~|cu~|mn~|na~|fe~|mo~ | J53: |fa~0,00968|ts~100|fix~9,80974512622524E-02|c~40|n~1|p~|k~|ca~|mg~|s~|b~|zn~|cu~|mn~|na~|fe~|mo~ | K53: |ts~|c~|n~|p~|k~|ca~|mg~|s~|b~|zn~|cu~|mn~|na~|fe~|mo~ | L53: Blatt & Spross | M53: Frucht | N53: 600 | O53: 9.68 | P53: 0.02347292874 | Q53: 45 | R53: 1.756 | S53: 0.44 | T53: 4.88 | U53: 1.24 | V53: 0.68 | W53: 0.293 | Y53: 0.00432 | Z53: 0.00103 | AA53: 0.00326 | AB53: 1.1027 | AC53: 0.0027 | AE53: 1 | AF53: 9.68 | AG53: 0.02347292874 | AH53: 45 | AI53: 1.756 | AJ53: 0.44 | AK53: 4.88 | AL53: 1.24 | AM53: 0.68 | AN53: 0.293 | AP53: 0.00432 | AQ53: 0.00103 | AR53: 0.00326 | AS53: 1.1027 | AT53: 0.0027 | AV53: 0 | BM53: 0.00968 | BN53: 100 | BO53: 0.09809745126 | BP53: 40 | BQ53: 1 | CX53: -1240 | DA53: 2 | DD53: 0 | DE53: 1 | DF53: Gemüse
A54: 75 | B54: Marktfrucht | C54: Lauchzwiebeln | F54: |vd_fruh_koeff~|vd_grun_koeff~|vd_unter_koeff~|vd_sommer_koeff~|vd_winter_koeff~|vd_haupt_koeff~-520|vd_ernterest_koeff~|vd_nebenproduktfaktor~|vd_verbleib_haupt~2|vd_verbleib_haupt_koeff~|vd_spat_koeff~ | G54: |fm~300|ts~11,6|fix~3,12592778810056E-02|c~45|n~1,864|p~0,32|k~1,55|ca~0,24|mg~0,1|s~0,552|b~0,00195|zn~0,00578|cu~0,000514|mn~0,00106|na~0,0595|fe~0,0003|mo~ | H54: |fa~0|ts~|fix~|c~|n~|p~|k~|ca~|mg~|s~|b~|zn~|cu~|mn~|na~|fe~|mo~ | I54: |fa~0,25|ts~11,6|fix~3,12592778810056E-02|c~45|n~1,864|p~|k~|ca~|mg~|s~|b~|zn~|cu~|mn~|na~|fe~|mo~ | J54: |fa~0,0116|ts~100|fix~9,80974512622524E-02|c~40|n~1|p~|k~|ca~|mg~|s~|b~|zn~|cu~|mn~|na~|fe~|mo~ | K54: |ts~|c~|n~|p~|k~|ca~|mg~|s~|b~|zn~|cu~|mn~|na~|fe~|mo~ | L54: kein | M54: Zwiebel | N54: 300 | O54: 11.6 | P54: 0.03125927788 | Q54: 45 | R54: 1.864 | S54: 0.32 | T54: 1.55 | U54: 0.24 | V54: 0.1 | W54: 0.552 | X54: 0.00195 | Y54: 0.00578 | Z54: 0.000514 | AA54: 0.00106 | AB54: 0.0595 | AC54: 0.0003 | AE54: 0 | AV54: 0.25 | AW54: 11.6 | AX54: 0.03125927788 | AY54: 45 | AZ54: 1.864 | BM54: 0.0116 | BN54: 100 | BO54: 0.09809745126 | BP54: 40 | BQ54: 1 | CX54: -520 | DA54: 2 | DD54: 0 | DE54: 1 | DF54: Gemüse
A55: 34 | B55: Marktfrucht | C55: Leindotter | F55: |vd_fruh_koeff~|vd_grun_koeff~|vd_unter_koeff~|vd_sommer_koeff~|vd_winter_koeff~|vd_haupt_koeff~-520|vd_ernterest_koeff~100|vd_nebenproduktfaktor~1,4|vd_verbleib_haupt~2|vd_verbleib_haupt_koeff~|vd_spat_koeff~ | G55: |fm~30|ts~91|fix~0,782030956246099|c~60|n~4,07|p~0,75|k~1,6|ca~0,22|mg~0,345|s~0,375|b~|zn~0,0069|cu~0,00099|mn~0,004|na~0,06|fe~0,009|mo~ | H55: |fa~1,4|ts~86|fix~5,26064713542181E-02|c~43|n~0,79|p~0,15|k~|ca~|mg~0,07|s~0,24|b~|zn~|cu~|mn~|na~|fe~|mo~ | I55: |fa~0,116279069767442|ts~86|fix~5,26064713542181E-02|c~43|n~0,79|p~0,15|k~|ca~|mg~0,07|s~0,24|b~|zn~|cu~|mn~|na~|fe~|mo~ | J55: |fa~0,13|ts~100|fix~6,90685939184983E-02|c~40|n~0,82|p~|k~|ca~|mg~|s~|b~|zn~|cu~|mn~|na~|fe~|mo~ | K55: |ts~91|c~60|n~4,07|p~0,75|k~1,6|ca~0,22|mg~0,345|s~0,375|b~|zn~0,0069|cu~0,00099|mn~0,004|na~0,06|fe~0,009|mo~ | L55: Stroh | M55: Korn | N55: 30 | O55: 91 | P55: 0.7820309562 | Q55: 60 | R55: 4.07 | S55: 0.75 | T55: 1.6 | U55: 0.22 | V55: 0.345 | W55: 0.375 | Y55: 0.0069 | Z55: 0.00099 | AA55: 0.004 | AB55: 0.06 | AC55: 0.009 | AE55: 1.4 | AF55: 86 | AG55: 0.05260647135 | AH55: 43 | AI55: 0.79 | AJ55: 0.15 | AM55: 0.07 | AN55: 0.24 | AV55: 0.1162790698 | AW55: 86 | AX55: 0.05260647135 | AY55: 43 | AZ55: 0.79 | BA55: 0.15 | BD55: 0.07 | BE55: 0.24 | BM55: 0.13 | BN55: 100 | BO55: 0.06906859392 | BP55: 40 | BQ55: 0.82 | CD55: 91 | CE55: 60 | CF55: 4.07 | CG55: 0.75 | CH55: 1.6 | CI55: 0.22 | CJ55: 0.345 | CK55: 0.375 | CM55: 0.0069 | CN55: 0.00099 | CO55: 0.004 | CP55: 0.06 | CQ55: 0.009 | CX55: -520 | CY55: 100 | CZ55: 1.4 | DA55: 2 | DD55: 0 | DE55: 1 | DF55: Ölfrucht
A56: 6 | B56: Marktfrucht | C56: Linse | F56: |vd_fruh_koeff~|vd_grun_koeff~|vd_unter_koeff~|vd_sommer_koeff~|vd_winter_koeff~|vd_haupt_koeff~160|vd_ernterest_koeff~|vd_nebenproduktfaktor~|vd_verbleib_haupt~2|vd_verbleib_haupt_koeff~|vd_spat_koeff~ | G56: |fm~30|ts~86|fix~1,15800176776535|c~43|n~4,54|p~0,47|k~0,86|ca~0,071|mg~0,14|s~0,19|b~|zn~0,0358|cu~0,0009|mn~0,001518|na~0,06|fe~0,0093|mo~ | H56: |fa~1|ts~86|fix~0,212483663459934|c~43|n~1,74|p~0,16|k~1,4|ca~|mg~0,24|s~0,15|b~|zn~|cu~|mn~|na~|fe~|mo~ | I56: |fa~0,109289617486339|ts~86|fix~0,212483663459934|c~43|n~1,74|p~|k~|ca~|mg~|s~|b~|zn~|cu~|mn~|na~|fe~|mo~ | J56: |fa~0,140983584|ts~100|fix~0,24033046319069|c~40|n~1,66|p~|k~|ca~|mg~|s~|b~|zn~|cu~|mn~|na~|fe~|mo~ | K56: |ts~86|c~43|n~4,54|p~0,47|k~0,86|ca~0,071|mg~0,14|s~0,19|b~|zn~0,0358|cu~0,0009|mn~0,001518|na~0,06|fe~0,0093|mo~ | L56: Stroh | M56: Korn | N56: 30 | O56: 86 | P56: 1.158001768 | Q56: 43 | R56: 4.54 | S56: 0.47 | T56: 0.86 | U56: 0.071 | V56: 0.14 | W56: 0.19 | Y56: 0.0358 | Z56: 0.0009 | AA56: 0.001518 | AB56: 0.06 | AC56: 0.0093 | AE56: 1 | AF56: 86 | AG56: 0.2124836635 | AH56: 43 | AI56: 1.74 | AJ56: 0.16 | AK56: 1.4 | AM56: 0.24 | AN56: 0.15 | AV56: 0.1092896175 | AW56: 86 | AX56: 0.2124836635 | AY56: 43 | AZ56: 1.74 | BM56: 0.140983584 | BN56: 100 | BO56: 0.2403304632 | BP56: 40 | BQ56: 1.66 | CD56: 86 | CE56: 43 | CF56: 4.54 | CG56: 0.47 | CH56: 0.86 | CI56: 0.071 | CJ56: 0.14 | CK56: 0.19 | CM56: 0.0358 | CN56: 0.0009 | CO56: 0.001518 | CP56: 0.06 | CQ56: 0.0093 | CX56: 160 | DA56: 2 | DD56: 2 | DE56: 1 | DF56: Leguminosen
A57: 56 | B57: Marktfrucht | C57: mittelfrühe und späte Kartoffeln | F57: |vd_fruh_koeff~|vd_grun_koeff~|vd_unter_koeff~|vd_sommer_koeff~|vd_winter_koeff~|vd_haupt_koeff~-1240|vd_ernterest_koeff~|vd_nebenproduktfaktor~|vd_verbleib_haupt~2|vd_verbleib_haupt_koeff~|vd_spat_koeff~ | G57: |fm~300|ts~22|fix~4,29636043779997E-02|c~39|n~1,46|p~0,27|k~2,055|ca~0,04|mg~0,082|s~0,15|b~|zn~0,00144|cu~0,000411|mn~0,000662|na~0,0212|fe~0,00174|mo~ | H57: |fa~0,2|ts~25|fix~4,89618579987438E-02|c~33|n~1,36|p~0,28|k~2|ca~|mg~0,52|s~0,2|b~|zn~|cu~|mn~|na~|fe~|mo~ | I57: |fa~0|ts~|fix~|c~|n~|p~|k~|ca~|mg~|s~|b~|zn~|cu~|mn~|na~|fe~|mo~ | J57: |fa~0,022|ts~100|fix~0,261185338732846|c~40|n~1,74|p~|k~|ca~|mg~|s~|b~|zn~|cu~|mn~|na~|fe~|mo~ | K57: |ts~22|c~39|n~1,46|p~0,27|k~2,055|ca~0,04|mg~0,082|s~0,15|b~|zn~0,00144|cu~0,000411|mn~0,000662|na~0,0212|fe~0,00174|mo~ | L57: Kraut | M57: Knolle | N57: 300 | O57: 22 | P57: 0.04296360438 | Q57: 39 | R57: 1.46 | S57: 0.27 | T57: 2.055 | U57: 0.04 | V57: 0.082 | W57: 0.15 | Y57: 0.00144 | Z57: 0.000411 | AA57: 0.000662 | AB57: 0.0212 | AC57: 0.00174 | AE57: 0.2 | AF57: 25 | AG57: 0.048961858 | AH57: 33 | AI57: 1.36 | AJ57: 0.28 | AK57: 2 | AM57: 0.52 | AN57: 0.2 | AV57: 0 | BM57: 0.022 | BN57: 100 | BO57: 0.2611853387 | BP57: 40 | BQ57: 1.74 | CD57: 22 | CE57: 39 | CF57: 1.46 | CG57: 0.27 | CH57: 2.055 | CI57: 0.04 | CJ57: 0.082 | CK57: 0.15 | CM57: 0.00144 | CN57: 0.000411 | CO57: 0.000662 | CP57: 0.0212 | CQ57: 0.00174 | CX57: -1240 | DA57: 2 | DD57: 0 | DE57: 1 | DF57: Gemüse
A58: 58 | B58: Marktfrucht | C58: Möhren, Industrieware | F58: |vd_fruh_koeff~|vd_grun_koeff~|vd_unter_koeff~|vd_sommer_koeff~|vd_winter_koeff~|vd_haupt_koeff~-1040|vd_ernterest_koeff~|vd_nebenproduktfaktor~|vd_verbleib_haupt~2|vd_verbleib_haupt_koeff~|vd_spat_koeff~ | G58: |fm~600|ts~10,4|fix~1,56360557197311E-02|c~45|n~1,34|p~0,27|k~2,79|ca~0,29|mg~0,125|s~0,067|b~0,00264|zn~0,00304|cu~0,000952|mn~0,00144|na~0,3559|fe~0,0004|mo~ | H58: |fa~0,5|ts~10,4|fix~1,56360557197311E-02|c~45|n~1,34|p~0,27|k~2,79|ca~0,29|mg~0,125|s~0,067|b~0,00264|zn~0,00304|cu~0,000952|mn~0,00144|na~0,3359|fe~0,0004|mo~ | I58: |fa~0|ts~|fix~|c~|n~|p~|k~|ca~|mg~|s~|b~|zn~|cu~|mn~|na~|fe~|mo~ | J58: |fa~0,0104|ts~100|fix~9,80974512622524E-02|c~40|n~1|p~|k~|ca~|mg~|s~|b~|zn~|cu~|mn~|na~|fe~|mo~ | K58: |ts~|c~|n~|p~|k~|ca~|mg~|s~|b~|zn~|cu~|mn~|na~|fe~|mo~ | L58: Kraut | M58: Rübe | N58: 600 | O58: 10.4 | P58: 0.01563605572 | Q58: 45 | R58: 1.34 | S58: 0.27 | T58: 2.79 | U58: 0.29 | V58: 0.125 | W58: 0.067 | X58: 0.00264 | Y58: 0.00304 | Z58: 0.000952 | AA58: 0.00144 | AB58: 0.3559 | AC58: 0.0004 | AE58: 0.5 | AF58: 10.4 | AG58: 0.01563605572 | AH58: 45 | AI58: 1.34 | AJ58: 0.27 | AK58: 2.79 | AL58: 0.29 | AM58: 0.125 | AN58: 0.067 | AO58: 0.00264 | AP58: 0.00304 | AQ58: 0.000952 | AR58: 0.00144 | AS58: 0.3359 | AT58: 0.0004 | AV58: 0 | BM58: 0.0104 | BN58: 100 | BO58: 0.09809745126 | BP58: 40 | BQ58: 1 | CX58: -1040 | DA58: 2 | DD58: 0 | DE58: 1 | DF58: Gemüse
A59: 60 | B59: Marktfrucht | C59: Pastinaken | F59: |vd_fruh_koeff~|vd_grun_koeff~|vd_unter_koeff~|vd_sommer_koeff~|vd_winter_koeff~|vd_haupt_koeff~-1040|vd_ernterest_koeff~|vd_nebenproduktfaktor~|vd_verbleib_haupt~2|vd_verbleib_haupt_koeff~|vd_spat_koeff~ | G59: |fm~400|ts~17,3|fix~2,73983818718849E-02|c~45|n~1,38|p~0,51|k~3,12|ca~0,28|mg~0,21|s~0,098|b~|zn~0,00541|cu~0,000558|mn~0,00301|na~0,0522|fe~0,0006|mo~ | H59: |fa~0,5|ts~17,3|fix~2,73983818718849E-02|c~45|n~1,38|p~0,51|k~3,12|ca~0,28|mg~0,21|s~0,098|b~|zn~0,00541|cu~0,000757|mn~0,00225|na~0,0522|fe~0,0006|mo~ | I59: |fa~0|ts~|fix~|c~|n~|p~|k~|ca~|mg~|s~|b~|zn~|cu~|mn~|na~|fe~|mo~ | J59: |fa~0,0173|ts~100|fix~9,80974512622524E-02|c~40|n~1|p~|k~|ca~|mg~|s~|b~|zn~|cu~|mn~|na~|fe~|mo~ | K59: |ts~|c~|n~|p~|k~|ca~|mg~|s~|b~|zn~|cu~|mn~|na~|fe~|mo~ | L59: Kraut | M59: Rübe | N59: 400 | O59: 17.3 | P59: 0.02739838187 | Q59: 45 | R59: 1.38 | S59: 0.51 | T59: 3.12 | U59: 0.28 | V59: 0.21 | W59: 0.098 | Y59: 0.00541 | Z59: 0.000558 | AA59: 0.00301 | AB59: 0.0522 | AC59: 0.0006 | AE59: 0.5 | AF59: 17.3 | AG59: 0.02739838187 | AH59: 45 | AI59: 1.38 | AJ59: 0.51 | AK59: 3.12 | AL59: 0.28 | AM59: 0.21 | AN59: 0.098 | AP59: 0.00541 | AQ59: 0.000757 | AR59: 0.00225 | AS59: 0.0522 | AT59: 0.0006 | AV59: 0 | BM59: 0.0173 | BN59: 100 | BO59: 0.09809745126 | BP59: 40 | BQ59: 1 | CX59: -1040 | DA59: 2 | DD59: 0 | DE59: 1 | DF59: Gemüse
A60: 62 | B60: Marktfrucht | C60: Petersilie | F60: |vd_fruh_koeff~|vd_grun_koeff~|vd_unter_koeff~|vd_sommer_koeff~|vd_winter_koeff~|vd_haupt_koeff~-520|vd_ernterest_koeff~|vd_nebenproduktfaktor~|vd_verbleib_haupt~2|vd_verbleib_haupt_koeff~|vd_spat_koeff~ | G60: |fm~200|ts~18,5|fix~0,178913008929302|c~45|n~3,84|p~0,65|k~5,14|ca~1,24|mg~0,21|s~1,03|b~|zn~0,00541|cu~0,000736|mn~0,00924|na~0,1843|fe~0,0036|mo~ | H60: |fa~0|ts~|fix~|c~|n~|p~|k~|ca~|mg~|s~|b~|zn~|cu~|mn~|na~|fe~|mo~ | I60: |fa~0,25|ts~18,5|fix~0,178913008929302|c~45|n~3,84|p~|k~|ca~|mg~|s~|b~|zn~|cu~|mn~|na~|fe~|mo~ | J60: |fa~0,0185|ts~100|fix~9,80974512622524E-02|c~40|n~1|p~|k~|ca~|mg~|s~|b~|zn~|cu~|mn~|na~|fe~|mo~ | K60: |ts~|c~|n~|p~|k~|ca~|mg~|s~|b~|zn~|cu~|mn~|na~|fe~|mo~ | L60: kein | M60: Kraut | N60: 200 | O60: 18.5 | P60: 0.1789130089 | Q60: 45 | R60: 3.84 | S60: 0.65 | T60: 5.14 | U60: 1.24 | V60: 0.21 | W60: 1.03 | Y60: 0.00541 | Z60: 0.000736 | AA60: 0.00924 | AB60: 0.1843 | AC60: 0.0036 | AE60: 0 | AV60: 0.25 | AW60: 18.5 | AX60: 0.1789130089 | AY60: 45 | AZ60: 3.84 | BM60: 0.0185 | BN60: 100 | BO60: 0.09809745126 | BP60: 40 | BQ60: 1 | CX60: -520 | DA60: 2 | DD60: 0 | DE60: 1 | DF60: Gemüse
A61: 95 | B61: Marktfrucht | C61: Porree | F61: |vd_fruh_koeff~|vd_grun_koeff~|vd_unter_koeff~|vd_sommer_koeff~|vd_winter_koeff~|vd_haupt_koeff~-1240|vd_ernterest_koeff~|vd_nebenproduktfaktor~|vd_verbleib_haupt~2|vd_verbleib_haupt_koeff~|vd_spat_koeff~ | G61: |fm~300|ts~11|fix~6,51520486481981E-02|c~45|n~2,91|p~0,39|k~2,36|ca~0,72|mg~0,16|s~0,55|b~0,00201|zn~0,00284|cu~0,00054|mn~0,0018|na~0,0439|fe~0,001|mo~ | H61: |fa~0,6|ts~11|fix~6,51520486481981E-02|c~45|n~2,91|p~0,39|k~2,36|ca~0,72|mg~0,16|s~0,55|b~0,00201|zn~0,00284|cu~0,00054|mn~0,0018|na~0,0439|fe~0,001|mo~ | I61: |fa~0|ts~|fix~|c~|n~|p~|k~|ca~|mg~|s~|b~|zn~|cu~|mn~|na~|fe~|mo~ | J61: |fa~0,011|ts~100|fix~9,80974512622524E-02|c~40|n~1|p~|k~|ca~|mg~|s~|b~|zn~|cu~|mn~|na~|fe~|mo~ | K61: |ts~|c~|n~|p~|k~|ca~|mg~|s~|b~|zn~|cu~|mn~|na~|fe~|mo~ | L61: Blatt | M61: Stange | N61: 300 | O61: 11 | P61: 0.06515204865 | Q61: 45 | R61: 2.91 | S61: 0.39 | T61: 2.36 | U61: 0.72 | V61: 0.16 | W61: 0.55 | X61: 0.00201 | Y61: 0.00284 | Z61: 0.00054 | AA61: 0.0018 | AB61: 0.0439 | AC61: 0.001 | AE61: 0.6 | AF61: 11 | AG61: 0.06515204865 | AH61: 45 | AI61: 2.91 | AJ61: 0.39 | AK61: 2.36 | AL61: 0.72 | AM61: 0.16 | AN61: 0.55 | AO61: 0.00201 | AP61: 0.00284 | AQ61: 0.00054 | AR61: 0.0018 | AS61: 0.0439 | AT61: 0.001 | AV61: 0 | BM61: 0.011 | BN61: 100 | BO61: 0.09809745126 | BP61: 40 | BQ61: 1 | CX61: -1240 | DA61: 2 | DD61: 0 | DE61: 1 | DF61: Gemüse
A62: 76 | B62: Marktfrucht | C62: Rhabarber | F62: |vd_fruh_koeff~|vd_grun_koeff~|vd_unter_koeff~|vd_sommer_koeff~|vd_winter_koeff~|vd_haupt_koeff~-1240|vd_ernterest_koeff~|vd_nebenproduktfaktor~|vd_verbleib_haupt~2|vd_verbleib_haupt_koeff~|vd_spat_koeff~ | G62: |fm~250|ts~7,3|fix~2,74381065794319E-02|c~45|n~2,25|p~0,5|k~3,7|ca~0,87|mg~0,178|s~|b~|zn~0,00013|cu~0,00004|mn~0,00017|na~0,02|fe~0,0005|mo~ | H62: |fa~1|ts~7,3|fix~2,74381065794319E-02|c~45|n~2,25|p~0,5|k~3,7|ca~0,87|mg~0,178|s~|b~|zn~0,00013|cu~0,00004|mn~0,00017|na~0,02|fe~0,0005|mo~ | I62: |fa~0|ts~|fix~|c~|n~|p~|k~|ca~|mg~|s~|b~|zn~|cu~|mn~|na~|fe~|mo~ | J62: |fa~0,0073|ts~100|fix~9,80974512622524E-02|c~40|n~1|p~|k~|ca~|mg~|s~|b~|zn~|cu~|mn~|na~|fe~|mo~ | K62: |ts~|c~|n~|p~|k~|ca~|mg~|s~|b~|zn~|cu~|mn~|na~|fe~|mo~ | L62: Blatt | M62: Spross | N62: 250 | O62: 7.3 | P62: 0.02743810658 | Q62: 45 | R62: 2.25 | S62: 0.5 | T62: 3.7 | U62: 0.87 | V62: 0.178 | Y62: 0.00013 | Z62: 4e-05 | AA62: 0.00017 | AB62: 0.02 | AC62: 0.0005 | AE62: 1 | AF62: 7.3 | AG62: 0.02743810658 | AH62: 45 | AI62: 2.25 | AJ62: 0.5 | AK62: 3.7 | AL62: 0.87 | AM62: 0.178 | AP62: 0.00013 | AQ62: 4e-05 | AR62: 0.00017 | AS62: 0.02 | AT62: 0.0005 | AV62: 0 | BM62: 0.0073 | BN62: 100 | BO62: 0.09809745126 | BP62: 40 | BQ62: 1 | CX62: -1240 | DA62: 2 | DD62: 0 | DE62: 2 | DF62: Gemüse
A63: 66 | B63: Marktfrucht | C63: Rote Beete | F63: |vd_fruh_koeff~|vd_grun_koeff~|vd_unter_koeff~|vd_sommer_koeff~|vd_winter_koeff~|vd_haupt_koeff~-520|vd_ernterest_koeff~|vd_nebenproduktfaktor~|vd_verbleib_haupt~2|vd_verbleib_haupt_koeff~|vd_spat_koeff~ | G63: |fm~400|ts~13,3|fix~3,88155210532874E-02|c~45|n~1,95|p~0,35|k~2,86|ca~0,18|mg~0,15|s~0,14|b~0,00152|zn~0,00349|cu~0,000881|mn~0,00124|na~0,5371|fe~0,0009|mo~ | H63: |fa~0,67|ts~13,3|fix~3,88155210532874E-02|c~45|n~1,95|p~0,35|k~2,86|ca~0,18|mg~0,15|s~0,14|b~0,00152|zn~0,00349|cu~0,000881|mn~0,00124|na~0,5371|fe~0,0009|mo~ | I63: |fa~0|ts~|fix~|c~|n~|p~|k~|ca~|mg~|s~|b~|zn~|cu~|mn~|na~|fe~|mo~ | J63: |fa~0,0133|ts~100|fix~9,80974512622524E-02|c~40|n~1|p~|k~|ca~|mg~|s~|b~|zn~|cu~|mn~|na~|fe~|mo~ | K63: |ts~|c~|n~|p~|k~|ca~|mg~|s~|b~|zn~|cu~|mn~|na~|fe~|mo~ | L63: Blatt & Spross | M63: Rübe | N63: 400 | O63: 13.3 | P63: 0.03881552105 | Q63: 45 | R63: 1.95 | S63: 0.35 | T63: 2.86 | U63: 0.18 | V63: 0.15 | W63: 0.14 | X63: 0.00152 | Y63: 0.00349 | Z63: 0.000881 | AA63: 0.00124 | AB63: 0.5371 | AC63: 0.0009 | AE63: 0.67 | AF63: 13.3 | AG63: 0.03881552105 | AH63: 45 | AI63: 1.95 | AJ63: 0.35 | AK63: 2.86 | AL63: 0.18 | AM63: 0.15 | AN63: 0.14 | AO63: 0.00152 | AP63: 0.00349 | AQ63: 0.000881 | AR63: 0.00124 | AS63: 0.5371 | AT63: 0.0009 | AV63: 0 | BM63: 0.0133 | BN63: 100 | BO63: 0.09809745126 | BP63: 40 | BQ63: 1 | CX63: -520 | DA63: 2 | DD63: 0 | DE63: 1 | DF63: Gemüse
A64: 84 | B64: Marktfrucht | C64: Rotkleevermehrung | F64: |vd_fruh_koeff~400|vd_grun_koeff~|vd_unter_koeff~200|vd_sommer_koeff~|vd_winter_koeff~|vd_haupt_koeff~600|vd_ernterest_koeff~|vd_nebenproduktfaktor~|vd_verbleib_haupt~2|vd_verbleib_haupt_koeff~|vd_spat_koeff~100 | G64: |fm~18|ts~91|fix~2,03213927264128|c~43|n~6,04395604395604|p~0,705934065934066|k~1,14010989010989|ca~|mg~0,178021978021978|s~|b~|zn~|cu~|mn~|na~|fe~|mo~ | H64: |fa~8|ts~86|fix~0,212483663459934|c~43|n~1,74|p~0,15|k~1,21|ca~1,25|mg~0,225|s~0,2|b~|zn~0,004|cu~0,0008|mn~0,004|na~0,015|fe~0,02|mo~ | I64: |fa~0,846511627906977|ts~86|fix~0,212483663459934|c~43|n~1,74|p~0,15|k~1,21|ca~|mg~0,28|s~|b~|zn~|cu~|mn~|na~|fe~|mo~ | J64: |fa~6,8796|ts~100|fix~0,334101754391865|c~40|n~2|p~|k~|ca~|mg~|s~|b~|zn~|cu~|mn~|na~|fe~|mo~ | K64: |ts~91|c~43|n~6,04395604395604|p~0,705934065934066|k~1,14010989010989|ca~|mg~0,178021978021978|s~|b~|zn~|cu~|mn~|na~|fe~|mo~ | L64: Stroh | M64: Korn | N64: 18 | O64: 91 | P64: 2.032139273 | Q64: 43 | R64: 6.043956044 | S64: 0.7059340659 | T64: 1.14010989 | V64: 0.178021978 | AE64: 8 | AF64: 86 | AG64: 0.2124836635 | AH64: 43 | AI64: 1.74 | AJ64: 0.15 | AK64: 1.21 | AL64: 1.25 | AM64: 0.225 | AN64: 0.2 | AP64: 0.004 | AQ64: 0.0008 | AR64: 0.004 | AS64: 0.015 | AT64: 0.02 | AV64: 0.8465116279 | AW64: 86 | AX64: 0.2124836635 | AY64: 43 | AZ64: 1.74 | BA64: 0.15 | BB64: 1.21 | BD64: 0.28 | BM64: 6.8796 | BN64: 100 | BO64: 0.3341017544 | BP64: 40 | BQ64: 2 | CD64: 91 | CE64: 43 | CF64: 6.043956044 | CG64: 0.7059340659 | CH64: 1.14010989 | CJ64: 0.178021978 | CS64: 400 | CU64: 200 | CX64: 600 | DA64: 2 | DC64: 100 | DD64: 1 | DE64: 1 | DF64: Vermehrung
A65: 5 | B65: Marktfrucht | C65: Sojabohne | F65: |vd_fruh_koeff~|vd_grun_koeff~|vd_unter_koeff~|vd_sommer_koeff~|vd_winter_koeff~|vd_haupt_koeff~160|vd_ernterest_koeff~|vd_nebenproduktfaktor~|vd_verbleib_haupt~2|vd_verbleib_haupt_koeff~|vd_spat_koeff~ | G65: |fm~30|ts~86|fix~2,12500848513596|c~43|n~6,4|p~0,66|k~1,498|ca~0,23|mg~0,26|s~0,23|b~|zn~0,005|cu~0,0013|mn~0,0028|na~0,0056|fe~0,007835|mo~ | H65: |fa~1|ts~86|fix~8,69955734644176E-02|c~43|n~1,05|p~0,17|k~2,455|ca~|mg~0,3|s~0,15|b~|zn~|cu~|mn~|na~|fe~|mo~ | I65: |fa~0,109289617486339|ts~86|fix~8,69955734644176E-02|c~43|n~1,05|p~|k~|ca~|mg~|s~|b~|zn~|cu~|mn~|na~|fe~|mo~ | J65: |fa~0,140983584|ts~100|fix~0,223367118270675|c~44|n~1,66|p~|k~|ca~|mg~|s~|b~|zn~|cu~|mn~|na~|fe~|mo~ | K65: |ts~86|c~43|n~6,4|p~0,66|k~1,498|ca~0,23|mg~0,26|s~0,23|b~|zn~0,005|cu~0,0013|mn~0,0028|na~0,0056|fe~0,007835|mo~ | L65: Stroh | M65: Korn | N65: 30 | O65: 86 | P65: 2.125008485 | Q65: 43 | R65: 6.4 | S65: 0.66 | T65: 1.498 | U65: 0.23 | V65: 0.26 | W65: 0.23 | Y65: 0.005 | Z65: 0.0013 | AA65: 0.0028 | AB65: 0.0056 | AC65: 0.007835 | AE65: 1 | AF65: 86 | AG65: 0.08699557346 | AH65: 43 | AI65: 1.05 | AJ65: 0.17 | AK65: 2.455 | AM65: 0.3 | AN65: 0.15 | AV65: 0.1092896175 | AW65: 86 | AX65: 0.08699557346 | AY65: 43 | AZ65: 1.05 | BM65: 0.140983584 | BN65: 100 | BO65: 0.2233671183 | BP65: 44 | BQ65: 1.66 | CD65: 86 | CE65: 43 | CF65: 6.4 | CG65: 0.66 | CH65: 1.498 | CI65: 0.23 | CJ65: 0.26 | CK65: 0.23 | CM65: 0.005 | CN65: 0.0013 | CO65: 0.0028 | CP65: 0.0056 | CQ65: 0.007835 | CX65: 160 | DA65: 2 | DD65: 2 | DE65: 1 | DF65: Leguminosen
A66: 1 | B66: Marktfrucht | C66: Sommerackerbohne | F66: =getParaListe(CS66:DC66,Intern_ParaListe_vd) -> |vd_fruh_koeff~|vd_grun_koeff~|vd_unter_koeff~|vd_sommer_koeff~|vd_winter_koeff~|vd_haupt_koeff~160|vd_ernterest_koeff~|vd_nebenproduktfaktor~|vd_verbleib_haupt~2|vd_verbleib_haupt_koeff~|vd_spat_koeff~ | G66: =getParaListe(N66:AD66,Intern_ParaListe_hp) -> |fm~30|ts~86|fix~1,29670466693867|c~43|n~4,84|p~0,55|k~1,31|ca~0,155|mg~0,1585|s~0,2|b~0,00155|zn~0,00616|cu~0,00062|mn~0,00145|na~0,0281|fe~0,00715|mo~0,000225 | H66: =getParaListe(AE66:AU66,Intern_ParaListe_np) -> |fa~1|ts~86|fix~0,144673451157624|c~43|n~1,4|p~0,17|k~1,71|ca~|mg~0,19|s~0,16|b~|zn~|cu~|mn~|na~|fe~|mo~ | I66: =getParaListe(AV66:BL66,Intern_ParaListe_st) -> |fa~0,109289617486339|ts~86|fix~0,144673451157624|c~43|n~1,4|p~0,17|k~1,71|ca~|mg~0,19|s~0,16|b~|zn~|cu~|mn~|na~|fe~|mo~ | J66: =getParaListe(BM66:CC66,Intern_ParaListe_rt) -> |fa~0,140983584|ts~100|fix~0,135409821886406|c~40|n~1,2|p~|k~|ca~|mg~|s~|b~|zn~|cu~|mn~|na~|fe~|mo~ | K66: =getParaListe(CD66:CR66,Intern_ParaListe_sg) -> |ts~86|c~43|n~4,84|p~0,55|k~1,31|ca~0,155|mg~0,1585|s~0,2|b~0,00155|zn~0,00616|cu~0,00062|mn~0,00145|na~0,0281|fe~0,00715|mo~0,000225 | L66: Stroh | M66: Korn | N66: 30 | O66: 86 | P66: 1.296704667 | Q66: 43 | R66: 4.84 | S66: 0.55 | T66: 1.31 | U66: 0.155 | V66: 0.1585 | W66: 0.2 | X66: 0.00155 | Y66: 0.00616 | Z66: 0.00062 | AA66: 0.00145 | AB66: 0.0281 | AC66: 0.00715 | AD66: 0.000225 | AE66: 1 | AF66: 86 | AG66: 0.1446734512 | AH66: 43 | AI66: 1.4 | AJ66: 0.17 | AK66: 1.71 | AM66: 0.19 | AN66: 0.16 | AV66: 0.1092896175 | AW66: 86 | AX66: 0.1446734512 | AY66: 43 | AZ66: 1.4 | BA66: 0.17 | BB66: 1.71 | BD66: 0.19 | BE66: 0.16 | BM66: 0.140983584 | BN66: 100 | BO66: 0.1354098219 | BP66: 40 | BQ66: 1.2 | CD66: 86 | CE66: 43 | CF66: 4.84 | CG66: 0.55 | CH66: 1.31 | CI66: 0.155 | CJ66: 0.1585 | CK66: 0.2 | CL66: 0.00155 | CM66: 0.00616 | CN66: 0.00062 | CO66: 0.00145 | CP66: 0.0281 | CQ66: 0.00715 | CR66: 0.000225 | CX66: 160 | DA66: 2 | DD66: 2 | DE66: 1 | DF66: Leguminosen
A67: 28 | B67: Marktfrucht | C67: Sommerdinkel | F67: |vd_fruh_koeff~|vd_grun_koeff~|vd_unter_koeff~|vd_sommer_koeff~|vd_winter_koeff~|vd_haupt_koeff~-520|vd_ernterest_koeff~100|vd_nebenproduktfaktor~1,1|vd_verbleib_haupt~2|vd_verbleib_haupt_koeff~|vd_spat_koeff~ | G67: |fm~40|ts~86|fix~0,390622418483054|c~44|n~2,48|p~0,41|k~0,87|ca~0,024|mg~0,14|s~0,12|b~|zn~0,004015|cu~0,00044|mn~0,0049|na~0,0011|fe~0,0048|mo~ | H67: |fa~1,1|ts~86|fix~2,10525906235133E-02|c~45|n~0,48|p~0,15|k~1,64|ca~0,367|mg~0,14|s~0,1|b~|zn~0,003|cu~0,0004|mn~0,008|na~0,15|fe~0,02|mo~ | I67: |fa~0,32|ts~86|fix~2,10525906235133E-02|c~45|n~0,48|p~|k~|ca~|mg~|s~|b~|zn~|cu~|mn~|na~|fe~|mo~ | J67: |fa~0,688|ts~100|fix~7,70258997310516E-02|c~43|n~0,9|p~|k~|ca~|mg~|s~|b~|zn~|cu~|mn~|na~|fe~|mo~ | K67: |ts~86|c~44|n~2,48|p~0,41|k~0,87|ca~0,024|mg~0,14|s~0,12|b~|zn~0,004015|cu~0,00044|mn~0,0049|na~0,0011|fe~0,0048|mo~ | L67: Stroh | M67: Korn | N67: 40 | O67: 86 | P67: 0.3906224185 | Q67: 44 | R67: 2.48 | S67: 0.41 | T67: 0.87 | U67: 0.024 | V67: 0.14 | W67: 0.12 | Y67: 0.004015 | Z67: 0.00044 | AA67: 0.0049 | AB67: 0.0011 | AC67: 0.0048 | AE67: 1.1 | AF67: 86 | AG67: 0.02105259062 | AH67: 45 | AI67: 0.48 | AJ67: 0.15 | AK67: 1.64 | AL67: 0.367 | AM67: 0.14 | AN67: 0.1 | AP67: 0.003 | AQ67: 0.0004 | AR67: 0.008 | AS67: 0.15 | AT67: 0.02 | AV67: 0.32 | AW67: 86 | AX67: 0.02105259062 | AY67: 45 | AZ67: 0.48 | BM67: 0.688 | BN67: 100 | BO67: 0.07702589973 | BP67: 43 | BQ67: 0.9 | CD67: 86 | CE67: 44 | CF67: 2.48 | CG67: 0.41 | CH67: 0.87 | CI67: 0.024 | CJ67: 0.14 | CK67: 0.12 | CM67: 0.004015 | CN67: 0.00044 | CO67: 0.0049 | CP67: 0.0011 | CQ67: 0.0048 | CX67: -520 | CY67: 100 | CZ67: 1.1 | DA67: 2 | DD67: 0 | DE67: 1 | DF67: Getreide
A68: 32 | B68: Marktfrucht | C68: Sommererbse | F68: |vd_fruh_koeff~|vd_grun_koeff~|vd_unter_koeff~|vd_sommer_koeff~|vd_winter_koeff~|vd_haupt_koeff~160|vd_ernterest_koeff~|vd_nebenproduktfaktor~|vd_verbleib_haupt~2|vd_verbleib_haupt_koeff~|vd_spat_koeff~ | G68: |fm~30|ts~86|fix~0,908290366233361|c~42|n~3,917|p~0,5|k~1,18|ca~0,09|mg~0,14|s~0,21|b~0,00142|zn~0,00376|cu~0,0008|mn~0,00148|na~0,0281|fe~0,00865|mo~0,000029 | H68: |fa~1|ts~86|fix~0,189313750375562|c~43|n~1,63|p~0,15|k~2,51|ca~|mg~0,24|s~0,12|b~|zn~|cu~|mn~|na~|fe~|mo~ | I68: |fa~0,109289617486339|ts~86|fix~0,189313750375562|c~43|n~1,63|p~|k~|ca~|mg~|s~|b~|zn~|cu~|mn~|na~|fe~|mo~ | J68: |fa~0,140983584|ts~100|fix~0,24033046319069|c~40|n~1,66|p~|k~|ca~|mg~|s~|b~|zn~|cu~|mn~|na~|fe~|mo~ | K68: |ts~86|c~42|n~3,917|p~0,5|k~1,18|ca~0,09|mg~0,14|s~0,21|b~0,00142|zn~0,00376|cu~0,0008|mn~0,00148|na~0,0281|fe~0,00865|mo~0,000029 | L68: Stroh | M68: Korn | N68: 30 | O68: 86 | P68: 0.9082903662 | Q68: 42 | R68: 3.917 | S68: 0.5 | T68: 1.18 | U68: 0.09 | V68: 0.14 | W68: 0.21 | X68: 0.00142 | Y68: 0.00376 | Z68: 0.0008 | AA68: 0.00148 | AB68: 0.0281 | AC68: 0.00865 | AD68: 2.9e-05 | AE68: 1 | AF68: 86 | AG68: 0.1893137504 | AH68: 43 | AI68: 1.63 | AJ68: 0.15 | AK68: 2.51 | AM68: 0.24 | AN68: 0.12 | AV68: 0.1092896175 | AW68: 86 | AX68: 0.1893137504 | AY68: 43 | AZ68: 1.63 | BM68: 0.140983584 | BN68: 100 | BO68: 0.2403304632 | BP68: 40 | BQ68: 1.66 | CD68: 86 | CE68: 42 | CF68: 3.917 | CG68: 0.5 | CH68: 1.18 | CI68: 0.09 | CJ68: 0.14 | CK68: 0.21 | CL68: 0.00142 | CM68: 0.00376 | CN68: 0.0008 | CO68: 0.00148 | CP68: 0.0281 | CQ68: 0.00865 | CR68: 2.9e-05 | CX68: 160 | DA68: 2 | DD68: 2 | DE68: 1 | DF68: Leguminosen
A69: 27 | B69: Marktfrucht | C69: Sommergerste | F69: |vd_fruh_koeff~|vd_grun_koeff~|vd_unter_koeff~|vd_sommer_koeff~|vd_winter_koeff~|vd_haupt_koeff~-520|vd_ernterest_koeff~100|vd_nebenproduktfaktor~1|vd_verbleib_haupt~2|vd_verbleib_haupt_koeff~|vd_spat_koeff~ | G69: |fm~40|ts~86|fix~0,172111893582029|c~44|n~1,56|p~0,41|k~0,58|ca~0,038|mg~0,14|s~0,12|b~|zn~0,0028|cu~0,00055|mn~0,0021|na~0,018|fe~0,0028|mo~ | H69: |fa~1|ts~86|fix~2,34344685600629E-02|c~45|n~0,51|p~0,15|k~1,64|ca~0,35|mg~0,14|s~0,1|b~|zn~0,004|cu~0,0006|mn~0,008|na~0,2|fe~0,02|mo~ | I69: |fa~0,295454545454545|ts~86|fix~2,34344685600629E-02|c~45|n~0,51|p~0,15|k~1,64|ca~0,35|mg~0,14|s~0,1|b~|zn~|cu~|mn~|na~|fe~|mo~ | J69: |fa~0,559|ts~100|fix~8,14251337302235E-02|c~40|n~0,9|p~|k~|ca~|mg~|s~|b~|zn~|cu~|mn~|na~|fe~|mo~ | K69: |ts~86|c~44|n~1,56|p~0,41|k~0,58|ca~0,038|mg~0,14|s~0,12|b~|zn~0,0028|cu~0,00055|mn~0,0021|na~0,018|fe~0,0028|mo~ | L69: Stroh | M69: Korn | N69: 40 | O69: 86 | P69: 0.1721118936 | Q69: 44 | R69: 1.56 | S69: 0.41 | T69: 0.58 | U69: 0.038 | V69: 0.14 | W69: 0.12 | Y69: 0.0028 | Z69: 0.00055 | AA69: 0.0021 | AB69: 0.018 | AC69: 0.0028 | AE69: 1 | AF69: 86 | AG69: 0.02343446856 | AH69: 45 | AI69: 0.51 | AJ69: 0.15 | AK69: 1.64 | AL69: 0.35 | AM69: 0.14 | AN69: 0.1 | AP69: 0.004 | AQ69: 0.0006 | AR69: 0.008 | AS69: 0.2 | AT69: 0.02 | AV69: 0.2954545455 | AW69: 86 | AX69: 0.02343446856 | AY69: 45 | AZ69: 0.51 | BA69: 0.15 | BB69: 1.64 | BC69: 0.35 | BD69: 0.14 | BE69: 0.1 | BM69: 0.559 | BN69: 100 | BO69: 0.08142513373 | BP69: 40 | BQ69: 0.9 | CD69: 86 | CE69: 44 | CF69: 1.56 | CG69: 0.41 | CH69: 0.58 | CI69: 0.038 | CJ69: 0.14 | CK69: 0.12 | CM69: 0.0028 | CN69: 0.00055 | CO69: 0.0021 | CP69: 0.018 | CQ69: 0.0028 | CX69: -520 | CY69: 100 | CZ69: 1 | DA69: 2 | DD69: 0 | DE69: 1 | DF69: Getreide
A70: 9 | B70: Marktfrucht | C70: Sommerhafer | F70: |vd_fruh_koeff~|vd_grun_koeff~|vd_unter_koeff~|vd_sommer_koeff~|vd_winter_koeff~|vd_haupt_koeff~-520|vd_ernterest_koeff~100|vd_nebenproduktfaktor~1,1|vd_verbleib_haupt~2|vd_verbleib_haupt_koeff~|vd_spat_koeff~ | G70: |fm~40|ts~86|fix~0,244349119913082|c~44|n~1,902|p~0,37|k~0,55|ca~0,1|mg~0,14|s~0,18|b~|zn~0,003|cu~0,00045|mn~0,0045|na~0,035|fe~0,0065|mo~ | H70: |fa~1,1|ts~86|fix~2,02833670915081E-02|c~45|n~0,47|p~0,15|k~1,64|ca~0,5|mg~0,07|s~|b~|zn~0,004|cu~0,0007|mn~0,008|na~0,2|fe~0,02|mo~ | I70: |fa~0,25|ts~86|fix~2,02833670915081E-02|c~45|n~0,47|p~|k~|ca~|mg~|s~|b~|zn~|cu~|mn~|na~|fe~|mo~ | J70: |fa~0,559|ts~100|fix~8,14251337302235E-02|c~40|n~0,9|p~|k~|ca~|mg~|s~|b~|zn~|cu~|mn~|na~|fe~|mo~ | K70: |ts~86|c~44|n~1,902|p~0,37|k~0,55|ca~0,1|mg~0,14|s~0,18|b~|zn~0,003|cu~0,00045|mn~0,0045|na~0,035|fe~0,0065|mo~ | L70: Stroh | M70: Korn | N70: 40 | O70: 86 | P70: 0.2443491199 | Q70: 44 | R70: 1.902 | S70: 0.37 | T70: 0.55 | U70: 0.1 | V70: 0.14 | W70: 0.18 | Y70: 0.003 | Z70: 0.00045 | AA70: 0.0045 | AB70: 0.035 | AC70: 0.0065 | AE70: 1.1 | AF70: 86 | AG70: 0.02028336709 | AH70: 45 | AI70: 0.47 | AJ70: 0.15 | AK70: 1.64 | AL70: 0.5 | AM70: 0.07 | AP70: 0.004 | AQ70: 0.0007 | AR70: 0.008 | AS70: 0.2 | AT70: 0.02 | AV70: 0.25 | AW70: 86 | AX70: 0.02028336709 | AY70: 45 | AZ70: 0.47 | BM70: 0.559 | BN70: 100 | BO70: 0.08142513373 | BP70: 40 | BQ70: 0.9 | CD70: 86 | CE70: 44 | CF70: 1.902 | CG70: 0.37 | CH70: 0.55 | CI70: 0.1 | CJ70: 0.14 | CK70: 0.18 | CM70: 0.003 | CN70: 0.00045 | CO70: 0.0045 | CP70: 0.035 | CQ70: 0.0065 | CX70: -520 | CY70: 100 | CZ70: 1.1 | DA70: 2 | DD70: 0 | DE70: 1 | DF70: Getreide
A71: 13 | B71: Marktfrucht | C71: Sommerroggen | F71: |vd_fruh_koeff~|vd_grun_koeff~|vd_unter_koeff~|vd_sommer_koeff~|vd_winter_koeff~|vd_haupt_koeff~-520|vd_ernterest_koeff~100|vd_nebenproduktfaktor~1,3|vd_verbleib_haupt~2|vd_verbleib_haupt_koeff~|vd_spat_koeff~ | G71: |fm~40|ts~86|fix~0,160581658442096|c~44|n~1,5|p~0,41|k~0,58|ca~0,04|mg~0,14|s~0,1|b~0,000811|zn~0,0039|cu~0,000509|mn~0,0037|na~0,00405|fe~0,0028|mo~ | H71: |fa~1,3|ts~86|fix~2,34344685600629E-02|c~45|n~0,51|p~0,15|k~1,93|ca~0,36|mg~0,14|s~|b~|zn~0,003|cu~0,0004|mn~0,008|na~0,15|fe~0,02|mo~ | I71: |fa~0,262605042016807|ts~86|fix~2,34344685600629E-02|c~45|n~0,51|p~|k~|ca~|mg~|s~|b~|zn~|cu~|mn~|na~|fe~|mo~ | J71: |fa~0,632352941176471|ts~100|fix~8,14251337302235E-02|c~40|n~0,9|p~|k~|ca~|mg~|s~|b~|zn~|cu~|mn~|na~|fe~|mo~ | K71: |ts~86|c~44|n~1,5|p~0,41|k~0,58|ca~0,04|mg~0,14|s~0,1|b~0,000811|zn~0,0039|cu~0,000509|mn~0,0037|na~0,00405|fe~0,0028|mo~ | L71: Stroh | M71: Korn | N71: 40 | O71: 86 | P71: 0.1605816584 | Q71: 44 | R71: 1.5 | S71: 0.41 | T71: 0.58 | U71: 0.04 | V71: 0.14 | W71: 0.1 | X71: 0.000811 | Y71: 0.0039 | Z71: 0.000509 | AA71: 0.0037 | AB71: 0.00405 | AC71: 0.0028 | AE71: 1.3 | AF71: 86 | AG71: 0.02343446856 | AH71: 45 | AI71: 0.51 | AJ71: 0.15 | AK71: 1.93 | AL71: 0.36 | AM71: 0.14 | AP71: 0.003 | AQ71: 0.0004 | AR71: 0.008 | AS71: 0.15 | AT71: 0.02 | AV71: 0.262605042 | AW71: 86 | AX71: 0.02343446856 | AY71: 45 | AZ71: 0.51 | BM71: 0.6323529412 | BN71: 100 | BO71: 0.08142513373 | BP71: 40 | BQ71: 0.9 | CD71: 86 | CE71: 44 | CF71: 1.5 | CG71: 0.41 | CH71: 0.58 | CI71: 0.04 | CJ71: 0.14 | CK71: 0.1 | CL71: 0.000811 | CM71: 0.0039 | CN71: 0.000509 | CO71: 0.0037 | CP71: 0.00405 | CQ71: 0.0028 | CX71: -520 | CY71: 100 | CZ71: 1.3 | DA71: 2 | DD71: 0 | DE71: 1 | DF71: Getreide
A72: 18 | B72: Marktfrucht | C72: Sommerweizen | F72: |vd_fruh_koeff~|vd_grun_koeff~|vd_unter_koeff~|vd_sommer_koeff~|vd_winter_koeff~|vd_haupt_koeff~-520|vd_ernterest_koeff~100|vd_nebenproduktfaktor~1,1|vd_verbleib_haupt~2|vd_verbleib_haupt_koeff~|vd_spat_koeff~ | G72: |fm~40|ts~86|fix~0,291105429683546|c~44|n~2,1|p~0,41|k~0,58|ca~0,05|mg~0,14|s~0,13|b~0,00053|zn~0,003|cu~0,0005|mn~0,00355|na~0,0072|fe~0,0034|mo~ | H72: |fa~1,1|ts~86|fix~2,97775492438456E-02|c~45|n~0,584|p~0,15|k~1,435|ca~0,367|mg~0,128|s~0,1|b~|zn~0,003|cu~0,0004|mn~0,008|na~0,15|fe~0,02|mo~ | I72: |fa~0,32|ts~86|fix~2,97775492438456E-02|c~45|n~0,584|p~|k~|ca~|mg~|s~|b~|zn~|cu~|mn~|na~|fe~|mo~ | J72: |fa~0,688|ts~100|fix~7,70258997310516E-02|c~43|n~0,9|p~|k~|ca~|mg~|s~|b~|zn~|cu~|mn~|na~|fe~|mo~ | K72: |ts~86|c~44|n~2,1|p~0,41|k~0,58|ca~0,05|mg~0,14|s~0,13|b~0,00053|zn~0,003|cu~0,0005|mn~0,00355|na~0,0072|fe~0,0034|mo~ | L72: Stroh | M72: Korn | N72: 40 | O72: 86 | P72: 0.2911054297 | Q72: 44 | R72: 2.1 | S72: 0.41 | T72: 0.58 | U72: 0.05 | V72: 0.14 | W72: 0.13 | X72: 0.00053 | Y72: 0.003 | Z72: 0.0005 | AA72: 0.00355 | AB72: 0.0072 | AC72: 0.0034 | AE72: 1.1 | AF72: 86 | AG72: 0.02977754924 | AH72: 45 | AI72: 0.584 | AJ72: 0.15 | AK72: 1.435 | AL72: 0.367 | AM72: 0.128 | AN72: 0.1 | AP72: 0.003 | AQ72: 0.0004 | AR72: 0.008 | AS72: 0.15 | AT72: 0.02 | AV72: 0.32 | AW72: 86 | AX72: 0.02977754924 | AY72: 45 | AZ72: 0.584 | BM72: 0.688 | BN72: 100 | BO72: 0.07702589973 | BP72: 43 | BQ72: 0.9 | CD72: 86 | CE72: 44 | CF72: 2.1 | CG72: 0.41 | CH72: 0.58 | CI72: 0.05 | CJ72: 0.14 | CK72: 0.13 | CL72: 0.00053 | CM72: 0.003 | CN72: 0.0005 | CO72: 0.00355 | CP72: 0.0072 | CQ72: 0.0034 | CX72: -520 | CY72: 100 | CZ72: 1.1 | DA72: 2 | DD72: 0 | DE72: 1 | DF72: Getreide
A73: 7 | B73: Marktfrucht | C73: Sommerwicke | F73: |vd_fruh_koeff~|vd_grun_koeff~|vd_unter_koeff~|vd_sommer_koeff~|vd_winter_koeff~|vd_haupt_koeff~160|vd_ernterest_koeff~|vd_nebenproduktfaktor~|vd_verbleib_haupt~2|vd_verbleib_haupt_koeff~|vd_spat_koeff~ | G73: |fm~30|ts~86|fix~1,06654113449667|c~45|n~4,42|p~0,45|k~1,04|ca~0,4|mg~0,2|s~0,14|b~0,00323|zn~0,00485|cu~0,0005|mn~0,00472|na~0,1|fe~0,0885|mo~0,00026 | H73: |fa~1|ts~86|fix~0,208764987503368|c~44|n~1,74|p~0,16|k~1,4|ca~|mg~0,24|s~0,12|b~|zn~|cu~|mn~|na~|fe~|mo~ | I73: |fa~0,109289617486339|ts~86|fix~0,208764987503368|c~44|n~1,74|p~|k~|ca~|mg~|s~|b~|zn~|cu~|mn~|na~|fe~|mo~ | J73: |fa~0,140983584|ts~100|fix~0,24033046319069|c~40|n~1,66|p~|k~|ca~|mg~|s~|b~|zn~|cu~|mn~|na~|fe~|mo~ | K73: |ts~86|c~45|n~4,42|p~0,45|k~1,04|ca~0,4|mg~0,2|s~0,14|b~0,00323|zn~0,00485|cu~0,0005|mn~0,00472|na~0,1|fe~0,0885|mo~0,00026 | L73: Stroh | M73: Korn | N73: 30 | O73: 86 | P73: 1.066541134 | Q73: 45 | R73: 4.42 | S73: 0.45 | T73: 1.04 | U73: 0.4 | V73: 0.2 | W73: 0.14 | X73: 0.00323 | Y73: 0.00485 | Z73: 0.0005 | AA73: 0.00472 | AB73: 0.1 | AC73: 0.0885 | AD73: 0.00026 | AE73: 1 | AF73: 86 | AG73: 0.2087649875 | AH73: 44 | AI73: 1.74 | AJ73: 0.16 | AK73: 1.4 | AM73: 0.24 | AN73: 0.12 | AV73: 0.1092896175 | AW73: 86 | AX73: 0.2087649875 | AY73: 44 | AZ73: 1.74 | BM73: 0.140983584 | BN73: 100 | BO73: 0.2403304632 | BP73: 40 | BQ73: 1.66 | CD73: 86 | CE73: 45 | CF73: 4.42 | CG73: 0.45 | CH73: 1.04 | CI73: 0.4 | CJ73: 0.2 | CK73: 0.14 | CL73: 0.00323 | CM73: 0.00485 | CN73: 0.0005 | CO73: 0.00472 | CP73: 0.1 | CQ73: 0.0885 | CR73: 0.00026 | CX73: 160 | DA73: 2 | DD73: 1 | DE73: 1 | DF73: Leguminosen
A74: 33 | B74: Marktfrucht | C74: Sonnenblumen | F74: |vd_fruh_koeff~|vd_grun_koeff~|vd_unter_koeff~|vd_sommer_koeff~|vd_winter_koeff~|vd_haupt_koeff~-520|vd_ernterest_koeff~100|vd_nebenproduktfaktor~2|vd_verbleib_haupt~2|vd_verbleib_haupt_koeff~|vd_spat_koeff~ | G74: |fm~30|ts~91|fix~0,335071265022685|c~60|n~2,52|p~0,75|k~1,785|ca~0,28|mg~0,44|s~0,32|b~|zn~0,006|cu~0,0017|mn~0,002114|na~0,0022|fe~0,0067|mo~ | H74: |fa~2|ts~86|fix~0,117569287927965|c~43|n~1,245|p~0,38|k~4,045|ca~|mg~0,195|s~0,19|b~|zn~0,006|cu~0,0017|mn~0,002114|na~0,0022|fe~0,0067|mo~ | I74: |fa~0,276036400404449|ts~86|fix~5,98752217957402E-02|c~43|n~0,85|p~|k~|ca~|mg~|s~|b~|zn~|cu~|mn~|na~|fe~|mo~ | J74: |fa~0,546|ts~100|fix~6,96223509252793E-02|c~43|n~0,85|p~|k~|ca~|mg~|s~|b~|zn~|cu~|mn~|na~|fe~|mo~ | K74: |ts~91|c~60|n~2,52|p~0,75|k~1,785|ca~0,28|mg~0,44|s~0,32|b~|zn~0,006|cu~0,0017|mn~0,002114|na~0,0022|fe~0,0067|mo~ | L74: Stroh | M74: Korn | N74: 30 | O74: 91 | P74: 0.335071265 | Q74: 60 | R74: 2.52 | S74: 0.75 | T74: 1.785 | U74: 0.28 | V74: 0.44 | W74: 0.32 | Y74: 0.006 | Z74: 0.0017 | AA74: 0.002114 | AB74: 0.0022 | AC74: 0.0067 | AE74: 2 | AF74: 86 | AG74: 0.1175692879 | AH74: 43 | AI74: 1.245 | AJ74: 0.38 | AK74: 4.045 | AM74: 0.195 | AN74: 0.19 | AP74: 0.006 | AQ74: 0.0017 | AR74: 0.002114 | AS74: 0.0022 | AT74: 0.0067 | AV74: 0.2760364004 | AW74: 86 | AX74: 0.0598752218 | AY74: 43 | AZ74: 0.85 | BM74: 0.546 | BN74: 100 | BO74: 0.06962235093 | BP74: 43 | BQ74: 0.85 | CD74: 91 | CE74: 60 | CF74: 2.52 | CG74: 0.75 | CH74: 1.785 | CI74: 0.28 | CJ74: 0.44 | CK74: 0.32 | CM74: 0.006 | CN74: 0.0017 | CO74: 0.002114 | CP74: 0.0022 | CQ74: 0.0067 | CX74: -520 | CY74: 100 | CZ74: 2 | DA74: 2 | DD74: 0 | DE74: 1 | DF74: Ölfrucht
A75: 70 | B75: Marktfrucht | C75: Speiseerbsen | F75: |vd_fruh_koeff~|vd_grun_koeff~|vd_unter_koeff~|vd_sommer_koeff~|vd_winter_koeff~|vd_haupt_koeff~-520|vd_ernterest_koeff~|vd_nebenproduktfaktor~|vd_verbleib_haupt~2|vd_verbleib_haupt_koeff~|vd_spat_koeff~ | G75: |fm~30|ts~22|fix~0,256249853668147|c~42|n~4,14|p~0,47|k~1,13|ca~0,096|mg~0,127|s~0,25|b~0,000002|zn~0,00376|cu~0,000736|mn~0,0004|na~0,0281|fe~0,0019|mo~ | H75: |fa~5,8|ts~17|fix~0,113956847566657|c~43|n~3,06|p~0,47|k~1,13|ca~0,096|mg~0,127|s~0,25|b~|zn~0,00376|cu~0,000736|mn~0,0004|na~0,0281|fe~0,0019|mo~ | I75: |fa~6,60264105642257E-02|ts~17|fix~0,113956847566657|c~43|n~3,06|p~|k~|ca~|mg~|s~|b~|zn~|cu~|mn~|na~|fe~|mo~ | J75: |fa~2,24489795918368E-02|ts~100|fix~0,231110455984528|c~44|n~1,69230769230769|p~|k~|ca~|mg~|s~|b~|zn~|cu~|mn~|na~|fe~|mo~ | K75: |ts~86|c~42|n~3,917|p~0,5|k~1,18|ca~0,09|mg~0,14|s~0,21|b~0,00142|zn~0,00376|cu~0,0008|mn~0,00148|na~0,0281|fe~0,00865|mo~0,000029 | L75: Hülsen, Blatt & Spross | M75: Korn | N75: 30 | O75: 22 | P75: 0.2562498537 | Q75: 42 | R75: 4.14 | S75: 0.47 | T75: 1.13 | U75: 0.096 | V75: 0.127 | W75: 0.25 | X75: 2e-06 | Y75: 0.00376 | Z75: 0.000736 | AA75: 0.0004 | AB75: 0.0281 | AC75: 0.0019 | AE75: 5.8 | AF75: 17 | AG75: 0.1139568476 | AH75: 43 | AI75: 3.06 | AJ75: 0.47 | AK75: 1.13 | AL75: 0.096 | AM75: 0.127 | AN75: 0.25 | AP75: 0.00376 | AQ75: 0.000736 | AR75: 0.0004 | AS75: 0.0281 | AT75: 0.0019 | AV75: 0.06602641056 | AW75: 17 | AX75: 0.1139568476 | AY75: 43 | AZ75: 3.06 | BM75: 0.02244897959 | BN75: 100 | BO75: 0.231110456 | BP75: 44 | BQ75: 1.692307692 | CD75: 86 | CE75: 42 | CF75: 3.917 | CG75: 0.5 | CH75: 1.18 | CI75: 0.09 | CJ75: 0.14 | CK75: 0.21 | CL75: 0.00142 | CM75: 0.00376 | CN75: 0.0008 | CO75: 0.00148 | CP75: 0.0281 | CQ75: 0.00865 | CR75: 2.9e-05 | CX75: -520 | DA75: 2 | DD75: 2 | DE75: 1 | DF75: Gemüse
A76: 73 | B76: Marktfrucht | C76: Speiserüben | F76: |vd_fruh_koeff~|vd_grun_koeff~|vd_unter_koeff~|vd_sommer_koeff~|vd_winter_koeff~|vd_haupt_koeff~-520|vd_ernterest_koeff~|vd_nebenproduktfaktor~|vd_verbleib_haupt~2|vd_verbleib_haupt_koeff~|vd_spat_koeff~ | G76: |fm~100|ts~11|fix~1,77349723143801E-02|c~39|n~1,31|p~0,44|k~2,1|ca~0,45|mg~0,09|s~0,5|b~|zn~0,00007|cu~0,00006|mn~0,00007|na~0,058|fe~0,0004|mo~ | H76: |fa~0,5|ts~11|fix~1,67537749752909E-02|c~42|n~1,31|p~0,44|k~2,1|ca~0,45|mg~0,09|s~0,5|b~|zn~0,00007|cu~0,00006|mn~0,00007|na~0,058|fe~0,0004|mo~ | I76: |fa~0|ts~|fix~|c~|n~|p~|k~|ca~|mg~|s~|b~|zn~|cu~|mn~|na~|fe~|mo~ | J76: |fa~0,011|ts~100|fix~0,261185338732846|c~40|n~1,74|p~|k~|ca~|mg~|s~|b~|zn~|cu~|mn~|na~|fe~|mo~ | K76: |ts~|c~|n~|p~|k~|ca~|mg~|s~|b~|zn~|cu~|mn~|na~|fe~|mo~ | L76: Blatt & Spross | M76: Rübe | N76: 100 | O76: 11 | P76: 0.01773497231 | Q76: 39 | R76: 1.31 | S76: 0.44 | T76: 2.1 | U76: 0.45 | V76: 0.09 | W76: 0.5 | Y76: 7e-05 | Z76: 6e-05 | AA76: 7e-05 | AB76: 0.058 | AC76: 0.0004 | AE76: 0.5 | AF76: 11 | AG76: 0.01675377498 | AH76: 42 | AI76: 1.31 | AJ76: 0.44 | AK76: 2.1 | AL76: 0.45 | AM76: 0.09 | AN76: 0.5 | AP76: 7e-05 | AQ76: 6e-05 | AR76: 7e-05 | AS76: 0.058 | AT76: 0.0004 | AV76: 0 | BM76: 0.011 | BN76: 100 | BO76: 0.2611853387 | BP76: 40 | BQ76: 1.74 | CX76: -520 | DA76: 2 | DD76: 0 | DE76: 1 | DF76: Gemüse
A77: 69 | B77: Marktfrucht | C77: Stangensellerie | F77: |vd_fruh_koeff~|vd_grun_koeff~|vd_unter_koeff~|vd_sommer_koeff~|vd_winter_koeff~|vd_haupt_koeff~-1240|vd_ernterest_koeff~|vd_nebenproduktfaktor~|vd_verbleib_haupt~2|vd_verbleib_haupt_koeff~|vd_spat_koeff~ | G77: |fm~150|ts~11|fix~4,19970695287185E-02|c~45|n~2,27|p~0,6|k~2,83|ca~0,56|mg~0,12|s~0,32|b~|zn~0,00011|cu~0,00004|mn~0,0001|na~0,123|fe~0,0002|mo~ | H77: |fa~0,5|ts~11|fix~4,19970695287185E-02|c~45|n~2,27|p~0,6|k~2,83|ca~0,56|mg~0,12|s~0,32|b~|zn~0,00011|cu~0,00004|mn~0,0001|na~0,123|fe~0,0002|mo~ | I77: |fa~0|ts~|fix~|c~|n~|p~|k~|ca~|mg~|s~|b~|zn~|cu~|mn~|na~|fe~|mo~ | J77: |fa~0,011|ts~100|fix~9,80974512622524E-02|c~40|n~1|p~|k~|ca~|mg~|s~|b~|zn~|cu~|mn~|na~|fe~|mo~ | K77: |ts~|c~|n~|p~|k~|ca~|mg~|s~|b~|zn~|cu~|mn~|na~|fe~|mo~ | L77: Blatt | M77: Spross | N77: 150 | O77: 11 | P77: 0.04199706953 | Q77: 45 | R77: 2.27 | S77: 0.6 | T77: 2.83 | U77: 0.56 | V77: 0.12 | W77: 0.32 | Y77: 0.00011 | Z77: 4e-05 | AA77: 0.0001 | AB77: 0.123 | AC77: 0.0002 | AE77: 0.5 | AF77: 11 | AG77: 0.04199706953 | AH77: 45 | AI77: 2.27 | AJ77: 0.6 | AK77: 2.83 | AL77: 0.56 | AM77: 0.12 | AN77: 0.32 | AP77: 0.00011 | AQ77: 4e-05 | AR77: 0.0001 | AS77: 0.123 | AT77: 0.0002 | AV77: 0 | BM77: 0.011 | BN77: 100 | BO77: 0.09809745126 | BP77: 40 | BQ77: 1 | CX77: -1240 | DA77: 2 | DD77: 0 | DE77: 1 | DF77: Gemüse
A78: 3 | B78: Marktfrucht | C78: Weiße Lupine | F78: |vd_fruh_koeff~|vd_grun_koeff~|vd_unter_koeff~|vd_sommer_koeff~|vd_winter_koeff~|vd_haupt_koeff~160|vd_ernterest_koeff~|vd_nebenproduktfaktor~|vd_verbleib_haupt~2|vd_verbleib_haupt_koeff~|vd_spat_koeff~ | G78: |fm~30|ts~86|fix~1,85786665556054|c~45|n~6,05|p~0,49|k~1,05|ca~0,196|mg~0,19|s~0,28|b~|zn~0,00353|cu~0,0007|mn~0,00154|na~0,03|fe~0,06|mo~0,000205 | H78: |fa~1|ts~86|fix~0,121314809113994|c~44|n~1,28|p~0,12|k~1,12|ca~|mg~0,19|s~0,18|b~|zn~|cu~|mn~|na~|fe~|mo~ | I78: |fa~0,109289617486339|ts~86|fix~0,134026884779413|c~47,5|n~1,4|p~|k~|ca~|mg~|s~|b~|zn~|cu~|mn~|na~|fe~|mo~ | J78: |fa~0,140983584|ts~100|fix~0,223367118270675|c~44|n~1,66|p~|k~|ca~|mg~|s~|b~|zn~|cu~|mn~|na~|fe~|mo~ | K78: |ts~86|c~45|n~6,05|p~0,49|k~1,05|ca~0,196|mg~0,19|s~0,28|b~|zn~0,00353|cu~0,0007|mn~0,00154|na~0,03|fe~0,06|mo~0,000205 | L78: Stroh | M78: Korn | N78: 30 | O78: 86 | P78: 1.857866656 | Q78: 45 | R78: 6.05 | S78: 0.49 | T78: 1.05 | U78: 0.196 | V78: 0.19 | W78: 0.28 | Y78: 0.00353 | Z78: 0.0007 | AA78: 0.00154 | AB78: 0.03 | AC78: 0.06 | AD78: 0.000205 | AE78: 1 | AF78: 86 | AG78: 0.1213148091 | AH78: 44 | AI78: 1.28 | AJ78: 0.12 | AK78: 1.12 | AM78: 0.19 | AN78: 0.18 | AV78: 0.1092896175 | AW78: 86 | AX78: 0.1340268848 | AY78: 47.5 | AZ78: 1.4 | BM78: 0.140983584 | BN78: 100 | BO78: 0.2233671183 | BP78: 44 | BQ78: 1.66 | CD78: 86 | CE78: 45 | CF78: 6.05 | CG78: 0.49 | CH78: 1.05 | CI78: 0.196 | CJ78: 0.19 | CK78: 0.28 | CM78: 0.00353 | CN78: 0.0007 | CO78: 0.00154 | CP78: 0.03 | CQ78: 0.06 | CR78: 0.000205 | CX78: 160 | DA78: 2 | DD78: 2 | DE78: 1 | DF78: Leguminosen
A79: 80 | B79: Marktfrucht | C79: Weißkohl/ Rotkohl | F79: |vd_fruh_koeff~|vd_grun_koeff~|vd_unter_koeff~|vd_sommer_koeff~|vd_winter_koeff~|vd_haupt_koeff~-1240|vd_ernterest_koeff~|vd_nebenproduktfaktor~|vd_verbleib_haupt~2|vd_verbleib_haupt_koeff~|vd_spat_koeff~ | G79: |fm~300|ts~8,7|fix~4,33798036470503E-02|c~45|n~2,64|p~0,36|k~2,75|ca~0,528|mg~0,21|s~0,75|b~0,00625|zn~0,00234|cu~0,000672|mn~0,00208|na~0,1275|fe~0,0005|mo~ | H79: |fa~0,85|ts~8,7|fix~4,33798036470503E-02|c~45|n~2,64|p~0,36|k~2,75|ca~0,528|mg~0,21|s~0,75|b~0,00625|zn~0,00234|cu~0,000672|mn~0,00208|na~0,1275|fe~0,0005|mo~ | I79: |fa~0|ts~|fix~|c~|n~|p~|k~|ca~|mg~|s~|b~|zn~|cu~|mn~|na~|fe~|mo~ | J79: |fa~0,0087|ts~100|fix~9,80974512622524E-02|c~40|n~1|p~|k~|ca~|mg~|s~|b~|zn~|cu~|mn~|na~|fe~|mo~ | K79: |ts~|c~|n~|p~|k~|ca~|mg~|s~|b~|zn~|cu~|mn~|na~|fe~|mo~ | L79: Blatt | M79: Kopf | N79: 300 | O79: 8.7 | P79: 0.04337980365 | Q79: 45 | R79: 2.64 | S79: 0.36 | T79: 2.75 | U79: 0.528 | V79: 0.21 | W79: 0.75 | X79: 0.00625 | Y79: 0.00234 | Z79: 0.000672 | AA79: 0.00208 | AB79: 0.1275 | AC79: 0.0005 | AE79: 0.85 | AF79: 8.7 | AG79: 0.04337980365 | AH79: 45 | AI79: 2.64 | AJ79: 0.36 | AK79: 2.75 | AL79: 0.528 | AM79: 0.21 | AN79: 0.75 | AO79: 0.00625 | AP79: 0.00234 | AQ79: 0.000672 | AR79: 0.00208 | AS79: 0.1275 | AT79: 0.0005 | AV79: 0 | BM79: 0.0087 | BN79: 100 | BO79: 0.09809745126 | BP79: 40 | BQ79: 1 | CX79: -1240 | DA79: 2 | DD79: 0 | DE79: 1 | DF79: Gemüse
A80: 108 | B80: Marktfrucht | C80: Winterackerbohne | F80: |vd_fruh_koeff~|vd_grun_koeff~|vd_unter_koeff~|vd_sommer_koeff~|vd_winter_koeff~|vd_haupt_koeff~160|vd_ernterest_koeff~|vd_nebenproduktfaktor~|vd_verbleib_haupt~2|vd_verbleib_haupt_koeff~|vd_spat_koeff~ | G80: |fm~30|ts~86|fix~1,29670466693867|c~43|n~4,84|p~0,55|k~1,31|ca~0,155|mg~0,1585|s~0,2|b~0,00155|zn~0,00616|cu~0,00062|mn~0,00145|na~0,0281|fe~0,00715|mo~0,000225 | H80: |fa~1|ts~86|fix~0,144673451157624|c~43|n~1,4|p~0,17|k~1,71|ca~|mg~0,19|s~0,16|b~|zn~|cu~|mn~|na~|fe~|mo~ | I80: |fa~0,109289617486339|ts~86|fix~0,144673451157624|c~43|n~1,4|p~0,17|k~1,71|ca~|mg~0,19|s~0,16|b~|zn~|cu~|mn~|na~|fe~|mo~ | J80: |fa~0,140983584|ts~100|fix~0,135409821886406|c~40|n~1,2|p~|k~|ca~|mg~|s~|b~|zn~|cu~|mn~|na~|fe~|mo~ | K80: |ts~86|c~43|n~4,84|p~0,55|k~1,31|ca~0,155|mg~0,1585|s~0,2|b~0,00155|zn~0,00616|cu~0,00062|mn~0,00145|na~0,0281|fe~0,00715|mo~0,000225 | L80: Stroh | M80: Korn | N80: 30 | O80: 86 | P80: 1.296704667 | Q80: 43 | R80: 4.84 | S80: 0.55 | T80: 1.31 | U80: 0.155 | V80: 0.1585 | W80: 0.2 | X80: 0.00155 | Y80: 0.00616 | Z80: 0.00062 | AA80: 0.00145 | AB80: 0.0281 | AC80: 0.00715 | AD80: 0.000225 | AE80: 1 | AF80: 86 | AG80: 0.1446734512 | AH80: 43 | AI80: 1.4 | AJ80: 0.17 | AK80: 1.71 | AM80: 0.19 | AN80: 0.16 | AV80: 0.1092896175 | AW80: 86 | AX80: 0.1446734512 | AY80: 43 | AZ80: 1.4 | BA80: 0.17 | BB80: 1.71 | BD80: 0.19 | BE80: 0.16 | BM80: 0.140983584 | BN80: 100 | BO80: 0.1354098219 | BP80: 40 | BQ80: 1.2 | CD80: 86 | CE80: 43 | CF80: 4.84 | CG80: 0.55 | CH80: 1.31 | CI80: 0.155 | CJ80: 0.1585 | CK80: 0.2 | CL80: 0.00155 | CM80: 0.00616 | CN80: 0.00062 | CO80: 0.00145 | CP80: 0.0281 | CQ80: 0.00715 | CR80: 0.000225 | CX80: 160 | DA80: 2 | DD80: 2 | DE80: 1 | DF80: Leguminosen
A81: 29 | B81: Marktfrucht | C81: Winterdinkel | F81: |vd_fruh_koeff~|vd_grun_koeff~|vd_unter_koeff~|vd_sommer_koeff~|vd_winter_koeff~|vd_haupt_koeff~-520|vd_ernterest_koeff~100|vd_nebenproduktfaktor~1,1|vd_verbleib_haupt~2|vd_verbleib_haupt_koeff~|vd_spat_koeff~ | G81: |fm~40|ts~86|fix~0,390622418483054|c~44|n~2,48|p~0,41|k~0,87|ca~0,024|mg~0,14|s~0,12|b~|zn~0,004015|cu~0,00044|mn~0,0049|na~0,0011|fe~0,0048|mo~ | H81: |fa~1,1|ts~86|fix~2,10525906235133E-02|c~45|n~0,48|p~0,15|k~1,64|ca~0,367|mg~0,14|s~0,1|b~|zn~0,003|cu~0,0004|mn~0,008|na~0,15|fe~0,02|mo~ | I81: |fa~0,32|ts~86|fix~2,10525906235133E-02|c~45|n~0,48|p~0,15|k~1,64|ca~0,367|mg~0,14|s~0,1|b~|zn~|cu~|mn~|na~|fe~|mo~ | J81: |fa~0,688|ts~100|fix~7,70258997310516E-02|c~43|n~0,9|p~|k~|ca~|mg~|s~|b~|zn~|cu~|mn~|na~|fe~|mo~ | K81: |ts~86|c~44|n~2,48|p~0,41|k~0,87|ca~0,024|mg~0,14|s~0,12|b~|zn~0,004015|cu~0,00044|mn~0,0049|na~0,0011|fe~0,0048|mo~ | L81: Stroh | M81: Korn | N81: 40 | O81: 86 | P81: 0.3906224185 | Q81: 44 | R81: 2.48 | S81: 0.41 | T81: 0.87 | U81: 0.024 | V81: 0.14 | W81: 0.12 | Y81: 0.004015 | Z81: 0.00044 | AA81: 0.0049 | AB81: 0.0011 | AC81: 0.0048 | AE81: 1.1 | AF81: 86 | AG81: 0.02105259062 | AH81: 45 | AI81: 0.48 | AJ81: 0.15 | AK81: 1.64 | AL81: 0.367 | AM81: 0.14 | AN81: 0.1 | AP81: 0.003 | AQ81: 0.0004 | AR81: 0.008 | AS81: 0.15 | AT81: 0.02 | AV81: 0.32 | AW81: 86 | AX81: 0.02105259062 | AY81: 45 | AZ81: 0.48 | BA81: 0.15 | BB81: 1.64 | BC81: 0.367 | BD81: 0.14 | BE81: 0.1 | BM81: 0.688 | BN81: 100 | BO81: 0.07702589973 | BP81: 43 | BQ81: 0.9 | CD81: 86 | CE81: 44 | CF81: 2.48 | CG81: 0.41 | CH81: 0.87 | CI81: 0.024 | CJ81: 0.14 | CK81: 0.12 | CM81: 0.004015 | CN81: 0.00044 | CO81: 0.0049 | CP81: 0.0011 | CQ81: 0.0048 | CX81: -520 | CY81: 100 | CZ81: 1.1 | DA81: 2 | DD81: 0 | DE81: 1 | DF81: Getreide
A82: 10 | B82: Marktfrucht | C82: Wintergerste | F82: |vd_fruh_koeff~|vd_grun_koeff~|vd_unter_koeff~|vd_sommer_koeff~|vd_winter_koeff~|vd_haupt_koeff~-520|vd_ernterest_koeff~100|vd_nebenproduktfaktor~1,1|vd_verbleib_haupt~2|vd_verbleib_haupt_koeff~|vd_spat_koeff~ | G82: |fm~40|ts~86|fix~0,170166095986885|c~44|n~1,55|p~0,41|k~0,575|ca~0,038|mg~0,14|s~0,12|b~|zn~0,0028|cu~0,00055|mn~0,0021|na~0,018|fe~0,0028|mo~ | H82: |fa~1,1|ts~86|fix~2,34344685600629E-02|c~45|n~0,51|p~0,15|k~1,64|ca~0,35|mg~0,14|s~0,1|b~|zn~0,004|cu~0,0006|mn~0,008|na~0,2|fe~0,02|mo~ | I82: |fa~0,228571428571429|ts~86|fix~2,34344685600629E-02|c~45|n~0,51|p~|k~|ca~|mg~|s~|b~|zn~|cu~|mn~|na~|fe~|mo~ | J82: |fa~0,491428571428571|ts~100|fix~8,14251337302235E-02|c~40|n~0,9|p~|k~|ca~|mg~|s~|b~|zn~|cu~|mn~|na~|fe~|mo~ | K82: |ts~86|c~44|n~1,55|p~0,41|k~0,575|ca~0,038|mg~0,14|s~0,12|b~|zn~0,0028|cu~0,00055|mn~0,0021|na~0,018|fe~0,0028|mo~ | L82: Stroh | M82: Korn | N82: 40 | O82: 86 | P82: 0.170166096 | Q82: 44 | R82: 1.55 | S82: 0.41 | T82: 0.575 | U82: 0.038 | V82: 0.14 | W82: 0.12 | Y82: 0.0028 | Z82: 0.00055 | AA82: 0.0021 | AB82: 0.018 | AC82: 0.0028 | AE82: 1.1 | AF82: 86 | AG82: 0.02343446856 | AH82: 45 | AI82: 0.51 | AJ82: 0.15 | AK82: 1.64 | AL82: 0.35 | AM82: 0.14 | AN82: 0.1 | AP82: 0.004 | AQ82: 0.0006 | AR82: 0.008 | AS82: 0.2 | AT82: 0.02 | AV82: 0.2285714286 | AW82: 86 | AX82: 0.02343446856 | AY82: 45 | AZ82: 0.51 | BM82: 0.4914285714 | BN82: 100 | BO82: 0.08142513373 | BP82: 40 | BQ82: 0.9 | CD82: 86 | CE82: 44 | CF82: 1.55 | CG82: 0.41 | CH82: 0.575 | CI82: 0.038 | CJ82: 0.14 | CK82: 0.12 | CM82: 0.0028 | CN82: 0.00055 | CO82: 0.0021 | CP82: 0.018 | CQ82: 0.0028 | CX82: -520 | CY82: 100 | CZ82: 1.1 | DA82: 2 | DD82: 0 | DE82: 1 | DF82: Getreide
A83: 36 | B83: Marktfrucht | C83: Winterraps | F83: |vd_fruh_koeff~|vd_grun_koeff~|vd_unter_koeff~|vd_sommer_koeff~|vd_winter_koeff~|vd_haupt_koeff~-520|vd_ernterest_koeff~100|vd_nebenproduktfaktor~2|vd_verbleib_haupt~2|vd_verbleib_haupt_koeff~|vd_spat_koeff~ | G83: |fm~30|ts~91|fix~0,440047045393963|c~60|n~2,94|p~0,82|k~0,84|ca~0,28|mg~0,25|s~0,413|b~|zn~0,00515|cu~0,0001716|mn~0,0055308|na~0,25|fe~0,05214|mo~ | H83: |fa~2|ts~86|fix~2,68476725262871E-02|c~43|n~0,54|p~0,14|k~1,795|ca~|mg~0,095|s~0,26|b~|zn~|cu~|mn~|na~|fe~|mo~ | I83: |fa~0,116279069767442|ts~86|fix~2,68476725262871E-02|c~43|n~0,54|p~0,14|k~1,795|ca~|mg~0,095|s~0,26|b~|zn~|cu~|mn~|na~|fe~|mo~ | J83: |fa~0,13|ts~100|fix~6,90685939184983E-02|c~40|n~0,82|p~|k~|ca~|mg~|s~|b~|zn~|cu~|mn~|na~|fe~|mo~ | K83: |ts~91|c~60|n~2,94|p~0,82|k~0,84|ca~0,28|mg~0,25|s~0,413|b~|zn~0,00515|cu~0,0001716|mn~0,0055308|na~0,25|fe~0,05214|mo~ | L83: Stroh | M83: Korn | N83: 30 | O83: 91 | P83: 0.4400470454 | Q83: 60 | R83: 2.94 | S83: 0.82 | T83: 0.84 | U83: 0.28 | V83: 0.25 | W83: 0.413 | Y83: 0.00515 | Z83: 0.0001716 | AA83: 0.0055308 | AB83: 0.25 | AC83: 0.05214 | AE83: 2 | AF83: 86 | AG83: 0.02684767253 | AH83: 43 | AI83: 0.54 | AJ83: 0.14 | AK83: 1.795 | AM83: 0.095 | AN83: 0.26 | AV83: 0.1162790698 | AW83: 86 | AX83: 0.02684767253 | AY83: 43 | AZ83: 0.54 | BA83: 0.14 | BB83: 1.795 | BD83: 0.095 | BE83: 0.26 | BM83: 0.13 | BN83: 100 | BO83: 0.06906859392 | BP83: 40 | BQ83: 0.82 | CD83: 91 | CE83: 60 | CF83: 2.94 | CG83: 0.82 | CH83: 0.84 | CI83: 0.28 | CJ83: 0.25 | CK83: 0.413 | CM83: 0.00515 | CN83: 0.0001716 | CO83: 0.0055308 | CP83: 0.25 | CQ83: 0.05214 | CX83: -520 | CY83: 100 | CZ83: 2 | DA83: 2 | DD83: 0 | DE83: 1 | DF83: Ölfrucht
A84: 12 | B84: Marktfrucht | C84: Winterroggen | F84: |vd_fruh_koeff~|vd_grun_koeff~|vd_unter_koeff~|vd_sommer_koeff~|vd_winter_koeff~|vd_haupt_koeff~-520|vd_ernterest_koeff~100|vd_nebenproduktfaktor~1,3|vd_verbleib_haupt~2|vd_verbleib_haupt_koeff~|vd_spat_koeff~ | G84: |fm~40|ts~86|fix~0,160581658442096|c~44|n~1,5|p~0,41|k~0,58|ca~0,04|mg~0,14|s~0,1|b~0,000811|zn~0,0039|cu~0,000509|mn~0,0037|na~0,00405|fe~0,0028|mo~ | H84: |fa~1,3|ts~86|fix~2,34344685600629E-02|c~45|n~0,51|p~0,15|k~1,93|ca~0,36|mg~0,14|s~0,1|b~|zn~0,003|cu~0,0004|mn~0,008|na~0,15|fe~0,02|mo~ | I84: |fa~0,261904761904762|ts~86|fix~2,34344685600629E-02|c~45|n~0,51|p~|k~|ca~|mg~|s~|b~|zn~|cu~|mn~|na~|fe~|mo~ | J84: |fa~0,630666666666667|ts~100|fix~8,14251337302235E-02|c~40|n~0,9|p~|k~|ca~|mg~|s~|b~|zn~|cu~|mn~|na~|fe~|mo~ | K84: |ts~86|c~44|n~1,5|p~0,41|k~0,58|ca~0,04|mg~0,14|s~0,1|b~0,000811|zn~0,0039|cu~0,000509|mn~0,0037|na~0,00405|fe~0,0028|mo~ | L84: Stroh | M84: Korn | N84: 40 | O84: 86 | P84: 0.1605816584 | Q84: 44 | R84: 1.5 | S84: 0.41 | T84: 0.58 | U84: 0.04 | V84: 0.14 | W84: 0.1 | X84: 0.000811 | Y84: 0.0039 | Z84: 0.000509 | AA84: 0.0037 | AB84: 0.00405 | AC84: 0.0028 | AE84: 1.3 | AF84: 86 | AG84: 0.02343446856 | AH84: 45 | AI84: 0.51 | AJ84: 0.15 | AK84: 1.93 | AL84: 0.36 | AM84: 0.14 | AN84: 0.1 | AP84: 0.003 | AQ84: 0.0004 | AR84: 0.008 | AS84: 0.15 | AT84: 0.02 | AV84: 0.2619047619 | AW84: 86 | AX84: 0.02343446856 | AY84: 45 | AZ84: 0.51 | BM84: 0.6306666667 | BN84: 100 | BO84: 0.08142513373 | BP84: 40 | BQ84: 0.9 | CD84: 86 | CE84: 44 | CF84: 1.5 | CG84: 0.41 | CH84: 0.58 | CI84: 0.04 | CJ84: 0.14 | CK84: 0.1 | CL84: 0.000811 | CM84: 0.0039 | CN84: 0.000509 | CO84: 0.0037 | CP84: 0.00405 | CQ84: 0.0028 | CX84: -520 | CY84: 100 | CZ84: 1.3 | DA84: 2 | DD84: 0 | DE84: 1 | DF84: Getreide
A85: 11 | B85: Marktfrucht | C85: Wintertriticale | F85: |vd_fruh_koeff~|vd_grun_koeff~|vd_unter_koeff~|vd_sommer_koeff~|vd_winter_koeff~|vd_haupt_koeff~-520|vd_ernterest_koeff~100|vd_nebenproduktfaktor~1,2|vd_verbleib_haupt~2|vd_verbleib_haupt_koeff~|vd_spat_koeff~ | G85: |fm~40|ts~86|fix~0,176032283458289|c~44|n~1,58|p~0,41|k~0,58|ca~0,06|mg~0,14|s~0,11|b~|zn~0,0035|cu~0,0007|mn~0,004|na~0,03|fe~0,005|mo~ | H85: |fa~1,2|ts~86|fix~2,34344685600629E-02|c~45|n~0,51|p~0,15|k~1,64|ca~0,31|mg~0,14|s~0,1|b~|zn~0,003|cu~0,0004|mn~0,008|na~0,15|fe~0,02|mo~ | I85: |fa~0,260869565217391|ts~86|fix~2,34344685600629E-02|c~45|n~0,51|p~|k~|ca~|mg~|s~|b~|zn~|cu~|mn~|na~|fe~|mo~ | J85: |fa~0,516|ts~100|fix~8,14251337302235E-02|c~40|n~0,9|p~|k~|ca~|mg~|s~|b~|zn~|cu~|mn~|na~|fe~|mo~ | K85: |ts~86|c~44|n~1,58|p~0,41|k~0,58|ca~0,06|mg~0,14|s~0,11|b~|zn~0,0035|cu~0,0007|mn~0,004|na~0,03|fe~0,005|mo~ | L85: Stroh | M85: Korn | N85: 40 | O85: 86 | P85: 0.1760322835 | Q85: 44 | R85: 1.58 | S85: 0.41 | T85: 0.58 | U85: 0.06 | V85: 0.14 | W85: 0.11 | Y85: 0.0035 | Z85: 0.0007 | AA85: 0.004 | AB85: 0.03 | AC85: 0.005 | AE85: 1.2 | AF85: 86 | AG85: 0.02343446856 | AH85: 45 | AI85: 0.51 | AJ85: 0.15 | AK85: 1.64 | AL85: 0.31 | AM85: 0.14 | AN85: 0.1 | AP85: 0.003 | AQ85: 0.0004 | AR85: 0.008 | AS85: 0.15 | AT85: 0.02 | AV85: 0.2608695652 | AW85: 86 | AX85: 0.02343446856 | AY85: 45 | AZ85: 0.51 | BM85: 0.516 | BN85: 100 | BO85: 0.08142513373 | BP85: 40 | BQ85: 0.9 | CD85: 86 | CE85: 44 | CF85: 1.58 | CG85: 0.41 | CH85: 0.58 | CI85: 0.06 | CJ85: 0.14 | CK85: 0.11 | CM85: 0.0035 | CN85: 0.0007 | CO85: 0.004 | CP85: 0.03 | CQ85: 0.005 | CX85: -520 | CY85: 100 | CZ85: 1.2 | DA85: 2 | DD85: 0 | DE85: 1 | DF85: Getreide
A86: 17 | B86: Marktfrucht | C86: Winterweizen | F86: |vd_fruh_koeff~|vd_grun_koeff~|vd_unter_koeff~|vd_sommer_koeff~|vd_winter_koeff~|vd_haupt_koeff~-520|vd_ernterest_koeff~100|vd_nebenproduktfaktor~1,1|vd_verbleib_haupt~2|vd_verbleib_haupt_koeff~|vd_spat_koeff~ | G86: |fm~40|ts~86|fix~0,275604114389822|c~44|n~2,036|p~0,41|k~0,58|ca~0,047|mg~0,1325|s~0,13|b~0,00053|zn~0,003|cu~0,0005|mn~0,00355|na~0,0072|fe~0,0034|mo~ | H86: |fa~1,1|ts~86|fix~2,97775492438456E-02|c~45|n~0,584|p~0,15|k~1,435|ca~0,367|mg~0,128|s~0,1|b~|zn~0,003|cu~0,0004|mn~0,008|na~0,15|fe~0,02|mo~ | I86: |fa~0,2|ts~86|fix~2,92791286122067E-02|c~46|n~0,584|p~|k~|ca~|mg~|s~|b~|zn~|cu~|mn~|na~|fe~|mo~ | J86: |fa~0,43|ts~100|fix~7,70258997310516E-02|c~43|n~0,9|p~|k~|ca~|mg~|s~|b~|zn~|cu~|mn~|na~|fe~|mo~ | K86: |ts~86|c~44|n~2,036|p~0,41|k~0,58|ca~0,047|mg~0,1325|s~0,13|b~0,00053|zn~0,003|cu~0,0005|mn~0,00355|na~0,0072|fe~0,0034|mo~ | L86: Stroh | M86: Korn | N86: 40 | O86: 86 | P86: 0.2756041144 | Q86: 44 | R86: 2.036 | S86: 0.41 | T86: 0.58 | U86: 0.047 | V86: 0.1325 | W86: 0.13 | X86: 0.00053 | Y86: 0.003 | Z86: 0.0005 | AA86: 0.00355 | AB86: 0.0072 | AC86: 0.0034 | AE86: 1.1 | AF86: 86 | AG86: 0.02977754924 | AH86: 45 | AI86: 0.584 | AJ86: 0.15 | AK86: 1.435 | AL86: 0.367 | AM86: 0.128 | AN86: 0.1 | AP86: 0.003 | AQ86: 0.0004 | AR86: 0.008 | AS86: 0.15 | AT86: 0.02 | AV86: 0.2 | AW86: 86 | AX86: 0.02927912861 | AY86: 46 | AZ86: 0.584 | BM86: 0.43 | BN86: 100 | BO86: 0.07702589973 | BP86: 43 | BQ86: 0.9 | CD86: 86 | CE86: 44 | CF86: 2.036 | CG86: 0.41 | CH86: 0.58 | CI86: 0.047 | CJ86: 0.1325 | CK86: 0.13 | CL86: 0.00053 | CM86: 0.003 | CN86: 0.0005 | CO86: 0.00355 | CP86: 0.0072 | CQ86: 0.0034 | CX86: -520 | CY86: 100 | CZ86: 1.1 | DA86: 2 | DD86: 0 | DE86: 1 | DF86: Getreide
A87: 61 | B87: Marktfrucht | C87: Wurzelpetersilie | F87: |vd_fruh_koeff~|vd_grun_koeff~|vd_unter_koeff~|vd_sommer_koeff~|vd_winter_koeff~|vd_haupt_koeff~-520|vd_ernterest_koeff~|vd_nebenproduktfaktor~|vd_verbleib_haupt~2|vd_verbleib_haupt_koeff~|vd_spat_koeff~ | G87: |fm~150|ts~14,5|fix~0,103844659551698|c~45|n~3,24|p~0,51|k~3,03|ca~0,27|mg~0,22|s~0,276|b~0,0028|zn~0,00376|cu~0,00135|mn~0,000989|na~0,079|fe~0,0009|mo~ | H87: |fa~0,8|ts~14,5|fix~0,103844659551698|c~45|n~3,24|p~0,39|k~3,03|ca~0,27|mg~0,22|s~0,276|b~|zn~0,00376|cu~0,00135|mn~0,000989|na~0,079|fe~0,0009|mo~ | I87: |fa~0|ts~|fix~|c~|n~|p~|k~|ca~|mg~|s~|b~|zn~|cu~|mn~|na~|fe~|mo~ | J87: |fa~0,0145|ts~100|fix~9,80974512622524E-02|c~40|n~1|p~|k~|ca~|mg~|s~|b~|zn~|cu~|mn~|na~|fe~|mo~ | K87: |ts~|c~|n~|p~|k~|ca~|mg~|s~|b~|zn~|cu~|mn~|na~|fe~|mo~ | L87: Blatt & Spross | M87: Rübe | N87: 150 | O87: 14.5 | P87: 0.1038446596 | Q87: 45 | R87: 3.24 | S87: 0.51 | T87: 3.03 | U87: 0.27 | V87: 0.22 | W87: 0.276 | X87: 0.0028 | Y87: 0.00376 | Z87: 0.00135 | AA87: 0.000989 | AB87: 0.079 | AC87: 0.0009 | AE87: 0.8 | AF87: 14.5 | AG87: 0.1038446596 | AH87: 45 | AI87: 3.24 | AJ87: 0.39 | AK87: 3.03 | AL87: 0.27 | AM87: 0.22 | AN87: 0.276 | AP87: 0.00376 | AQ87: 0.00135 | AR87: 0.000989 | AS87: 0.079 | AT87: 0.0009 | AV87: 0 | BM87: 0.0145 | BN87: 100 | BO87: 0.09809745126 | BP87: 40 | BQ87: 1 | CX87: -520 | DA87: 2 | DD87: 0 | DE87: 1 | DF87: Gemüse
A88: 68 | B88: Marktfrucht | C88: Zucchini | F88: |vd_fruh_koeff~|vd_grun_koeff~|vd_unter_koeff~|vd_sommer_koeff~|vd_winter_koeff~|vd_haupt_koeff~-1240|vd_ernterest_koeff~|vd_nebenproduktfaktor~|vd_verbleib_haupt~2|vd_verbleib_haupt_koeff~|vd_spat_koeff~ | G88: |fm~200|ts~6,43|fix~5,90697012175198E-02|c~45|n~3,73|p~0,4|k~2,64|ca~0,27|mg~0,28|s~0,23|b~|zn~0,00319|cu~0,00135|mn~0,00192|na~0,0423|fe~0,0015|mo~ | H88: |fa~0,9|ts~6,43|fix~5,90697012175198E-02|c~45|n~3,73|p~0,4|k~2,64|ca~0,27|mg~0,28|s~0,23|b~|zn~0,00319|cu~0,00135|mn~0,00192|na~0,0423|fe~0,0015|mo~ | I88: |fa~0|ts~|fix~|c~|n~|p~|k~|ca~|mg~|s~|b~|zn~|cu~|mn~|na~|fe~|mo~ | J88: |fa~0,00643|ts~100|fix~9,80974512622524E-02|c~40|n~1|p~|k~|ca~|mg~|s~|b~|zn~|cu~|mn~|na~|fe~|mo~ | K88: |ts~|c~|n~|p~|k~|ca~|mg~|s~|b~|zn~|cu~|mn~|na~|fe~|mo~ | L88: Blatt & Spross | M88: Frucht | N88: 200 | O88: 6.43 | P88: 0.05906970122 | Q88: 45 | R88: 3.73 | S88: 0.4 | T88: 2.64 | U88: 0.27 | V88: 0.28 | W88: 0.23 | Y88: 0.00319 | Z88: 0.00135 | AA88: 0.00192 | AB88: 0.0423 | AC88: 0.0015 | AE88: 0.9 | AF88: 6.43 | AG88: 0.05906970122 | AH88: 45 | AI88: 3.73 | AJ88: 0.4 | AK88: 2.64 | AL88: 0.27 | AM88: 0.28 | AN88: 0.23 | AP88: 0.00319 | AQ88: 0.00135 | AR88: 0.00192 | AS88: 0.0423 | AT88: 0.0015 | AV88: 0 | BM88: 0.00643 | BN88: 100 | BO88: 0.09809745126 | BP88: 40 | BQ88: 1 | CX88: -1240 | DA88: 2 | DD88: 0 | DE88: 1 | DF88: Gemüse
A89: 81 | B89: Marktfrucht | C89: Zuckerrüben | F89: |vd_fruh_koeff~|vd_grun_koeff~|vd_unter_koeff~|vd_sommer_koeff~|vd_winter_koeff~|vd_haupt_koeff~-1840|vd_ernterest_koeff~16|vd_nebenproduktfaktor~0,7|vd_verbleib_haupt~2|vd_verbleib_haupt_koeff~|vd_spat_koeff~ | G89: |fm~200|ts~23|fix~1,22451285780999E-02|c~39|n~0,7|p~0,17|k~0,91|ca~0,23|mg~0,22|s~0,17|b~|zn~0,0036|cu~0,00051|mn~0,0061|na~0,095|fe~0,0215|mo~ | H89: |fa~0,7|ts~22|fix~6,34626350285435E-02|c~42|n~1,88|p~0,31|k~2,69|ca~1,24|mg~0,38|s~0,22|b~|zn~0,0072|cu~0,00115|mn~0,0179|na~0,95|fe~0,025|mo~ | I89: |fa~0|ts~|fix~|c~|n~|p~|k~|ca~|mg~|s~|b~|zn~|cu~|mn~|na~|fe~|mo~ | J89: |fa~0,023|ts~100|fix~0,261185338732846|c~40|n~1,74|p~|k~|ca~|mg~|s~|b~|zn~|cu~|mn~|na~|fe~|mo~ | K89: |ts~|c~|n~|p~|k~|ca~|mg~|s~|b~|zn~|cu~|mn~|na~|fe~|mo~ | L89: Blatt | M89: Rübe | N89: 200 | O89: 23 | P89: 0.01224512858 | Q89: 39 | R89: 0.7 | S89: 0.17 | T89: 0.91 | U89: 0.23 | V89: 0.22 | W89: 0.17 | Y89: 0.0036 | Z89: 0.00051 | AA89: 0.0061 | AB89: 0.095 | AC89: 0.0215 | AE89: 0.7 | AF89: 22 | AG89: 0.06346263503 | AH89: 42 | AI89: 1.88 | AJ89: 0.31 | AK89: 2.69 | AL89: 1.24 | AM89: 0.38 | AN89: 0.22 | AP89: 0.0072 | AQ89: 0.00115 | AR89: 0.0179 | AS89: 0.95 | AT89: 0.025 | AV89: 0 | BM89: 0.023 | BN89: 100 | BO89: 0.2611853387 | BP89: 40 | BQ89: 1.74 | CX89: -1840 | CY89: 16 | CZ89: 0.7 | DA89: 2 | DD89: 0 | DE89: 1 | DF89: Hackfrucht
